Workbook

Sheet 사용승인별 현황 (hidden)
B1: 2018
B2: 사용승인일 | F2: 단지 | G2: 세대수 | I2: 종로구 | K2: 중구 | M2: 용산구 | O2: 성동구 | Q2: 광진구 | S2: 동대문구 | U2: 중랑구 | W2: 성북구 | Y2: 강북구 | AA2: 도봉구 | AC2: 노원구 | AE2: 은평구 | AG2: 서대문구 | AI2: 마포구 | AK2: 양천구 | AM2: 강서구 | AO2: 구로구 | AQ2: 금천구 | AS2: 영등포구 | AU2: 동작구 | AW2: 관악구 | AY2: 서초구 | BA2: 강남구 | BC2: 송파구 | BE2: 강동구
I3: 단지 | J3: 세대수 | K3: 단지 | L3: 세대수 | M3: 단지 | N3: 세대수 | O3: 단지 | P3: 세대수 | Q3: 단지 | R3: 세대수 | S3: 단지 | T3: 세대수 | U3: 단지 | V3: 세대수 | W3: 단지 | X3: 세대수 | Y3: 단지 | Z3: 세대수 | AA3: 단지 | AB3: 세대수 | AC3: 단지 | AD3: 세대수 | AE3: 단지 | AF3: 세대수 | AG3: 단지 | AH3: 세대수 | AI3: 단지 | AJ3: 세대수 | AK3: 단지 | AL3: 세대수 | AM3: 단지 | AN3: 세대수 | AO3: 단지 | AP3: 세대수 | AQ3: 단지 | AR3: 세대수 | AS3: 단지 | AT3: 세대수 | AU3: 단지 | AV3: 세대수 | AW3: 단지 | AX3: 세대수 | AY3: 단지 | AZ3: 세대수 | BA3: 단지 | BB3: 세대수 | BC3: 단지 | BD3: 세대수 | BE3: 단지 | BF3: 세대수
B4: 합 계 | F4: =SUM(F5:F23) ->  | G4: =SUM(G5:G23) ->  | I4: =SUM(I5:I23) -> 
B5: 0 | C5: =TODAY() -> 45650 | D5: 5 | E5: =DATE($B$1-D5,1,1) -> 2013-01-01 | F5: =COUNTIFS(#REF!,">"&$E5,#REF!,"<="&$C5,#REF!,">=20",#REF!,"<>임대") ->  | G5: =SUMIFS(#REF!,#REF!,">"&$E5,#REF!,"<="&$C5,#REF!,">=20",#REF!,"<>임대") ->  | I5: =COUNTIFS(#REF!,">"&$E5,#REF!,"<="&$C5,#REF!,'사용승인별 현황'!I$2,#REF!,">=20",#REF!,"<>임대") ->  | J5: =SUMIFS(#REF!,#REF!,">"&$E5,#REF!,"<="&$C5,#REF!,'사용승인별 현황'!I$2,#REF!,">=20",#REF!,"<>임대") ->  | K5: =COUNTIFS(#REF!,">"&$E5,#REF!,"<="&$C5,#REF!,'사용승인별 현황'!K$2,#REF!,">=20",#REF!,"<>임대") ->  | L5: =SUMIFS(#REF!,#REF!,">"&$E5,#REF!,"<="&$C5,#REF!,'사용승인별 현황'!K$2,#REF!,">=20",#REF!,"<>임대") ->  | M5: =COUNTIFS(#REF!,">"&$E5,#REF!,"<="&$C5,#REF!,'사용승인별 현황'!M$2,#REF!,">=20",#REF!,"<>임대") ->  | N5: =SUMIFS(#REF!,#REF!,">"&$E5,#REF!,"<="&$C5,#REF!,'사용승인별 현황'!M$2,#REF!,">=20",#REF!,"<>임대") ->  | O5: =COUNTIFS(#REF!,">"&$E5,#REF!,"<="&$C5,#REF!,'사용승인별 현황'!O$2,#REF!,">=20",#REF!,"<>임대") ->  | P5: =SUMIFS(#REF!,#REF!,">"&$E5,#REF!,"<="&$C5,#REF!,'사용승인별 현황'!O$2,#REF!,">=20",#REF!,"<>임대") ->  | Q5: =COUNTIFS(#REF!,">"&$E5,#REF!,"<="&$C5,#REF!,'사용승인별 현황'!Q$2,#REF!,">=20",#REF!,"<>임대") ->  | R5: =SUMIFS(#REF!,#REF!,">"&$E5,#REF!,"<="&$C5,#REF!,'사용승인별 현황'!Q$2,#REF!,">=20",#REF!,"<>임대") ->  | S5: =COUNTIFS(#REF!,">"&$E5,#REF!,"<="&$C5,#REF!,'사용승인별 현황'!S$2,#REF!,">=20",#REF!,"<>임대") ->  | T5: =SUMIFS(#REF!,#REF!,">"&$E5,#REF!,"<="&$C5,#REF!,'사용승인별 현황'!S$2,#REF!,">=20",#REF!,"<>임대") ->  | U5: =COUNTIFS(#REF!,">"&$E5,#REF!,"<="&$C5,#REF!,'사용승인별 현황'!U$2,#REF!,">=20",#REF!,"<>임대") ->  | V5: =SUMIFS(#REF!,#REF!,">"&$E5,#REF!,"<="&$C5,#REF!,'사용승인별 현황'!U$2,#REF!,">=20",#REF!,"<>임대") ->  | W5: =COUNTIFS(#REF!,">"&$E5,#REF!,"<="&$C5,#REF!,'사용승인별 현황'!W$2,#REF!,">=20",#REF!,"<>임대") ->  | X5: =SUMIFS(#REF!,#REF!,">"&$E5,#REF!,"<="&$C5,#REF!,'사용승인별 현황'!W$2,#REF!,">=20",#REF!,"<>임대") ->  | Y5: =COUNTIFS(#REF!,">"&$E5,#REF!,"<="&$C5,#REF!,'사용승인별 현황'!Y$2,#REF!,">=20",#REF!,"<>임대") ->  | Z5: =SUMIFS(#REF!,#REF!,">"&$E5,#REF!,"<="&$C5,#REF!,'사용승인별 현황'!Y$2,#REF!,">=20",#REF!,"<>임대") ->  | AA5: =COUNTIFS(#REF!,">"&$E5,#REF!,"<="&$C5,#REF!,'사용승인별 현황'!AA$2,#REF!,">=20",#REF!,"<>임대") ->  | AB5: =SUMIFS(#REF!,#REF!,">"&$E5,#REF!,"<="&$C5,#REF!,'사용승인별 현황'!AA$2,#REF!,">=20",#REF!,"<>임대") ->  | AC5: =COUNTIFS(#REF!,">"&$E5,#REF!,"<="&$C5,#REF!,'사용승인별 현황'!AC$2,#REF!,">=20",#REF!,"<>임대") ->  | AD5: =SUMIFS(#REF!,#REF!,">"&$E5,#REF!,"<="&$C5,#REF!,'사용승인별 현황'!AC$2,#REF!,">=20",#REF!,"<>임대") ->  | AE5: =COUNTIFS(#REF!,">"&$E5,#REF!,"<="&$C5,#REF!,'사용승인별 현황'!AE$2,#REF!,">=20",#REF!,"<>임대") ->  | AF5: =SUMIFS(#REF!,#REF!,">"&$E5,#REF!,"<="&$C5,#REF!,'사용승인별 현황'!AE$2,#REF!,">=20",#REF!,"<>임대") ->  | AG5: =COUNTIFS(#REF!,">"&$E5,#REF!,"<="&$C5,#REF!,'사용승인별 현황'!AG$2,#REF!,">=20",#REF!,"<>임대") ->  | AH5: =SUMIFS(#REF!,#REF!,">"&$E5,#REF!,"<="&$C5,#REF!,'사용승인별 현황'!AG$2,#REF!,">=20",#REF!,"<>임대") ->  | AI5: =COUNTIFS(#REF!,">"&$E5,#REF!,"<="&$C5,#REF!,'사용승인별 현황'!AI$2,#REF!,">=20",#REF!,"<>임대") ->  | AJ5: =SUMIFS(#REF!,#REF!,">"&$E5,#REF!,"<="&$C5,#REF!,'사용승인별 현황'!AI$2,#REF!,">=20",#REF!,"<>임대") ->  | AK5: =COUNTIFS(#REF!,">"&$E5,#REF!,"<="&$C5,#REF!,'사용승인별 현황'!AK$2,#REF!,">=20",#REF!,"<>임대") ->  | AL5: =SUMIFS(#REF!,#REF!,">"&$E5,#REF!,"<="&$C5,#REF!,'사용승인별 현황'!AK$2,#REF!,">=20",#REF!,"<>임대") ->  | AM5: =COUNTIFS(#REF!,">"&$E5,#REF!,"<="&$C5,#REF!,'사용승인별 현황'!AM$2,#REF!,">=20",#REF!,"<>임대") ->  | AN5: =SUMIFS(#REF!,#REF!,">"&$E5,#REF!,"<="&$C5,#REF!,'사용승인별 현황'!AM$2,#REF!,">=20",#REF!,"<>임대") ->  | AO5: =COUNTIFS(#REF!,">"&$E5,#REF!,"<="&$C5,#REF!,'사용승인별 현황'!AO$2,#REF!,">=20",#REF!,"<>임대") ->  | AP5: =SUMIFS(#REF!,#REF!,">"&$E5,#REF!,"<="&$C5,#REF!,'사용승인별 현황'!AO$2,#REF!,">=20",#REF!,"<>임대") ->  | AQ5: =COUNTIFS(#REF!,">"&$E5,#REF!,"<="&$C5,#REF!,'사용승인별 현황'!AQ$2,#REF!,">=20",#REF!,"<>임대") ->  | AR5: =SUMIFS(#REF!,#REF!,">"&$E5,#REF!,"<="&$C5,#REF!,'사용승인별 현황'!AQ$2,#REF!,">=20",#REF!,"<>임대") ->  | AS5: =COUNTIFS(#REF!,">"&$E5,#REF!,"<="&$C5,#REF!,'사용승인별 현황'!AS$2,#REF!,">=20",#REF!,"<>임대") ->  | AT5: =SUMIFS(#REF!,#REF!,">"&$E5,#REF!,"<="&$C5,#REF!,'사용승인별 현황'!AS$2,#REF!,">=20",#REF!,"<>임대") ->  | AU5: =COUNTIFS(#REF!,">"&$E5,#REF!,"<="&$C5,#REF!,'사용승인별 현황'!AU$2,#REF!,">=20",#REF!,"<>임대") ->  | AV5: =SUMIFS(#REF!,#REF!,">"&$E5,#REF!,"<="&$C5,#REF!,'사용승인별 현황'!AU$2,#REF!,">=20",#REF!,"<>임대") ->  | AW5: =COUNTIFS(#REF!,">"&$E5,#REF!,"<="&$C5,#REF!,'사용승인별 현황'!AW$2,#REF!,">=20",#REF!,"<>임대") ->  | AX5: =SUMIFS(#REF!,#REF!,">"&$E5,#REF!,"<="&$C5,#REF!,'사용승인별 현황'!AW$2,#REF!,">=20",#REF!,"<>임대") ->  | AY5: =COUNTIFS(#REF!,">"&$E5,#REF!,"<="&$C5,#REF!,'사용승인별 현황'!AY$2,#REF!,">=20",#REF!,"<>임대") ->  | AZ5: =SUMIFS(#REF!,#REF!,">"&$E5,#REF!,"<="&$C5,#REF!,'사용승인별 현황'!AY$2,#REF!,">=20",#REF!,"<>임대") ->  | BA5: =COUNTIFS(#REF!,">"&$E5,#REF!,"<="&$C5,#REF!,'사용승인별 현황'!BA$2,#REF!,">=20",#REF!,"<>임대") ->  | BB5: =SUMIFS(#REF!,#REF!,">"&$E5,#REF!,"<="&$C5,#REF!,'사용승인별 현황'!BA$2,#REF!,">=20",#REF!,"<>임대") ->  | BC5: =COUNTIFS(#REF!,">"&$E5,#REF!,"<="&$C5,#REF!,'사용승인별 현황'!BC$2,#REF!,">=20",#REF!,"<>임대") ->  | BD5: =SUMIFS(#REF!,#REF!,">"&$E5,#REF!,"<="&$C5,#REF!,'사용승인별 현황'!BC$2,#REF!,">=20",#REF!,"<>임대") ->  | BE5: =COUNTIFS(#REF!,">"&$E5,#REF!,"<="&$C5,#REF!,'사용승인별 현황'!BE$2,#REF!,">=20",#REF!,"<>임대") ->  | BF5: =SUMIFS(#REF!,#REF!,">"&$E5,#REF!,"<="&$C5,#REF!,'사용승인별 현황'!BE$2,#REF!,">=20",#REF!,"<>임대") -> 
B6: 5 | C6: =DATE($B$1-B6,1,1) -> 41275 | D6: 10 | E6: =DATE($B$1-D6,1,1) -> 2008-01-01 | F6: =COUNTIFS(#REF!,">"&$E6,#REF!,"<="&$C6,#REF!,">=20",#REF!,"<>임대") ->  | G6: =SUMIFS(#REF!,#REF!,">"&$E6,#REF!,"<="&$C6,#REF!,">=20",#REF!,"<>임대") ->  | I6: =COUNTIFS(#REF!,">"&$E6,#REF!,"<="&$C6,#REF!,'사용승인별 현황'!I$2,#REF!,">=20",#REF!,"<>임대") ->  | J6: =SUMIFS(#REF!,#REF!,">"&$E6,#REF!,"<="&$C6,#REF!,'사용승인별 현황'!I$2,#REF!,">=20",#REF!,"<>임대") ->  | K6: =COUNTIFS(#REF!,">"&$E6,#REF!,"<="&$C6,#REF!,'사용승인별 현황'!K$2,#REF!,">=20",#REF!,"<>임대") ->  | L6: =SUMIFS(#REF!,#REF!,">"&$E6,#REF!,"<="&$C6,#REF!,'사용승인별 현황'!K$2,#REF!,">=20",#REF!,"<>임대") ->  | M6: =COUNTIFS(#REF!,">"&$E6,#REF!,"<="&$C6,#REF!,'사용승인별 현황'!M$2,#REF!,">=20",#REF!,"<>임대") ->  | N6: =SUMIFS(#REF!,#REF!,">"&$E6,#REF!,"<="&$C6,#REF!,'사용승인별 현황'!M$2,#REF!,">=20",#REF!,"<>임대") ->  | O6: =COUNTIFS(#REF!,">"&$E6,#REF!,"<="&$C6,#REF!,'사용승인별 현황'!O$2,#REF!,">=20",#REF!,"<>임대") ->  | P6: =SUMIFS(#REF!,#REF!,">"&$E6,#REF!,"<="&$C6,#REF!,'사용승인별 현황'!O$2,#REF!,">=20",#REF!,"<>임대") ->  | Q6: =COUNTIFS(#REF!,">"&$E6,#REF!,"<="&$C6,#REF!,'사용승인별 현황'!Q$2,#REF!,">=20",#REF!,"<>임대") ->  | R6: =SUMIFS(#REF!,#REF!,">"&$E6,#REF!,"<="&$C6,#REF!,'사용승인별 현황'!Q$2,#REF!,">=20",#REF!,"<>임대") ->  | S6: =COUNTIFS(#REF!,">"&$E6,#REF!,"<="&$C6,#REF!,'사용승인별 현황'!S$2,#REF!,">=20",#REF!,"<>임대") ->  | T6: =SUMIFS(#REF!,#REF!,">"&$E6,#REF!,"<="&$C6,#REF!,'사용승인별 현황'!S$2,#REF!,">=20",#REF!,"<>임대") ->  | U6: =COUNTIFS(#REF!,">"&$E6,#REF!,"<="&$C6,#REF!,'사용승인별 현황'!U$2,#REF!,">=20",#REF!,"<>임대") ->  | V6: =SUMIFS(#REF!,#REF!,">"&$E6,#REF!,"<="&$C6,#REF!,'사용승인별 현황'!U$2,#REF!,">=20",#REF!,"<>임대") ->  | W6: =COUNTIFS(#REF!,">"&$E6,#REF!,"<="&$C6,#REF!,'사용승인별 현황'!W$2,#REF!,">=20",#REF!,"<>임대") ->  | X6: =SUMIFS(#REF!,#REF!,">"&$E6,#REF!,"<="&$C6,#REF!,'사용승인별 현황'!W$2,#REF!,">=20",#REF!,"<>임대") ->  | Y6: =COUNTIFS(#REF!,">"&$E6,#REF!,"<="&$C6,#REF!,'사용승인별 현황'!Y$2,#REF!,">=20",#REF!,"<>임대") ->  | Z6: =SUMIFS(#REF!,#REF!,">"&$E6,#REF!,"<="&$C6,#REF!,'사용승인별 현황'!Y$2,#REF!,">=20",#REF!,"<>임대") ->  | AA6: =COUNTIFS(#REF!,">"&$E6,#REF!,"<="&$C6,#REF!,'사용승인별 현황'!AA$2,#REF!,">=20",#REF!,"<>임대") ->  | AB6: =SUMIFS(#REF!,#REF!,">"&$E6,#REF!,"<="&$C6,#REF!,'사용승인별 현황'!AA$2,#REF!,">=20",#REF!,"<>임대") ->  | AC6: =COUNTIFS(#REF!,">"&$E6,#REF!,"<="&$C6,#REF!,'사용승인별 현황'!AC$2,#REF!,">=20",#REF!,"<>임대") ->  | AD6: =SUMIFS(#REF!,#REF!,">"&$E6,#REF!,"<="&$C6,#REF!,'사용승인별 현황'!AC$2,#REF!,">=20",#REF!,"<>임대") ->  | AE6: =COUNTIFS(#REF!,">"&$E6,#REF!,"<="&$C6,#REF!,'사용승인별 현황'!AE$2,#REF!,">=20",#REF!,"<>임대") ->  | AF6: =SUMIFS(#REF!,#REF!,">"&$E6,#REF!,"<="&$C6,#REF!,'사용승인별 현황'!AE$2,#REF!,">=20",#REF!,"<>임대") ->  | AG6: =COUNTIFS(#REF!,">"&$E6,#REF!,"<="&$C6,#REF!,'사용승인별 현황'!AG$2,#REF!,">=20",#REF!,"<>임대") ->  | AH6: =SUMIFS(#REF!,#REF!,">"&$E6,#REF!,"<="&$C6,#REF!,'사용승인별 현황'!AG$2,#REF!,">=20",#REF!,"<>임대") ->  | AI6: =COUNTIFS(#REF!,">"&$E6,#REF!,"<="&$C6,#REF!,'사용승인별 현황'!AI$2,#REF!,">=20",#REF!,"<>임대") ->  | AJ6: =SUMIFS(#REF!,#REF!,">"&$E6,#REF!,"<="&$C6,#REF!,'사용승인별 현황'!AI$2,#REF!,">=20",#REF!,"<>임대") ->  | AK6: =COUNTIFS(#REF!,">"&$E6,#REF!,"<="&$C6,#REF!,'사용승인별 현황'!AK$2,#REF!,">=20",#REF!,"<>임대") ->  | AL6: =SUMIFS(#REF!,#REF!,">"&$E6,#REF!,"<="&$C6,#REF!,'사용승인별 현황'!AK$2,#REF!,">=20",#REF!,"<>임대") ->  | AM6: =COUNTIFS(#REF!,">"&$E6,#REF!,"<="&$C6,#REF!,'사용승인별 현황'!AM$2,#REF!,">=20",#REF!,"<>임대") ->  | AN6: =SUMIFS(#REF!,#REF!,">"&$E6,#REF!,"<="&$C6,#REF!,'사용승인별 현황'!AM$2,#REF!,">=20",#REF!,"<>임대") ->  | AO6: =COUNTIFS(#REF!,">"&$E6,#REF!,"<="&$C6,#REF!,'사용승인별 현황'!AO$2,#REF!,">=20",#REF!,"<>임대") ->  | AP6: =SUMIFS(#REF!,#REF!,">"&$E6,#REF!,"<="&$C6,#REF!,'사용승인별 현황'!AO$2,#REF!,">=20",#REF!,"<>임대") ->  | AQ6: =COUNTIFS(#REF!,">"&$E6,#REF!,"<="&$C6,#REF!,'사용승인별 현황'!AQ$2,#REF!,">=20",#REF!,"<>임대") ->  | AR6: =SUMIFS(#REF!,#REF!,">"&$E6,#REF!,"<="&$C6,#REF!,'사용승인별 현황'!AQ$2,#REF!,">=20",#REF!,"<>임대") ->  | AS6: =COUNTIFS(#REF!,">"&$E6,#REF!,"<="&$C6,#REF!,'사용승인별 현황'!AS$2,#REF!,">=20",#REF!,"<>임대") ->  | AT6: =SUMIFS(#REF!,#REF!,">"&$E6,#REF!,"<="&$C6,#REF!,'사용승인별 현황'!AS$2,#REF!,">=20",#REF!,"<>임대") ->  | AU6: =COUNTIFS(#REF!,">"&$E6,#REF!,"<="&$C6,#REF!,'사용승인별 현황'!AU$2,#REF!,">=20",#REF!,"<>임대") ->  | AV6: =SUMIFS(#REF!,#REF!,">"&$E6,#REF!,"<="&$C6,#REF!,'사용승인별 현황'!AU$2,#REF!,">=20",#REF!,"<>임대") ->  | AW6: =COUNTIFS(#REF!,">"&$E6,#REF!,"<="&$C6,#REF!,'사용승인별 현황'!AW$2,#REF!,">=20",#REF!,"<>임대") ->  | AX6: =SUMIFS(#REF!,#REF!,">"&$E6,#REF!,"<="&$C6,#REF!,'사용승인별 현황'!AW$2,#REF!,">=20",#REF!,"<>임대") ->  | AY6: =COUNTIFS(#REF!,">"&$E6,#REF!,"<="&$C6,#REF!,'사용승인별 현황'!AY$2,#REF!,">=20",#REF!,"<>임대") ->  | AZ6: =SUMIFS(#REF!,#REF!,">"&$E6,#REF!,"<="&$C6,#REF!,'사용승인별 현황'!AY$2,#REF!,">=20",#REF!,"<>임대") ->  | BA6: =COUNTIFS(#REF!,">"&$E6,#REF!,"<="&$C6,#REF!,'사용승인별 현황'!BA$2,#REF!,">=20",#REF!,"<>임대") ->  | BB6: =SUMIFS(#REF!,#REF!,">"&$E6,#REF!,"<="&$C6,#REF!,'사용승인별 현황'!BA$2,#REF!,">=20",#REF!,"<>임대") ->  | BC6: =COUNTIFS(#REF!,">"&$E6,#REF!,"<="&$C6,#REF!,'사용승인별 현황'!BC$2,#REF!,">=20",#REF!,"<>임대") ->  | BD6: =SUMIFS(#REF!,#REF!,">"&$E6,#REF!,"<="&$C6,#REF!,'사용승인별 현황'!BC$2,#REF!,">=20",#REF!,"<>임대") ->  | BE6: =COUNTIFS(#REF!,">"&$E6,#REF!,"<="&$C6,#REF!,'사용승인별 현황'!BE$2,#REF!,">=20",#REF!,"<>임대") ->  | BF6: =SUMIFS(#REF!,#REF!,">"&$E6,#REF!,"<="&$C6,#REF!,'사용승인별 현황'!BE$2,#REF!,">=20",#REF!,"<>임대") -> 
B7: 10 | C7: 39448 | D7: 15 | E7: 2003-01-01 | F7: =COUNTIFS(#REF!,">"&$E7,#REF!,"<="&$C7,#REF!,">=20",#REF!,"<>임대") ->  | G7: =SUMIFS(#REF!,#REF!,">"&$E7,#REF!,"<="&$C7,#REF!,">=20",#REF!,"<>임대") ->  | I7: =COUNTIFS(#REF!,">"&$E7,#REF!,"<="&$C7,#REF!,'사용승인별 현황'!I$2,#REF!,">=20",#REF!,"<>임대") ->  | J7: =SUMIFS(#REF!,#REF!,">"&$E7,#REF!,"<="&$C7,#REF!,'사용승인별 현황'!I$2,#REF!,">=20",#REF!,"<>임대") ->  | K7: =COUNTIFS(#REF!,">"&$E7,#REF!,"<="&$C7,#REF!,'사용승인별 현황'!K$2,#REF!,">=20",#REF!,"<>임대") ->  | L7: =SUMIFS(#REF!,#REF!,">"&$E7,#REF!,"<="&$C7,#REF!,'사용승인별 현황'!K$2,#REF!,">=20",#REF!,"<>임대") ->  | M7: =COUNTIFS(#REF!,">"&$E7,#REF!,"<="&$C7,#REF!,'사용승인별 현황'!M$2,#REF!,">=20",#REF!,"<>임대") ->  | N7: =SUMIFS(#REF!,#REF!,">"&$E7,#REF!,"<="&$C7,#REF!,'사용승인별 현황'!M$2,#REF!,">=20",#REF!,"<>임대") ->  | O7: =COUNTIFS(#REF!,">"&$E7,#REF!,"<="&$C7,#REF!,'사용승인별 현황'!O$2,#REF!,">=20",#REF!,"<>임대") ->  | P7: =SUMIFS(#REF!,#REF!,">"&$E7,#REF!,"<="&$C7,#REF!,'사용승인별 현황'!O$2,#REF!,">=20",#REF!,"<>임대") ->  | Q7: =COUNTIFS(#REF!,">"&$E7,#REF!,"<="&$C7,#REF!,'사용승인별 현황'!Q$2,#REF!,">=20",#REF!,"<>임대") ->  | R7: =SUMIFS(#REF!,#REF!,">"&$E7,#REF!,"<="&$C7,#REF!,'사용승인별 현황'!Q$2,#REF!,">=20",#REF!,"<>임대") ->  | S7: =COUNTIFS(#REF!,">"&$E7,#REF!,"<="&$C7,#REF!,'사용승인별 현황'!S$2,#REF!,">=20",#REF!,"<>임대") ->  | T7: =SUMIFS(#REF!,#REF!,">"&$E7,#REF!,"<="&$C7,#REF!,'사용승인별 현황'!S$2,#REF!,">=20",#REF!,"<>임대") ->  | U7: =COUNTIFS(#REF!,">"&$E7,#REF!,"<="&$C7,#REF!,'사용승인별 현황'!U$2,#REF!,">=20",#REF!,"<>임대") ->  | V7: =SUMIFS(#REF!,#REF!,">"&$E7,#REF!,"<="&$C7,#REF!,'사용승인별 현황'!U$2,#REF!,">=20",#REF!,"<>임대") ->  | W7: =COUNTIFS(#REF!,">"&$E7,#REF!,"<="&$C7,#REF!,'사용승인별 현황'!W$2,#REF!,">=20",#REF!,"<>임대") ->  | X7: =SUMIFS(#REF!,#REF!,">"&$E7,#REF!,"<="&$C7,#REF!,'사용승인별 현황'!W$2,#REF!,">=20",#REF!,"<>임대") ->  | Y7: =COUNTIFS(#REF!,">"&$E7,#REF!,"<="&$C7,#REF!,'사용승인별 현황'!Y$2,#REF!,">=20",#REF!,"<>임대") ->  | Z7: =SUMIFS(#REF!,#REF!,">"&$E7,#REF!,"<="&$C7,#REF!,'사용승인별 현황'!Y$2,#REF!,">=20",#REF!,"<>임대") ->  | AA7: =COUNTIFS(#REF!,">"&$E7,#REF!,"<="&$C7,#REF!,'사용승인별 현황'!AA$2,#REF!,">=20",#REF!,"<>임대") ->  | AB7: =SUMIFS(#REF!,#REF!,">"&$E7,#REF!,"<="&$C7,#REF!,'사용승인별 현황'!AA$2,#REF!,">=20",#REF!,"<>임대") ->  | AC7: =COUNTIFS(#REF!,">"&$E7,#REF!,"<="&$C7,#REF!,'사용승인별 현황'!AC$2,#REF!,">=20",#REF!,"<>임대") ->  | AD7: =SUMIFS(#REF!,#REF!,">"&$E7,#REF!,"<="&$C7,#REF!,'사용승인별 현황'!AC$2,#REF!,">=20",#REF!,"<>임대") ->  | AE7: =COUNTIFS(#REF!,">"&$E7,#REF!,"<="&$C7,#REF!,'사용승인별 현황'!AE$2,#REF!,">=20",#REF!,"<>임대") ->  | AF7: =SUMIFS(#REF!,#REF!,">"&$E7,#REF!,"<="&$C7,#REF!,'사용승인별 현황'!AE$2,#REF!,">=20",#REF!,"<>임대") ->  | AG7: =COUNTIFS(#REF!,">"&$E7,#REF!,"<="&$C7,#REF!,'사용승인별 현황'!AG$2,#REF!,">=20",#REF!,"<>임대") ->  | AH7: =SUMIFS(#REF!,#REF!,">"&$E7,#REF!,"<="&$C7,#REF!,'사용승인별 현황'!AG$2,#REF!,">=20",#REF!,"<>임대") ->  | AI7: =COUNTIFS(#REF!,">"&$E7,#REF!,"<="&$C7,#REF!,'사용승인별 현황'!AI$2,#REF!,">=20",#REF!,"<>임대") ->  | AJ7: =SUMIFS(#REF!,#REF!,">"&$E7,#REF!,"<="&$C7,#REF!,'사용승인별 현황'!AI$2,#REF!,">=20",#REF!,"<>임대") ->  | AK7: =COUNTIFS(#REF!,">"&$E7,#REF!,"<="&$C7,#REF!,'사용승인별 현황'!AK$2,#REF!,">=20",#REF!,"<>임대") ->  | AL7: =SUMIFS(#REF!,#REF!,">"&$E7,#REF!,"<="&$C7,#REF!,'사용승인별 현황'!AK$2,#REF!,">=20",#REF!,"<>임대") ->  | AM7: =COUNTIFS(#REF!,">"&$E7,#REF!,"<="&$C7,#REF!,'사용승인별 현황'!AM$2,#REF!,">=20",#REF!,"<>임대") ->  | AN7: =SUMIFS(#REF!,#REF!,">"&$E7,#REF!,"<="&$C7,#REF!,'사용승인별 현황'!AM$2,#REF!,">=20",#REF!,"<>임대") ->  | AO7: =COUNTIFS(#REF!,">"&$E7,#REF!,"<="&$C7,#REF!,'사용승인별 현황'!AO$2,#REF!,">=20",#REF!,"<>임대") ->  | AP7: =SUMIFS(#REF!,#REF!,">"&$E7,#REF!,"<="&$C7,#REF!,'사용승인별 현황'!AO$2,#REF!,">=20",#REF!,"<>임대") ->  | AQ7: =COUNTIFS(#REF!,">"&$E7,#REF!,"<="&$C7,#REF!,'사용승인별 현황'!AQ$2,#REF!,">=20",#REF!,"<>임대") ->  | AR7: =SUMIFS(#REF!,#REF!,">"&$E7,#REF!,"<="&$C7,#REF!,'사용승인별 현황'!AQ$2,#REF!,">=20",#REF!,"<>임대") ->  | AS7: =COUNTIFS(#REF!,">"&$E7,#REF!,"<="&$C7,#REF!,'사용승인별 현황'!AS$2,#REF!,">=20",#REF!,"<>임대") ->  | AT7: =SUMIFS(#REF!,#REF!,">"&$E7,#REF!,"<="&$C7,#REF!,'사용승인별 현황'!AS$2,#REF!,">=20",#REF!,"<>임대") ->  | AU7: =COUNTIFS(#REF!,">"&$E7,#REF!,"<="&$C7,#REF!,'사용승인별 현황'!AU$2,#REF!,">=20",#REF!,"<>임대") ->  | AV7: =SUMIFS(#REF!,#REF!,">"&$E7,#REF!,"<="&$C7,#REF!,'사용승인별 현황'!AU$2,#REF!,">=20",#REF!,"<>임대") ->  | AW7: =COUNTIFS(#REF!,">"&$E7,#REF!,"<="&$C7,#REF!,'사용승인별 현황'!AW$2,#REF!,">=20",#REF!,"<>임대") ->  | AX7: =SUMIFS(#REF!,#REF!,">"&$E7,#REF!,"<="&$C7,#REF!,'사용승인별 현황'!AW$2,#REF!,">=20",#REF!,"<>임대") ->  | AY7: =COUNTIFS(#REF!,">"&$E7,#REF!,"<="&$C7,#REF!,'사용승인별 현황'!AY$2,#REF!,">=20",#REF!,"<>임대") ->  | AZ7: =SUMIFS(#REF!,#REF!,">"&$E7,#REF!,"<="&$C7,#REF!,'사용승인별 현황'!AY$2,#REF!,">=20",#REF!,"<>임대") ->  | BA7: =COUNTIFS(#REF!,">"&$E7,#REF!,"<="&$C7,#REF!,'사용승인별 현황'!BA$2,#REF!,">=20",#REF!,"<>임대") ->  | BB7: =SUMIFS(#REF!,#REF!,">"&$E7,#REF!,"<="&$C7,#REF!,'사용승인별 현황'!BA$2,#REF!,">=20",#REF!,"<>임대") ->  | BC7: =COUNTIFS(#REF!,">"&$E7,#REF!,"<="&$C7,#REF!,'사용승인별 현황'!BC$2,#REF!,">=20",#REF!,"<>임대") ->  | BD7: =SUMIFS(#REF!,#REF!,">"&$E7,#REF!,"<="&$C7,#REF!,'사용승인별 현황'!BC$2,#REF!,">=20",#REF!,"<>임대") ->  | BE7: =COUNTIFS(#REF!,">"&$E7,#REF!,"<="&$C7,#REF!,'사용승인별 현황'!BE$2,#REF!,">=20",#REF!,"<>임대") ->  | BF7: =SUMIFS(#REF!,#REF!,">"&$E7,#REF!,"<="&$C7,#REF!,'사용승인별 현황'!BE$2,#REF!,">=20",#REF!,"<>임대") -> 
B8: 15 | C8: 37622 | D8: 20 | E8: 1998-01-01 | F8: =COUNTIFS(#REF!,">"&$E8,#REF!,"<="&$C8,#REF!,">=20",#REF!,"<>임대") ->  | G8: =SUMIFS(#REF!,#REF!,">"&$E8,#REF!,"<="&$C8,#REF!,">=20",#REF!,"<>임대") ->  | I8: =COUNTIFS(#REF!,">"&$E8,#REF!,"<="&$C8,#REF!,'사용승인별 현황'!I$2,#REF!,">=20",#REF!,"<>임대") ->  | J8: =SUMIFS(#REF!,#REF!,">"&$E8,#REF!,"<="&$C8,#REF!,'사용승인별 현황'!I$2,#REF!,">=20",#REF!,"<>임대") ->  | K8: =COUNTIFS(#REF!,">"&$E8,#REF!,"<="&$C8,#REF!,'사용승인별 현황'!K$2,#REF!,">=20",#REF!,"<>임대") ->  | L8: =SUMIFS(#REF!,#REF!,">"&$E8,#REF!,"<="&$C8,#REF!,'사용승인별 현황'!K$2,#REF!,">=20",#REF!,"<>임대") ->  | M8: =COUNTIFS(#REF!,">"&$E8,#REF!,"<="&$C8,#REF!,'사용승인별 현황'!M$2,#REF!,">=20",#REF!,"<>임대") ->  | N8: =SUMIFS(#REF!,#REF!,">"&$E8,#REF!,"<="&$C8,#REF!,'사용승인별 현황'!M$2,#REF!,">=20",#REF!,"<>임대") ->  | O8: =COUNTIFS(#REF!,">"&$E8,#REF!,"<="&$C8,#REF!,'사용승인별 현황'!O$2,#REF!,">=20",#REF!,"<>임대") ->  | P8: =SUMIFS(#REF!,#REF!,">"&$E8,#REF!,"<="&$C8,#REF!,'사용승인별 현황'!O$2,#REF!,">=20",#REF!,"<>임대") ->  | Q8: =COUNTIFS(#REF!,">"&$E8,#REF!,"<="&$C8,#REF!,'사용승인별 현황'!Q$2,#REF!,">=20",#REF!,"<>임대") ->  | R8: =SUMIFS(#REF!,#REF!,">"&$E8,#REF!,"<="&$C8,#REF!,'사용승인별 현황'!Q$2,#REF!,">=20",#REF!,"<>임대") ->  | S8: =COUNTIFS(#REF!,">"&$E8,#REF!,"<="&$C8,#REF!,'사용승인별 현황'!S$2,#REF!,">=20",#REF!,"<>임대") ->  | T8: =SUMIFS(#REF!,#REF!,">"&$E8,#REF!,"<="&$C8,#REF!,'사용승인별 현황'!S$2,#REF!,">=20",#REF!,"<>임대") ->  | U8: =COUNTIFS(#REF!,">"&$E8,#REF!,"<="&$C8,#REF!,'사용승인별 현황'!U$2,#REF!,">=20",#REF!,"<>임대") ->  | V8: =SUMIFS(#REF!,#REF!,">"&$E8,#REF!,"<="&$C8,#REF!,'사용승인별 현황'!U$2,#REF!,">=20",#REF!,"<>임대") ->  | W8: =COUNTIFS(#REF!,">"&$E8,#REF!,"<="&$C8,#REF!,'사용승인별 현황'!W$2,#REF!,">=20",#REF!,"<>임대") ->  | X8: =SUMIFS(#REF!,#REF!,">"&$E8,#REF!,"<="&$C8,#REF!,'사용승인별 현황'!W$2,#REF!,">=20",#REF!,"<>임대") ->  | Y8: =COUNTIFS(#REF!,">"&$E8,#REF!,"<="&$C8,#REF!,'사용승인별 현황'!Y$2,#REF!,">=20",#REF!,"<>임대") ->  | Z8: =SUMIFS(#REF!,#REF!,">"&$E8,#REF!,"<="&$C8,#REF!,'사용승인별 현황'!Y$2,#REF!,">=20",#REF!,"<>임대") ->  | AA8: =COUNTIFS(#REF!,">"&$E8,#REF!,"<="&$C8,#REF!,'사용승인별 현황'!AA$2,#REF!,">=20",#REF!,"<>임대") ->  | AB8: =SUMIFS(#REF!,#REF!,">"&$E8,#REF!,"<="&$C8,#REF!,'사용승인별 현황'!AA$2,#REF!,">=20",#REF!,"<>임대") ->  | AC8: =COUNTIFS(#REF!,">"&$E8,#REF!,"<="&$C8,#REF!,'사용승인별 현황'!AC$2,#REF!,">=20",#REF!,"<>임대") ->  | AD8: =SUMIFS(#REF!,#REF!,">"&$E8,#REF!,"<="&$C8,#REF!,'사용승인별 현황'!AC$2,#REF!,">=20",#REF!,"<>임대") ->  | AE8: =COUNTIFS(#REF!,">"&$E8,#REF!,"<="&$C8,#REF!,'사용승인별 현황'!AE$2,#REF!,">=20",#REF!,"<>임대") ->  | AF8: =SUMIFS(#REF!,#REF!,">"&$E8,#REF!,"<="&$C8,#REF!,'사용승인별 현황'!AE$2,#REF!,">=20",#REF!,"<>임대") ->  | AG8: =COUNTIFS(#REF!,">"&$E8,#REF!,"<="&$C8,#REF!,'사용승인별 현황'!AG$2,#REF!,">=20",#REF!,"<>임대") ->  | AH8: =SUMIFS(#REF!,#REF!,">"&$E8,#REF!,"<="&$C8,#REF!,'사용승인별 현황'!AG$2,#REF!,">=20",#REF!,"<>임대") ->  | AI8: =COUNTIFS(#REF!,">"&$E8,#REF!,"<="&$C8,#REF!,'사용승인별 현황'!AI$2,#REF!,">=20",#REF!,"<>임대") ->  | AJ8: =SUMIFS(#REF!,#REF!,">"&$E8,#REF!,"<="&$C8,#REF!,'사용승인별 현황'!AI$2,#REF!,">=20",#REF!,"<>임대") ->  | AK8: =COUNTIFS(#REF!,">"&$E8,#REF!,"<="&$C8,#REF!,'사용승인별 현황'!AK$2,#REF!,">=20",#REF!,"<>임대") ->  | AL8: =SUMIFS(#REF!,#REF!,">"&$E8,#REF!,"<="&$C8,#REF!,'사용승인별 현황'!AK$2,#REF!,">=20",#REF!,"<>임대") ->  | AM8: =COUNTIFS(#REF!,">"&$E8,#REF!,"<="&$C8,#REF!,'사용승인별 현황'!AM$2,#REF!,">=20",#REF!,"<>임대") ->  | AN8: =SUMIFS(#REF!,#REF!,">"&$E8,#REF!,"<="&$C8,#REF!,'사용승인별 현황'!AM$2,#REF!,">=20",#REF!,"<>임대") ->  | AO8: =COUNTIFS(#REF!,">"&$E8,#REF!,"<="&$C8,#REF!,'사용승인별 현황'!AO$2,#REF!,">=20",#REF!,"<>임대") ->  | AP8: =SUMIFS(#REF!,#REF!,">"&$E8,#REF!,"<="&$C8,#REF!,'사용승인별 현황'!AO$2,#REF!,">=20",#REF!,"<>임대") ->  | AQ8: =COUNTIFS(#REF!,">"&$E8,#REF!,"<="&$C8,#REF!,'사용승인별 현황'!AQ$2,#REF!,">=20",#REF!,"<>임대") ->  | AR8: =SUMIFS(#REF!,#REF!,">"&$E8,#REF!,"<="&$C8,#REF!,'사용승인별 현황'!AQ$2,#REF!,">=20",#REF!,"<>임대") ->  | AS8: =COUNTIFS(#REF!,">"&$E8,#REF!,"<="&$C8,#REF!,'사용승인별 현황'!AS$2,#REF!,">=20",#REF!,"<>임대") ->  | AT8: =SUMIFS(#REF!,#REF!,">"&$E8,#REF!,"<="&$C8,#REF!,'사용승인별 현황'!AS$2,#REF!,">=20",#REF!,"<>임대") ->  | AU8: =COUNTIFS(#REF!,">"&$E8,#REF!,"<="&$C8,#REF!,'사용승인별 현황'!AU$2,#REF!,">=20",#REF!,"<>임대") ->  | AV8: =SUMIFS(#REF!,#REF!,">"&$E8,#REF!,"<="&$C8,#REF!,'사용승인별 현황'!AU$2,#REF!,">=20",#REF!,"<>임대") ->  | AW8: =COUNTIFS(#REF!,">"&$E8,#REF!,"<="&$C8,#REF!,'사용승인별 현황'!AW$2,#REF!,">=20",#REF!,"<>임대") ->  | AX8: =SUMIFS(#REF!,#REF!,">"&$E8,#REF!,"<="&$C8,#REF!,'사용승인별 현황'!AW$2,#REF!,">=20",#REF!,"<>임대") ->  | AY8: =COUNTIFS(#REF!,">"&$E8,#REF!,"<="&$C8,#REF!,'사용승인별 현황'!AY$2,#REF!,">=20",#REF!,"<>임대") ->  | AZ8: =SUMIFS(#REF!,#REF!,">"&$E8,#REF!,"<="&$C8,#REF!,'사용승인별 현황'!AY$2,#REF!,">=20",#REF!,"<>임대") ->  | BA8: =COUNTIFS(#REF!,">"&$E8,#REF!,"<="&$C8,#REF!,'사용승인별 현황'!BA$2,#REF!,">=20",#REF!,"<>임대") ->  | BB8: =SUMIFS(#REF!,#REF!,">"&$E8,#REF!,"<="&$C8,#REF!,'사용승인별 현황'!BA$2,#REF!,">=20",#REF!,"<>임대") ->  | BC8: =COUNTIFS(#REF!,">"&$E8,#REF!,"<="&$C8,#REF!,'사용승인별 현황'!BC$2,#REF!,">=20",#REF!,"<>임대") ->  | BD8: =SUMIFS(#REF!,#REF!,">"&$E8,#REF!,"<="&$C8,#REF!,'사용승인별 현황'!BC$2,#REF!,">=20",#REF!,"<>임대") ->  | BE8: =COUNTIFS(#REF!,">"&$E8,#REF!,"<="&$C8,#REF!,'사용승인별 현황'!BE$2,#REF!,">=20",#REF!,"<>임대") ->  | BF8: =SUMIFS(#REF!,#REF!,">"&$E8,#REF!,"<="&$C8,#REF!,'사용승인별 현황'!BE$2,#REF!,">=20",#REF!,"<>임대") -> 
B9: 20 | C9: 35796 | D9: 25 | E9: 1993-01-01 | F9: =COUNTIFS(#REF!,">"&$E9,#REF!,"<="&$C9,#REF!,">=20",#REF!,"<>임대") ->  | G9: =SUMIFS(#REF!,#REF!,">"&$E9,#REF!,"<="&$C9,#REF!,">=20",#REF!,"<>임대") ->  | I9: =COUNTIFS(#REF!,">"&$E9,#REF!,"<="&$C9,#REF!,'사용승인별 현황'!I$2,#REF!,">=20",#REF!,"<>임대") ->  | J9: =SUMIFS(#REF!,#REF!,">"&$E9,#REF!,"<="&$C9,#REF!,'사용승인별 현황'!I$2,#REF!,">=20",#REF!,"<>임대") ->  | K9: =COUNTIFS(#REF!,">"&$E9,#REF!,"<="&$C9,#REF!,'사용승인별 현황'!K$2,#REF!,">=20",#REF!,"<>임대") ->  | L9: =SUMIFS(#REF!,#REF!,">"&$E9,#REF!,"<="&$C9,#REF!,'사용승인별 현황'!K$2,#REF!,">=20",#REF!,"<>임대") ->  | M9: =COUNTIFS(#REF!,">"&$E9,#REF!,"<="&$C9,#REF!,'사용승인별 현황'!M$2,#REF!,">=20",#REF!,"<>임대") ->  | N9: =SUMIFS(#REF!,#REF!,">"&$E9,#REF!,"<="&$C9,#REF!,'사용승인별 현황'!M$2,#REF!,">=20",#REF!,"<>임대") ->  | O9: =COUNTIFS(#REF!,">"&$E9,#REF!,"<="&$C9,#REF!,'사용승인별 현황'!O$2,#REF!,">=20",#REF!,"<>임대") ->  | P9: =SUMIFS(#REF!,#REF!,">"&$E9,#REF!,"<="&$C9,#REF!,'사용승인별 현황'!O$2,#REF!,">=20",#REF!,"<>임대") ->  | Q9: =COUNTIFS(#REF!,">"&$E9,#REF!,"<="&$C9,#REF!,'사용승인별 현황'!Q$2,#REF!,">=20",#REF!,"<>임대") ->  | R9: =SUMIFS(#REF!,#REF!,">"&$E9,#REF!,"<="&$C9,#REF!,'사용승인별 현황'!Q$2,#REF!,">=20",#REF!,"<>임대") ->  | S9: =COUNTIFS(#REF!,">"&$E9,#REF!,"<="&$C9,#REF!,'사용승인별 현황'!S$2,#REF!,">=20",#REF!,"<>임대") ->  | T9: =SUMIFS(#REF!,#REF!,">"&$E9,#REF!,"<="&$C9,#REF!,'사용승인별 현황'!S$2,#REF!,">=20",#REF!,"<>임대") ->  | U9: =COUNTIFS(#REF!,">"&$E9,#REF!,"<="&$C9,#REF!,'사용승인별 현황'!U$2,#REF!,">=20",#REF!,"<>임대") ->  | V9: =SUMIFS(#REF!,#REF!,">"&$E9,#REF!,"<="&$C9,#REF!,'사용승인별 현황'!U$2,#REF!,">=20",#REF!,"<>임대") ->  | W9: =COUNTIFS(#REF!,">"&$E9,#REF!,"<="&$C9,#REF!,'사용승인별 현황'!W$2,#REF!,">=20",#REF!,"<>임대") ->  | X9: =SUMIFS(#REF!,#REF!,">"&$E9,#REF!,"<="&$C9,#REF!,'사용승인별 현황'!W$2,#REF!,">=20",#REF!,"<>임대") ->  | Y9: =COUNTIFS(#REF!,">"&$E9,#REF!,"<="&$C9,#REF!,'사용승인별 현황'!Y$2,#REF!,">=20",#REF!,"<>임대") ->  | Z9: =SUMIFS(#REF!,#REF!,">"&$E9,#REF!,"<="&$C9,#REF!,'사용승인별 현황'!Y$2,#REF!,">=20",#REF!,"<>임대") ->  | AA9: =COUNTIFS(#REF!,">"&$E9,#REF!,"<="&$C9,#REF!,'사용승인별 현황'!AA$2,#REF!,">=20",#REF!,"<>임대") ->  | AB9: =SUMIFS(#REF!,#REF!,">"&$E9,#REF!,"<="&$C9,#REF!,'사용승인별 현황'!AA$2,#REF!,">=20",#REF!,"<>임대") ->  | AC9: =COUNTIFS(#REF!,">"&$E9,#REF!,"<="&$C9,#REF!,'사용승인별 현황'!AC$2,#REF!,">=20",#REF!,"<>임대") ->  | AD9: =SUMIFS(#REF!,#REF!,">"&$E9,#REF!,"<="&$C9,#REF!,'사용승인별 현황'!AC$2,#REF!,">=20",#REF!,"<>임대") ->  | AE9: =COUNTIFS(#REF!,">"&$E9,#REF!,"<="&$C9,#REF!,'사용승인별 현황'!AE$2,#REF!,">=20",#REF!,"<>임대") ->  | AF9: =SUMIFS(#REF!,#REF!,">"&$E9,#REF!,"<="&$C9,#REF!,'사용승인별 현황'!AE$2,#REF!,">=20",#REF!,"<>임대") ->  | AG9: =COUNTIFS(#REF!,">"&$E9,#REF!,"<="&$C9,#REF!,'사용승인별 현황'!AG$2,#REF!,">=20",#REF!,"<>임대") ->  | AH9: =SUMIFS(#REF!,#REF!,">"&$E9,#REF!,"<="&$C9,#REF!,'사용승인별 현황'!AG$2,#REF!,">=20",#REF!,"<>임대") ->  | AI9: =COUNTIFS(#REF!,">"&$E9,#REF!,"<="&$C9,#REF!,'사용승인별 현황'!AI$2,#REF!,">=20",#REF!,"<>임대") ->  | AJ9: =SUMIFS(#REF!,#REF!,">"&$E9,#REF!,"<="&$C9,#REF!,'사용승인별 현황'!AI$2,#REF!,">=20",#REF!,"<>임대") ->  | AK9: =COUNTIFS(#REF!,">"&$E9,#REF!,"<="&$C9,#REF!,'사용승인별 현황'!AK$2,#REF!,">=20",#REF!,"<>임대") ->  | AL9: =SUMIFS(#REF!,#REF!,">"&$E9,#REF!,"<="&$C9,#REF!,'사용승인별 현황'!AK$2,#REF!,">=20",#REF!,"<>임대") ->  | AM9: =COUNTIFS(#REF!,">"&$E9,#REF!,"<="&$C9,#REF!,'사용승인별 현황'!AM$2,#REF!,">=20",#REF!,"<>임대") ->  | AN9: =SUMIFS(#REF!,#REF!,">"&$E9,#REF!,"<="&$C9,#REF!,'사용승인별 현황'!AM$2,#REF!,">=20",#REF!,"<>임대") ->  | AO9: =COUNTIFS(#REF!,">"&$E9,#REF!,"<="&$C9,#REF!,'사용승인별 현황'!AO$2,#REF!,">=20",#REF!,"<>임대") ->  | AP9: =SUMIFS(#REF!,#REF!,">"&$E9,#REF!,"<="&$C9,#REF!,'사용승인별 현황'!AO$2,#REF!,">=20",#REF!,"<>임대") ->  | AQ9: =COUNTIFS(#REF!,">"&$E9,#REF!,"<="&$C9,#REF!,'사용승인별 현황'!AQ$2,#REF!,">=20",#REF!,"<>임대") ->  | AR9: =SUMIFS(#REF!,#REF!,">"&$E9,#REF!,"<="&$C9,#REF!,'사용승인별 현황'!AQ$2,#REF!,">=20",#REF!,"<>임대") ->  | AS9: =COUNTIFS(#REF!,">"&$E9,#REF!,"<="&$C9,#REF!,'사용승인별 현황'!AS$2,#REF!,">=20",#REF!,"<>임대") ->  | AT9: =SUMIFS(#REF!,#REF!,">"&$E9,#REF!,"<="&$C9,#REF!,'사용승인별 현황'!AS$2,#REF!,">=20",#REF!,"<>임대") ->  | AU9: =COUNTIFS(#REF!,">"&$E9,#REF!,"<="&$C9,#REF!,'사용승인별 현황'!AU$2,#REF!,">=20",#REF!,"<>임대") ->  | AV9: =SUMIFS(#REF!,#REF!,">"&$E9,#REF!,"<="&$C9,#REF!,'사용승인별 현황'!AU$2,#REF!,">=20",#REF!,"<>임대") ->  | AW9: =COUNTIFS(#REF!,">"&$E9,#REF!,"<="&$C9,#REF!,'사용승인별 현황'!AW$2,#REF!,">=20",#REF!,"<>임대") ->  | AX9: =SUMIFS(#REF!,#REF!,">"&$E9,#REF!,"<="&$C9,#REF!,'사용승인별 현황'!AW$2,#REF!,">=20",#REF!,"<>임대") ->  | AY9: =COUNTIFS(#REF!,">"&$E9,#REF!,"<="&$C9,#REF!,'사용승인별 현황'!AY$2,#REF!,">=20",#REF!,"<>임대") ->  | AZ9: =SUMIFS(#REF!,#REF!,">"&$E9,#REF!,"<="&$C9,#REF!,'사용승인별 현황'!AY$2,#REF!,">=20",#REF!,"<>임대") ->  | BA9: =COUNTIFS(#REF!,">"&$E9,#REF!,"<="&$C9,#REF!,'사용승인별 현황'!BA$2,#REF!,">=20",#REF!,"<>임대") ->  | BB9: =SUMIFS(#REF!,#REF!,">"&$E9,#REF!,"<="&$C9,#REF!,'사용승인별 현황'!BA$2,#REF!,">=20",#REF!,"<>임대") ->  | BC9: =COUNTIFS(#REF!,">"&$E9,#REF!,"<="&$C9,#REF!,'사용승인별 현황'!BC$2,#REF!,">=20",#REF!,"<>임대") ->  | BD9: =SUMIFS(#REF!,#REF!,">"&$E9,#REF!,"<="&$C9,#REF!,'사용승인별 현황'!BC$2,#REF!,">=20",#REF!,"<>임대") ->  | BE9: =COUNTIFS(#REF!,">"&$E9,#REF!,"<="&$C9,#REF!,'사용승인별 현황'!BE$2,#REF!,">=20",#REF!,"<>임대") ->  | BF9: =SUMIFS(#REF!,#REF!,">"&$E9,#REF!,"<="&$C9,#REF!,'사용승인별 현황'!BE$2,#REF!,">=20",#REF!,"<>임대") -> 
B10: 25 | C10: 33970 | D10: 30 | E10: 1988-01-01 | F10: =COUNTIFS(#REF!,">"&$E10,#REF!,"<="&$C10,#REF!,">=20",#REF!,"<>임대") ->  | G10: =SUMIFS(#REF!,#REF!,">"&$E10,#REF!,"<="&$C10,#REF!,">=20",#REF!,"<>임대") ->  | I10: =COUNTIFS(#REF!,">"&$E10,#REF!,"<="&$C10,#REF!,'사용승인별 현황'!I$2,#REF!,">=20",#REF!,"<>임대") ->  | J10: =SUMIFS(#REF!,#REF!,">"&$E10,#REF!,"<="&$C10,#REF!,'사용승인별 현황'!I$2,#REF!,">=20",#REF!,"<>임대") ->  | K10: =COUNTIFS(#REF!,">"&$E10,#REF!,"<="&$C10,#REF!,'사용승인별 현황'!K$2,#REF!,">=20",#REF!,"<>임대") ->  | L10: =SUMIFS(#REF!,#REF!,">"&$E10,#REF!,"<="&$C10,#REF!,'사용승인별 현황'!K$2,#REF!,">=20",#REF!,"<>임대") ->  | M10: =COUNTIFS(#REF!,">"&$E10,#REF!,"<="&$C10,#REF!,'사용승인별 현황'!M$2,#REF!,">=20",#REF!,"<>임대") ->  | N10: =SUMIFS(#REF!,#REF!,">"&$E10,#REF!,"<="&$C10,#REF!,'사용승인별 현황'!M$2,#REF!,">=20",#REF!,"<>임대") ->  | O10: =COUNTIFS(#REF!,">"&$E10,#REF!,"<="&$C10,#REF!,'사용승인별 현황'!O$2,#REF!,">=20",#REF!,"<>임대") ->  | P10: =SUMIFS(#REF!,#REF!,">"&$E10,#REF!,"<="&$C10,#REF!,'사용승인별 현황'!O$2,#REF!,">=20",#REF!,"<>임대") ->  | Q10: =COUNTIFS(#REF!,">"&$E10,#REF!,"<="&$C10,#REF!,'사용승인별 현황'!Q$2,#REF!,">=20",#REF!,"<>임대") ->  | R10: =SUMIFS(#REF!,#REF!,">"&$E10,#REF!,"<="&$C10,#REF!,'사용승인별 현황'!Q$2,#REF!,">=20",#REF!,"<>임대") ->  | S10: =COUNTIFS(#REF!,">"&$E10,#REF!,"<="&$C10,#REF!,'사용승인별 현황'!S$2,#REF!,">=20",#REF!,"<>임대") ->  | T10: =SUMIFS(#REF!,#REF!,">"&$E10,#REF!,"<="&$C10,#REF!,'사용승인별 현황'!S$2,#REF!,">=20",#REF!,"<>임대") ->  | U10: =COUNTIFS(#REF!,">"&$E10,#REF!,"<="&$C10,#REF!,'사용승인별 현황'!U$2,#REF!,">=20",#REF!,"<>임대") ->  | V10: =SUMIFS(#REF!,#REF!,">"&$E10,#REF!,"<="&$C10,#REF!,'사용승인별 현황'!U$2,#REF!,">=20",#REF!,"<>임대") ->  | W10: =COUNTIFS(#REF!,">"&$E10,#REF!,"<="&$C10,#REF!,'사용승인별 현황'!W$2,#REF!,">=20",#REF!,"<>임대") ->  | X10: =SUMIFS(#REF!,#REF!,">"&$E10,#REF!,"<="&$C10,#REF!,'사용승인별 현황'!W$2,#REF!,">=20",#REF!,"<>임대") ->  | Y10: =COUNTIFS(#REF!,">"&$E10,#REF!,"<="&$C10,#REF!,'사용승인별 현황'!Y$2,#REF!,">=20",#REF!,"<>임대") ->  | Z10: =SUMIFS(#REF!,#REF!,">"&$E10,#REF!,"<="&$C10,#REF!,'사용승인별 현황'!Y$2,#REF!,">=20",#REF!,"<>임대") ->  | AA10: =COUNTIFS(#REF!,">"&$E10,#REF!,"<="&$C10,#REF!,'사용승인별 현황'!AA$2,#REF!,">=20",#REF!,"<>임대") ->  | AB10: =SUMIFS(#REF!,#REF!,">"&$E10,#REF!,"<="&$C10,#REF!,'사용승인별 현황'!AA$2,#REF!,">=20",#REF!,"<>임대") ->  | AC10: =COUNTIFS(#REF!,">"&$E10,#REF!,"<="&$C10,#REF!,'사용승인별 현황'!AC$2,#REF!,">=20",#REF!,"<>임대") ->  | AD10: =SUMIFS(#REF!,#REF!,">"&$E10,#REF!,"<="&$C10,#REF!,'사용승인별 현황'!AC$2,#REF!,">=20",#REF!,"<>임대") ->  | AE10: =COUNTIFS(#REF!,">"&$E10,#REF!,"<="&$C10,#REF!,'사용승인별 현황'!AE$2,#REF!,">=20",#REF!,"<>임대") ->  | AF10: =SUMIFS(#REF!,#REF!,">"&$E10,#REF!,"<="&$C10,#REF!,'사용승인별 현황'!AE$2,#REF!,">=20",#REF!,"<>임대") ->  | AG10: =COUNTIFS(#REF!,">"&$E10,#REF!,"<="&$C10,#REF!,'사용승인별 현황'!AG$2,#REF!,">=20",#REF!,"<>임대") ->  | AH10: =SUMIFS(#REF!,#REF!,">"&$E10,#REF!,"<="&$C10,#REF!,'사용승인별 현황'!AG$2,#REF!,">=20",#REF!,"<>임대") ->  | AI10: =COUNTIFS(#REF!,">"&$E10,#REF!,"<="&$C10,#REF!,'사용승인별 현황'!AI$2,#REF!,">=20",#REF!,"<>임대") ->  | AJ10: =SUMIFS(#REF!,#REF!,">"&$E10,#REF!,"<="&$C10,#REF!,'사용승인별 현황'!AI$2,#REF!,">=20",#REF!,"<>임대") ->  | AK10: =COUNTIFS(#REF!,">"&$E10,#REF!,"<="&$C10,#REF!,'사용승인별 현황'!AK$2,#REF!,">=20",#REF!,"<>임대") ->  | AL10: =SUMIFS(#REF!,#REF!,">"&$E10,#REF!,"<="&$C10,#REF!,'사용승인별 현황'!AK$2,#REF!,">=20",#REF!,"<>임대") ->  | AM10: =COUNTIFS(#REF!,">"&$E10,#REF!,"<="&$C10,#REF!,'사용승인별 현황'!AM$2,#REF!,">=20",#REF!,"<>임대") ->  | AN10: =SUMIFS(#REF!,#REF!,">"&$E10,#REF!,"<="&$C10,#REF!,'사용승인별 현황'!AM$2,#REF!,">=20",#REF!,"<>임대") ->  | AO10: =COUNTIFS(#REF!,">"&$E10,#REF!,"<="&$C10,#REF!,'사용승인별 현황'!AO$2,#REF!,">=20",#REF!,"<>임대") ->  | AP10: =SUMIFS(#REF!,#REF!,">"&$E10,#REF!,"<="&$C10,#REF!,'사용승인별 현황'!AO$2,#REF!,">=20",#REF!,"<>임대") ->  | AQ10: =COUNTIFS(#REF!,">"&$E10,#REF!,"<="&$C10,#REF!,'사용승인별 현황'!AQ$2,#REF!,">=20",#REF!,"<>임대") ->  | AR10: =SUMIFS(#REF!,#REF!,">"&$E10,#REF!,"<="&$C10,#REF!,'사용승인별 현황'!AQ$2,#REF!,">=20",#REF!,"<>임대") ->  | AS10: =COUNTIFS(#REF!,">"&$E10,#REF!,"<="&$C10,#REF!,'사용승인별 현황'!AS$2,#REF!,">=20",#REF!,"<>임대") ->  | AT10: =SUMIFS(#REF!,#REF!,">"&$E10,#REF!,"<="&$C10,#REF!,'사용승인별 현황'!AS$2,#REF!,">=20",#REF!,"<>임대") ->  | AU10: =COUNTIFS(#REF!,">"&$E10,#REF!,"<="&$C10,#REF!,'사용승인별 현황'!AU$2,#REF!,">=20",#REF!,"<>임대") ->  | AV10: =SUMIFS(#REF!,#REF!,">"&$E10,#REF!,"<="&$C10,#REF!,'사용승인별 현황'!AU$2,#REF!,">=20",#REF!,"<>임대") ->  | AW10: =COUNTIFS(#REF!,">"&$E10,#REF!,"<="&$C10,#REF!,'사용승인별 현황'!AW$2,#REF!,">=20",#REF!,"<>임대") ->  | AX10: =SUMIFS(#REF!,#REF!,">"&$E10,#REF!,"<="&$C10,#REF!,'사용승인별 현황'!AW$2,#REF!,">=20",#REF!,"<>임대") ->  | AY10: =COUNTIFS(#REF!,">"&$E10,#REF!,"<="&$C10,#REF!,'사용승인별 현황'!AY$2,#REF!,">=20",#REF!,"<>임대") ->  | AZ10: =SUMIFS(#REF!,#REF!,">"&$E10,#REF!,"<="&$C10,#REF!,'사용승인별 현황'!AY$2,#REF!,">=20",#REF!,"<>임대") ->  | BA10: =COUNTIFS(#REF!,">"&$E10,#REF!,"<="&$C10,#REF!,'사용승인별 현황'!BA$2,#REF!,">=20",#REF!,"<>임대") ->  | BB10: =SUMIFS(#REF!,#REF!,">"&$E10,#REF!,"<="&$C10,#REF!,'사용승인별 현황'!BA$2,#REF!,">=20",#REF!,"<>임대") ->  | BC10: =COUNTIFS(#REF!,">"&$E10,#REF!,"<="&$C10,#REF!,'사용승인별 현황'!BC$2,#REF!,">=20",#REF!,"<>임대") ->  | BD10: =SUMIFS(#REF!,#REF!,">"&$E10,#REF!,"<="&$C10,#REF!,'사용승인별 현황'!BC$2,#REF!,">=20",#REF!,"<>임대") ->  | BE10: =COUNTIFS(#REF!,">"&$E10,#REF!,"<="&$C10,#REF!,'사용승인별 현황'!BE$2,#REF!,">=20",#REF!,"<>임대") ->  | BF10: =SUMIFS(#REF!,#REF!,">"&$E10,#REF!,"<="&$C10,#REF!,'사용승인별 현황'!BE$2,#REF!,">=20",#REF!,"<>임대") -> 
B11: 30 | C11: 32143 | D11: 35 | E11: 1983-01-01 | F11: =COUNTIFS(#REF!,">"&$E11,#REF!,"<="&$C11,#REF!,">=20",#REF!,"<>임대") ->  | G11: =SUMIFS(#REF!,#REF!,">"&$E11,#REF!,"<="&$C11,#REF!,">=20",#REF!,"<>임대") ->  | I11: =COUNTIFS(#REF!,">"&$E11,#REF!,"<="&$C11,#REF!,'사용승인별 현황'!I$2,#REF!,">=20",#REF!,"<>임대") ->  | J11: =SUMIFS(#REF!,#REF!,">"&$E11,#REF!,"<="&$C11,#REF!,'사용승인별 현황'!I$2,#REF!,">=20",#REF!,"<>임대") ->  | K11: =COUNTIFS(#REF!,">"&$E11,#REF!,"<="&$C11,#REF!,'사용승인별 현황'!K$2,#REF!,">=20",#REF!,"<>임대") ->  | L11: =SUMIFS(#REF!,#REF!,">"&$E11,#REF!,"<="&$C11,#REF!,'사용승인별 현황'!K$2,#REF!,">=20",#REF!,"<>임대") ->  | M11: =COUNTIFS(#REF!,">"&$E11,#REF!,"<="&$C11,#REF!,'사용승인별 현황'!M$2,#REF!,">=20",#REF!,"<>임대") ->  | N11: =SUMIFS(#REF!,#REF!,">"&$E11,#REF!,"<="&$C11,#REF!,'사용승인별 현황'!M$2,#REF!,">=20",#REF!,"<>임대") ->  | O11: =COUNTIFS(#REF!,">"&$E11,#REF!,"<="&$C11,#REF!,'사용승인별 현황'!O$2,#REF!,">=20",#REF!,"<>임대") ->  | P11: =SUMIFS(#REF!,#REF!,">"&$E11,#REF!,"<="&$C11,#REF!,'사용승인별 현황'!O$2,#REF!,">=20",#REF!,"<>임대") ->  | Q11: =COUNTIFS(#REF!,">"&$E11,#REF!,"<="&$C11,#REF!,'사용승인별 현황'!Q$2,#REF!,">=20",#REF!,"<>임대") ->  | R11: =SUMIFS(#REF!,#REF!,">"&$E11,#REF!,"<="&$C11,#REF!,'사용승인별 현황'!Q$2,#REF!,">=20",#REF!,"<>임대") ->  | S11: =COUNTIFS(#REF!,">"&$E11,#REF!,"<="&$C11,#REF!,'사용승인별 현황'!S$2,#REF!,">=20",#REF!,"<>임대") ->  | T11: =SUMIFS(#REF!,#REF!,">"&$E11,#REF!,"<="&$C11,#REF!,'사용승인별 현황'!S$2,#REF!,">=20",#REF!,"<>임대") ->  | U11: =COUNTIFS(#REF!,">"&$E11,#REF!,"<="&$C11,#REF!,'사용승인별 현황'!U$2,#REF!,">=20",#REF!,"<>임대") ->  | V11: =SUMIFS(#REF!,#REF!,">"&$E11,#REF!,"<="&$C11,#REF!,'사용승인별 현황'!U$2,#REF!,">=20",#REF!,"<>임대") ->  | W11: =COUNTIFS(#REF!,">"&$E11,#REF!,"<="&$C11,#REF!,'사용승인별 현황'!W$2,#REF!,">=20",#REF!,"<>임대") ->  | X11: =SUMIFS(#REF!,#REF!,">"&$E11,#REF!,"<="&$C11,#REF!,'사용승인별 현황'!W$2,#REF!,">=20",#REF!,"<>임대") ->  | Y11: =COUNTIFS(#REF!,">"&$E11,#REF!,"<="&$C11,#REF!,'사용승인별 현황'!Y$2,#REF!,">=20",#REF!,"<>임대") ->  | Z11: =SUMIFS(#REF!,#REF!,">"&$E11,#REF!,"<="&$C11,#REF!,'사용승인별 현황'!Y$2,#REF!,">=20",#REF!,"<>임대") ->  | AA11: =COUNTIFS(#REF!,">"&$E11,#REF!,"<="&$C11,#REF!,'사용승인별 현황'!AA$2,#REF!,">=20",#REF!,"<>임대") ->  | AB11: =SUMIFS(#REF!,#REF!,">"&$E11,#REF!,"<="&$C11,#REF!,'사용승인별 현황'!AA$2,#REF!,">=20",#REF!,"<>임대") ->  | AC11: =COUNTIFS(#REF!,">"&$E11,#REF!,"<="&$C11,#REF!,'사용승인별 현황'!AC$2,#REF!,">=20",#REF!,"<>임대") ->  | AD11: =SUMIFS(#REF!,#REF!,">"&$E11,#REF!,"<="&$C11,#REF!,'사용승인별 현황'!AC$2,#REF!,">=20",#REF!,"<>임대") ->  | AE11: =COUNTIFS(#REF!,">"&$E11,#REF!,"<="&$C11,#REF!,'사용승인별 현황'!AE$2,#REF!,">=20",#REF!,"<>임대") ->  | AF11: =SUMIFS(#REF!,#REF!,">"&$E11,#REF!,"<="&$C11,#REF!,'사용승인별 현황'!AE$2,#REF!,">=20",#REF!,"<>임대") ->  | AG11: =COUNTIFS(#REF!,">"&$E11,#REF!,"<="&$C11,#REF!,'사용승인별 현황'!AG$2,#REF!,">=20",#REF!,"<>임대") ->  | AH11: =SUMIFS(#REF!,#REF!,">"&$E11,#REF!,"<="&$C11,#REF!,'사용승인별 현황'!AG$2,#REF!,">=20",#REF!,"<>임대") ->  | AI11: =COUNTIFS(#REF!,">"&$E11,#REF!,"<="&$C11,#REF!,'사용승인별 현황'!AI$2,#REF!,">=20",#REF!,"<>임대") ->  | AJ11: =SUMIFS(#REF!,#REF!,">"&$E11,#REF!,"<="&$C11,#REF!,'사용승인별 현황'!AI$2,#REF!,">=20",#REF!,"<>임대") ->  | AK11: =COUNTIFS(#REF!,">"&$E11,#REF!,"<="&$C11,#REF!,'사용승인별 현황'!AK$2,#REF!,">=20",#REF!,"<>임대") ->  | AL11: =SUMIFS(#REF!,#REF!,">"&$E11,#REF!,"<="&$C11,#REF!,'사용승인별 현황'!AK$2,#REF!,">=20",#REF!,"<>임대") ->  | AM11: =COUNTIFS(#REF!,">"&$E11,#REF!,"<="&$C11,#REF!,'사용승인별 현황'!AM$2,#REF!,">=20",#REF!,"<>임대") ->  | AN11: =SUMIFS(#REF!,#REF!,">"&$E11,#REF!,"<="&$C11,#REF!,'사용승인별 현황'!AM$2,#REF!,">=20",#REF!,"<>임대") ->  | AO11: =COUNTIFS(#REF!,">"&$E11,#REF!,"<="&$C11,#REF!,'사용승인별 현황'!AO$2,#REF!,">=20",#REF!,"<>임대") ->  | AP11: =SUMIFS(#REF!,#REF!,">"&$E11,#REF!,"<="&$C11,#REF!,'사용승인별 현황'!AO$2,#REF!,">=20",#REF!,"<>임대") ->  | AQ11: =COUNTIFS(#REF!,">"&$E11,#REF!,"<="&$C11,#REF!,'사용승인별 현황'!AQ$2,#REF!,">=20",#REF!,"<>임대") ->  | AR11: =SUMIFS(#REF!,#REF!,">"&$E11,#REF!,"<="&$C11,#REF!,'사용승인별 현황'!AQ$2,#REF!,">=20",#REF!,"<>임대") ->  | AS11: =COUNTIFS(#REF!,">"&$E11,#REF!,"<="&$C11,#REF!,'사용승인별 현황'!AS$2,#REF!,">=20",#REF!,"<>임대") ->  | AT11: =SUMIFS(#REF!,#REF!,">"&$E11,#REF!,"<="&$C11,#REF!,'사용승인별 현황'!AS$2,#REF!,">=20",#REF!,"<>임대") ->  | AU11: =COUNTIFS(#REF!,">"&$E11,#REF!,"<="&$C11,#REF!,'사용승인별 현황'!AU$2,#REF!,">=20",#REF!,"<>임대") ->  | AV11: =SUMIFS(#REF!,#REF!,">"&$E11,#REF!,"<="&$C11,#REF!,'사용승인별 현황'!AU$2,#REF!,">=20",#REF!,"<>임대") ->  | AW11: =COUNTIFS(#REF!,">"&$E11,#REF!,"<="&$C11,#REF!,'사용승인별 현황'!AW$2,#REF!,">=20",#REF!,"<>임대") ->  | AX11: =SUMIFS(#REF!,#REF!,">"&$E11,#REF!,"<="&$C11,#REF!,'사용승인별 현황'!AW$2,#REF!,">=20",#REF!,"<>임대") ->  | AY11: =COUNTIFS(#REF!,">"&$E11,#REF!,"<="&$C11,#REF!,'사용승인별 현황'!AY$2,#REF!,">=20",#REF!,"<>임대") ->  | AZ11: =SUMIFS(#REF!,#REF!,">"&$E11,#REF!,"<="&$C11,#REF!,'사용승인별 현황'!AY$2,#REF!,">=20",#REF!,"<>임대") ->  | BA11: =COUNTIFS(#REF!,">"&$E11,#REF!,"<="&$C11,#REF!,'사용승인별 현황'!BA$2,#REF!,">=20",#REF!,"<>임대") ->  | BB11: =SUMIFS(#REF!,#REF!,">"&$E11,#REF!,"<="&$C11,#REF!,'사용승인별 현황'!BA$2,#REF!,">=20",#REF!,"<>임대") ->  | BC11: =COUNTIFS(#REF!,">"&$E11,#REF!,"<="&$C11,#REF!,'사용승인별 현황'!BC$2,#REF!,">=20",#REF!,"<>임대") ->  | BD11: =SUMIFS(#REF!,#REF!,">"&$E11,#REF!,"<="&$C11,#REF!,'사용승인별 현황'!BC$2,#REF!,">=20",#REF!,"<>임대") ->  | BE11: =COUNTIFS(#REF!,">"&$E11,#REF!,"<="&$C11,#REF!,'사용승인별 현황'!BE$2,#REF!,">=20",#REF!,"<>임대") ->  | BF11: =SUMIFS(#REF!,#REF!,">"&$E11,#REF!,"<="&$C11,#REF!,'사용승인별 현황'!BE$2,#REF!,">=20",#REF!,"<>임대") -> 
B12: 35 | C12: 30317 | D12: 40 | E12: 1978-01-01 | F12: =COUNTIFS(#REF!,">"&$E12,#REF!,"<="&$C12,#REF!,">=20",#REF!,"<>임대") ->  | G12: =SUMIFS(#REF!,#REF!,">"&$E12,#REF!,"<="&$C12,#REF!,">=20",#REF!,"<>임대") ->  | I12: =COUNTIFS(#REF!,">"&$E12,#REF!,"<="&$C12,#REF!,'사용승인별 현황'!I$2,#REF!,">=20",#REF!,"<>임대") ->  | J12: =SUMIFS(#REF!,#REF!,">"&$E12,#REF!,"<="&$C12,#REF!,'사용승인별 현황'!I$2,#REF!,">=20",#REF!,"<>임대") ->  | K12: =COUNTIFS(#REF!,">"&$E12,#REF!,"<="&$C12,#REF!,'사용승인별 현황'!K$2,#REF!,">=20",#REF!,"<>임대") ->  | L12: =SUMIFS(#REF!,#REF!,">"&$E12,#REF!,"<="&$C12,#REF!,'사용승인별 현황'!K$2,#REF!,">=20",#REF!,"<>임대") ->  | M12: =COUNTIFS(#REF!,">"&$E12,#REF!,"<="&$C12,#REF!,'사용승인별 현황'!M$2,#REF!,">=20",#REF!,"<>임대") ->  | N12: =SUMIFS(#REF!,#REF!,">"&$E12,#REF!,"<="&$C12,#REF!,'사용승인별 현황'!M$2,#REF!,">=20",#REF!,"<>임대") ->  | O12: =COUNTIFS(#REF!,">"&$E12,#REF!,"<="&$C12,#REF!,'사용승인별 현황'!O$2,#REF!,">=20",#REF!,"<>임대") ->  | P12: =SUMIFS(#REF!,#REF!,">"&$E12,#REF!,"<="&$C12,#REF!,'사용승인별 현황'!O$2,#REF!,">=20",#REF!,"<>임대") ->  | Q12: =COUNTIFS(#REF!,">"&$E12,#REF!,"<="&$C12,#REF!,'사용승인별 현황'!Q$2,#REF!,">=20",#REF!,"<>임대") ->  | R12: =SUMIFS(#REF!,#REF!,">"&$E12,#REF!,"<="&$C12,#REF!,'사용승인별 현황'!Q$2,#REF!,">=20",#REF!,"<>임대") ->  | S12: =COUNTIFS(#REF!,">"&$E12,#REF!,"<="&$C12,#REF!,'사용승인별 현황'!S$2,#REF!,">=20",#REF!,"<>임대") ->  | T12: =SUMIFS(#REF!,#REF!,">"&$E12,#REF!,"<="&$C12,#REF!,'사용승인별 현황'!S$2,#REF!,">=20",#REF!,"<>임대") ->  | U12: =COUNTIFS(#REF!,">"&$E12,#REF!,"<="&$C12,#REF!,'사용승인별 현황'!U$2,#REF!,">=20",#REF!,"<>임대") ->  | V12: =SUMIFS(#REF!,#REF!,">"&$E12,#REF!,"<="&$C12,#REF!,'사용승인별 현황'!U$2,#REF!,">=20",#REF!,"<>임대") ->  | W12: =COUNTIFS(#REF!,">"&$E12,#REF!,"<="&$C12,#REF!,'사용승인별 현황'!W$2,#REF!,">=20",#REF!,"<>임대") ->  | X12: =SUMIFS(#REF!,#REF!,">"&$E12,#REF!,"<="&$C12,#REF!,'사용승인별 현황'!W$2,#REF!,">=20",#REF!,"<>임대") ->  | Y12: =COUNTIFS(#REF!,">"&$E12,#REF!,"<="&$C12,#REF!,'사용승인별 현황'!Y$2,#REF!,">=20",#REF!,"<>임대") ->  | Z12: =SUMIFS(#REF!,#REF!,">"&$E12,#REF!,"<="&$C12,#REF!,'사용승인별 현황'!Y$2,#REF!,">=20",#REF!,"<>임대") ->  | AA12: =COUNTIFS(#REF!,">"&$E12,#REF!,"<="&$C12,#REF!,'사용승인별 현황'!AA$2,#REF!,">=20",#REF!,"<>임대") ->  | AB12: =SUMIFS(#REF!,#REF!,">"&$E12,#REF!,"<="&$C12,#REF!,'사용승인별 현황'!AA$2,#REF!,">=20",#REF!,"<>임대") ->  | AC12: =COUNTIFS(#REF!,">"&$E12,#REF!,"<="&$C12,#REF!,'사용승인별 현황'!AC$2,#REF!,">=20",#REF!,"<>임대") ->  | AD12: =SUMIFS(#REF!,#REF!,">"&$E12,#REF!,"<="&$C12,#REF!,'사용승인별 현황'!AC$2,#REF!,">=20",#REF!,"<>임대") ->  | AE12: =COUNTIFS(#REF!,">"&$E12,#REF!,"<="&$C12,#REF!,'사용승인별 현황'!AE$2,#REF!,">=20",#REF!,"<>임대") ->  | AF12: =SUMIFS(#REF!,#REF!,">"&$E12,#REF!,"<="&$C12,#REF!,'사용승인별 현황'!AE$2,#REF!,">=20",#REF!,"<>임대") ->  | AG12: =COUNTIFS(#REF!,">"&$E12,#REF!,"<="&$C12,#REF!,'사용승인별 현황'!AG$2,#REF!,">=20",#REF!,"<>임대") ->  | AH12: =SUMIFS(#REF!,#REF!,">"&$E12,#REF!,"<="&$C12,#REF!,'사용승인별 현황'!AG$2,#REF!,">=20",#REF!,"<>임대") ->  | AI12: =COUNTIFS(#REF!,">"&$E12,#REF!,"<="&$C12,#REF!,'사용승인별 현황'!AI$2,#REF!,">=20",#REF!,"<>임대") ->  | AJ12: =SUMIFS(#REF!,#REF!,">"&$E12,#REF!,"<="&$C12,#REF!,'사용승인별 현황'!AI$2,#REF!,">=20",#REF!,"<>임대") ->  | AK12: =COUNTIFS(#REF!,">"&$E12,#REF!,"<="&$C12,#REF!,'사용승인별 현황'!AK$2,#REF!,">=20",#REF!,"<>임대") ->  | AL12: =SUMIFS(#REF!,#REF!,">"&$E12,#REF!,"<="&$C12,#REF!,'사용승인별 현황'!AK$2,#REF!,">=20",#REF!,"<>임대") ->  | AM12: =COUNTIFS(#REF!,">"&$E12,#REF!,"<="&$C12,#REF!,'사용승인별 현황'!AM$2,#REF!,">=20",#REF!,"<>임대") ->  | AN12: =SUMIFS(#REF!,#REF!,">"&$E12,#REF!,"<="&$C12,#REF!,'사용승인별 현황'!AM$2,#REF!,">=20",#REF!,"<>임대") ->  | AO12: =COUNTIFS(#REF!,">"&$E12,#REF!,"<="&$C12,#REF!,'사용승인별 현황'!AO$2,#REF!,">=20",#REF!,"<>임대") ->  | AP12: =SUMIFS(#REF!,#REF!,">"&$E12,#REF!,"<="&$C12,#REF!,'사용승인별 현황'!AO$2,#REF!,">=20",#REF!,"<>임대") ->  | AQ12: =COUNTIFS(#REF!,">"&$E12,#REF!,"<="&$C12,#REF!,'사용승인별 현황'!AQ$2,#REF!,">=20",#REF!,"<>임대") ->  | AR12: =SUMIFS(#REF!,#REF!,">"&$E12,#REF!,"<="&$C12,#REF!,'사용승인별 현황'!AQ$2,#REF!,">=20",#REF!,"<>임대") ->  | AS12: =COUNTIFS(#REF!,">"&$E12,#REF!,"<="&$C12,#REF!,'사용승인별 현황'!AS$2,#REF!,">=20",#REF!,"<>임대") ->  | AT12: =SUMIFS(#REF!,#REF!,">"&$E12,#REF!,"<="&$C12,#REF!,'사용승인별 현황'!AS$2,#REF!,">=20",#REF!,"<>임대") ->  | AU12: =COUNTIFS(#REF!,">"&$E12,#REF!,"<="&$C12,#REF!,'사용승인별 현황'!AU$2,#REF!,">=20",#REF!,"<>임대") ->  | AV12: =SUMIFS(#REF!,#REF!,">"&$E12,#REF!,"<="&$C12,#REF!,'사용승인별 현황'!AU$2,#REF!,">=20",#REF!,"<>임대") ->  | AW12: =COUNTIFS(#REF!,">"&$E12,#REF!,"<="&$C12,#REF!,'사용승인별 현황'!AW$2,#REF!,">=20",#REF!,"<>임대") ->  | AX12: =SUMIFS(#REF!,#REF!,">"&$E12,#REF!,"<="&$C12,#REF!,'사용승인별 현황'!AW$2,#REF!,">=20",#REF!,"<>임대") ->  | AY12: =COUNTIFS(#REF!,">"&$E12,#REF!,"<="&$C12,#REF!,'사용승인별 현황'!AY$2,#REF!,">=20",#REF!,"<>임대") ->  | AZ12: =SUMIFS(#REF!,#REF!,">"&$E12,#REF!,"<="&$C12,#REF!,'사용승인별 현황'!AY$2,#REF!,">=20",#REF!,"<>임대") ->  | BA12: =COUNTIFS(#REF!,">"&$E12,#REF!,"<="&$C12,#REF!,'사용승인별 현황'!BA$2,#REF!,">=20",#REF!,"<>임대") ->  | BB12: =SUMIFS(#REF!,#REF!,">"&$E12,#REF!,"<="&$C12,#REF!,'사용승인별 현황'!BA$2,#REF!,">=20",#REF!,"<>임대") ->  | BC12: =COUNTIFS(#REF!,">"&$E12,#REF!,"<="&$C12,#REF!,'사용승인별 현황'!BC$2,#REF!,">=20",#REF!,"<>임대") ->  | BD12: =SUMIFS(#REF!,#REF!,">"&$E12,#REF!,"<="&$C12,#REF!,'사용승인별 현황'!BC$2,#REF!,">=20",#REF!,"<>임대") ->  | BE12: =COUNTIFS(#REF!,">"&$E12,#REF!,"<="&$C12,#REF!,'사용승인별 현황'!BE$2,#REF!,">=20",#REF!,"<>임대") ->  | BF12: =SUMIFS(#REF!,#REF!,">"&$E12,#REF!,"<="&$C12,#REF!,'사용승인별 현황'!BE$2,#REF!,">=20",#REF!,"<>임대") -> 
B13: 40 | C13: 28491 | D13: 45 | E13: 1973-01-01 | F13: =COUNTIFS(#REF!,">"&$E13,#REF!,"<="&$C13,#REF!,">=20",#REF!,"<>임대") ->  | G13: =SUMIFS(#REF!,#REF!,">"&$E13,#REF!,"<="&$C13,#REF!,">=20",#REF!,"<>임대") ->  | I13: =COUNTIFS(#REF!,">"&$E13,#REF!,"<="&$C13,#REF!,'사용승인별 현황'!I$2,#REF!,">=20",#REF!,"<>임대") ->  | J13: =SUMIFS(#REF!,#REF!,">"&$E13,#REF!,"<="&$C13,#REF!,'사용승인별 현황'!I$2,#REF!,">=20",#REF!,"<>임대") ->  | K13: =COUNTIFS(#REF!,">"&$E13,#REF!,"<="&$C13,#REF!,'사용승인별 현황'!K$2,#REF!,">=20",#REF!,"<>임대") ->  | L13: =SUMIFS(#REF!,#REF!,">"&$E13,#REF!,"<="&$C13,#REF!,'사용승인별 현황'!K$2,#REF!,">=20",#REF!,"<>임대") ->  | M13: =COUNTIFS(#REF!,">"&$E13,#REF!,"<="&$C13,#REF!,'사용승인별 현황'!M$2,#REF!,">=20",#REF!,"<>임대") ->  | N13: =SUMIFS(#REF!,#REF!,">"&$E13,#REF!,"<="&$C13,#REF!,'사용승인별 현황'!M$2,#REF!,">=20",#REF!,"<>임대") ->  | O13: =COUNTIFS(#REF!,">"&$E13,#REF!,"<="&$C13,#REF!,'사용승인별 현황'!O$2,#REF!,">=20",#REF!,"<>임대") ->  | P13: =SUMIFS(#REF!,#REF!,">"&$E13,#REF!,"<="&$C13,#REF!,'사용승인별 현황'!O$2,#REF!,">=20",#REF!,"<>임대") ->  | Q13: =COUNTIFS(#REF!,">"&$E13,#REF!,"<="&$C13,#REF!,'사용승인별 현황'!Q$2,#REF!,">=20",#REF!,"<>임대") ->  | R13: =SUMIFS(#REF!,#REF!,">"&$E13,#REF!,"<="&$C13,#REF!,'사용승인별 현황'!Q$2,#REF!,">=20",#REF!,"<>임대") ->  | S13: =COUNTIFS(#REF!,">"&$E13,#REF!,"<="&$C13,#REF!,'사용승인별 현황'!S$2,#REF!,">=20",#REF!,"<>임대") ->  | T13: =SUMIFS(#REF!,#REF!,">"&$E13,#REF!,"<="&$C13,#REF!,'사용승인별 현황'!S$2,#REF!,">=20",#REF!,"<>임대") ->  | U13: =COUNTIFS(#REF!,">"&$E13,#REF!,"<="&$C13,#REF!,'사용승인별 현황'!U$2,#REF!,">=20",#REF!,"<>임대") ->  | V13: =SUMIFS(#REF!,#REF!,">"&$E13,#REF!,"<="&$C13,#REF!,'사용승인별 현황'!U$2,#REF!,">=20",#REF!,"<>임대") ->  | W13: =COUNTIFS(#REF!,">"&$E13,#REF!,"<="&$C13,#REF!,'사용승인별 현황'!W$2,#REF!,">=20",#REF!,"<>임대") ->  | X13: =SUMIFS(#REF!,#REF!,">"&$E13,#REF!,"<="&$C13,#REF!,'사용승인별 현황'!W$2,#REF!,">=20",#REF!,"<>임대") ->  | Y13: =COUNTIFS(#REF!,">"&$E13,#REF!,"<="&$C13,#REF!,'사용승인별 현황'!Y$2,#REF!,">=20",#REF!,"<>임대") ->  | Z13: =SUMIFS(#REF!,#REF!,">"&$E13,#REF!,"<="&$C13,#REF!,'사용승인별 현황'!Y$2,#REF!,">=20",#REF!,"<>임대") ->  | AA13: =COUNTIFS(#REF!,">"&$E13,#REF!,"<="&$C13,#REF!,'사용승인별 현황'!AA$2,#REF!,">=20",#REF!,"<>임대") ->  | AB13: =SUMIFS(#REF!,#REF!,">"&$E13,#REF!,"<="&$C13,#REF!,'사용승인별 현황'!AA$2,#REF!,">=20",#REF!,"<>임대") ->  | AC13: =COUNTIFS(#REF!,">"&$E13,#REF!,"<="&$C13,#REF!,'사용승인별 현황'!AC$2,#REF!,">=20",#REF!,"<>임대") ->  | AD13: =SUMIFS(#REF!,#REF!,">"&$E13,#REF!,"<="&$C13,#REF!,'사용승인별 현황'!AC$2,#REF!,">=20",#REF!,"<>임대") ->  | AE13: =COUNTIFS(#REF!,">"&$E13,#REF!,"<="&$C13,#REF!,'사용승인별 현황'!AE$2,#REF!,">=20",#REF!,"<>임대") ->  | AF13: =SUMIFS(#REF!,#REF!,">"&$E13,#REF!,"<="&$C13,#REF!,'사용승인별 현황'!AE$2,#REF!,">=20",#REF!,"<>임대") ->  | AG13: =COUNTIFS(#REF!,">"&$E13,#REF!,"<="&$C13,#REF!,'사용승인별 현황'!AG$2,#REF!,">=20",#REF!,"<>임대") ->  | AH13: =SUMIFS(#REF!,#REF!,">"&$E13,#REF!,"<="&$C13,#REF!,'사용승인별 현황'!AG$2,#REF!,">=20",#REF!,"<>임대") ->  | AI13: =COUNTIFS(#REF!,">"&$E13,#REF!,"<="&$C13,#REF!,'사용승인별 현황'!AI$2,#REF!,">=20",#REF!,"<>임대") ->  | AJ13: =SUMIFS(#REF!,#REF!,">"&$E13,#REF!,"<="&$C13,#REF!,'사용승인별 현황'!AI$2,#REF!,">=20",#REF!,"<>임대") ->  | AK13: =COUNTIFS(#REF!,">"&$E13,#REF!,"<="&$C13,#REF!,'사용승인별 현황'!AK$2,#REF!,">=20",#REF!,"<>임대") ->  | AL13: =SUMIFS(#REF!,#REF!,">"&$E13,#REF!,"<="&$C13,#REF!,'사용승인별 현황'!AK$2,#REF!,">=20",#REF!,"<>임대") ->  | AM13: =COUNTIFS(#REF!,">"&$E13,#REF!,"<="&$C13,#REF!,'사용승인별 현황'!AM$2,#REF!,">=20",#REF!,"<>임대") ->  | AN13: =SUMIFS(#REF!,#REF!,">"&$E13,#REF!,"<="&$C13,#REF!,'사용승인별 현황'!AM$2,#REF!,">=20",#REF!,"<>임대") ->  | AO13: =COUNTIFS(#REF!,">"&$E13,#REF!,"<="&$C13,#REF!,'사용승인별 현황'!AO$2,#REF!,">=20",#REF!,"<>임대") ->  | AP13: =SUMIFS(#REF!,#REF!,">"&$E13,#REF!,"<="&$C13,#REF!,'사용승인별 현황'!AO$2,#REF!,">=20",#REF!,"<>임대") ->  | AQ13: =COUNTIFS(#REF!,">"&$E13,#REF!,"<="&$C13,#REF!,'사용승인별 현황'!AQ$2,#REF!,">=20",#REF!,"<>임대") ->  | AR13: =SUMIFS(#REF!,#REF!,">"&$E13,#REF!,"<="&$C13,#REF!,'사용승인별 현황'!AQ$2,#REF!,">=20",#REF!,"<>임대") ->  | AS13: =COUNTIFS(#REF!,">"&$E13,#REF!,"<="&$C13,#REF!,'사용승인별 현황'!AS$2,#REF!,">=20",#REF!,"<>임대") ->  | AT13: =SUMIFS(#REF!,#REF!,">"&$E13,#REF!,"<="&$C13,#REF!,'사용승인별 현황'!AS$2,#REF!,">=20",#REF!,"<>임대") ->  | AU13: =COUNTIFS(#REF!,">"&$E13,#REF!,"<="&$C13,#REF!,'사용승인별 현황'!AU$2,#REF!,">=20",#REF!,"<>임대") ->  | AV13: =SUMIFS(#REF!,#REF!,">"&$E13,#REF!,"<="&$C13,#REF!,'사용승인별 현황'!AU$2,#REF!,">=20",#REF!,"<>임대") ->  | AW13: =COUNTIFS(#REF!,">"&$E13,#REF!,"<="&$C13,#REF!,'사용승인별 현황'!AW$2,#REF!,">=20",#REF!,"<>임대") ->  | AX13: =SUMIFS(#REF!,#REF!,">"&$E13,#REF!,"<="&$C13,#REF!,'사용승인별 현황'!AW$2,#REF!,">=20",#REF!,"<>임대") ->  | AY13: =COUNTIFS(#REF!,">"&$E13,#REF!,"<="&$C13,#REF!,'사용승인별 현황'!AY$2,#REF!,">=20",#REF!,"<>임대") ->  | AZ13: =SUMIFS(#REF!,#REF!,">"&$E13,#REF!,"<="&$C13,#REF!,'사용승인별 현황'!AY$2,#REF!,">=20",#REF!,"<>임대") ->  | BA13: =COUNTIFS(#REF!,">"&$E13,#REF!,"<="&$C13,#REF!,'사용승인별 현황'!BA$2,#REF!,">=20",#REF!,"<>임대") ->  | BB13: =SUMIFS(#REF!,#REF!,">"&$E13,#REF!,"<="&$C13,#REF!,'사용승인별 현황'!BA$2,#REF!,">=20",#REF!,"<>임대") ->  | BC13: =COUNTIFS(#REF!,">"&$E13,#REF!,"<="&$C13,#REF!,'사용승인별 현황'!BC$2,#REF!,">=20",#REF!,"<>임대") ->  | BD13: =SUMIFS(#REF!,#REF!,">"&$E13,#REF!,"<="&$C13,#REF!,'사용승인별 현황'!BC$2,#REF!,">=20",#REF!,"<>임대") ->  | BE13: =COUNTIFS(#REF!,">"&$E13,#REF!,"<="&$C13,#REF!,'사용승인별 현황'!BE$2,#REF!,">=20",#REF!,"<>임대") ->  | BF13: =SUMIFS(#REF!,#REF!,">"&$E13,#REF!,"<="&$C13,#REF!,'사용승인별 현황'!BE$2,#REF!,">=20",#REF!,"<>임대") -> 
B14: 45 | C14: 26665 | D14: 50 | E14: 1968-01-01 | F14: =COUNTIFS(#REF!,">"&$E14,#REF!,"<="&$C14,#REF!,">=20",#REF!,"<>임대") ->  | G14: =SUMIFS(#REF!,#REF!,">"&$E14,#REF!,"<="&$C14,#REF!,">=20",#REF!,"<>임대") ->  | I14: =COUNTIFS(#REF!,">"&$E14,#REF!,"<="&$C14,#REF!,'사용승인별 현황'!I$2,#REF!,">=20",#REF!,"<>임대") ->  | J14: =SUMIFS(#REF!,#REF!,">"&$E14,#REF!,"<="&$C14,#REF!,'사용승인별 현황'!I$2,#REF!,">=20",#REF!,"<>임대") ->  | K14: =COUNTIFS(#REF!,">"&$E14,#REF!,"<="&$C14,#REF!,'사용승인별 현황'!K$2,#REF!,">=20",#REF!,"<>임대") ->  | L14: =SUMIFS(#REF!,#REF!,">"&$E14,#REF!,"<="&$C14,#REF!,'사용승인별 현황'!K$2,#REF!,">=20",#REF!,"<>임대") ->  | M14: =COUNTIFS(#REF!,">"&$E14,#REF!,"<="&$C14,#REF!,'사용승인별 현황'!M$2,#REF!,">=20",#REF!,"<>임대") ->  | N14: =SUMIFS(#REF!,#REF!,">"&$E14,#REF!,"<="&$C14,#REF!,'사용승인별 현황'!M$2,#REF!,">=20",#REF!,"<>임대") ->  | O14: =COUNTIFS(#REF!,">"&$E14,#REF!,"<="&$C14,#REF!,'사용승인별 현황'!O$2,#REF!,">=20",#REF!,"<>임대") ->  | P14: =SUMIFS(#REF!,#REF!,">"&$E14,#REF!,"<="&$C14,#REF!,'사용승인별 현황'!O$2,#REF!,">=20",#REF!,"<>임대") ->  | Q14: =COUNTIFS(#REF!,">"&$E14,#REF!,"<="&$C14,#REF!,'사용승인별 현황'!Q$2,#REF!,">=20",#REF!,"<>임대") ->  | R14: =SUMIFS(#REF!,#REF!,">"&$E14,#REF!,"<="&$C14,#REF!,'사용승인별 현황'!Q$2,#REF!,">=20",#REF!,"<>임대") ->  | S14: =COUNTIFS(#REF!,">"&$E14,#REF!,"<="&$C14,#REF!,'사용승인별 현황'!S$2,#REF!,">=20",#REF!,"<>임대") ->  | T14: =SUMIFS(#REF!,#REF!,">"&$E14,#REF!,"<="&$C14,#REF!,'사용승인별 현황'!S$2,#REF!,">=20",#REF!,"<>임대") ->  | U14: =COUNTIFS(#REF!,">"&$E14,#REF!,"<="&$C14,#REF!,'사용승인별 현황'!U$2,#REF!,">=20",#REF!,"<>임대") ->  | V14: =SUMIFS(#REF!,#REF!,">"&$E14,#REF!,"<="&$C14,#REF!,'사용승인별 현황'!U$2,#REF!,">=20",#REF!,"<>임대") ->  | W14: =COUNTIFS(#REF!,">"&$E14,#REF!,"<="&$C14,#REF!,'사용승인별 현황'!W$2,#REF!,">=20",#REF!,"<>임대") ->  | X14: =SUMIFS(#REF!,#REF!,">"&$E14,#REF!,"<="&$C14,#REF!,'사용승인별 현황'!W$2,#REF!,">=20",#REF!,"<>임대") ->  | Y14: =COUNTIFS(#REF!,">"&$E14,#REF!,"<="&$C14,#REF!,'사용승인별 현황'!Y$2,#REF!,">=20",#REF!,"<>임대") ->  | Z14: =SUMIFS(#REF!,#REF!,">"&$E14,#REF!,"<="&$C14,#REF!,'사용승인별 현황'!Y$2,#REF!,">=20",#REF!,"<>임대") ->  | AA14: =COUNTIFS(#REF!,">"&$E14,#REF!,"<="&$C14,#REF!,'사용승인별 현황'!AA$2,#REF!,">=20",#REF!,"<>임대") ->  | AB14: =SUMIFS(#REF!,#REF!,">"&$E14,#REF!,"<="&$C14,#REF!,'사용승인별 현황'!AA$2,#REF!,">=20",#REF!,"<>임대") ->  | AC14: =COUNTIFS(#REF!,">"&$E14,#REF!,"<="&$C14,#REF!,'사용승인별 현황'!AC$2,#REF!,">=20",#REF!,"<>임대") ->  | AD14: =SUMIFS(#REF!,#REF!,">"&$E14,#REF!,"<="&$C14,#REF!,'사용승인별 현황'!AC$2,#REF!,">=20",#REF!,"<>임대") ->  | AE14: =COUNTIFS(#REF!,">"&$E14,#REF!,"<="&$C14,#REF!,'사용승인별 현황'!AE$2,#REF!,">=20",#REF!,"<>임대") ->  | AF14: =SUMIFS(#REF!,#REF!,">"&$E14,#REF!,"<="&$C14,#REF!,'사용승인별 현황'!AE$2,#REF!,">=20",#REF!,"<>임대") ->  | AG14: =COUNTIFS(#REF!,">"&$E14,#REF!,"<="&$C14,#REF!,'사용승인별 현황'!AG$2,#REF!,">=20",#REF!,"<>임대") ->  | AH14: =SUMIFS(#REF!,#REF!,">"&$E14,#REF!,"<="&$C14,#REF!,'사용승인별 현황'!AG$2,#REF!,">=20",#REF!,"<>임대") ->  | AI14: =COUNTIFS(#REF!,">"&$E14,#REF!,"<="&$C14,#REF!,'사용승인별 현황'!AI$2,#REF!,">=20",#REF!,"<>임대") ->  | AJ14: =SUMIFS(#REF!,#REF!,">"&$E14,#REF!,"<="&$C14,#REF!,'사용승인별 현황'!AI$2,#REF!,">=20",#REF!,"<>임대") ->  | AK14: =COUNTIFS(#REF!,">"&$E14,#REF!,"<="&$C14,#REF!,'사용승인별 현황'!AK$2,#REF!,">=20",#REF!,"<>임대") ->  | AL14: =SUMIFS(#REF!,#REF!,">"&$E14,#REF!,"<="&$C14,#REF!,'사용승인별 현황'!AK$2,#REF!,">=20",#REF!,"<>임대") ->  | AM14: =COUNTIFS(#REF!,">"&$E14,#REF!,"<="&$C14,#REF!,'사용승인별 현황'!AM$2,#REF!,">=20",#REF!,"<>임대") ->  | AN14: =SUMIFS(#REF!,#REF!,">"&$E14,#REF!,"<="&$C14,#REF!,'사용승인별 현황'!AM$2,#REF!,">=20",#REF!,"<>임대") ->  | AO14: =COUNTIFS(#REF!,">"&$E14,#REF!,"<="&$C14,#REF!,'사용승인별 현황'!AO$2,#REF!,">=20",#REF!,"<>임대") ->  | AP14: =SUMIFS(#REF!,#REF!,">"&$E14,#REF!,"<="&$C14,#REF!,'사용승인별 현황'!AO$2,#REF!,">=20",#REF!,"<>임대") ->  | AQ14: =COUNTIFS(#REF!,">"&$E14,#REF!,"<="&$C14,#REF!,'사용승인별 현황'!AQ$2,#REF!,">=20",#REF!,"<>임대") ->  | AR14: =SUMIFS(#REF!,#REF!,">"&$E14,#REF!,"<="&$C14,#REF!,'사용승인별 현황'!AQ$2,#REF!,">=20",#REF!,"<>임대") ->  | AS14: =COUNTIFS(#REF!,">"&$E14,#REF!,"<="&$C14,#REF!,'사용승인별 현황'!AS$2,#REF!,">=20",#REF!,"<>임대") ->  | AT14: =SUMIFS(#REF!,#REF!,">"&$E14,#REF!,"<="&$C14,#REF!,'사용승인별 현황'!AS$2,#REF!,">=20",#REF!,"<>임대") ->  | AU14: =COUNTIFS(#REF!,">"&$E14,#REF!,"<="&$C14,#REF!,'사용승인별 현황'!AU$2,#REF!,">=20",#REF!,"<>임대") ->  | AV14: =SUMIFS(#REF!,#REF!,">"&$E14,#REF!,"<="&$C14,#REF!,'사용승인별 현황'!AU$2,#REF!,">=20",#REF!,"<>임대") ->  | AW14: =COUNTIFS(#REF!,">"&$E14,#REF!,"<="&$C14,#REF!,'사용승인별 현황'!AW$2,#REF!,">=20",#REF!,"<>임대") ->  | AX14: =SUMIFS(#REF!,#REF!,">"&$E14,#REF!,"<="&$C14,#REF!,'사용승인별 현황'!AW$2,#REF!,">=20",#REF!,"<>임대") ->  | AY14: =COUNTIFS(#REF!,">"&$E14,#REF!,"<="&$C14,#REF!,'사용승인별 현황'!AY$2,#REF!,">=20",#REF!,"<>임대") ->  | AZ14: =SUMIFS(#REF!,#REF!,">"&$E14,#REF!,"<="&$C14,#REF!,'사용승인별 현황'!AY$2,#REF!,">=20",#REF!,"<>임대") ->  | BA14: =COUNTIFS(#REF!,">"&$E14,#REF!,"<="&$C14,#REF!,'사용승인별 현황'!BA$2,#REF!,">=20",#REF!,"<>임대") ->  | BB14: =SUMIFS(#REF!,#REF!,">"&$E14,#REF!,"<="&$C14,#REF!,'사용승인별 현황'!BA$2,#REF!,">=20",#REF!,"<>임대") ->  | BC14: =COUNTIFS(#REF!,">"&$E14,#REF!,"<="&$C14,#REF!,'사용승인별 현황'!BC$2,#REF!,">=20",#REF!,"<>임대") ->  | BD14: =SUMIFS(#REF!,#REF!,">"&$E14,#REF!,"<="&$C14,#REF!,'사용승인별 현황'!BC$2,#REF!,">=20",#REF!,"<>임대") ->  | BE14: =COUNTIFS(#REF!,">"&$E14,#REF!,"<="&$C14,#REF!,'사용승인별 현황'!BE$2,#REF!,">=20",#REF!,"<>임대") ->  | BF14: =SUMIFS(#REF!,#REF!,">"&$E14,#REF!,"<="&$C14,#REF!,'사용승인별 현황'!BE$2,#REF!,">=20",#REF!,"<>임대") -> 
B15: 50 | C15: 24838 | D15: 55 | E15: 1963-01-01 | F15: =COUNTIFS(#REF!,">"&$E15,#REF!,"<="&$C15,#REF!,">=20",#REF!,"<>임대") ->  | G15: =SUMIFS(#REF!,#REF!,">"&$E15,#REF!,"<="&$C15,#REF!,">=20",#REF!,"<>임대") ->  | I15: =COUNTIFS(#REF!,">"&$E15,#REF!,"<="&$C15,#REF!,'사용승인별 현황'!I$2,#REF!,">=20",#REF!,"<>임대") ->  | J15: =SUMIFS(#REF!,#REF!,">"&$E15,#REF!,"<="&$C15,#REF!,'사용승인별 현황'!I$2,#REF!,">=20",#REF!,"<>임대") ->  | K15: =COUNTIFS(#REF!,">"&$E15,#REF!,"<="&$C15,#REF!,'사용승인별 현황'!K$2,#REF!,">=20",#REF!,"<>임대") ->  | L15: =SUMIFS(#REF!,#REF!,">"&$E15,#REF!,"<="&$C15,#REF!,'사용승인별 현황'!K$2,#REF!,">=20",#REF!,"<>임대") ->  | M15: =COUNTIFS(#REF!,">"&$E15,#REF!,"<="&$C15,#REF!,'사용승인별 현황'!M$2,#REF!,">=20",#REF!,"<>임대") ->  | N15: =SUMIFS(#REF!,#REF!,">"&$E15,#REF!,"<="&$C15,#REF!,'사용승인별 현황'!M$2,#REF!,">=20",#REF!,"<>임대") ->  | O15: =COUNTIFS(#REF!,">"&$E15,#REF!,"<="&$C15,#REF!,'사용승인별 현황'!O$2,#REF!,">=20",#REF!,"<>임대") ->  | P15: =SUMIFS(#REF!,#REF!,">"&$E15,#REF!,"<="&$C15,#REF!,'사용승인별 현황'!O$2,#REF!,">=20",#REF!,"<>임대") ->  | Q15: =COUNTIFS(#REF!,">"&$E15,#REF!,"<="&$C15,#REF!,'사용승인별 현황'!Q$2,#REF!,">=20",#REF!,"<>임대") ->  | R15: =SUMIFS(#REF!,#REF!,">"&$E15,#REF!,"<="&$C15,#REF!,'사용승인별 현황'!Q$2,#REF!,">=20",#REF!,"<>임대") ->  | S15: =COUNTIFS(#REF!,">"&$E15,#REF!,"<="&$C15,#REF!,'사용승인별 현황'!S$2,#REF!,">=20",#REF!,"<>임대") ->  | T15: =SUMIFS(#REF!,#REF!,">"&$E15,#REF!,"<="&$C15,#REF!,'사용승인별 현황'!S$2,#REF!,">=20",#REF!,"<>임대") ->  | U15: =COUNTIFS(#REF!,">"&$E15,#REF!,"<="&$C15,#REF!,'사용승인별 현황'!U$2,#REF!,">=20",#REF!,"<>임대") ->  | V15: =SUMIFS(#REF!,#REF!,">"&$E15,#REF!,"<="&$C15,#REF!,'사용승인별 현황'!U$2,#REF!,">=20",#REF!,"<>임대") ->  | W15: =COUNTIFS(#REF!,">"&$E15,#REF!,"<="&$C15,#REF!,'사용승인별 현황'!W$2,#REF!,">=20",#REF!,"<>임대") ->  | X15: =SUMIFS(#REF!,#REF!,">"&$E15,#REF!,"<="&$C15,#REF!,'사용승인별 현황'!W$2,#REF!,">=20",#REF!,"<>임대") ->  | Y15: =COUNTIFS(#REF!,">"&$E15,#REF!,"<="&$C15,#REF!,'사용승인별 현황'!Y$2,#REF!,">=20",#REF!,"<>임대") ->  | Z15: =SUMIFS(#REF!,#REF!,">"&$E15,#REF!,"<="&$C15,#REF!,'사용승인별 현황'!Y$2,#REF!,">=20",#REF!,"<>임대") ->  | AA15: =COUNTIFS(#REF!,">"&$E15,#REF!,"<="&$C15,#REF!,'사용승인별 현황'!AA$2,#REF!,">=20",#REF!,"<>임대") ->  | AB15: =SUMIFS(#REF!,#REF!,">"&$E15,#REF!,"<="&$C15,#REF!,'사용승인별 현황'!AA$2,#REF!,">=20",#REF!,"<>임대") ->  | AC15: =COUNTIFS(#REF!,">"&$E15,#REF!,"<="&$C15,#REF!,'사용승인별 현황'!AC$2,#REF!,">=20",#REF!,"<>임대") ->  | AD15: =SUMIFS(#REF!,#REF!,">"&$E15,#REF!,"<="&$C15,#REF!,'사용승인별 현황'!AC$2,#REF!,">=20",#REF!,"<>임대") ->  | AE15: =COUNTIFS(#REF!,">"&$E15,#REF!,"<="&$C15,#REF!,'사용승인별 현황'!AE$2,#REF!,">=20",#REF!,"<>임대") ->  | AF15: =SUMIFS(#REF!,#REF!,">"&$E15,#REF!,"<="&$C15,#REF!,'사용승인별 현황'!AE$2,#REF!,">=20",#REF!,"<>임대") ->  | AG15: =COUNTIFS(#REF!,">"&$E15,#REF!,"<="&$C15,#REF!,'사용승인별 현황'!AG$2,#REF!,">=20",#REF!,"<>임대") ->  | AH15: =SUMIFS(#REF!,#REF!,">"&$E15,#REF!,"<="&$C15,#REF!,'사용승인별 현황'!AG$2,#REF!,">=20",#REF!,"<>임대") ->  | AI15: =COUNTIFS(#REF!,">"&$E15,#REF!,"<="&$C15,#REF!,'사용승인별 현황'!AI$2,#REF!,">=20",#REF!,"<>임대") ->  | AJ15: =SUMIFS(#REF!,#REF!,">"&$E15,#REF!,"<="&$C15,#REF!,'사용승인별 현황'!AI$2,#REF!,">=20",#REF!,"<>임대") ->  | AK15: =COUNTIFS(#REF!,">"&$E15,#REF!,"<="&$C15,#REF!,'사용승인별 현황'!AK$2,#REF!,">=20",#REF!,"<>임대") ->  | AL15: =SUMIFS(#REF!,#REF!,">"&$E15,#REF!,"<="&$C15,#REF!,'사용승인별 현황'!AK$2,#REF!,">=20",#REF!,"<>임대") ->  | AM15: =COUNTIFS(#REF!,">"&$E15,#REF!,"<="&$C15,#REF!,'사용승인별 현황'!AM$2,#REF!,">=20",#REF!,"<>임대") ->  | AN15: =SUMIFS(#REF!,#REF!,">"&$E15,#REF!,"<="&$C15,#REF!,'사용승인별 현황'!AM$2,#REF!,">=20",#REF!,"<>임대") ->  | AO15: =COUNTIFS(#REF!,">"&$E15,#REF!,"<="&$C15,#REF!,'사용승인별 현황'!AO$2,#REF!,">=20",#REF!,"<>임대") ->  | AP15: =SUMIFS(#REF!,#REF!,">"&$E15,#REF!,"<="&$C15,#REF!,'사용승인별 현황'!AO$2,#REF!,">=20",#REF!,"<>임대") ->  | AQ15: =COUNTIFS(#REF!,">"&$E15,#REF!,"<="&$C15,#REF!,'사용승인별 현황'!AQ$2,#REF!,">=20",#REF!,"<>임대") ->  | AR15: =SUMIFS(#REF!,#REF!,">"&$E15,#REF!,"<="&$C15,#REF!,'사용승인별 현황'!AQ$2,#REF!,">=20",#REF!,"<>임대") ->  | AS15: =COUNTIFS(#REF!,">"&$E15,#REF!,"<="&$C15,#REF!,'사용승인별 현황'!AS$2,#REF!,">=20",#REF!,"<>임대") ->  | AT15: =SUMIFS(#REF!,#REF!,">"&$E15,#REF!,"<="&$C15,#REF!,'사용승인별 현황'!AS$2,#REF!,">=20",#REF!,"<>임대") ->  | AU15: =COUNTIFS(#REF!,">"&$E15,#REF!,"<="&$C15,#REF!,'사용승인별 현황'!AU$2,#REF!,">=20",#REF!,"<>임대") ->  | AV15: =SUMIFS(#REF!,#REF!,">"&$E15,#REF!,"<="&$C15,#REF!,'사용승인별 현황'!AU$2,#REF!,">=20",#REF!,"<>임대") ->  | AW15: =COUNTIFS(#REF!,">"&$E15,#REF!,"<="&$C15,#REF!,'사용승인별 현황'!AW$2,#REF!,">=20",#REF!,"<>임대") ->  | AX15: =SUMIFS(#REF!,#REF!,">"&$E15,#REF!,"<="&$C15,#REF!,'사용승인별 현황'!AW$2,#REF!,">=20",#REF!,"<>임대") ->  | AY15: =COUNTIFS(#REF!,">"&$E15,#REF!,"<="&$C15,#REF!,'사용승인별 현황'!AY$2,#REF!,">=20",#REF!,"<>임대") ->  | AZ15: =SUMIFS(#REF!,#REF!,">"&$E15,#REF!,"<="&$C15,#REF!,'사용승인별 현황'!AY$2,#REF!,">=20",#REF!,"<>임대") ->  | BA15: =COUNTIFS(#REF!,">"&$E15,#REF!,"<="&$C15,#REF!,'사용승인별 현황'!BA$2,#REF!,">=20",#REF!,"<>임대") ->  | BB15: =SUMIFS(#REF!,#REF!,">"&$E15,#REF!,"<="&$C15,#REF!,'사용승인별 현황'!BA$2,#REF!,">=20",#REF!,"<>임대") ->  | BC15: =COUNTIFS(#REF!,">"&$E15,#REF!,"<="&$C15,#REF!,'사용승인별 현황'!BC$2,#REF!,">=20",#REF!,"<>임대") ->  | BD15: =SUMIFS(#REF!,#REF!,">"&$E15,#REF!,"<="&$C15,#REF!,'사용승인별 현황'!BC$2,#REF!,">=20",#REF!,"<>임대") ->  | BE15: =COUNTIFS(#REF!,">"&$E15,#REF!,"<="&$C15,#REF!,'사용승인별 현황'!BE$2,#REF!,">=20",#REF!,"<>임대") ->  | BF15: =SUMIFS(#REF!,#REF!,">"&$E15,#REF!,"<="&$C15,#REF!,'사용승인별 현황'!BE$2,#REF!,">=20",#REF!,"<>임대") -> 
B16: 55 | C16: 23012 | D16: 60 | E16: 1958-01-01 | F16: =COUNTIFS(#REF!,">"&$E16,#REF!,"<="&$C16,#REF!,">=20",#REF!,"<>임대") ->  | G16: =SUMIFS(#REF!,#REF!,">"&$E16,#REF!,"<="&$C16,#REF!,">=20",#REF!,"<>임대") ->  | I16: =COUNTIFS(#REF!,">"&$E16,#REF!,"<="&$C16,#REF!,'사용승인별 현황'!I$2,#REF!,">=20",#REF!,"<>임대") ->  | J16: =SUMIFS(#REF!,#REF!,">"&$E16,#REF!,"<="&$C16,#REF!,'사용승인별 현황'!I$2,#REF!,">=20",#REF!,"<>임대") ->  | K16: =COUNTIFS(#REF!,">"&$E16,#REF!,"<="&$C16,#REF!,'사용승인별 현황'!K$2,#REF!,">=20",#REF!,"<>임대") ->  | L16: =SUMIFS(#REF!,#REF!,">"&$E16,#REF!,"<="&$C16,#REF!,'사용승인별 현황'!K$2,#REF!,">=20",#REF!,"<>임대") ->  | M16: =COUNTIFS(#REF!,">"&$E16,#REF!,"<="&$C16,#REF!,'사용승인별 현황'!M$2,#REF!,">=20",#REF!,"<>임대") ->  | N16: =SUMIFS(#REF!,#REF!,">"&$E16,#REF!,"<="&$C16,#REF!,'사용승인별 현황'!M$2,#REF!,">=20",#REF!,"<>임대") ->  | O16: =COUNTIFS(#REF!,">"&$E16,#REF!,"<="&$C16,#REF!,'사용승인별 현황'!O$2,#REF!,">=20",#REF!,"<>임대") ->  | P16: =SUMIFS(#REF!,#REF!,">"&$E16,#REF!,"<="&$C16,#REF!,'사용승인별 현황'!O$2,#REF!,">=20",#REF!,"<>임대") ->  | Q16: =COUNTIFS(#REF!,">"&$E16,#REF!,"<="&$C16,#REF!,'사용승인별 현황'!Q$2,#REF!,">=20",#REF!,"<>임대") ->  | R16: =SUMIFS(#REF!,#REF!,">"&$E16,#REF!,"<="&$C16,#REF!,'사용승인별 현황'!Q$2,#REF!,">=20",#REF!,"<>임대") ->  | S16: =COUNTIFS(#REF!,">"&$E16,#REF!,"<="&$C16,#REF!,'사용승인별 현황'!S$2,#REF!,">=20",#REF!,"<>임대") ->  | T16: =SUMIFS(#REF!,#REF!,">"&$E16,#REF!,"<="&$C16,#REF!,'사용승인별 현황'!S$2,#REF!,">=20",#REF!,"<>임대") ->  | U16: =COUNTIFS(#REF!,">"&$E16,#REF!,"<="&$C16,#REF!,'사용승인별 현황'!U$2,#REF!,">=20",#REF!,"<>임대") ->  | V16: =SUMIFS(#REF!,#REF!,">"&$E16,#REF!,"<="&$C16,#REF!,'사용승인별 현황'!U$2,#REF!,">=20",#REF!,"<>임대") ->  | W16: =COUNTIFS(#REF!,">"&$E16,#REF!,"<="&$C16,#REF!,'사용승인별 현황'!W$2,#REF!,">=20",#REF!,"<>임대") ->  | X16: =SUMIFS(#REF!,#REF!,">"&$E16,#REF!,"<="&$C16,#REF!,'사용승인별 현황'!W$2,#REF!,">=20",#REF!,"<>임대") ->  | Y16: =COUNTIFS(#REF!,">"&$E16,#REF!,"<="&$C16,#REF!,'사용승인별 현황'!Y$2,#REF!,">=20",#REF!,"<>임대") ->  | Z16: =SUMIFS(#REF!,#REF!,">"&$E16,#REF!,"<="&$C16,#REF!,'사용승인별 현황'!Y$2,#REF!,">=20",#REF!,"<>임대") ->  | AA16: =COUNTIFS(#REF!,">"&$E16,#REF!,"<="&$C16,#REF!,'사용승인별 현황'!AA$2,#REF!,">=20",#REF!,"<>임대") ->  | AB16: =SUMIFS(#REF!,#REF!,">"&$E16,#REF!,"<="&$C16,#REF!,'사용승인별 현황'!AA$2,#REF!,">=20",#REF!,"<>임대") ->  | AC16: =COUNTIFS(#REF!,">"&$E16,#REF!,"<="&$C16,#REF!,'사용승인별 현황'!AC$2,#REF!,">=20",#REF!,"<>임대") ->  | AD16: =SUMIFS(#REF!,#REF!,">"&$E16,#REF!,"<="&$C16,#REF!,'사용승인별 현황'!AC$2,#REF!,">=20",#REF!,"<>임대") ->  | AE16: =COUNTIFS(#REF!,">"&$E16,#REF!,"<="&$C16,#REF!,'사용승인별 현황'!AE$2,#REF!,">=20",#REF!,"<>임대") ->  | AF16: =SUMIFS(#REF!,#REF!,">"&$E16,#REF!,"<="&$C16,#REF!,'사용승인별 현황'!AE$2,#REF!,">=20",#REF!,"<>임대") ->  | AG16: =COUNTIFS(#REF!,">"&$E16,#REF!,"<="&$C16,#REF!,'사용승인별 현황'!AG$2,#REF!,">=20",#REF!,"<>임대") ->  | AH16: =SUMIFS(#REF!,#REF!,">"&$E16,#REF!,"<="&$C16,#REF!,'사용승인별 현황'!AG$2,#REF!,">=20",#REF!,"<>임대") ->  | AI16: =COUNTIFS(#REF!,">"&$E16,#REF!,"<="&$C16,#REF!,'사용승인별 현황'!AI$2,#REF!,">=20",#REF!,"<>임대") ->  | AJ16: =SUMIFS(#REF!,#REF!,">"&$E16,#REF!,"<="&$C16,#REF!,'사용승인별 현황'!AI$2,#REF!,">=20",#REF!,"<>임대") ->  | AK16: =COUNTIFS(#REF!,">"&$E16,#REF!,"<="&$C16,#REF!,'사용승인별 현황'!AK$2,#REF!,">=20",#REF!,"<>임대") ->  | AL16: =SUMIFS(#REF!,#REF!,">"&$E16,#REF!,"<="&$C16,#REF!,'사용승인별 현황'!AK$2,#REF!,">=20",#REF!,"<>임대") ->  | AM16: =COUNTIFS(#REF!,">"&$E16,#REF!,"<="&$C16,#REF!,'사용승인별 현황'!AM$2,#REF!,">=20",#REF!,"<>임대") ->  | AN16: =SUMIFS(#REF!,#REF!,">"&$E16,#REF!,"<="&$C16,#REF!,'사용승인별 현황'!AM$2,#REF!,">=20",#REF!,"<>임대") ->  | AO16: =COUNTIFS(#REF!,">"&$E16,#REF!,"<="&$C16,#REF!,'사용승인별 현황'!AO$2,#REF!,">=20",#REF!,"<>임대") ->  | AP16: =SUMIFS(#REF!,#REF!,">"&$E16,#REF!,"<="&$C16,#REF!,'사용승인별 현황'!AO$2,#REF!,">=20",#REF!,"<>임대") ->  | AQ16: =COUNTIFS(#REF!,">"&$E16,#REF!,"<="&$C16,#REF!,'사용승인별 현황'!AQ$2,#REF!,">=20",#REF!,"<>임대") ->  | AR16: =SUMIFS(#REF!,#REF!,">"&$E16,#REF!,"<="&$C16,#REF!,'사용승인별 현황'!AQ$2,#REF!,">=20",#REF!,"<>임대") ->  | AS16: =COUNTIFS(#REF!,">"&$E16,#REF!,"<="&$C16,#REF!,'사용승인별 현황'!AS$2,#REF!,">=20",#REF!,"<>임대") ->  | AT16: =SUMIFS(#REF!,#REF!,">"&$E16,#REF!,"<="&$C16,#REF!,'사용승인별 현황'!AS$2,#REF!,">=20",#REF!,"<>임대") ->  | AU16: =COUNTIFS(#REF!,">"&$E16,#REF!,"<="&$C16,#REF!,'사용승인별 현황'!AU$2,#REF!,">=20",#REF!,"<>임대") ->  | AV16: =SUMIFS(#REF!,#REF!,">"&$E16,#REF!,"<="&$C16,#REF!,'사용승인별 현황'!AU$2,#REF!,">=20",#REF!,"<>임대") ->  | AW16: =COUNTIFS(#REF!,">"&$E16,#REF!,"<="&$C16,#REF!,'사용승인별 현황'!AW$2,#REF!,">=20",#REF!,"<>임대") ->  | AX16: =SUMIFS(#REF!,#REF!,">"&$E16,#REF!,"<="&$C16,#REF!,'사용승인별 현황'!AW$2,#REF!,">=20",#REF!,"<>임대") ->  | AY16: =COUNTIFS(#REF!,">"&$E16,#REF!,"<="&$C16,#REF!,'사용승인별 현황'!AY$2,#REF!,">=20",#REF!,"<>임대") ->  | AZ16: =SUMIFS(#REF!,#REF!,">"&$E16,#REF!,"<="&$C16,#REF!,'사용승인별 현황'!AY$2,#REF!,">=20",#REF!,"<>임대") ->  | BA16: =COUNTIFS(#REF!,">"&$E16,#REF!,"<="&$C16,#REF!,'사용승인별 현황'!BA$2,#REF!,">=20",#REF!,"<>임대") ->  | BB16: =SUMIFS(#REF!,#REF!,">"&$E16,#REF!,"<="&$C16,#REF!,'사용승인별 현황'!BA$2,#REF!,">=20",#REF!,"<>임대") ->  | BC16: =COUNTIFS(#REF!,">"&$E16,#REF!,"<="&$C16,#REF!,'사용승인별 현황'!BC$2,#REF!,">=20",#REF!,"<>임대") ->  | BD16: =SUMIFS(#REF!,#REF!,">"&$E16,#REF!,"<="&$C16,#REF!,'사용승인별 현황'!BC$2,#REF!,">=20",#REF!,"<>임대") ->  | BE16: =COUNTIFS(#REF!,">"&$E16,#REF!,"<="&$C16,#REF!,'사용승인별 현황'!BE$2,#REF!,">=20",#REF!,"<>임대") ->  | BF16: =SUMIFS(#REF!,#REF!,">"&$E16,#REF!,"<="&$C16,#REF!,'사용승인별 현황'!BE$2,#REF!,">=20",#REF!,"<>임대") -> 
B17: 60 | C17: 21186 | D17: 65 | E17: 1953-01-01 | F17: =COUNTIFS(#REF!,">"&$E17,#REF!,"<="&$C17,#REF!,">=20",#REF!,"<>임대") ->  | G17: =SUMIFS(#REF!,#REF!,">"&$E17,#REF!,"<="&$C17,#REF!,">=20",#REF!,"<>임대") ->  | I17: =COUNTIFS(#REF!,">"&$E17,#REF!,"<="&$C17,#REF!,'사용승인별 현황'!I$2,#REF!,">=20",#REF!,"<>임대") ->  | J17: =SUMIFS(#REF!,#REF!,">"&$E17,#REF!,"<="&$C17,#REF!,'사용승인별 현황'!I$2,#REF!,">=20",#REF!,"<>임대") ->  | K17: =COUNTIFS(#REF!,">"&$E17,#REF!,"<="&$C17,#REF!,'사용승인별 현황'!K$2,#REF!,">=20",#REF!,"<>임대") ->  | L17: =SUMIFS(#REF!,#REF!,">"&$E17,#REF!,"<="&$C17,#REF!,'사용승인별 현황'!K$2,#REF!,">=20",#REF!,"<>임대") ->  | M17: =COUNTIFS(#REF!,">"&$E17,#REF!,"<="&$C17,#REF!,'사용승인별 현황'!M$2,#REF!,">=20",#REF!,"<>임대") ->  | N17: =SUMIFS(#REF!,#REF!,">"&$E17,#REF!,"<="&$C17,#REF!,'사용승인별 현황'!M$2,#REF!,">=20",#REF!,"<>임대") ->  | O17: =COUNTIFS(#REF!,">"&$E17,#REF!,"<="&$C17,#REF!,'사용승인별 현황'!O$2,#REF!,">=20",#REF!,"<>임대") ->  | P17: =SUMIFS(#REF!,#REF!,">"&$E17,#REF!,"<="&$C17,#REF!,'사용승인별 현황'!O$2,#REF!,">=20",#REF!,"<>임대") ->  | Q17: =COUNTIFS(#REF!,">"&$E17,#REF!,"<="&$C17,#REF!,'사용승인별 현황'!Q$2,#REF!,">=20",#REF!,"<>임대") ->  | R17: =SUMIFS(#REF!,#REF!,">"&$E17,#REF!,"<="&$C17,#REF!,'사용승인별 현황'!Q$2,#REF!,">=20",#REF!,"<>임대") ->  | S17: =COUNTIFS(#REF!,">"&$E17,#REF!,"<="&$C17,#REF!,'사용승인별 현황'!S$2,#REF!,">=20",#REF!,"<>임대") ->  | T17: =SUMIFS(#REF!,#REF!,">"&$E17,#REF!,"<="&$C17,#REF!,'사용승인별 현황'!S$2,#REF!,">=20",#REF!,"<>임대") ->  | U17: =COUNTIFS(#REF!,">"&$E17,#REF!,"<="&$C17,#REF!,'사용승인별 현황'!U$2,#REF!,">=20",#REF!,"<>임대") ->  | V17: =SUMIFS(#REF!,#REF!,">"&$E17,#REF!,"<="&$C17,#REF!,'사용승인별 현황'!U$2,#REF!,">=20",#REF!,"<>임대") ->  | W17: =COUNTIFS(#REF!,">"&$E17,#REF!,"<="&$C17,#REF!,'사용승인별 현황'!W$2,#REF!,">=20",#REF!,"<>임대") ->  | X17: =SUMIFS(#REF!,#REF!,">"&$E17,#REF!,"<="&$C17,#REF!,'사용승인별 현황'!W$2,#REF!,">=20",#REF!,"<>임대") ->  | Y17: =COUNTIFS(#REF!,">"&$E17,#REF!,"<="&$C17,#REF!,'사용승인별 현황'!Y$2,#REF!,">=20",#REF!,"<>임대") ->  | Z17: =SUMIFS(#REF!,#REF!,">"&$E17,#REF!,"<="&$C17,#REF!,'사용승인별 현황'!Y$2,#REF!,">=20",#REF!,"<>임대") ->  | AA17: =COUNTIFS(#REF!,">"&$E17,#REF!,"<="&$C17,#REF!,'사용승인별 현황'!AA$2,#REF!,">=20",#REF!,"<>임대") ->  | AB17: =SUMIFS(#REF!,#REF!,">"&$E17,#REF!,"<="&$C17,#REF!,'사용승인별 현황'!AA$2,#REF!,">=20",#REF!,"<>임대") ->  | AC17: =COUNTIFS(#REF!,">"&$E17,#REF!,"<="&$C17,#REF!,'사용승인별 현황'!AC$2,#REF!,">=20",#REF!,"<>임대") ->  | AD17: =SUMIFS(#REF!,#REF!,">"&$E17,#REF!,"<="&$C17,#REF!,'사용승인별 현황'!AC$2,#REF!,">=20",#REF!,"<>임대") ->  | AE17: =COUNTIFS(#REF!,">"&$E17,#REF!,"<="&$C17,#REF!,'사용승인별 현황'!AE$2,#REF!,">=20",#REF!,"<>임대") ->  | AF17: =SUMIFS(#REF!,#REF!,">"&$E17,#REF!,"<="&$C17,#REF!,'사용승인별 현황'!AE$2,#REF!,">=20",#REF!,"<>임대") ->  | AG17: =COUNTIFS(#REF!,">"&$E17,#REF!,"<="&$C17,#REF!,'사용승인별 현황'!AG$2,#REF!,">=20",#REF!,"<>임대") ->  | AH17: =SUMIFS(#REF!,#REF!,">"&$E17,#REF!,"<="&$C17,#REF!,'사용승인별 현황'!AG$2,#REF!,">=20",#REF!,"<>임대") ->  | AI17: =COUNTIFS(#REF!,">"&$E17,#REF!,"<="&$C17,#REF!,'사용승인별 현황'!AI$2,#REF!,">=20",#REF!,"<>임대") ->  | AJ17: =SUMIFS(#REF!,#REF!,">"&$E17,#REF!,"<="&$C17,#REF!,'사용승인별 현황'!AI$2,#REF!,">=20",#REF!,"<>임대") ->  | AK17: =COUNTIFS(#REF!,">"&$E17,#REF!,"<="&$C17,#REF!,'사용승인별 현황'!AK$2,#REF!,">=20",#REF!,"<>임대") ->  | AL17: =SUMIFS(#REF!,#REF!,">"&$E17,#REF!,"<="&$C17,#REF!,'사용승인별 현황'!AK$2,#REF!,">=20",#REF!,"<>임대") ->  | AM17: =COUNTIFS(#REF!,">"&$E17,#REF!,"<="&$C17,#REF!,'사용승인별 현황'!AM$2,#REF!,">=20",#REF!,"<>임대") ->  | AN17: =SUMIFS(#REF!,#REF!,">"&$E17,#REF!,"<="&$C17,#REF!,'사용승인별 현황'!AM$2,#REF!,">=20",#REF!,"<>임대") ->  | AO17: =COUNTIFS(#REF!,">"&$E17,#REF!,"<="&$C17,#REF!,'사용승인별 현황'!AO$2,#REF!,">=20",#REF!,"<>임대") ->  | AP17: =SUMIFS(#REF!,#REF!,">"&$E17,#REF!,"<="&$C17,#REF!,'사용승인별 현황'!AO$2,#REF!,">=20",#REF!,"<>임대") ->  | AQ17: =COUNTIFS(#REF!,">"&$E17,#REF!,"<="&$C17,#REF!,'사용승인별 현황'!AQ$2,#REF!,">=20",#REF!,"<>임대") ->  | AR17: =SUMIFS(#REF!,#REF!,">"&$E17,#REF!,"<="&$C17,#REF!,'사용승인별 현황'!AQ$2,#REF!,">=20",#REF!,"<>임대") ->  | AS17: =COUNTIFS(#REF!,">"&$E17,#REF!,"<="&$C17,#REF!,'사용승인별 현황'!AS$2,#REF!,">=20",#REF!,"<>임대") ->  | AT17: =SUMIFS(#REF!,#REF!,">"&$E17,#REF!,"<="&$C17,#REF!,'사용승인별 현황'!AS$2,#REF!,">=20",#REF!,"<>임대") ->  | AU17: =COUNTIFS(#REF!,">"&$E17,#REF!,"<="&$C17,#REF!,'사용승인별 현황'!AU$2,#REF!,">=20",#REF!,"<>임대") ->  | AV17: =SUMIFS(#REF!,#REF!,">"&$E17,#REF!,"<="&$C17,#REF!,'사용승인별 현황'!AU$2,#REF!,">=20",#REF!,"<>임대") ->  | AW17: =COUNTIFS(#REF!,">"&$E17,#REF!,"<="&$C17,#REF!,'사용승인별 현황'!AW$2,#REF!,">=20",#REF!,"<>임대") ->  | AX17: =SUMIFS(#REF!,#REF!,">"&$E17,#REF!,"<="&$C17,#REF!,'사용승인별 현황'!AW$2,#REF!,">=20",#REF!,"<>임대") ->  | AY17: =COUNTIFS(#REF!,">"&$E17,#REF!,"<="&$C17,#REF!,'사용승인별 현황'!AY$2,#REF!,">=20",#REF!,"<>임대") ->  | AZ17: =SUMIFS(#REF!,#REF!,">"&$E17,#REF!,"<="&$C17,#REF!,'사용승인별 현황'!AY$2,#REF!,">=20",#REF!,"<>임대") ->  | BA17: =COUNTIFS(#REF!,">"&$E17,#REF!,"<="&$C17,#REF!,'사용승인별 현황'!BA$2,#REF!,">=20",#REF!,"<>임대") ->  | BB17: =SUMIFS(#REF!,#REF!,">"&$E17,#REF!,"<="&$C17,#REF!,'사용승인별 현황'!BA$2,#REF!,">=20",#REF!,"<>임대") ->  | BC17: =COUNTIFS(#REF!,">"&$E17,#REF!,"<="&$C17,#REF!,'사용승인별 현황'!BC$2,#REF!,">=20",#REF!,"<>임대") ->  | BD17: =SUMIFS(#REF!,#REF!,">"&$E17,#REF!,"<="&$C17,#REF!,'사용승인별 현황'!BC$2,#REF!,">=20",#REF!,"<>임대") ->  | BE17: =COUNTIFS(#REF!,">"&$E17,#REF!,"<="&$C17,#REF!,'사용승인별 현황'!BE$2,#REF!,">=20",#REF!,"<>임대") ->  | BF17: =SUMIFS(#REF!,#REF!,">"&$E17,#REF!,"<="&$C17,#REF!,'사용승인별 현황'!BE$2,#REF!,">=20",#REF!,"<>임대") -> 
B18: 65 | C18: 19360 | D18: 70 | E18: 1948-01-01 | F18: =COUNTIFS(#REF!,">"&$E18,#REF!,"<="&$C18,#REF!,">=20",#REF!,"<>임대") ->  | G18: =SUMIFS(#REF!,#REF!,">"&$E18,#REF!,"<="&$C18,#REF!,">=20",#REF!,"<>임대") ->  | I18: =COUNTIFS(#REF!,">"&$E18,#REF!,"<="&$C18,#REF!,'사용승인별 현황'!I$2,#REF!,">=20",#REF!,"<>임대") ->  | J18: =SUMIFS(#REF!,#REF!,">"&$E18,#REF!,"<="&$C18,#REF!,'사용승인별 현황'!I$2,#REF!,">=20",#REF!,"<>임대") ->  | K18: =COUNTIFS(#REF!,">"&$E18,#REF!,"<="&$C18,#REF!,'사용승인별 현황'!K$2,#REF!,">=20",#REF!,"<>임대") ->  | L18: =SUMIFS(#REF!,#REF!,">"&$E18,#REF!,"<="&$C18,#REF!,'사용승인별 현황'!K$2,#REF!,">=20",#REF!,"<>임대") ->  | M18: =COUNTIFS(#REF!,">"&$E18,#REF!,"<="&$C18,#REF!,'사용승인별 현황'!M$2,#REF!,">=20",#REF!,"<>임대") ->  | N18: =SUMIFS(#REF!,#REF!,">"&$E18,#REF!,"<="&$C18,#REF!,'사용승인별 현황'!M$2,#REF!,">=20",#REF!,"<>임대") ->  | O18: =COUNTIFS(#REF!,">"&$E18,#REF!,"<="&$C18,#REF!,'사용승인별 현황'!O$2,#REF!,">=20",#REF!,"<>임대") ->  | P18: =SUMIFS(#REF!,#REF!,">"&$E18,#REF!,"<="&$C18,#REF!,'사용승인별 현황'!O$2,#REF!,">=20",#REF!,"<>임대") ->  | Q18: =COUNTIFS(#REF!,">"&$E18,#REF!,"<="&$C18,#REF!,'사용승인별 현황'!Q$2,#REF!,">=20",#REF!,"<>임대") ->  | R18: =SUMIFS(#REF!,#REF!,">"&$E18,#REF!,"<="&$C18,#REF!,'사용승인별 현황'!Q$2,#REF!,">=20",#REF!,"<>임대") ->  | S18: =COUNTIFS(#REF!,">"&$E18,#REF!,"<="&$C18,#REF!,'사용승인별 현황'!S$2,#REF!,">=20",#REF!,"<>임대") ->  | T18: =SUMIFS(#REF!,#REF!,">"&$E18,#REF!,"<="&$C18,#REF!,'사용승인별 현황'!S$2,#REF!,">=20",#REF!,"<>임대") ->  | U18: =COUNTIFS(#REF!,">"&$E18,#REF!,"<="&$C18,#REF!,'사용승인별 현황'!U$2,#REF!,">=20",#REF!,"<>임대") ->  | V18: =SUMIFS(#REF!,#REF!,">"&$E18,#REF!,"<="&$C18,#REF!,'사용승인별 현황'!U$2,#REF!,">=20",#REF!,"<>임대") ->  | W18: =COUNTIFS(#REF!,">"&$E18,#REF!,"<="&$C18,#REF!,'사용승인별 현황'!W$2,#REF!,">=20",#REF!,"<>임대") ->  | X18: =SUMIFS(#REF!,#REF!,">"&$E18,#REF!,"<="&$C18,#REF!,'사용승인별 현황'!W$2,#REF!,">=20",#REF!,"<>임대") ->  | Y18: =COUNTIFS(#REF!,">"&$E18,#REF!,"<="&$C18,#REF!,'사용승인별 현황'!Y$2,#REF!,">=20",#REF!,"<>임대") ->  | Z18: =SUMIFS(#REF!,#REF!,">"&$E18,#REF!,"<="&$C18,#REF!,'사용승인별 현황'!Y$2,#REF!,">=20",#REF!,"<>임대") ->  | AA18: =COUNTIFS(#REF!,">"&$E18,#REF!,"<="&$C18,#REF!,'사용승인별 현황'!AA$2,#REF!,">=20",#REF!,"<>임대") ->  | AB18: =SUMIFS(#REF!,#REF!,">"&$E18,#REF!,"<="&$C18,#REF!,'사용승인별 현황'!AA$2,#REF!,">=20",#REF!,"<>임대") ->  | AC18: =COUNTIFS(#REF!,">"&$E18,#REF!,"<="&$C18,#REF!,'사용승인별 현황'!AC$2,#REF!,">=20",#REF!,"<>임대") ->  | AD18: =SUMIFS(#REF!,#REF!,">"&$E18,#REF!,"<="&$C18,#REF!,'사용승인별 현황'!AC$2,#REF!,">=20",#REF!,"<>임대") ->  | AE18: =COUNTIFS(#REF!,">"&$E18,#REF!,"<="&$C18,#REF!,'사용승인별 현황'!AE$2,#REF!,">=20",#REF!,"<>임대") ->  | AF18: =SUMIFS(#REF!,#REF!,">"&$E18,#REF!,"<="&$C18,#REF!,'사용승인별 현황'!AE$2,#REF!,">=20",#REF!,"<>임대") ->  | AG18: =COUNTIFS(#REF!,">"&$E18,#REF!,"<="&$C18,#REF!,'사용승인별 현황'!AG$2,#REF!,">=20",#REF!,"<>임대") ->  | AH18: =SUMIFS(#REF!,#REF!,">"&$E18,#REF!,"<="&$C18,#REF!,'사용승인별 현황'!AG$2,#REF!,">=20",#REF!,"<>임대") ->  | AI18: =COUNTIFS(#REF!,">"&$E18,#REF!,"<="&$C18,#REF!,'사용승인별 현황'!AI$2,#REF!,">=20",#REF!,"<>임대") ->  | AJ18: =SUMIFS(#REF!,#REF!,">"&$E18,#REF!,"<="&$C18,#REF!,'사용승인별 현황'!AI$2,#REF!,">=20",#REF!,"<>임대") ->  | AK18: =COUNTIFS(#REF!,">"&$E18,#REF!,"<="&$C18,#REF!,'사용승인별 현황'!AK$2,#REF!,">=20",#REF!,"<>임대") ->  | AL18: =SUMIFS(#REF!,#REF!,">"&$E18,#REF!,"<="&$C18,#REF!,'사용승인별 현황'!AK$2,#REF!,">=20",#REF!,"<>임대") ->  | AM18: =COUNTIFS(#REF!,">"&$E18,#REF!,"<="&$C18,#REF!,'사용승인별 현황'!AM$2,#REF!,">=20",#REF!,"<>임대") ->  | AN18: =SUMIFS(#REF!,#REF!,">"&$E18,#REF!,"<="&$C18,#REF!,'사용승인별 현황'!AM$2,#REF!,">=20",#REF!,"<>임대") ->  | AO18: =COUNTIFS(#REF!,">"&$E18,#REF!,"<="&$C18,#REF!,'사용승인별 현황'!AO$2,#REF!,">=20",#REF!,"<>임대") ->  | AP18: =SUMIFS(#REF!,#REF!,">"&$E18,#REF!,"<="&$C18,#REF!,'사용승인별 현황'!AO$2,#REF!,">=20",#REF!,"<>임대") ->  | AQ18: =COUNTIFS(#REF!,">"&$E18,#REF!,"<="&$C18,#REF!,'사용승인별 현황'!AQ$2,#REF!,">=20",#REF!,"<>임대") ->  | AR18: =SUMIFS(#REF!,#REF!,">"&$E18,#REF!,"<="&$C18,#REF!,'사용승인별 현황'!AQ$2,#REF!,">=20",#REF!,"<>임대") ->  | AS18: =COUNTIFS(#REF!,">"&$E18,#REF!,"<="&$C18,#REF!,'사용승인별 현황'!AS$2,#REF!,">=20",#REF!,"<>임대") ->  | AT18: =SUMIFS(#REF!,#REF!,">"&$E18,#REF!,"<="&$C18,#REF!,'사용승인별 현황'!AS$2,#REF!,">=20",#REF!,"<>임대") ->  | AU18: =COUNTIFS(#REF!,">"&$E18,#REF!,"<="&$C18,#REF!,'사용승인별 현황'!AU$2,#REF!,">=20",#REF!,"<>임대") ->  | AV18: =SUMIFS(#REF!,#REF!,">"&$E18,#REF!,"<="&$C18,#REF!,'사용승인별 현황'!AU$2,#REF!,">=20",#REF!,"<>임대") ->  | AW18: =COUNTIFS(#REF!,">"&$E18,#REF!,"<="&$C18,#REF!,'사용승인별 현황'!AW$2,#REF!,">=20",#REF!,"<>임대") ->  | AX18: =SUMIFS(#REF!,#REF!,">"&$E18,#REF!,"<="&$C18,#REF!,'사용승인별 현황'!AW$2,#REF!,">=20",#REF!,"<>임대") ->  | AY18: =COUNTIFS(#REF!,">"&$E18,#REF!,"<="&$C18,#REF!,'사용승인별 현황'!AY$2,#REF!,">=20",#REF!,"<>임대") ->  | AZ18: =SUMIFS(#REF!,#REF!,">"&$E18,#REF!,"<="&$C18,#REF!,'사용승인별 현황'!AY$2,#REF!,">=20",#REF!,"<>임대") ->  | BA18: =COUNTIFS(#REF!,">"&$E18,#REF!,"<="&$C18,#REF!,'사용승인별 현황'!BA$2,#REF!,">=20",#REF!,"<>임대") ->  | BB18: =SUMIFS(#REF!,#REF!,">"&$E18,#REF!,"<="&$C18,#REF!,'사용승인별 현황'!BA$2,#REF!,">=20",#REF!,"<>임대") ->  | BC18: =COUNTIFS(#REF!,">"&$E18,#REF!,"<="&$C18,#REF!,'사용승인별 현황'!BC$2,#REF!,">=20",#REF!,"<>임대") ->  | BD18: =SUMIFS(#REF!,#REF!,">"&$E18,#REF!,"<="&$C18,#REF!,'사용승인별 현황'!BC$2,#REF!,">=20",#REF!,"<>임대") ->  | BE18: =COUNTIFS(#REF!,">"&$E18,#REF!,"<="&$C18,#REF!,'사용승인별 현황'!BE$2,#REF!,">=20",#REF!,"<>임대") ->  | BF18: =SUMIFS(#REF!,#REF!,">"&$E18,#REF!,"<="&$C18,#REF!,'사용승인별 현황'!BE$2,#REF!,">=20",#REF!,"<>임대") -> 
B19: 70 | C19: 17533 | D19: 75 | E19: 1943-01-01 | F19: =COUNTIFS(#REF!,">"&$E19,#REF!,"<="&$C19,#REF!,">=20",#REF!,"<>임대") ->  | G19: =SUMIFS(#REF!,#REF!,">"&$E19,#REF!,"<="&$C19,#REF!,">=20",#REF!,"<>임대") ->  | I19: =COUNTIFS(#REF!,">"&$E19,#REF!,"<="&$C19,#REF!,'사용승인별 현황'!I$2,#REF!,">=20",#REF!,"<>임대") ->  | J19: =SUMIFS(#REF!,#REF!,">"&$E19,#REF!,"<="&$C19,#REF!,'사용승인별 현황'!I$2,#REF!,">=20",#REF!,"<>임대") ->  | K19: =COUNTIFS(#REF!,">"&$E19,#REF!,"<="&$C19,#REF!,'사용승인별 현황'!K$2,#REF!,">=20",#REF!,"<>임대") ->  | L19: =SUMIFS(#REF!,#REF!,">"&$E19,#REF!,"<="&$C19,#REF!,'사용승인별 현황'!K$2,#REF!,">=20",#REF!,"<>임대") ->  | M19: =COUNTIFS(#REF!,">"&$E19,#REF!,"<="&$C19,#REF!,'사용승인별 현황'!M$2,#REF!,">=20",#REF!,"<>임대") ->  | N19: =SUMIFS(#REF!,#REF!,">"&$E19,#REF!,"<="&$C19,#REF!,'사용승인별 현황'!M$2,#REF!,">=20",#REF!,"<>임대") ->  | O19: =COUNTIFS(#REF!,">"&$E19,#REF!,"<="&$C19,#REF!,'사용승인별 현황'!O$2,#REF!,">=20",#REF!,"<>임대") ->  | P19: =SUMIFS(#REF!,#REF!,">"&$E19,#REF!,"<="&$C19,#REF!,'사용승인별 현황'!O$2,#REF!,">=20",#REF!,"<>임대") ->  | Q19: =COUNTIFS(#REF!,">"&$E19,#REF!,"<="&$C19,#REF!,'사용승인별 현황'!Q$2,#REF!,">=20",#REF!,"<>임대") ->  | R19: =SUMIFS(#REF!,#REF!,">"&$E19,#REF!,"<="&$C19,#REF!,'사용승인별 현황'!Q$2,#REF!,">=20",#REF!,"<>임대") ->  | S19: =COUNTIFS(#REF!,">"&$E19,#REF!,"<="&$C19,#REF!,'사용승인별 현황'!S$2,#REF!,">=20",#REF!,"<>임대") ->  | T19: =SUMIFS(#REF!,#REF!,">"&$E19,#REF!,"<="&$C19,#REF!,'사용승인별 현황'!S$2,#REF!,">=20",#REF!,"<>임대") ->  | U19: =COUNTIFS(#REF!,">"&$E19,#REF!,"<="&$C19,#REF!,'사용승인별 현황'!U$2,#REF!,">=20",#REF!,"<>임대") ->  | V19: =SUMIFS(#REF!,#REF!,">"&$E19,#REF!,"<="&$C19,#REF!,'사용승인별 현황'!U$2,#REF!,">=20",#REF!,"<>임대") ->  | W19: =COUNTIFS(#REF!,">"&$E19,#REF!,"<="&$C19,#REF!,'사용승인별 현황'!W$2,#REF!,">=20",#REF!,"<>임대") ->  | X19: =SUMIFS(#REF!,#REF!,">"&$E19,#REF!,"<="&$C19,#REF!,'사용승인별 현황'!W$2,#REF!,">=20",#REF!,"<>임대") ->  | Y19: =COUNTIFS(#REF!,">"&$E19,#REF!,"<="&$C19,#REF!,'사용승인별 현황'!Y$2,#REF!,">=20",#REF!,"<>임대") ->  | Z19: =SUMIFS(#REF!,#REF!,">"&$E19,#REF!,"<="&$C19,#REF!,'사용승인별 현황'!Y$2,#REF!,">=20",#REF!,"<>임대") ->  | AA19: =COUNTIFS(#REF!,">"&$E19,#REF!,"<="&$C19,#REF!,'사용승인별 현황'!AA$2,#REF!,">=20",#REF!,"<>임대") ->  | AB19: =SUMIFS(#REF!,#REF!,">"&$E19,#REF!,"<="&$C19,#REF!,'사용승인별 현황'!AA$2,#REF!,">=20",#REF!,"<>임대") ->  | AC19: =COUNTIFS(#REF!,">"&$E19,#REF!,"<="&$C19,#REF!,'사용승인별 현황'!AC$2,#REF!,">=20",#REF!,"<>임대") ->  | AD19: =SUMIFS(#REF!,#REF!,">"&$E19,#REF!,"<="&$C19,#REF!,'사용승인별 현황'!AC$2,#REF!,">=20",#REF!,"<>임대") ->  | AE19: =COUNTIFS(#REF!,">"&$E19,#REF!,"<="&$C19,#REF!,'사용승인별 현황'!AE$2,#REF!,">=20",#REF!,"<>임대") ->  | AF19: =SUMIFS(#REF!,#REF!,">"&$E19,#REF!,"<="&$C19,#REF!,'사용승인별 현황'!AE$2,#REF!,">=20",#REF!,"<>임대") ->  | AG19: =COUNTIFS(#REF!,">"&$E19,#REF!,"<="&$C19,#REF!,'사용승인별 현황'!AG$2,#REF!,">=20",#REF!,"<>임대") ->  | AH19: =SUMIFS(#REF!,#REF!,">"&$E19,#REF!,"<="&$C19,#REF!,'사용승인별 현황'!AG$2,#REF!,">=20",#REF!,"<>임대") ->  | AI19: =COUNTIFS(#REF!,">"&$E19,#REF!,"<="&$C19,#REF!,'사용승인별 현황'!AI$2,#REF!,">=20",#REF!,"<>임대") ->  | AJ19: =SUMIFS(#REF!,#REF!,">"&$E19,#REF!,"<="&$C19,#REF!,'사용승인별 현황'!AI$2,#REF!,">=20",#REF!,"<>임대") ->  | AK19: =COUNTIFS(#REF!,">"&$E19,#REF!,"<="&$C19,#REF!,'사용승인별 현황'!AK$2,#REF!,">=20",#REF!,"<>임대") ->  | AL19: =SUMIFS(#REF!,#REF!,">"&$E19,#REF!,"<="&$C19,#REF!,'사용승인별 현황'!AK$2,#REF!,">=20",#REF!,"<>임대") ->  | AM19: =COUNTIFS(#REF!,">"&$E19,#REF!,"<="&$C19,#REF!,'사용승인별 현황'!AM$2,#REF!,">=20",#REF!,"<>임대") ->  | AN19: =SUMIFS(#REF!,#REF!,">"&$E19,#REF!,"<="&$C19,#REF!,'사용승인별 현황'!AM$2,#REF!,">=20",#REF!,"<>임대") ->  | AO19: =COUNTIFS(#REF!,">"&$E19,#REF!,"<="&$C19,#REF!,'사용승인별 현황'!AO$2,#REF!,">=20",#REF!,"<>임대") ->  | AP19: =SUMIFS(#REF!,#REF!,">"&$E19,#REF!,"<="&$C19,#REF!,'사용승인별 현황'!AO$2,#REF!,">=20",#REF!,"<>임대") ->  | AQ19: =COUNTIFS(#REF!,">"&$E19,#REF!,"<="&$C19,#REF!,'사용승인별 현황'!AQ$2,#REF!,">=20",#REF!,"<>임대") ->  | AR19: =SUMIFS(#REF!,#REF!,">"&$E19,#REF!,"<="&$C19,#REF!,'사용승인별 현황'!AQ$2,#REF!,">=20",#REF!,"<>임대") ->  | AS19: =COUNTIFS(#REF!,">"&$E19,#REF!,"<="&$C19,#REF!,'사용승인별 현황'!AS$2,#REF!,">=20",#REF!,"<>임대") ->  | AT19: =SUMIFS(#REF!,#REF!,">"&$E19,#REF!,"<="&$C19,#REF!,'사용승인별 현황'!AS$2,#REF!,">=20",#REF!,"<>임대") ->  | AU19: =COUNTIFS(#REF!,">"&$E19,#REF!,"<="&$C19,#REF!,'사용승인별 현황'!AU$2,#REF!,">=20",#REF!,"<>임대") ->  | AV19: =SUMIFS(#REF!,#REF!,">"&$E19,#REF!,"<="&$C19,#REF!,'사용승인별 현황'!AU$2,#REF!,">=20",#REF!,"<>임대") ->  | AW19: =COUNTIFS(#REF!,">"&$E19,#REF!,"<="&$C19,#REF!,'사용승인별 현황'!AW$2,#REF!,">=20",#REF!,"<>임대") ->  | AX19: =SUMIFS(#REF!,#REF!,">"&$E19,#REF!,"<="&$C19,#REF!,'사용승인별 현황'!AW$2,#REF!,">=20",#REF!,"<>임대") ->  | AY19: =COUNTIFS(#REF!,">"&$E19,#REF!,"<="&$C19,#REF!,'사용승인별 현황'!AY$2,#REF!,">=20",#REF!,"<>임대") ->  | AZ19: =SUMIFS(#REF!,#REF!,">"&$E19,#REF!,"<="&$C19,#REF!,'사용승인별 현황'!AY$2,#REF!,">=20",#REF!,"<>임대") ->  | BA19: =COUNTIFS(#REF!,">"&$E19,#REF!,"<="&$C19,#REF!,'사용승인별 현황'!BA$2,#REF!,">=20",#REF!,"<>임대") ->  | BB19: =SUMIFS(#REF!,#REF!,">"&$E19,#REF!,"<="&$C19,#REF!,'사용승인별 현황'!BA$2,#REF!,">=20",#REF!,"<>임대") ->  | BC19: =COUNTIFS(#REF!,">"&$E19,#REF!,"<="&$C19,#REF!,'사용승인별 현황'!BC$2,#REF!,">=20",#REF!,"<>임대") ->  | BD19: =SUMIFS(#REF!,#REF!,">"&$E19,#REF!,"<="&$C19,#REF!,'사용승인별 현황'!BC$2,#REF!,">=20",#REF!,"<>임대") ->  | BE19: =COUNTIFS(#REF!,">"&$E19,#REF!,"<="&$C19,#REF!,'사용승인별 현황'!BE$2,#REF!,">=20",#REF!,"<>임대") ->  | BF19: =SUMIFS(#REF!,#REF!,">"&$E19,#REF!,"<="&$C19,#REF!,'사용승인별 현황'!BE$2,#REF!,">=20",#REF!,"<>임대") -> 
B20: 75 | C20: 15707 | D20: 80 | E20: 1938-01-01 | F20: =COUNTIFS(#REF!,">"&$E20,#REF!,"<="&$C20,#REF!,">=20",#REF!,"<>임대") ->  | G20: =SUMIFS(#REF!,#REF!,">"&$E20,#REF!,"<="&$C20,#REF!,">=20",#REF!,"<>임대") ->  | I20: =COUNTIFS(#REF!,">"&$E20,#REF!,"<="&$C20,#REF!,'사용승인별 현황'!I$2,#REF!,">=20",#REF!,"<>임대") ->  | J20: =SUMIFS(#REF!,#REF!,">"&$E20,#REF!,"<="&$C20,#REF!,'사용승인별 현황'!I$2,#REF!,">=20",#REF!,"<>임대") ->  | K20: =COUNTIFS(#REF!,">"&$E20,#REF!,"<="&$C20,#REF!,'사용승인별 현황'!K$2,#REF!,">=20",#REF!,"<>임대") ->  | L20: =SUMIFS(#REF!,#REF!,">"&$E20,#REF!,"<="&$C20,#REF!,'사용승인별 현황'!K$2,#REF!,">=20",#REF!,"<>임대") ->  | M20: =COUNTIFS(#REF!,">"&$E20,#REF!,"<="&$C20,#REF!,'사용승인별 현황'!M$2,#REF!,">=20",#REF!,"<>임대") ->  | N20: =SUMIFS(#REF!,#REF!,">"&$E20,#REF!,"<="&$C20,#REF!,'사용승인별 현황'!M$2,#REF!,">=20",#REF!,"<>임대") ->  | O20: =COUNTIFS(#REF!,">"&$E20,#REF!,"<="&$C20,#REF!,'사용승인별 현황'!O$2,#REF!,">=20",#REF!,"<>임대") ->  | P20: =SUMIFS(#REF!,#REF!,">"&$E20,#REF!,"<="&$C20,#REF!,'사용승인별 현황'!O$2,#REF!,">=20",#REF!,"<>임대") ->  | Q20: =COUNTIFS(#REF!,">"&$E20,#REF!,"<="&$C20,#REF!,'사용승인별 현황'!Q$2,#REF!,">=20",#REF!,"<>임대") ->  | R20: =SUMIFS(#REF!,#REF!,">"&$E20,#REF!,"<="&$C20,#REF!,'사용승인별 현황'!Q$2,#REF!,">=20",#REF!,"<>임대") ->  | S20: =COUNTIFS(#REF!,">"&$E20,#REF!,"<="&$C20,#REF!,'사용승인별 현황'!S$2,#REF!,">=20",#REF!,"<>임대") ->  | T20: =SUMIFS(#REF!,#REF!,">"&$E20,#REF!,"<="&$C20,#REF!,'사용승인별 현황'!S$2,#REF!,">=20",#REF!,"<>임대") ->  | U20: =COUNTIFS(#REF!,">"&$E20,#REF!,"<="&$C20,#REF!,'사용승인별 현황'!U$2,#REF!,">=20",#REF!,"<>임대") ->  | V20: =SUMIFS(#REF!,#REF!,">"&$E20,#REF!,"<="&$C20,#REF!,'사용승인별 현황'!U$2,#REF!,">=20",#REF!,"<>임대") ->  | W20: =COUNTIFS(#REF!,">"&$E20,#REF!,"<="&$C20,#REF!,'사용승인별 현황'!W$2,#REF!,">=20",#REF!,"<>임대") ->  | X20: =SUMIFS(#REF!,#REF!,">"&$E20,#REF!,"<="&$C20,#REF!,'사용승인별 현황'!W$2,#REF!,">=20",#REF!,"<>임대") ->  | Y20: =COUNTIFS(#REF!,">"&$E20,#REF!,"<="&$C20,#REF!,'사용승인별 현황'!Y$2,#REF!,">=20",#REF!,"<>임대") ->  | Z20: =SUMIFS(#REF!,#REF!,">"&$E20,#REF!,"<="&$C20,#REF!,'사용승인별 현황'!Y$2,#REF!,">=20",#REF!,"<>임대") ->  | AA20: =COUNTIFS(#REF!,">"&$E20,#REF!,"<="&$C20,#REF!,'사용승인별 현황'!AA$2,#REF!,">=20",#REF!,"<>임대") ->  | AB20: =SUMIFS(#REF!,#REF!,">"&$E20,#REF!,"<="&$C20,#REF!,'사용승인별 현황'!AA$2,#REF!,">=20",#REF!,"<>임대") ->  | AC20: =COUNTIFS(#REF!,">"&$E20,#REF!,"<="&$C20,#REF!,'사용승인별 현황'!AC$2,#REF!,">=20",#REF!,"<>임대") ->  | AD20: =SUMIFS(#REF!,#REF!,">"&$E20,#REF!,"<="&$C20,#REF!,'사용승인별 현황'!AC$2,#REF!,">=20",#REF!,"<>임대") ->  | AE20: =COUNTIFS(#REF!,">"&$E20,#REF!,"<="&$C20,#REF!,'사용승인별 현황'!AE$2,#REF!,">=20",#REF!,"<>임대") ->  | AF20: =SUMIFS(#REF!,#REF!,">"&$E20,#REF!,"<="&$C20,#REF!,'사용승인별 현황'!AE$2,#REF!,">=20",#REF!,"<>임대") ->  | AG20: =COUNTIFS(#REF!,">"&$E20,#REF!,"<="&$C20,#REF!,'사용승인별 현황'!AG$2,#REF!,">=20",#REF!,"<>임대") ->  | AH20: =SUMIFS(#REF!,#REF!,">"&$E20,#REF!,"<="&$C20,#REF!,'사용승인별 현황'!AG$2,#REF!,">=20",#REF!,"<>임대") ->  | AI20: =COUNTIFS(#REF!,">"&$E20,#REF!,"<="&$C20,#REF!,'사용승인별 현황'!AI$2,#REF!,">=20",#REF!,"<>임대") ->  | AJ20: =SUMIFS(#REF!,#REF!,">"&$E20,#REF!,"<="&$C20,#REF!,'사용승인별 현황'!AI$2,#REF!,">=20",#REF!,"<>임대") ->  | AK20: =COUNTIFS(#REF!,">"&$E20,#REF!,"<="&$C20,#REF!,'사용승인별 현황'!AK$2,#REF!,">=20",#REF!,"<>임대") ->  | AL20: =SUMIFS(#REF!,#REF!,">"&$E20,#REF!,"<="&$C20,#REF!,'사용승인별 현황'!AK$2,#REF!,">=20",#REF!,"<>임대") ->  | AM20: =COUNTIFS(#REF!,">"&$E20,#REF!,"<="&$C20,#REF!,'사용승인별 현황'!AM$2,#REF!,">=20",#REF!,"<>임대") ->  | AN20: =SUMIFS(#REF!,#REF!,">"&$E20,#REF!,"<="&$C20,#REF!,'사용승인별 현황'!AM$2,#REF!,">=20",#REF!,"<>임대") ->  | AO20: =COUNTIFS(#REF!,">"&$E20,#REF!,"<="&$C20,#REF!,'사용승인별 현황'!AO$2,#REF!,">=20",#REF!,"<>임대") ->  | AP20: =SUMIFS(#REF!,#REF!,">"&$E20,#REF!,"<="&$C20,#REF!,'사용승인별 현황'!AO$2,#REF!,">=20",#REF!,"<>임대") ->  | AQ20: =COUNTIFS(#REF!,">"&$E20,#REF!,"<="&$C20,#REF!,'사용승인별 현황'!AQ$2,#REF!,">=20",#REF!,"<>임대") ->  | AR20: =SUMIFS(#REF!,#REF!,">"&$E20,#REF!,"<="&$C20,#REF!,'사용승인별 현황'!AQ$2,#REF!,">=20",#REF!,"<>임대") ->  | AS20: =COUNTIFS(#REF!,">"&$E20,#REF!,"<="&$C20,#REF!,'사용승인별 현황'!AS$2,#REF!,">=20",#REF!,"<>임대") ->  | AT20: =SUMIFS(#REF!,#REF!,">"&$E20,#REF!,"<="&$C20,#REF!,'사용승인별 현황'!AS$2,#REF!,">=20",#REF!,"<>임대") ->  | AU20: =COUNTIFS(#REF!,">"&$E20,#REF!,"<="&$C20,#REF!,'사용승인별 현황'!AU$2,#REF!,">=20",#REF!,"<>임대") ->  | AV20: =SUMIFS(#REF!,#REF!,">"&$E20,#REF!,"<="&$C20,#REF!,'사용승인별 현황'!AU$2,#REF!,">=20",#REF!,"<>임대") ->  | AW20: =COUNTIFS(#REF!,">"&$E20,#REF!,"<="&$C20,#REF!,'사용승인별 현황'!AW$2,#REF!,">=20",#REF!,"<>임대") ->  | AX20: =SUMIFS(#REF!,#REF!,">"&$E20,#REF!,"<="&$C20,#REF!,'사용승인별 현황'!AW$2,#REF!,">=20",#REF!,"<>임대") ->  | AY20: =COUNTIFS(#REF!,">"&$E20,#REF!,"<="&$C20,#REF!,'사용승인별 현황'!AY$2,#REF!,">=20",#REF!,"<>임대") ->  | AZ20: =SUMIFS(#REF!,#REF!,">"&$E20,#REF!,"<="&$C20,#REF!,'사용승인별 현황'!AY$2,#REF!,">=20",#REF!,"<>임대") ->  | BA20: =COUNTIFS(#REF!,">"&$E20,#REF!,"<="&$C20,#REF!,'사용승인별 현황'!BA$2,#REF!,">=20",#REF!,"<>임대") ->  | BB20: =SUMIFS(#REF!,#REF!,">"&$E20,#REF!,"<="&$C20,#REF!,'사용승인별 현황'!BA$2,#REF!,">=20",#REF!,"<>임대") ->  | BC20: =COUNTIFS(#REF!,">"&$E20,#REF!,"<="&$C20,#REF!,'사용승인별 현황'!BC$2,#REF!,">=20",#REF!,"<>임대") ->  | BD20: =SUMIFS(#REF!,#REF!,">"&$E20,#REF!,"<="&$C20,#REF!,'사용승인별 현황'!BC$2,#REF!,">=20",#REF!,"<>임대") ->  | BE20: =COUNTIFS(#REF!,">"&$E20,#REF!,"<="&$C20,#REF!,'사용승인별 현황'!BE$2,#REF!,">=20",#REF!,"<>임대") ->  | BF20: =SUMIFS(#REF!,#REF!,">"&$E20,#REF!,"<="&$C20,#REF!,'사용승인별 현황'!BE$2,#REF!,">=20",#REF!,"<>임대") -> 
B21: 80 | C21: 13881 | D21: 85 | E21: 1933-01-01 | F21: =COUNTIFS(#REF!,">"&$E21,#REF!,"<="&$C21,#REF!,">=20",#REF!,"<>임대") ->  | G21: =SUMIFS(#REF!,#REF!,">"&$E21,#REF!,"<="&$C21,#REF!,">=20",#REF!,"<>임대") ->  | I21: =COUNTIFS(#REF!,">"&$E21,#REF!,"<="&$C21,#REF!,'사용승인별 현황'!I$2,#REF!,">=20",#REF!,"<>임대") ->  | J21: =SUMIFS(#REF!,#REF!,">"&$E21,#REF!,"<="&$C21,#REF!,'사용승인별 현황'!I$2,#REF!,">=20",#REF!,"<>임대") ->  | K21: =COUNTIFS(#REF!,">"&$E21,#REF!,"<="&$C21,#REF!,'사용승인별 현황'!K$2,#REF!,">=20",#REF!,"<>임대") ->  | L21: =SUMIFS(#REF!,#REF!,">"&$E21,#REF!,"<="&$C21,#REF!,'사용승인별 현황'!K$2,#REF!,">=20",#REF!,"<>임대") ->  | M21: =COUNTIFS(#REF!,">"&$E21,#REF!,"<="&$C21,#REF!,'사용승인별 현황'!M$2,#REF!,">=20",#REF!,"<>임대") ->  | N21: =SUMIFS(#REF!,#REF!,">"&$E21,#REF!,"<="&$C21,#REF!,'사용승인별 현황'!M$2,#REF!,">=20",#REF!,"<>임대") ->  | O21: =COUNTIFS(#REF!,">"&$E21,#REF!,"<="&$C21,#REF!,'사용승인별 현황'!O$2,#REF!,">=20",#REF!,"<>임대") ->  | P21: =SUMIFS(#REF!,#REF!,">"&$E21,#REF!,"<="&$C21,#REF!,'사용승인별 현황'!O$2,#REF!,">=20",#REF!,"<>임대") ->  | Q21: =COUNTIFS(#REF!,">"&$E21,#REF!,"<="&$C21,#REF!,'사용승인별 현황'!Q$2,#REF!,">=20",#REF!,"<>임대") ->  | R21: =SUMIFS(#REF!,#REF!,">"&$E21,#REF!,"<="&$C21,#REF!,'사용승인별 현황'!Q$2,#REF!,">=20",#REF!,"<>임대") ->  | S21: =COUNTIFS(#REF!,">"&$E21,#REF!,"<="&$C21,#REF!,'사용승인별 현황'!S$2,#REF!,">=20",#REF!,"<>임대") ->  | T21: =SUMIFS(#REF!,#REF!,">"&$E21,#REF!,"<="&$C21,#REF!,'사용승인별 현황'!S$2,#REF!,">=20",#REF!,"<>임대") ->  | U21: =COUNTIFS(#REF!,">"&$E21,#REF!,"<="&$C21,#REF!,'사용승인별 현황'!U$2,#REF!,">=20",#REF!,"<>임대") ->  | V21: =SUMIFS(#REF!,#REF!,">"&$E21,#REF!,"<="&$C21,#REF!,'사용승인별 현황'!U$2,#REF!,">=20",#REF!,"<>임대") ->  | W21: =COUNTIFS(#REF!,">"&$E21,#REF!,"<="&$C21,#REF!,'사용승인별 현황'!W$2,#REF!,">=20",#REF!,"<>임대") ->  | X21: =SUMIFS(#REF!,#REF!,">"&$E21,#REF!,"<="&$C21,#REF!,'사용승인별 현황'!W$2,#REF!,">=20",#REF!,"<>임대") ->  | Y21: =COUNTIFS(#REF!,">"&$E21,#REF!,"<="&$C21,#REF!,'사용승인별 현황'!Y$2,#REF!,">=20",#REF!,"<>임대") ->  | Z21: =SUMIFS(#REF!,#REF!,">"&$E21,#REF!,"<="&$C21,#REF!,'사용승인별 현황'!Y$2,#REF!,">=20",#REF!,"<>임대") ->  | AA21: =COUNTIFS(#REF!,">"&$E21,#REF!,"<="&$C21,#REF!,'사용승인별 현황'!AA$2,#REF!,">=20",#REF!,"<>임대") ->  | AB21: =SUMIFS(#REF!,#REF!,">"&$E21,#REF!,"<="&$C21,#REF!,'사용승인별 현황'!AA$2,#REF!,">=20",#REF!,"<>임대") ->  | AC21: =COUNTIFS(#REF!,">"&$E21,#REF!,"<="&$C21,#REF!,'사용승인별 현황'!AC$2,#REF!,">=20",#REF!,"<>임대") ->  | AD21: =SUMIFS(#REF!,#REF!,">"&$E21,#REF!,"<="&$C21,#REF!,'사용승인별 현황'!AC$2,#REF!,">=20",#REF!,"<>임대") ->  | AE21: =COUNTIFS(#REF!,">"&$E21,#REF!,"<="&$C21,#REF!,'사용승인별 현황'!AE$2,#REF!,">=20",#REF!,"<>임대") ->  | AF21: =SUMIFS(#REF!,#REF!,">"&$E21,#REF!,"<="&$C21,#REF!,'사용승인별 현황'!AE$2,#REF!,">=20",#REF!,"<>임대") ->  | AG21: =COUNTIFS(#REF!,">"&$E21,#REF!,"<="&$C21,#REF!,'사용승인별 현황'!AG$2,#REF!,">=20",#REF!,"<>임대") ->  | AH21: =SUMIFS(#REF!,#REF!,">"&$E21,#REF!,"<="&$C21,#REF!,'사용승인별 현황'!AG$2,#REF!,">=20",#REF!,"<>임대") ->  | AI21: =COUNTIFS(#REF!,">"&$E21,#REF!,"<="&$C21,#REF!,'사용승인별 현황'!AI$2,#REF!,">=20",#REF!,"<>임대") ->  | AJ21: =SUMIFS(#REF!,#REF!,">"&$E21,#REF!,"<="&$C21,#REF!,'사용승인별 현황'!AI$2,#REF!,">=20",#REF!,"<>임대") ->  | AK21: =COUNTIFS(#REF!,">"&$E21,#REF!,"<="&$C21,#REF!,'사용승인별 현황'!AK$2,#REF!,">=20",#REF!,"<>임대") ->  | AL21: =SUMIFS(#REF!,#REF!,">"&$E21,#REF!,"<="&$C21,#REF!,'사용승인별 현황'!AK$2,#REF!,">=20",#REF!,"<>임대") ->  | AM21: =COUNTIFS(#REF!,">"&$E21,#REF!,"<="&$C21,#REF!,'사용승인별 현황'!AM$2,#REF!,">=20",#REF!,"<>임대") ->  | AN21: =SUMIFS(#REF!,#REF!,">"&$E21,#REF!,"<="&$C21,#REF!,'사용승인별 현황'!AM$2,#REF!,">=20",#REF!,"<>임대") ->  | AO21: =COUNTIFS(#REF!,">"&$E21,#REF!,"<="&$C21,#REF!,'사용승인별 현황'!AO$2,#REF!,">=20",#REF!,"<>임대") ->  | AP21: =SUMIFS(#REF!,#REF!,">"&$E21,#REF!,"<="&$C21,#REF!,'사용승인별 현황'!AO$2,#REF!,">=20",#REF!,"<>임대") ->  | AQ21: =COUNTIFS(#REF!,">"&$E21,#REF!,"<="&$C21,#REF!,'사용승인별 현황'!AQ$2,#REF!,">=20",#REF!,"<>임대") ->  | AR21: =SUMIFS(#REF!,#REF!,">"&$E21,#REF!,"<="&$C21,#REF!,'사용승인별 현황'!AQ$2,#REF!,">=20",#REF!,"<>임대") ->  | AS21: =COUNTIFS(#REF!,">"&$E21,#REF!,"<="&$C21,#REF!,'사용승인별 현황'!AS$2,#REF!,">=20",#REF!,"<>임대") ->  | AT21: =SUMIFS(#REF!,#REF!,">"&$E21,#REF!,"<="&$C21,#REF!,'사용승인별 현황'!AS$2,#REF!,">=20",#REF!,"<>임대") ->  | AU21: =COUNTIFS(#REF!,">"&$E21,#REF!,"<="&$C21,#REF!,'사용승인별 현황'!AU$2,#REF!,">=20",#REF!,"<>임대") ->  | AV21: =SUMIFS(#REF!,#REF!,">"&$E21,#REF!,"<="&$C21,#REF!,'사용승인별 현황'!AU$2,#REF!,">=20",#REF!,"<>임대") ->  | AW21: =COUNTIFS(#REF!,">"&$E21,#REF!,"<="&$C21,#REF!,'사용승인별 현황'!AW$2,#REF!,">=20",#REF!,"<>임대") ->  | AX21: =SUMIFS(#REF!,#REF!,">"&$E21,#REF!,"<="&$C21,#REF!,'사용승인별 현황'!AW$2,#REF!,">=20",#REF!,"<>임대") ->  | AY21: =COUNTIFS(#REF!,">"&$E21,#REF!,"<="&$C21,#REF!,'사용승인별 현황'!AY$2,#REF!,">=20",#REF!,"<>임대") ->  | AZ21: =SUMIFS(#REF!,#REF!,">"&$E21,#REF!,"<="&$C21,#REF!,'사용승인별 현황'!AY$2,#REF!,">=20",#REF!,"<>임대") ->  | BA21: =COUNTIFS(#REF!,">"&$E21,#REF!,"<="&$C21,#REF!,'사용승인별 현황'!BA$2,#REF!,">=20",#REF!,"<>임대") ->  | BB21: =SUMIFS(#REF!,#REF!,">"&$E21,#REF!,"<="&$C21,#REF!,'사용승인별 현황'!BA$2,#REF!,">=20",#REF!,"<>임대") ->  | BC21: =COUNTIFS(#REF!,">"&$E21,#REF!,"<="&$C21,#REF!,'사용승인별 현황'!BC$2,#REF!,">=20",#REF!,"<>임대") ->  | BD21: =SUMIFS(#REF!,#REF!,">"&$E21,#REF!,"<="&$C21,#REF!,'사용승인별 현황'!BC$2,#REF!,">=20",#REF!,"<>임대") ->  | BE21: =COUNTIFS(#REF!,">"&$E21,#REF!,"<="&$C21,#REF!,'사용승인별 현황'!BE$2,#REF!,">=20",#REF!,"<>임대") ->  | BF21: =SUMIFS(#REF!,#REF!,">"&$E21,#REF!,"<="&$C21,#REF!,'사용승인별 현황'!BE$2,#REF!,">=20",#REF!,"<>임대") -> 
B22: 85 | C22: 12055 | D22: 90 | E22: 1928-01-01 | F22: =COUNTIFS(#REF!,">"&$E22,#REF!,"<="&$C22,#REF!,">=20",#REF!,"<>임대") ->  | G22: =SUMIFS(#REF!,#REF!,">"&$E22,#REF!,"<="&$C22,#REF!,">=20",#REF!,"<>임대") ->  | I22: =COUNTIFS(#REF!,">"&$E22,#REF!,"<="&$C22,#REF!,'사용승인별 현황'!I$2,#REF!,">=20",#REF!,"<>임대") ->  | J22: =SUMIFS(#REF!,#REF!,">"&$E22,#REF!,"<="&$C22,#REF!,'사용승인별 현황'!I$2,#REF!,">=20",#REF!,"<>임대") ->  | K22: =COUNTIFS(#REF!,">"&$E22,#REF!,"<="&$C22,#REF!,'사용승인별 현황'!K$2,#REF!,">=20",#REF!,"<>임대") ->  | L22: =SUMIFS(#REF!,#REF!,">"&$E22,#REF!,"<="&$C22,#REF!,'사용승인별 현황'!K$2,#REF!,">=20",#REF!,"<>임대") ->  | M22: =COUNTIFS(#REF!,">"&$E22,#REF!,"<="&$C22,#REF!,'사용승인별 현황'!M$2,#REF!,">=20",#REF!,"<>임대") ->  | N22: =SUMIFS(#REF!,#REF!,">"&$E22,#REF!,"<="&$C22,#REF!,'사용승인별 현황'!M$2,#REF!,">=20",#REF!,"<>임대") ->  | O22: =COUNTIFS(#REF!,">"&$E22,#REF!,"<="&$C22,#REF!,'사용승인별 현황'!O$2,#REF!,">=20",#REF!,"<>임대") ->  | P22: =SUMIFS(#REF!,#REF!,">"&$E22,#REF!,"<="&$C22,#REF!,'사용승인별 현황'!O$2,#REF!,">=20",#REF!,"<>임대") ->  | Q22: =COUNTIFS(#REF!,">"&$E22,#REF!,"<="&$C22,#REF!,'사용승인별 현황'!Q$2,#REF!,">=20",#REF!,"<>임대") ->  | R22: =SUMIFS(#REF!,#REF!,">"&$E22,#REF!,"<="&$C22,#REF!,'사용승인별 현황'!Q$2,#REF!,">=20",#REF!,"<>임대") ->  | S22: =COUNTIFS(#REF!,">"&$E22,#REF!,"<="&$C22,#REF!,'사용승인별 현황'!S$2,#REF!,">=20",#REF!,"<>임대") ->  | T22: =SUMIFS(#REF!,#REF!,">"&$E22,#REF!,"<="&$C22,#REF!,'사용승인별 현황'!S$2,#REF!,">=20",#REF!,"<>임대") ->  | U22: =COUNTIFS(#REF!,">"&$E22,#REF!,"<="&$C22,#REF!,'사용승인별 현황'!U$2,#REF!,">=20",#REF!,"<>임대") ->  | V22: =SUMIFS(#REF!,#REF!,">"&$E22,#REF!,"<="&$C22,#REF!,'사용승인별 현황'!U$2,#REF!,">=20",#REF!,"<>임대") ->  | W22: =COUNTIFS(#REF!,">"&$E22,#REF!,"<="&$C22,#REF!,'사용승인별 현황'!W$2,#REF!,">=20",#REF!,"<>임대") ->  | X22: =SUMIFS(#REF!,#REF!,">"&$E22,#REF!,"<="&$C22,#REF!,'사용승인별 현황'!W$2,#REF!,">=20",#REF!,"<>임대") ->  | Y22: =COUNTIFS(#REF!,">"&$E22,#REF!,"<="&$C22,#REF!,'사용승인별 현황'!Y$2,#REF!,">=20",#REF!,"<>임대") ->  | Z22: =SUMIFS(#REF!,#REF!,">"&$E22,#REF!,"<="&$C22,#REF!,'사용승인별 현황'!Y$2,#REF!,">=20",#REF!,"<>임대") ->  | AA22: =COUNTIFS(#REF!,">"&$E22,#REF!,"<="&$C22,#REF!,'사용승인별 현황'!AA$2,#REF!,">=20",#REF!,"<>임대") ->  | AB22: =SUMIFS(#REF!,#REF!,">"&$E22,#REF!,"<="&$C22,#REF!,'사용승인별 현황'!AA$2,#REF!,">=20",#REF!,"<>임대") ->  | AC22: =COUNTIFS(#REF!,">"&$E22,#REF!,"<="&$C22,#REF!,'사용승인별 현황'!AC$2,#REF!,">=20",#REF!,"<>임대") ->  | AD22: =SUMIFS(#REF!,#REF!,">"&$E22,#REF!,"<="&$C22,#REF!,'사용승인별 현황'!AC$2,#REF!,">=20",#REF!,"<>임대") ->  | AE22: =COUNTIFS(#REF!,">"&$E22,#REF!,"<="&$C22,#REF!,'사용승인별 현황'!AE$2,#REF!,">=20",#REF!,"<>임대") ->  | AF22: =SUMIFS(#REF!,#REF!,">"&$E22,#REF!,"<="&$C22,#REF!,'사용승인별 현황'!AE$2,#REF!,">=20",#REF!,"<>임대") ->  | AG22: =COUNTIFS(#REF!,">"&$E22,#REF!,"<="&$C22,#REF!,'사용승인별 현황'!AG$2,#REF!,">=20",#REF!,"<>임대") ->  | AH22: =SUMIFS(#REF!,#REF!,">"&$E22,#REF!,"<="&$C22,#REF!,'사용승인별 현황'!AG$2,#REF!,">=20",#REF!,"<>임대") ->  | AI22: =COUNTIFS(#REF!,">"&$E22,#REF!,"<="&$C22,#REF!,'사용승인별 현황'!AI$2,#REF!,">=20",#REF!,"<>임대") ->  | AJ22: =SUMIFS(#REF!,#REF!,">"&$E22,#REF!,"<="&$C22,#REF!,'사용승인별 현황'!AI$2,#REF!,">=20",#REF!,"<>임대") ->  | AK22: =COUNTIFS(#REF!,">"&$E22,#REF!,"<="&$C22,#REF!,'사용승인별 현황'!AK$2,#REF!,">=20",#REF!,"<>임대") ->  | AL22: =SUMIFS(#REF!,#REF!,">"&$E22,#REF!,"<="&$C22,#REF!,'사용승인별 현황'!AK$2,#REF!,">=20",#REF!,"<>임대") ->  | AM22: =COUNTIFS(#REF!,">"&$E22,#REF!,"<="&$C22,#REF!,'사용승인별 현황'!AM$2,#REF!,">=20",#REF!,"<>임대") ->  | AN22: =SUMIFS(#REF!,#REF!,">"&$E22,#REF!,"<="&$C22,#REF!,'사용승인별 현황'!AM$2,#REF!,">=20",#REF!,"<>임대") ->  | AO22: =COUNTIFS(#REF!,">"&$E22,#REF!,"<="&$C22,#REF!,'사용승인별 현황'!AO$2,#REF!,">=20",#REF!,"<>임대") ->  | AP22: =SUMIFS(#REF!,#REF!,">"&$E22,#REF!,"<="&$C22,#REF!,'사용승인별 현황'!AO$2,#REF!,">=20",#REF!,"<>임대") ->  | AQ22: =COUNTIFS(#REF!,">"&$E22,#REF!,"<="&$C22,#REF!,'사용승인별 현황'!AQ$2,#REF!,">=20",#REF!,"<>임대") ->  | AR22: =SUMIFS(#REF!,#REF!,">"&$E22,#REF!,"<="&$C22,#REF!,'사용승인별 현황'!AQ$2,#REF!,">=20",#REF!,"<>임대") ->  | AS22: =COUNTIFS(#REF!,">"&$E22,#REF!,"<="&$C22,#REF!,'사용승인별 현황'!AS$2,#REF!,">=20",#REF!,"<>임대") ->  | AT22: =SUMIFS(#REF!,#REF!,">"&$E22,#REF!,"<="&$C22,#REF!,'사용승인별 현황'!AS$2,#REF!,">=20",#REF!,"<>임대") ->  | AU22: =COUNTIFS(#REF!,">"&$E22,#REF!,"<="&$C22,#REF!,'사용승인별 현황'!AU$2,#REF!,">=20",#REF!,"<>임대") ->  | AV22: =SUMIFS(#REF!,#REF!,">"&$E22,#REF!,"<="&$C22,#REF!,'사용승인별 현황'!AU$2,#REF!,">=20",#REF!,"<>임대") ->  | AW22: =COUNTIFS(#REF!,">"&$E22,#REF!,"<="&$C22,#REF!,'사용승인별 현황'!AW$2,#REF!,">=20",#REF!,"<>임대") ->  | AX22: =SUMIFS(#REF!,#REF!,">"&$E22,#REF!,"<="&$C22,#REF!,'사용승인별 현황'!AW$2,#REF!,">=20",#REF!,"<>임대") ->  | AY22: =COUNTIFS(#REF!,">"&$E22,#REF!,"<="&$C22,#REF!,'사용승인별 현황'!AY$2,#REF!,">=20",#REF!,"<>임대") ->  | AZ22: =SUMIFS(#REF!,#REF!,">"&$E22,#REF!,"<="&$C22,#REF!,'사용승인별 현황'!AY$2,#REF!,">=20",#REF!,"<>임대") ->  | BA22: =COUNTIFS(#REF!,">"&$E22,#REF!,"<="&$C22,#REF!,'사용승인별 현황'!BA$2,#REF!,">=20",#REF!,"<>임대") ->  | BB22: =SUMIFS(#REF!,#REF!,">"&$E22,#REF!,"<="&$C22,#REF!,'사용승인별 현황'!BA$2,#REF!,">=20",#REF!,"<>임대") ->  | BC22: =COUNTIFS(#REF!,">"&$E22,#REF!,"<="&$C22,#REF!,'사용승인별 현황'!BC$2,#REF!,">=20",#REF!,"<>임대") ->  | BD22: =SUMIFS(#REF!,#REF!,">"&$E22,#REF!,"<="&$C22,#REF!,'사용승인별 현황'!BC$2,#REF!,">=20",#REF!,"<>임대") ->  | BE22: =COUNTIFS(#REF!,">"&$E22,#REF!,"<="&$C22,#REF!,'사용승인별 현황'!BE$2,#REF!,">=20",#REF!,"<>임대") ->  | BF22: =SUMIFS(#REF!,#REF!,">"&$E22,#REF!,"<="&$C22,#REF!,'사용승인별 현황'!BE$2,#REF!,">=20",#REF!,"<>임대") -> 
B23: 90 | C23: 10228 | D23: 95 | E23: 1923-01-01 | F23: =COUNTIFS(#REF!,">"&$E23,#REF!,"<="&$C23,#REF!,">=20",#REF!,"<>임대") ->  | G23: =SUMIFS(#REF!,#REF!,">"&$E23,#REF!,"<="&$C23,#REF!,">=20",#REF!,"<>임대") ->  | I23: =COUNTIFS(#REF!,">"&$E23,#REF!,"<="&$C23,#REF!,'사용승인별 현황'!I$2,#REF!,">=20",#REF!,"<>임대") ->  | J23: =SUMIFS(#REF!,#REF!,">"&$E23,#REF!,"<="&$C23,#REF!,'사용승인별 현황'!I$2,#REF!,">=20",#REF!,"<>임대") ->  | K23: =COUNTIFS(#REF!,">"&$E23,#REF!,"<="&$C23,#REF!,'사용승인별 현황'!K$2,#REF!,">=20",#REF!,"<>임대") ->  | L23: =SUMIFS(#REF!,#REF!,">"&$E23,#REF!,"<="&$C23,#REF!,'사용승인별 현황'!K$2,#REF!,">=20",#REF!,"<>임대") ->  | M23: =COUNTIFS(#REF!,">"&$E23,#REF!,"<="&$C23,#REF!,'사용승인별 현황'!M$2,#REF!,">=20",#REF!,"<>임대") ->  | N23: =SUMIFS(#REF!,#REF!,">"&$E23,#REF!,"<="&$C23,#REF!,'사용승인별 현황'!M$2,#REF!,">=20",#REF!,"<>임대") ->  | O23: =COUNTIFS(#REF!,">"&$E23,#REF!,"<="&$C23,#REF!,'사용승인별 현황'!O$2,#REF!,">=20",#REF!,"<>임대") ->  | P23: =SUMIFS(#REF!,#REF!,">"&$E23,#REF!,"<="&$C23,#REF!,'사용승인별 현황'!O$2,#REF!,">=20",#REF!,"<>임대") ->  | Q23: =COUNTIFS(#REF!,">"&$E23,#REF!,"<="&$C23,#REF!,'사용승인별 현황'!Q$2,#REF!,">=20",#REF!,"<>임대") ->  | R23: =SUMIFS(#REF!,#REF!,">"&$E23,#REF!,"<="&$C23,#REF!,'사용승인별 현황'!Q$2,#REF!,">=20",#REF!,"<>임대") ->  | S23: =COUNTIFS(#REF!,">"&$E23,#REF!,"<="&$C23,#REF!,'사용승인별 현황'!S$2,#REF!,">=20",#REF!,"<>임대") ->  | T23: =SUMIFS(#REF!,#REF!,">"&$E23,#REF!,"<="&$C23,#REF!,'사용승인별 현황'!S$2,#REF!,">=20",#REF!,"<>임대") ->  | U23: =COUNTIFS(#REF!,">"&$E23,#REF!,"<="&$C23,#REF!,'사용승인별 현황'!U$2,#REF!,">=20",#REF!,"<>임대") ->  | V23: =SUMIFS(#REF!,#REF!,">"&$E23,#REF!,"<="&$C23,#REF!,'사용승인별 현황'!U$2,#REF!,">=20",#REF!,"<>임대") ->  | W23: =COUNTIFS(#REF!,">"&$E23,#REF!,"<="&$C23,#REF!,'사용승인별 현황'!W$2,#REF!,">=20",#REF!,"<>임대") ->  | X23: =SUMIFS(#REF!,#REF!,">"&$E23,#REF!,"<="&$C23,#REF!,'사용승인별 현황'!W$2,#REF!,">=20",#REF!,"<>임대") ->  | Y23: =COUNTIFS(#REF!,">"&$E23,#REF!,"<="&$C23,#REF!,'사용승인별 현황'!Y$2,#REF!,">=20",#REF!,"<>임대") ->  | Z23: =SUMIFS(#REF!,#REF!,">"&$E23,#REF!,"<="&$C23,#REF!,'사용승인별 현황'!Y$2,#REF!,">=20",#REF!,"<>임대") ->  | AA23: =COUNTIFS(#REF!,">"&$E23,#REF!,"<="&$C23,#REF!,'사용승인별 현황'!AA$2,#REF!,">=20",#REF!,"<>임대") ->  | AB23: =SUMIFS(#REF!,#REF!,">"&$E23,#REF!,"<="&$C23,#REF!,'사용승인별 현황'!AA$2,#REF!,">=20",#REF!,"<>임대") ->  | AC23: =COUNTIFS(#REF!,">"&$E23,#REF!,"<="&$C23,#REF!,'사용승인별 현황'!AC$2,#REF!,">=20",#REF!,"<>임대") ->  | AD23: =SUMIFS(#REF!,#REF!,">"&$E23,#REF!,"<="&$C23,#REF!,'사용승인별 현황'!AC$2,#REF!,">=20",#REF!,"<>임대") ->  | AE23: =COUNTIFS(#REF!,">"&$E23,#REF!,"<="&$C23,#REF!,'사용승인별 현황'!AE$2,#REF!,">=20",#REF!,"<>임대") ->  | AF23: =SUMIFS(#REF!,#REF!,">"&$E23,#REF!,"<="&$C23,#REF!,'사용승인별 현황'!AE$2,#REF!,">=20",#REF!,"<>임대") ->  | AG23: =COUNTIFS(#REF!,">"&$E23,#REF!,"<="&$C23,#REF!,'사용승인별 현황'!AG$2,#REF!,">=20",#REF!,"<>임대") ->  | AH23: =SUMIFS(#REF!,#REF!,">"&$E23,#REF!,"<="&$C23,#REF!,'사용승인별 현황'!AG$2,#REF!,">=20",#REF!,"<>임대") ->  | AI23: =COUNTIFS(#REF!,">"&$E23,#REF!,"<="&$C23,#REF!,'사용승인별 현황'!AI$2,#REF!,">=20",#REF!,"<>임대") ->  | AJ23: =SUMIFS(#REF!,#REF!,">"&$E23,#REF!,"<="&$C23,#REF!,'사용승인별 현황'!AI$2,#REF!,">=20",#REF!,"<>임대") ->  | AK23: =COUNTIFS(#REF!,">"&$E23,#REF!,"<="&$C23,#REF!,'사용승인별 현황'!AK$2,#REF!,">=20",#REF!,"<>임대") ->  | AL23: =SUMIFS(#REF!,#REF!,">"&$E23,#REF!,"<="&$C23,#REF!,'사용승인별 현황'!AK$2,#REF!,">=20",#REF!,"<>임대") ->  | AM23: =COUNTIFS(#REF!,">"&$E23,#REF!,"<="&$C23,#REF!,'사용승인별 현황'!AM$2,#REF!,">=20",#REF!,"<>임대") ->  | AN23: =SUMIFS(#REF!,#REF!,">"&$E23,#REF!,"<="&$C23,#REF!,'사용승인별 현황'!AM$2,#REF!,">=20",#REF!,"<>임대") ->  | AO23: =COUNTIFS(#REF!,">"&$E23,#REF!,"<="&$C23,#REF!,'사용승인별 현황'!AO$2,#REF!,">=20",#REF!,"<>임대") ->  | AP23: =SUMIFS(#REF!,#REF!,">"&$E23,#REF!,"<="&$C23,#REF!,'사용승인별 현황'!AO$2,#REF!,">=20",#REF!,"<>임대") ->  | AQ23: =COUNTIFS(#REF!,">"&$E23,#REF!,"<="&$C23,#REF!,'사용승인별 현황'!AQ$2,#REF!,">=20",#REF!,"<>임대") ->  | AR23: =SUMIFS(#REF!,#REF!,">"&$E23,#REF!,"<="&$C23,#REF!,'사용승인별 현황'!AQ$2,#REF!,">=20",#REF!,"<>임대") ->  | AS23: =COUNTIFS(#REF!,">"&$E23,#REF!,"<="&$C23,#REF!,'사용승인별 현황'!AS$2,#REF!,">=20",#REF!,"<>임대") ->  | AT23: =SUMIFS(#REF!,#REF!,">"&$E23,#REF!,"<="&$C23,#REF!,'사용승인별 현황'!AS$2,#REF!,">=20",#REF!,"<>임대") ->  | AU23: =COUNTIFS(#REF!,">"&$E23,#REF!,"<="&$C23,#REF!,'사용승인별 현황'!AU$2,#REF!,">=20",#REF!,"<>임대") ->  | AV23: =SUMIFS(#REF!,#REF!,">"&$E23,#REF!,"<="&$C23,#REF!,'사용승인별 현황'!AU$2,#REF!,">=20",#REF!,"<>임대") ->  | AW23: =COUNTIFS(#REF!,">"&$E23,#REF!,"<="&$C23,#REF!,'사용승인별 현황'!AW$2,#REF!,">=20",#REF!,"<>임대") ->  | AX23: =SUMIFS(#REF!,#REF!,">"&$E23,#REF!,"<="&$C23,#REF!,'사용승인별 현황'!AW$2,#REF!,">=20",#REF!,"<>임대") ->  | AY23: =COUNTIFS(#REF!,">"&$E23,#REF!,"<="&$C23,#REF!,'사용승인별 현황'!AY$2,#REF!,">=20",#REF!,"<>임대") ->  | AZ23: =SUMIFS(#REF!,#REF!,">"&$E23,#REF!,"<="&$C23,#REF!,'사용승인별 현황'!AY$2,#REF!,">=20",#REF!,"<>임대") ->  | BA23: =COUNTIFS(#REF!,">"&$E23,#REF!,"<="&$C23,#REF!,'사용승인별 현황'!BA$2,#REF!,">=20",#REF!,"<>임대") ->  | BB23: =SUMIFS(#REF!,#REF!,">"&$E23,#REF!,"<="&$C23,#REF!,'사용승인별 현황'!BA$2,#REF!,">=20",#REF!,"<>임대") ->  | BC23: =COUNTIFS(#REF!,">"&$E23,#REF!,"<="&$C23,#REF!,'사용승인별 현황'!BC$2,#REF!,">=20",#REF!,"<>임대") ->  | BD23: =SUMIFS(#REF!,#REF!,">"&$E23,#REF!,"<="&$C23,#REF!,'사용승인별 현황'!BC$2,#REF!,">=20",#REF!,"<>임대") ->  | BE23: =COUNTIFS(#REF!,">"&$E23,#REF!,"<="&$C23,#REF!,'사용승인별 현황'!BE$2,#REF!,">=20",#REF!,"<>임대") ->  | BF23: =SUMIFS(#REF!,#REF!,">"&$E23,#REF!,"<="&$C23,#REF!,'사용승인별 현황'!BE$2,#REF!,">=20",#REF!,"<>임대") -> 
B25: 1. 임대단지 제외
B26: 2. 20세대 이상 단지만 해당

Sheet 총괄표
C1: 대전시 공동주택(분양) 현황 2024. 6. 30.기준
B3: 구분 | C3: 구분 | D3: 유형 | E3: 단지수 | F3: 동수 | G3: 세대수 (A) | H3: 의무관리대상 단지수 | Q3: 임의관리대상 단지수
H4: 소 계 | K4: 3,000세대이상 | L4: 2,000세대이상 3,000세대미만 | M4: 1,000세대이상 2,000세대미만 | N4: 500세대이상 1,000세대미만 | O4: 300세대이상 500세대미만 | P4: 300세대미만 | Q4: 소 계 | T4: 150세대이상 | U4: 100세대이상 150세대미만 | V4: 50세대이상 100세대미만 | W4: 50세대미만
H5: 단지수 | I5: 동수 | J5: 세대수(A1) | Q5: 단지수 | R5: 동수 | S5: 세대수(A2)
B6: 총 계 | C6: 총 계 | D6: 계 | E6: =E11+E16+E21+E26+E31 -> 1098 | F6: =F11+F16+F21+F26+F31 -> 5100 | G6: 392525 | H6: 475 | I6: =I11+I16+I21+I26+I31 -> 3849 | J6: 335722 | K6: 2 | L6: 11 | M6: 86 | N6: 179 | O6: 75 | P6: 122 | Q6: 623 | R6: 1251 | S6: 56803 | T6: 37 | U6: 89 | V6: 184 | W6: 313
D7: 아파트 | E7: =E12+E17+E22+E27+E32 -> 776 | F7: =F12+F17+F22+F27+F32 -> 4456 | G7: 372633 | H7: 444 | I7: 3825 | J7: =J12+J17+J22+J27+J32 -> 331145 | K7: 2 | L7: 0 | M7: 17 | N7: 65 | O7: 20 | P7: 35 | Q7: =Q12+Q17+Q22+Q27+Q32 -> 332 | R7: 631 | S7: 41488 | T7: 35 | U7: 69 | V7: 36 | W7: 136
D8: 주상복합 | E8: =E13+E18+E23+E28+E33 -> 146 | F8: 143 | G8: 13654 | H8: 31 | I8: 24 | J8: =J13+J18+J23+J28+J33 -> 4577 | K8: 0 | L8: 0 | M8: 0 | N8: 0 | O8: 3 | P8: 28 | Q8: 115 | R8: 119 | S8: 9077 | T8: 2 | U8: 16 | V8: 73 | W8: 24
D9: 연립 | E9: =E14+E19+E24+E29+E34 -> 105 | F9: 245 | G9: 3994 | H9: 0 | I9: 0 | J9: =J14+J19+J24+J29+J34 -> 0 | K9: 0 | L9: 0 | M9: 0 | N9: 0 | O9: 0 | P9: =P14+P19+P24+P29+P34 -> 0 | Q9: =Q14+Q19+Q24+Q29+Q34 -> 105 | R9: =R14+R19+R24+R29+R34 -> 245 | S9: 3994 | T9: 0 | U9: 3 | V9: 16 | W9: 86
D10: 다세대 | E10: =E15+E20+E25+E30+E35 -> 71 | F10: 256 | G10: 2244 | H10: 0 | I10: 0 | J10: =J15+J20+J25+J30+J35 -> 0 | K10: 0 | L10: 0 | M10: 0 | N10: 0 | O10: 0 | P10: 0 | Q10: 71 | R10: 256 | S10: 2244 | T10: 0 | U10: 1 | V10: 3 | W10: 67
B11: 종로구 | C11: 동구 | D11: 계 | E11: =SUM(H11,Q11) -> 224 | F11: =SUM(I11,R11) -> 923 | G11: =SUM(J11,S11) -> 56575 | H11: =SUM(H12:H15) -> 69 | I11: =SUM(I12:I15) -> 576 | J11: 49252 | K11: 0 | L11: 3 | M11: 12 | N11: 26 | O11: 13 | P11: 15 | Q11: 155 | R11: =SUM(R12:R15) -> 347 | S11: =SUM(S12:S15) -> 7323 | T11: =SUM(T12:T15) -> 0 | U11: =SUM(U12:U15) -> 17 | V11: =SUM(V12:V15) -> 28 | W11: =SUM(W12:W15) -> 110
B12: 종로구 | D12: 아파트 | E12: 126 | F12: 655 | G12: 53214 | H12: 69 | I12: 576 | J12: 49252 | K12: 0 | L12: 3 | M12: 12 | N12: 26 | O12: 13 | P12: 15 | Q12: 57 | R12: 79 | S12: 3962 | T12: 0 | U12: 16 | V12: 15 | W12: 26
B13: 종로구 | D13: 주상복합 | E13: 12 | F13: 12 | G13: 578 | K13: 0 | L13: 0 | M13: 0 | N13: 0 | O13: 0 | P13: 0 | Q13: 12 | R13: 12 | S13: 578 | T13: 0 | U13: 0 | V13: 6 | W13: 6
B14: 종로구 | D14: 연립 | E14: 35 | F14: 65 | G14: 1173 | K14: 0 | L14: 0 | M14: 0 | N14: 0 | O14: 0 | P14: 0 | Q14: 35 | R14: 65 | S14: 1173 | T14: 0 | U14: 0 | V14: 5 | W14: 30
B15: 종로구 | D15: 다세대 | E15: 51 | F15: 191 | G15: 1610 | K15: 0 | L15: 0 | M15: 0 | N15: 0 | O15: 0 | P15: 0 | Q15: 51 | R15: 191 | S15: 1610 | T15: 0 | U15: 1 | V15: 2 | W15: 48
B16: 중구 | C16: 중구 | D16: 계 | E16: 173 | F16: 714 | G16: 54869 | H16: =SUM(H17:H20) -> 74 | I16: =SUM(I17:I20) -> 515 | J16: 45171 | K16: 0 | L16: 2 | M16: 7 | N16: 25 | O16: 9 | P16: 31 | Q16: 99 | R16: 199 | S16: 9698 | T16: 9 | U16: 17 | V16: 27 | W16: 46
B17: 중구 | D17: 아파트 | E17: 116 | F17: 594 | G17: 49503 | H17: =K17+L17+M17+N17+O17+P17 -> 69 | I17: 506 | J17: 43468 | L17: 2 | M17: 7 | N17: 25 | O17: 9 | P17: 26 | Q17: =T17+U17+V17+W17 -> 47 | R17: 88 | S17: 6035 | T17: 7 | U17: 10 | V17: 10 | W17: 20
B18: 중구 | D18: 주상복합 | E18: 27 | F18: 31 | G18: 4009 | H18: =K18+L18+M18+N18+O18+P18 -> 5 | I18: 9 | J18: 1703 | P18: 5 | Q18: =T18+U18+V18+W18 -> 22 | R18: 22 | S18: 2306 | T18: 2 | U18: 4 | V18: 13 | W18: 3
B19: 중구 | D19: 연립 | E19: 30 | F19: 89 | G19: 1357 | H19: 0 | Q19: 30 | R19: 89 | S19: 1357 | U19: 3 | V19: 4 | W19: 23
B20: 중구 | D20: 다세대 | E20: 0 | F20: 0 | G20: 0 | H20: 0 | Q20: 0
B21: 용산구 | C21: 서구 | D21: 계 | E21: 284 | F21: 1439 | G21: 127074 | H21: =SUM(H22:H25) -> 143 | I21: =SUM(I22:I25) -> 1207 | J21: 116720 | K21: 0 | L21: 5 | M21: 39 | N21: 49 | O21: 21 | P21: 29 | Q21: 141 | R21: 232 | S21: 10354 | T21: 4 | U21: 23 | V21: 63 | W21: 51
B22: 용산구 | D22: 아파트 | E22: 169 | F22: 1283 | G22: 117811 | H22: =K22+L22+M22+N22+O22+P22 -> 129 | I22: 1193 | J22: 114037 | L22: 5 | M22: 39 | N22: 49 | O22: 21 | P22: 15 | Q22: =T22+U22+V22+W22 -> 40 | R22: 90 | S22: 3774 | T22: 4 | U22: 11 | V22: 14 | W22: 11
B23: 용산구 | D23: 주상복합 | E23: 86 | F23: 88 | G23: 8184 | H23: =K23+L23+M23+N23+O23+P23 -> 14 | I23: 14 | J23: 2683 | P23: 14 | Q23: =T23+U23+V23+W23 -> 72 | R23: 74 | S23: 5501 | U23: 12 | V23: 45 | W23: 15
B24: 용산구 | D24: 연립 | E24: 19 | F24: 40 | G24: 747 | H24: 0 | Q24: 19 | R24: 40 | S24: 747 | V24: 4 | W24: 15
B25: 용산구 | D25: 다세대 | E25: 10 | F25: 28 | G25: 332 | H25: 0 | Q25: 10 | R25: 28 | S25: 332 | W25: 10
B26: 성동구 | C26: 유성구 | D26: 계 | E26: 253 | F26: 1418 | G26: 108695 | H26: =SUM(H27:H30) -> 139 | I26: =SUM(I27:I30) -> 1180 | J26: 89427 | K26: 2 | L26: 0 | M26: 17 | N26: 65 | O26: 20 | P26: 35 | Q26: 114 | R26: 238 | S26: 19268 | T26: 15 | U26: 26 | V26: 36 | W26: 37
B27: 성동구 | D27: 아파트 | E27: =H27+Q27 -> 234 | F27: 1408 | G27: 108066 | H27: =K27+L27+M27+N27+O27+P27 -> 128 | I27: 1180 | J27: 89427 | K27: 2 | L27: 0 | M27: 17 | N27: 65 | O27: 17 | P27: 27 | Q27: =T27+U27+V27+W27 -> 106 | R27: 228 | S27: 18639 | T27: 15 | U27: 26 | V27: 28 | W27: 37
B28: 성동구 | D28: 주상복합 | E28: =H28+Q28 -> 19 | F28: 10 | G28: 629 | H28: =K28+L28+M28+N28+O28+P28 -> 11 | O28: 3 | P28: 8 | Q28: =T28+U28+V28+W28 -> 8 | R28: 10 | S28: 629 | V28: 8
B29: 성동구 | D29: 연립 | E29: =H29+Q29 -> 0 | F29: 0 | G29: 0 | H29: 0 | Q29: 0
B30: 성동구 | D30: 다세대 | E30: =H30+Q30 -> 0 | F30: 0 | G30: 0 | H30: 0 | Q30: 0
B31: 광진구 | C31: 대덕구 | D31: 계 | E31: 164 | F31: 606 | G31: 45312 | H31: =SUM(H32:H35) -> 50 | I31: =SUM(I32:I35) -> 371 | J31: 35152 | K31: 0 | L31: 1 | M31: 11 | N31: 14 | O31: 12 | P31: 12 | Q31: 114 | R31: 235 | S31: 10160 | T31: 9 | U31: 6 | V31: 30 | W31: 69
B32: 광진구 | D32: 아파트 | E32: 131 | F32: 516 | G32: 44039 | H32: =K32+L32+M32+N32+O32+P32 -> 49 | I32: 370 | J32: 34961 | L32: 1 | M32: 11 | N32: 14 | O32: 12 | P32: 11 | Q32: =T32+U32+V32+W32 -> 82 | R32: 146 | S32: 9078 | T32: 9 | U32: 6 | V32: 25 | W32: 42
B33: 광진구 | D33: 주상복합 | E33: 2 | F33: 2 | G33: 254 | H33: =K33+L33+M33+N33+O33+P33 -> 1 | I33: 1 | J33: 191 | P33: 1 | Q33: =T33+U33+V33+W33 -> 1 | R33: 1 | S33: 63 | V33: 1
B34: 광진구 | D34: 연립 | E34: 21 | F34: 51 | G34: 717 | H34: 0 | Q34: 21 | R34: 51 | S34: 717 | V34: 3 | W34: 18
B35: 광진구 | D35: 다세대 | E35: 10 | F35: 37 | G35: 302 | H35: 0 | Q35: 10 | R35: 37 | S35: 302 | V35: 1 | W35: 9
C37: ※ 의무관리대상 공동주택 산정기준 공동주택관리법 시행령 제2조(의무관리대상 공동주택의 범위)에 따라, 분양세대를 기준으로 1. 300세대 이상의 공동주택 2. 150세대 이상으로서 승강기가 설치된 공동주택 3. 150세대 이상으로서 중앙집중식 난방방식(지역난방방식을 포함한다)의 공동주택 4. 「건축법」 제11조에 따른 건축허가를 받아 주택 외의 시설과 주택을 동일건축물로 건축한 건축물로서 주택이 150세대 이상인 건축물

Sheet 대덕구
B1: 공동주택(분양) 현황(2024.9.30. 기준)
B3: 기 본 사 항 | S3: 비고
B4: NO | C4: 주택유형 | D4: 입주 유형 | E4: 단지명 | F4: 도로명주소 | G4: 법정동주소 | H4: 동 | I4: 층 | J4: 세대수 | M4: 의무관리 임의관리 | N4: 자치관리 위탁관리 | O4: 사용승인일 | P4: 연면적(㎡) | Q4: 관리사무소
J5: 합 계 | K5: 분양 | L5: 임대 | Q5: 전화번호 | R5: FAX 번호
B6: 1 | C6: 아파트 | D6: 분양 | E6: 금강아파트 | F6: 대전광역시 대덕구 대전로 1247(대화동) | G6: 대전광역시 대덕구 대화동 27-7 | H6: 2 | I6: 5 | J6: =K6+L6 -> 90 | K6: 90 | M6: 비의무 | O6: 1978-08-04 | P6: 5981.91
B7: 2 | C7: 연립주택 | D7: 분양 | E7: 신진연립 | F7: 대전광역시 대덕구 신탄진동로35번길 63(신탄진동) | G7: 대전광역시 대덕구 신탄진동 122-17 | H7: 3 | I7: 2~3 | J7: 31 | K7: 31 | M7: 비의무 | O7: 1978-11-21 | P7: 1283.33
B8: 3 | C8: 아파트 | D8: 분양 | E8: 대화아파트 | F8: 대전광역시 대덕구 대화로 53(대화동) | G8: 대전광역시 대덕구 대화동 40-67 | H8: 1 | I8: 5 | J8: 50 | K8: 50 | M8: 비의무 | O8: 1979-03-30 | P8: 2911
B9: 4 | C9: 아파트 | D9: 분양 | E9: 흥일아파트 | F9: 대전광역시 대덕구 송촌남로 50(송촌동) | G9: 대전광역시 대덕구 송촌동 291-9 | H9: 1 | I9: 6 | J9: 40 | K9: 40 | M9: 비의무 | O9: 1979-05-30 | P9: 2244.25
B10: 5 | C10: 연립주택 | D10: 분양 | E10: 세림연립 | F10: 대전광역시 대덕구 덕암북로96번길 22-14(덕암동) | G10: 대전광역시 대덕구 덕암동 15-3 | H10: 3 | I10: 2 | J10: 28 | K10: 28 | M10: 비의무 | O10: 1979-06-26 | P10: 1909.18
B11: 6 | C11: 아파트 | D11: 분양 | E11: 신생연립 | F11: 대전광역시 대덕구 대덕대로1601번길 15(석봉동) | G11: 대전광역시 대덕구 석봉동 202-2 | H11: 2 | I11: 4 | J11: 30 | K11: 30 | M11: 비의무 | O11: 1979-10-29 | P11: 2070.26
B12: 7 | C12: 연립주택 | D12: 분양 | E12: 한국담배인삼공사(사옥아파트) | F12: 대전광역시 대덕구 평촌1길 35(평촌동) | G12: 대전광역시 대덕구 평촌동 182 | H12: 7 | I12: 3~4 | J12: 96 | K12: 96 | M12: 비의무 | O12: 1980-01-01 | P12: 7920.19
B13: 8 | C13: 아파트 | D13: 분양 | E13: 정림APT | F13: 대전광역시 대덕구 덕암로148번안길 95(평촌동) | G13: 대전광역시 대덕구 평촌동 535-4 | H13: 3 | I13: 4 | J13: 36 | K13: 36 | M13: 비의무 | O13: 1980-07-24 | P13: 2932.8
B14: 9 | C14: 아파트 | D14: 분양 | E14: 대청아파트 | F14: 대전광역시 대덕구 신탄진동로48번길 17(신탄진동) | G14: 대전광역시 대덕구 신탄진동 163-1 | H14: 2 | I14: 3 | J14: 48 | K14: 48 | M14: 비의무 | O14: 1980-11-03 | P14: 3979.02
B15: 10 | C15: 아파트 | D15: 분양 | E15: 태평A.P.T | F15: 대전광역시 대덕구 신탄진로844번길 19-5(신탄진동) | G15: 대전광역시 대덕구 신탄진동 451 | H15: 2 | I15: 4 | J15: 27 | K15: 27 | M15: 비의무 | O15: 1980-11-26 | P15: 1912.55
B16: 11 | C16: 아파트 | D16: 분양 | E16: 회덕아파트 | F16: 대전광역시 대덕구 대전로1375번길 27-1(읍내동) | G16: 대전광역시 대덕구 읍내동 240-78 | H16: 2 | I16: 4 | J16: 40 | K16: 40 | M16: 비의무 | O16: 1980-12-02 | P16: 2091.64
B17: 12 | C17: 연립주택 | D17: 분양 | E17: 중앙연립 | F17: 대전광역시 대덕구 신탄진동로23번길 31(신탄진동) | G17: 대전광역시 대덕구 신탄진동 142-9 | H17: 1 | I17: 3 | J17: 40 | K17: 40 | M17: 비의무 | O17: 1980-12-15 | P17: 4597.76
B18: 13 | C18: 연립주택 | D18: 분양 | E18: 무궁화아파트(A동) | F18: 대전광역시 대덕구 동심1길 59(대화동) | G18: 대전광역시 대덕구 대화동 31-24 | H18: 2 | I18: 3 | J18: 42 | K18: 42 | M18: 비의무 | O18: 1981-08-06 | P18: 2285.5
B19: 14 | C19: 연립주택 | D19: 분양 | E19: 금성백조연립 | F19: 대전광역시 대덕구 동심8길 2(대화동) | G19: 대전광역시 대덕구 대화동 241-11 | H19: 1 | I19: 3 | J19: 27 | K19: 27 | M19: 비의무 | O19: 1981-11-07 | P19: 1417.01
B20: 15 | C20: 아파트 | D20: 분양 | E20: 신대화아파트 | F20: 대전광역시 대덕구 대전로 1255(대화동) | G20: 대전광역시 대덕구 대화동 16-163 | H20: 2 | I20: 5 | J20: 55 | K20: 55 | M20: 비의무 | O20: 1983-03-11 | P20: 1914.78
B21: 16 | C21: 아파트 | D21: 분양 | E21: 신회덕아파트 | F21: 대전광역시 대덕구 대전로1375번길 27(읍내동) | G21: 대전광역시 대덕구 읍내동 240-79 | H21: 3 | I21: 4 | J21: 48 | K21: 48 | M21: 비의무 | O21: 1983-07-02 | P21: 2517.52
B22: 17 | C22: 연립주택 | D22: 분양 | E22: 가양파크 | F22: 대전광역시 대덕구 비래동로39번길 22(비래동) | G22: 대전광역시 대덕구 비래동 130-13 | H22: 3 | I22: 2 | J22: 24 | K22: 24 | M22: 비의무 | O22: 1983-09-06 | P22: 1703
B23: 18 | C23: 연립주택 | D23: 분양 | E23: 전원연립 | F23: 대전광역시 대덕구 비래동로15번길 47(비래동) | G23: 대전광역시 대덕구 비래동 122-6 | H23: 2 | I23: 3 | J23: 24 | K23: 24 | M23: 비의무 | O23: 1983-11-25 | P23: 1192.32
B24: 19 | C24: 연립주택 | D24: 분양 | E24: 신탄진연립(신탄주택) | F24: 대전광역시 대덕구 덕암북로96번길 1(덕암동) | G24: 대전광역시 대덕구 덕암동 14-1 | H24: 2 | I24: 3 | J24: 24 | K24: 24 | M24: 비의무 | O24: 1983-12-20 | P24: 1315.44
B25: 20 | C25: 연립주택 | D25: 분양 | E25: 석봉연립 | F25: 대전광역시 대덕구 신탄진동로36번길 25(신탄진동) | G25: 대전광역시 대덕구 신탄진동 165-4 | H25: 2 | I25: 3 | J25: 36 | K25: 36 | M25: 비의무 | O25: 1984-01-26 | P25: 1866.24
B26: 21 | C26: 연립주택 | D26: 분양 | E26: 새일연립(새일주택) | F26: 대전광역시 대덕구 덕암로222번길 15-16(덕암동) | G26: 대전광역시 대덕구 덕암동 51-2 | H26: 2 | I26: 3 | J26: 24 | K26: 24 | M26: 비의무 | O26: 1984-07-20 | P26: 1524.96
B27: 22 | C27: 연립주택 | D27: 분양 | E27: 대신연립(가,나,다동), 신일연립(1,2동) | F27: 대전광역시 대덕구 신탄진남로 15(신탄진동) | G27: 대전광역시 대덕구 신탄진동 150-14 | H27: 5 | I27: 3 | J27: 50 | K27: 50 | M27: 비의무 | O27: 1984-11-23 | P27: 2996.82
B28: 23 | C28: 연립주택 | D28: 분양 | E28: 대운주택 | F28: 대전광역시 대덕구 비래동로32번길 7(비래동) | G28: 대전광역시 대덕구 비래동 137-2 | H28: 2 | I28: 3 | J28: 24 | K28: 24 | M28: 비의무 | O28: 1984-12-05 | P28: 1822.71
B29: 24 | C29: 아파트 | D29: 분양 | E29: 혜강연립 | F29: 대전광역시 대덕구 아리랑로113번안길 20(읍내동) | G29: 대전광역시 대덕구 읍내동 496-13 | H29: 2 | I29: 3~4 | J29: 50 | K29: 50 | M29: 비의무 | O29: 1984-12-13 | P29: 3197.99
B30: 25 | C30: 연립주택 | D30: 분양 | E30: 홍도연립 | F30: 대전광역시 대덕구 대전로987번길 82(오정동) | G30: 대전광역시 대덕구 오정동 772-31 | H30: 4 | I30: 2 | J30: 34 | K30: 34 | M30: 비의무 | O30: 1984-12-31 | P30: 2522.72
B31: 26 | C31: 연립주택 | D31: 분양 | E31: 전원주택 | F31: 대전광역시 대덕구 대화12길 14(대화동) | G31: 대전광역시 대덕구 대화동 16-13 | H31: 3 | I31: 3 | J31: 30 | K31: 30 | M31: 비의무 | O31: 1985-02-19 | P31: 1873.08
B32: 27 | C32: 아파트 | D32: 분양 | E32: 금성백조아파트 | F32: 대전광역시 대덕구 대화로 19(대화동) | G32: 대전광역시 대덕구 대화동 16-2 | H32: 3 | I32: 5 | J32: 160 | K32: 160 | M32: 비의무 | O32: 1985-03-14 | P32: 11254.09
B33: 28 | C33: 연립주택 | D33: 분양 | E33: 중앙연립(중앙주택) | F33: 대전광역시 대덕구 덕암로265번길 119(덕암동) | G33: 대전광역시 대덕구 덕암동 2-2 | H33: 2 | I33: 3 | J33: 51 | K33: 51 | M33: 비의무 | O33: 1985-09-26 | P33: 2783.97
B34: 29 | C34: 아파트 | D34: 분양 | E34: 성은맨션아파트 | F34: 대전광역시 대덕구 비래동로16번길 17(비래동) | G34: 대전광역시 대덕구 비래동 139-9 | H34: 1 | I34: 10 | J34: 50 | K34: 50 | M34: 비의무 | O34: 1985-11-06 | P34: 4590.22
B35: 30 | C35: 연립주택 | D35: 분양 | E35: 덕암연립상가 | F35: 대전광역시 대덕구 덕암로188번길 6(평촌동) | G35: 대전광역시 대덕구 평촌동 535-1 | H35: 2 | I35: 2 | J35: 46 | K35: 46 | M35: 비의무 | O35: 1985-11-16 | P35: 1692.37
B36: 31 | C36: 아파트 | D36: 분양 | E36: 삼창아파트 | F36: 대전광역시 대덕구 대덕대로1524번길 37(목상동) | G36: 대전광역시 대덕구 목상동 23-3 | H36: 2 | I36: 5 | J36: 40 | K36: 40 | M36: 비의무 | O36: 1985-12-09 | P36: 2550.6
B37: 32 | C37: 아파트 | D37: 분양 | E37: 금호(아) | F37: 대전광역시 대덕구 덕암북로 86(덕암동) | G37: 대전광역시 대덕구 덕암동 13-5 | H37: 1 | I37: 5 | J37: 20 | K37: 20 | M37: 비의무 | O37: 1985-12-27 | P37: 1206.6
B38: 33 | C38: 아파트 | D38: 분양 | E38: 안전연립(안전로얄아파트) | F38: 대전광역시 대덕구 홍도로135번길 121(중리동) | G38: 대전광역시 대덕구 중리동 222-2 | H38: 2 | I38: 5 | J38: 65 | K38: 65 | M38: 비의무 | O38: 1986-04-01 | P38: 5063.6
B39: 34 | C39: 아파트 | D39: 분양 | E39: 금성백조(1차) | F39: 대전광역시 대덕구 우암로412번길 45(비래동) | G39: 대전광역시 대덕구 비래동 149-1 | H39: 1 | I39: 10 | J39: 100 | K39: 100 | M39: 비의무 | O39: 1986-05-24 | P39: 9959.68
B40: 35 | C40: 아파트 | D40: 분양 | E40: 대화장미아파트 | F40: 대전광역시 대덕구 동심5길 16(대화동) | G40: 대전광역시 대덕구 대화동 229-12 | H40: 4 | I40: 3~5 | J40: 159 | K40: 159 | M40: 비의무 | O40: 1986-09-05 | P40: 10866.23
B41: 36 | C41: 아파트 | D41: 분양 | E41: 오광아파트 | F41: 대전광역시 대덕구 생산5길 22(대화동) | G41: 대전광역시 대덕구 대화동 253 | H41: 3 | I41: 5 | J41: 104 | K41: 104 | M41: 비의무 | O41: 1986-09-25 | P41: 7790.94
B42: 37 | C42: 아파트 | D42: 분양 | E42: 비래동현대아파트 | F42: 대전광역시 대덕구 우암로 394(비래동) | G42: 대전광역시 대덕구 비래동 47-1 | H42: 6 | I42: 12~15 | J42: 370 | K42: 370 | M42: 의무 | N42: 위탁관리 | O42: 1986-11-24 | P42: 35153.46 | Q42: 623-9143 | R42: 331-9143
B43: 38 | C43: 아파트 | D43: 분양 | E43: 덕성맨션 | F43: 대전광역시 대덕구 송촌로 11(송촌동) | G43: 대전광역시 대덕구 송촌동 290-4 | H43: 1 | I43: 8 | J43: 32 | K43: 32 | M43: 비의무 | O43: 1986-11-29 | P43: 3446.08
B44: 39 | C44: 아파트 | D44: 분양 | E44: 현대아파트 | F44: 대전광역시 대덕구 대덕대로1524번길 27(목상동) | G44: 대전광역시 대덕구 목상동 215 | H44: 2 | I44: 5 | J44: 90 | K44: 90 | M44: 비의무 | O44: 1986-12-05 | P44: 6425.34
B45: 40 | C45: 아파트 | D45: 분양 | E45: 정남아파트 | F45: 대전광역시 대덕구 비래동로32번길 52(비래동) | G45: 대전광역시 대덕구 비래동 144-5 | H45: 2 | I45: 5 | J45: 40 | K45: 40 | M45: 비의무 | O45: 1987-01-24 | P45: 4332.24
B46: 41 | C46: 아파트 | D46: 분양 | E46: 평화(A) | F46: 대전광역시 대덕구 비래동로31번길 53(비래동) | G46: 대전광역시 대덕구 비래동 120-17 | H46: 2 | I46: 5 | J46: 40 | K46: 40 | M46: 비의무 | O46: 1987-03-13 | P46: 2840.4
B47: 42 | C47: 아파트 | D47: 분양 | E47: 주공아파트 | F47: 대전광역시 대덕구 신탄진로 217(신대동) | G47: 대전광역시 대덕구 신대동 179 | H47: 13 | I47: 5 | J47: 540 | K47: 540 | M47: 의무 | N47: 자치관리 | O47: 1987-05-15(106~113동) 1987-06-30(101~108동) | P47: 25815.15 | Q47: 624-9382 | R47: 622-8994
B48: 43 | C48: 아파트 | D48: 분양 | E48: 임광하이츠 | F48: 대전광역시 대덕구 홍도로135번길 35(중리동) | G48: 대전광역시 대덕구 중리동 235-8 | H48: 1 | I48: 5 | J48: 59 | K48: 59 | M48: 비의무 | O48: 1987-08-20 | P48: 5104.71
B49: 44 | C49: 아파트 | D49: 분양 | E49: 주공아파트(2단지) | F49: 대전광역시 대덕구 계족로663번길 29(법동) | G49: 대전광역시 대덕구 법동 284-1 | H49: 11 | I49: 5~15 | J49: 1220 | K49: 1220 | M49: 의무 | N49: 위탁관리 | O49: 1987-09-02 | P49: 78976.39 | Q49: 622-9725 | R49: 625-9565
B50: 45 | C50: 아파트 | D50: 분양 | E50: 삼정하이츠타운 | F50: 대전광역시 대덕구 계족로663번길 30(법동) | G50: 대전광역시 대덕구 법동 281 | H50: 13 | I50: 5 | J50: 468 | K50: 468 | M50: 의무 | N50: 자치관리 | O50: 1987-11-18(1동~8동) 1988-10-18(9동~14동) | P50: 51580.33 | Q50: 623-5318 | R50: 331-5318
B51: 46 | C51: 아파트 | D51: 분양 | E51: 주공아파트 | F51: 대전광역시 대덕구 신탄진로 170(연축동) | G51: 대전광역시 대덕구 연축동 102 | H51: 18 | I51: 5 | J51: 670 | K51: 670 | M51: 의무 | N51: 자치관리 | O51: 1987-12-15 | P51: 31976.4 | Q51: 622-2373 | R51: 622-2383
B52: 47 | C52: 아파트 | D52: 분양 | E52: 세원풍남아파트 | F52: 대전광역시 대덕구 대화11길 11(대화동) | G52: 대전광역시 대덕구 대화동 16-5 | H52: 6 | I52: 5 | J52: 270 | K52: 270 | M52: 비의무 | O52: 1987-12-22 | P52: 28535.96
B53: 48 | C53: 아파트 | D53: 분양 | E53: 금성백조(아) | F53: 대전광역시 대덕구 덕암로173번길 8(덕암동) | G53: 대전광역시 대덕구 덕암동 62-18 | H53: 2 | I53: 5 | J53: 80 | K53: 80 | M53: 비의무 | O53: 1988-07-04 | P53: 4473.8
B54: 49 | C54: 아파트 | D54: 분양 | E54: 임광아파트 | F54: 대전광역시 대덕구 비래동로31번길 30(비래동) | G54: 대전광역시 대덕구 비래동 129-3 | H54: 2 | I54: 5 | J54: 55 | K54: 55 | M54: 비의무 | O54: 1988-07-22 | P54: 4568.94
B55: 50 | C55: 아파트 | D55: 분양 | E55: 보령아파트 | F55: 대전광역시 대덕구 동춘당로23번길 22(송촌동) | G55: 대전광역시 대덕구 송촌동 219-3 | H55: 5 | I55: 5 | J55: 99 | K55: 99 | M55: 비의무 | O55: 1988-12-14 | P55: 7486.72
B56: 51 | C56: 다세대주택 | D56: 분양 | E56: 덕수주택 | F56: 대전광역시 대덕구 덕암북로 97(석봉동) | G56: 대전광역시 대덕구 석봉동 322-11 | H56: 6 | I56: 2~3 | J56: 25 | K56: 25 | M56: 비의무 | O56: 1988-12-17 | P56: 1642.26
B57: 52 | C57: 아파트 | D57: 분양 | E57: 영진로얄아파트 | F57: 대전광역시 대덕구 중리서로 31(중리동) | G57: 대전광역시 대덕구 중리동 274-1 | H57: 7 | I57: 15 | J57: 750 | K57: 750 | M57: 의무 | N57: 자치관리 | O57: 1989-05-04 | P57: 58898.4 | Q57: 626-9036 | R57: 636-9036
B58: 53 | C58: 아파트 | D58: 분양 | E58: 삼호아파트 | F58: 대전광역시 대덕구 계족로663번길 32(법동) | G58: 대전광역시 대덕구 법동 280-2 | H58: 4 | I58: 15 | J58: 480 | K58: 480 | M58: 의무 | N58: 자치관리 | O58: 1989-10-19 | P58: 50072.09 | Q58: 672-1338 | R58: 672-1339
B59: 54 | C59: 아파트 | D59: 분양 | E59: 유원아파트 | F59: 대전광역시 대덕구 계족로663번길 23(법동) | G59: 대전광역시 대덕구 법동 285-1 | H59: 5 | I59: 10~15 | J59: 400 | K59: 400 | M59: 의무 | N59: 위탁관리 | O59: 1989-11-25 | P59: 40341.72 | Q59: 627-1614 | R59: 627-1615
B60: 55 | C60: 아파트 | D60: 분양 | E60: 삼호맨션 | F60: 대전광역시 대덕구 비래서로 42(비래동) | G60: 대전광역시 대덕구 비래동 124-1 | H60: 2 | I60: 10 | J60: 220 | K60: 220 | M60: 의무 | N60: 위탁관리 | O60: 1989-12-07 | P60: 21047.09 | Q60: 626-1709 | R60: 626-1706
B61: 56 | C61: 아파트 | D61: 분양 | E61: 옥수아파트 | F61: 대전광역시 대덕구 신탄진동로23번길 44(신탄진동) | G61: 대전광역시 대덕구 신탄진동 139-6 | H61: 1 | I61: 5 | J61: 50 | K61: 50 | M61: 비의무 | O61: 1989-12-12 | P61: 4554.26
B62: 57 | C62: 아파트 | D62: 분양 | E62: 대원아파트 | F62: 대전광역시 대덕구 신탄진로681번길 11(평촌동) | G62: 대전광역시 대덕구 평촌동 541-1 | H62: 2 | I62: 5 | J62: 45 | K62: 45 | M62: 비의무 | O62: 1989-12-23 | P62: 3778.86
B63: 58 | C63: 아파트 | D63: 분양 | E63: 한라아파트(한라맨션) | F63: 대전광역시 대덕구 신탄진로 649(평촌동) | G63: 대전광역시 대덕구 평촌동 534-7 | H63: 1 | I63: 5 | J63: 30 | K63: 30 | M63: 비의무 | O63: 1990-01-03 | P63: 2588.55
B64: 59 | C64: 아파트 | D64: 분양 | E64: 대한아파트 | F64: 대전광역시 대덕구 한남로155번길 30(오정동) | G64: 대전광역시 대덕구 오정동 495-4 | H64: 1 | I64: 6 | J64: 24 | K64: 24 | M64: 비의무 | O64: 1990-04-30 | P64: 2412.72
B65: 60 | C65: 아파트 | D65: 분양 | E65: 원창아파트 | F65: 대전광역시 대덕구 덕암북로10번길 23(덕암동) | G65: 대전광역시 대덕구 덕암동 2-4 | H65: 2 | I65: 5 | J65: 40 | K65: 40 | M65: 비의무 | O65: 1990-06-01 | P65: 2969.4
B66: 61 | C66: 아파트 | D66: 분양 | E66: 대일아파트 | F66: 대전광역시 대덕구 신탄진로210번길 91(와동) | G66: 대전광역시 대덕구 와동 33-1 | H66: 1 | I66: 5 | J66: 30 | K66: 30 | M66: 비의무 | O66: 1990-07-18 | P66: 2941.26
B67: 62 | C67: 아파트 | D67: 분양 | E67: 고려아파트 | F67: 대전광역시 대덕구 신탄진북로35번길 27(신탄진동) | G67: 대전광역시 대덕구 신탄진동 129-2 | H67: 1 | I67: 6 | J67: 60 | K67: 60 | M67: 비의무 | O67: 1990-09-20 | P67: 4599.6
B68: 63 | C68: 아파트 | D68: 분양 | E68: 신일아파트 | F68: 대전광역시 대덕구 계족로505번길 77(중리동) | G68: 대전광역시 대덕구 중리동 246-5 | H68: 1 | I68: 5 | J68: 30 | K68: 30 | M68: 비의무 | O68: 1990-09-21 | P68: 2169.9
B69: 64 | C69: 아파트 | D69: 분양 | E69: 서우아파트 | F69: 대전광역시 대덕구 석봉로30번안길 57(석봉동) | G69: 대전광역시 대덕구 석봉동 177-2 | H69: 3 | I69: 5~15 | J69: 230 | K69: 230 | M69: 의무 | N69: 위탁관리 | O69: 1990-10-30(102~103동) 1991-03-18(101동) | P69: 21710.73 | Q69: 931-3284 | R69: 933-5354
B70: 65 | C70: 아파트 | D70: 분양 | E70: 소라아파트 | F70: 대전광역시 대덕구 동심1길 103(대화동) | G70: 대전광역시 대덕구 대화동 30-1 | H70: 5 | I70: 5 | J70: =K70+L70 -> 269 | K70: 269 | M70: 비의무 | O70: 1990-11-02 | P70: 19345.49
B71: 66 | C71: 아파트 | D71: 분양 | E71: 신동아아파트 | F71: 대전광역시 대덕구 한밭대로1033번길 15(오정동) | G71: 대전광역시 대덕구 오정동 635-1 | H71: 7 | I71: 13~15 | J71: 594 | K71: 594 | M71: 의무 | N71: 위탁관리 | O71: 1990-11-13 | P71: 79820.46 | Q71: 627-9748 | R71: 634-1662
B72: 67 | C72: 아파트 | D72: 임대 | E72: 주공아파트(3단지) | F72: 대전광역시 대덕구 계족로663번길 34(법동) | G72: 대전광역시 대덕구 법동 283-1 | H72: 7 | I72: 15 | J72: 1488 | L72: 1488 | M72: 비의무 | O72: 1990-11-21 | P72: 68871.91 | Q72: 626-6404 | R72: 624-7874
B73: 68 | C73: 아파트 | D73: 분양 | E73: 영진법동로얄맨션 | F73: 대전광역시 대덕구 아리랑로 211(법동) | G73: 대전광역시 대덕구 법동 389 | H73: 7 | I73: 15 | J73: 600 | K73: 600 | M73: 의무 | N73: 위탁관리 | O73: 1990-12-28 | P73: 63005.95 | Q73: 627-5470 | R73: 621-5470
B74: 69 | C74: 다세대주택 | D74: 분양 | E74: 대림주택 | F74: 대전광역시 대덕구 덕암로203번길 39(덕암동) | G74: 대전광역시 대덕구 덕암동 58-3 | H74: 2 | I74: 4 | J74: 20 | K74: 20 | M74: 비의무 | O74: 1991-01-23 | P74: 1106.64
B75: 70 | C75: 아파트 | D75: 분양 | E75: 금성백조아파트(2차) | F75: 대전광역시 대덕구 비래동로 44(비래동) 대전광역시 대덕구 우암로 463(비래동) 대전광역시 대덕구 우암동로 2(비래동) | G75: 대전광역시 대덕구 비래동 136-1 대전광역시 대덕구 비래동 130-7 대전광역시 대덕구 비래동 133-5 | H75: 4 | I75: 12~14 | J75: 324 | K75: 324 | M75: 의무 | N75: 위탁관리 | O75: 1991-03-20 | P75: 942175.74 | Q75: 631-0187 | R75: 320-2747
B76: 71 | C76: 아파트 | D76: 분양 | E76: 근로복지아파트(사택) | F76: 대전광역시 대덕구 중리동로55번길 20(중리동) | G76: 대전광역시 대덕구 중리동 388-1 | H76: 2 | I76: 6 | J76: =K76+L76 -> 42 | K76: 42 | M76: 비의무 | O76: 1991-04-12 | P76: 2415.15
B77: 72 | C77: 다세대주택 | D77: 분양 | E77: 신원파크빌라 | F77: 대전광역시 대덕구 덕암로181번길 45(덕암동) | G77: 대전광역시 대덕구 덕암동 62-15 | H77: 3 | I77: 4 | J77: 26 | K77: 26 | M77: 비의무 | O77: 1991-04-17 | P77: 1651.99
B78: 73 | C78: 아파트 | D78: 분양 | E78: 흥진로얄아파트 | F78: 대전광역시 대덕구 비래서로25번길 37(비래동) | G78: 대전광역시 대덕구 비래동 121-9 | H78: 1 | I78: 8 | J78: 48 | K78: 48 | M78: 비의무 | O78: 1991-04-18 | P78: 5470.69
B79: 74 | C79: 아파트 | D79: 분양 | E79: 원창아파트 | F79: 대전광역시 대덕구 덕암북로10번길 31(덕암동) | G79: 대전광역시 대덕구 덕암동 4-1 | H79: 2 | I79: 6 | J79: 60 | K79: 60 | M79: 비의무 | O79: 1991-05-30 | P79: 4559.46
B80: 75 | C80: 다세대주택 | D80: 분양 | E80: 삼보연립 | F80: 대전광역시 대덕구 덕암북로22번길 145(덕암동) | G80: 대전광역시 대덕구 덕암동 42-8 | H80: 6 | I80: 4 | J80: 51 | K80: 51 | M80: 비의무 | O80: 1991-09-14 | P80: 4737.83
B81: 76 | C81: 아파트 | D81: 분양 | E81: 삼호아파트 | F81: 대전광역시 대덕구 덕암북로10번길 130(덕암동) | G81: 대전광역시 대덕구 덕암동 38-5 | H81: 1 | I81: 9 | J81: 36 | K81: 36 | M81: 비의무 | O81: 1991-10-05 | P81: 2771.51
B82: 77 | C82: 다세대주택 | D82: 분양 | E82: 광진빌라 | F82: 대전광역시 대덕구 덕암북로72번길 90(덕암동) | G82: 대전광역시 대덕구 덕암동 42-6 | H82: 6 | I82: 4 | J82: 48 | K82: 48 | M82: 비의무 | O82: 1991-10-10 | P82: 7043.76
B83: 78 | C83: 아파트 | D83: 분양 | E83: 영진로얄맨션 | F83: 대전광역시 대덕구 대전로1020번길 86(오정동) | G83: 대전광역시 대덕구 오정동 254-1 | H83: 1 | I83: 15 | J83: 120 | K83: 120 | M83: 비의무 | O83: 1991-10-12 | P83: 13068.87
B84: 79 | C84: 아파트 | D84: 분양 | E84: 현대아파트 | F84: 대전광역시 대덕구 계족로761번길 24(읍내동) | G84: 대전광역시 대덕구 읍내동 54 | H84: 15 | I84: 15~18 | J84: 1344 | K84: 1344 | M84: 의무 | N84: 위탁관리 | O84: 1991-10-12 | P84: 132505.79 | Q84: 626-3955 | R84: 331-4898
B85: 80 | C85: 아파트 | D85: 분양 | E85: 한라아파트 | F85: 대전광역시 대덕구 덕암로148번안길 26(상서동) | G85: 대전광역시 대덕구 상서동 833-2 | H85: 1 | I85: 6 | J85: 44 | K85: 44 | M85: 비의무 | O85: 1991-10-15 | P85: 5261.76
B86: 81 | C86: 아파트 | D86: 분양 | E86: 서오아파트 | F86: 대전광역시 대덕구 동춘당로23번길 13(송촌동) | G86: 대전광역시 대덕구 송촌동 554 | H86: 5 | I86: 10 | J86: 320 | K86: 320 | M86: 의무 | N86: 위탁관리 | O86: 1991-11-11 | P86: 37052.77 | Q86: 631-7313 | R86: 625-8514
B87: 82 | C87: 다세대주택 | D87: 분양 | E87: 삼화주택(&대림주택) | F87: 대전광역시 대덕구 덕암로187번길 1(덕암동) | G87: 대전광역시 대덕구 덕암동 62-6 | H87: 2 | I87: 5 | J87: 40 | K87: 40 | M87: 비의무 | O87: 1991-12-12 | P87: 2190.72
B88: 83 | C88: 주상복합 | D88: 분양 | E88: 동부맨션아파트 | F88: 대전광역시 대덕구 동서대로1748번길 45(비래동) | G88: 대전광역시 대덕구 비래동 560-9 | H88: 1 | I88: 10 | J88: 63 | K88: 63 | M88: 비의무 | O88: 1992-01-16 | P88: 4953.97
B89: 84 | C89: 다세대주택 | D89: 분양 | E89: 신일빌라 | F89: 대전광역시 대덕구 홍도로119번길 10(중리동) | G89: 대전광역시 대덕구 중리동 240-5 | H89: 2 | I89: 4 | J89: 20 | K89: 20 | M89: 비의무 | O89: 1992-02-17 | P89: 1199.6
B90: 85 | C90: 아파트 | D90: 분양 | E90: 금성백조아파트(3차) | F90: 대전광역시 대덕구 비래동로31번길 50(비래동) | G90: 대전광역시 대덕구 비래동 119-9 | H90: 1 | I90: 11 | J90: 89 | K90: 89 | M90: 비의무 | O90: 1992-03-31 | P90: 8880.32
B91: 86 | C91: 아파트 | D91: 분양 | E91: 유락아파트 | F91: 대전광역시 대덕구 석봉로44번길 13(석봉동) | G91: 대전광역시 대덕구 석봉동 178-2 | H91: 2 | I91: 4~14 | J91: 128 | K91: 128 | M91: 비의무 | O91: 1992-05-04 | P91: 12177.98
B92: 87 | C92: 아파트 | D92: 분양 | E92: 거성아파트(나동) | F92: 대전광역시 대덕구 신탄진로778번길 12(신탄진동) | G92: 대전광역시 대덕구 신탄진동 175-13 | H92: 1 | I92: 5 | J92: 20 | K92: 20 | M92: 비의무 | O92: 1992-06-30 | P92: 2023.08
B93: 88 | C93: 아파트 | D93: 분양 | E93: 거성아파트(가동) | F93: 대전광역시 대덕구 신탄진로778번길 16(신탄진동) | G93: 대전광역시 대덕구 신탄진동 175-29 | H93: 1 | I93: 5 | J93: 20 | K93: 20 | M93: 비의무 | O93: 1992-07-18 | P93: 2171.88
B94: 89 | C94: 아파트 | D94: 분양 | E94: 흥진아파트 | F94: 대전광역시 대덕구 신탄진남로 26(신탄진동) | G94: 대전광역시 대덕구 신탄진동 166-3 | H94: 1 | I94: 14 | J94: 96 | K94: 96 | M94: 비의무 | O94: 1992-09-04 | P94: 10254.85
B95: 90 | C95: 아파트 | D95: 분양 | E95: 홍림아파트 | F95: 대전광역시 대덕구 신탄진로772번길 11(신탄진동) | G95: 대전광역시 대덕구 신탄진동 175-30 | H95: 1 | I95: 5 | J95: 20 | K95: 20 | M95: 비의무 | O95: 1992-09-09 | P95: 2354.07
B96: 91 | C96: 아파트 | D96: 임대 | E96: 한마음아파트 | F96: 대전광역시 대덕구 계족로664번길 27(법동) | G96: 대전광역시 대덕구 법동 188 | H96: 6 | I96: 15 | J96: 1768 | L96: 1768 | M96: 비의무 | O96: 1992-11-17 | P96: 98559.84 | Q96: 634-2376 | R96: 622-3544
B97: 92 | C97: 아파트 | D97: 분양 | E97: 삼익소월아파트 | F97: 대전광역시 대덕구 동춘당로 160(법동) | G97: 대전광역시 대덕구 법동 190 | H97: 9 | I97: 15 | J97: 810 | K97: 810 | M97: 의무 | N97: 위탁관리 | O97: 1993-07-03 | P97: 82321.03 | Q97: 621-7420 | R97: 636-5208
B98: 93 | C98: 아파트 | D98: 분양 | E98: 다사랑아파트 | F98: 대전광역시 대덕구 대덕대로1470번길 55(목상동) | G98: 대전광역시 대덕구 목상동 185-2 | H98: 5 | I98: 15 | J98: 900 | K98: 900 | M98: 의무 | N98: 위탁관리 | O98: 1993-09-09 | P98: 61077.5 | Q98: 933-1560 | R98: 931-7520
B99: 94 | C99: 아파트 | D99: 분양 | E99: 영진상록아파트 | F99: 대전광역시 대덕구 계족로521번길 79(중리동) | G99: 대전광역시 대덕구 중리동 250-3 | H99: 2 | I99: 5~9 | J99: 104 | K99: 104 | M99: 비의무 | O99: 1993-09-23 | P99: 10128.48
B100: 95 | C100: 아파트 | D100: 분양 | E100: 그린타운아파트 | F100: 대전광역시 대덕구 동춘당로 151(법동) | G100: 대전광역시 대덕구 법동 195-1 | H100: 12 | I100: 15 | J100: 1050 | K100: 1050 | M100: 의무 | N100: 위탁관리 | O100: 1993-11-12 | P100: 96733 | Q100: 673-451~2 | R100: 673-4525
B101: 96 | C101: 아파트 | D101: 분양 | E101: 평화아파트 | F101: 대전광역시 대덕구 우암동로17번길 26(비래동) | G101: 대전광역시 대덕구 비래동 115-17 | H101: 1 | I101: 10 | J101: 49 | K101: 49 | M101: 비의무 | O101: 1994-04-30 | P101: 4141.98
B102: 97 | C102: 아파트 | D102: 분양 | E102: 현대아파트 | F102: 대전광역시 대덕구 신탄진로218번길 62(와동) | G102: 대전광역시 대덕구 와동 111 | H102: 7 | I102: 15~18 | J102: 656 | K102: 656 | M102: 의무 | N102: 위탁관리 | O102: 1994-08-19 | P102: 62589.99 | Q102: 621-4302 | R102: 621-4305
B103: 98 | C103: 아파트 | D103: 분양 | E103: 새여울(대우)아파트 | F103: 대전광역시 대덕구 대청로64번길 41(신탄진동) | G103: 대전광역시 대덕구 신탄진동 22-2 | H103: 4 | I103: 13~14 | J103: 300 | K103: 300 | M103: 의무 | N103: 위탁관리 | O103: 1994-08-27 | P103: 25495.08 | Q103: 933-4630 | R103: 331-4630
B104: 99 | C104: 아파트 | D104: 분양 | E104: 둥지아파트 | F104: 대전광역시 대덕구 신상로 21(비래동) | G104: 대전광역시 대덕구 비래동 18-21 | H104: 5 | I104: 17 | J104: 425 | K104: 425 | M104: 의무 | N104: 위탁관리 | O104: 1994-11-07 | P104: 41317.69 | Q104: 635-2376 | R104: 345-2377
B105: 100 | C105: 아파트 | D105: 분양 | E105: 새여울아파트(라이프) | F105: 대전광역시 대덕구 대청로64번길 11(신탄진동) | G105: 대전광역시 대덕구 신탄진동 22-1 | H105: 3 | I105: 13~15 | J105: 308 | K105: 308 | M105: 의무 | N105: 위탁관리 | O105: 1994-11-24 | P105: 43702.34 | Q105: 933-4996 | R105: 349-4996
B106: 101 | C106: 아파트 | D106: 분양 | E106: 보람아파트 | F106: 대전광역시 대덕구 동춘당로 178(법동) | G106: 대전광역시 대덕구 법동 191-1 | H106: 14 | I106: 14~15 | J106: 1735 | K106: 1735 | M106: 의무 | N106: 위탁관리 | O106: 1995-05-19 | P106: 213544.85 | Q106: 625-0264 | R106: 625-0265
B107: 102 | C107: 아파트 | D107: 분양 | E107: 두일아파트 | F107: 대전광역시 대덕구 석봉로30번길 32(석봉동) | G107: 대전광역시 대덕구 석봉동 316-7 | H107: 1 | I107: 7 | J107: 49 | K107: 49 | M107: 비의무 | O107: 1995-10-09 | P107: 2162.93
B108: 103 | C108: 아파트 | D108: 분양 | E108: 한밭아파트 | F108: 대전광역시 대덕구 석봉로58번안길 82(석봉동) | G108: 대전광역시 대덕구 석봉동 313-1 | H108: 1 | I108: 17 | J108: 302 | K108: 302 | M108: 의무 | N108: 위탁관리 | O108: 1995-11-10 | P108: 26313.36 | Q108: 931-7458 | R108: 347-7458
B109: 104 | C109: 아파트 | D109: 분양 | E109: 로얄아파트 | F109: 대전광역시 대덕구 동춘당로23번길 4(송촌동) | G109: 대전광역시 대덕구 송촌동 219-2 | H109: 1 | I109: 11 | J109: 87 | K109: 87 | M109: 비의무 | O109: 1995-11-11 | P109: 9019.61
B110: 105 | C110: 아파트 | D110: 분양 | E110: 무궁화아파트 | F110: 대전광역시 대덕구 덕암로154번길 6(상서동) | G110: 대전광역시 대덕구 상서동 828-2 | H110: 1 | I110: 9 | J110: 49 | K110: 49 | M110: 비의무 | O110: 1996-04-23 | P110: 4660.81 | Q110: 934-0999 | R110: 932-0999
B111: 106 | C111: 아파트 | D111: 분양 | E111: 새여울(한신)아파트(301~305동) | F111: 대전광역시 대덕구 대청로64번길 63(신탄진동) | G111: 대전광역시 대덕구 신탄진동 22-2 | H111: 4 | I111: 14 | J111: 299 | K111: 299 | M111: 의무 | N111: 위탁관리 | O111: 1996-09-14 | P111: 26261.09 | Q111: 934-0757 | R111: 935-0757
B112: 107 | C112: 아파트 | D112: 분양 | E112: 한남아파트 | F112: 대전광역시 대덕구 대전로1020번길 85(오정동) | G112: 대전광역시 대덕구 오정동 464-1 | H112: 2 | I112: 12 | J112: 200 | K112: 200 | M112: 의무 | N112: 위탁관리 | O112: 1996-10-05 | P112: 20079.1 | Q112: 621-1662 | R112: 621-1662
B113: 108 | C113: 아파트 | D113: 분양 | E113: 한라아파트 | F113: 대전광역시 대덕구 대덕대로1448번길 80(신일동) | G113: 대전광역시 대덕구 신일동 1682-4 | H113: 2 | I113: 10 | J113: 150 | K113: 150 | M113: 의무 | N113: 위탁관리 | O113: 1996-10-16 | P113: 10807.72 | Q113: 932-0999 | R113: 932-0999
B114: 109 | C114: 아파트 | D114: 분양 | E114: 참솔아파트 | F114: 대전광역시 대덕구 동춘당로23번길 65(송촌동) | G114: 대전광역시 대덕구 송촌동 560-10 | H114: 1 | I114: 8 | J114: 40 | K114: 40 | M114: 비의무 | O114: 1997-10-23 | P114: 4370.9
B115: 110 | C115: 아파트 | D115: 분양 | E115: 백송아파트 | F115: 대전광역시 대덕구 대전로1397번길 79(읍내동) | G115: 대전광역시 대덕구 읍내동 202 | H115: 2 | I115: 15~17 | J115: 297 | K115: 297 | M115: 의무 | N115: 위탁관리 | O115: 1997-11-19 | P115: 256910.07 | Q115: 636-8784 | R115: 636-8785
B116: 111 | C116: 아파트 | D116: 혼합 | E116: 반석아파트 | F116: 대전광역시 대덕구 덕암로154번길 16(상서동) | G116: 대전광역시 대덕구 상서동 828-3 | H116: 1 | I116: 11 | J116: 150 | K116: 8 | L116: 142 | M116: 비의무 | O116: 1998-10-26 | P116: 8962.44 | Q116: 935-8282 | R116: 935-8283
B117: 112 | C117: 아파트 | D117: 분양 | E117: 무궁화아파트(S-307) | F117: 대전광역시 대덕구 장동로 283-22(장동) | G117: 대전광역시 대덕구 장동 212 | H117: 2 | I117: 5 | J117: 60 | K117: 60 | M117: 비의무 | O117: 1998-11-06 | P117: 3564
B118: 113 | C118: 아파트 | D118: 분양 | E118: 덕암아파트 | F118: 대전광역시 대덕구 덕암로265번길 81(덕암동) | G118: 대전광역시 대덕구 덕암동 3-7 | H118: 1 | I118: 15 | J118: 250 | K118: 250 | M118: 의무 | N118: 위탁관리 | O118: 1998-11-17 | P118: 18009.85 | Q118: 931-7448 | R118: 936-7448
B119: 114 | C119: 아파트 | D119: 분양 | E119: 상록수아파트 | F119: 대전광역시 대덕구 대덕대로1470번길 27(목상동) | G119: 대전광역시 대덕구 목상동 185-1 | H119: 7 | I119: 14~15 | J119: 456 | K119: 456 | M119: 의무 | N119: 위탁관리 | O119: 1999-02-27 | P119: 43201.44 | Q119: 935-4755 | R119: 331-4755
B120: 115 | C120: 아파트 | D120: 분양 | E120: 양지마을아파트 | F120: 대전광역시 대덕구 대전로1185번길 30(오정동) | G120: 대전광역시 대덕구 오정동 55-5 | H120: 8 | I120: 6~20 | J120: 548 | K120: 548 | M120: 의무 | N120: 위탁관리 | O120: 1999-05-31 | P120: 55566.77 | Q120: 626-2155 | R120: 626-2156
B121: 116 | C121: 아파트 | D121: 분양 | E121: 선비마을아파트2단지 | F121: 대전광역시 대덕구 동춘당로114번길 47(송촌동) | G121: 대전광역시 대덕구 송촌동 444 | H121: 11 | I121: 16~20 | J121: 1146 | K121: 1146 | M121: 의무 | N121: 위탁관리 | O121: 1999-10-12 | P121: 144198.39 | Q121: 635-5523 | R121: 635-5538
B122: 117 | C122: 아파트 | D122: 분양 | E122: 선비마을5단지 | F122: 대전광역시 대덕구 계족산로 136(송촌동) | G122: 대전광역시 대덕구 송촌동 494-1 | H122: 19 | I122: 17~20 | J122: 1555 | K122: 1555 | M122: 의무 | N122: 위탁관리 | O122: 1999-10-21 | P122: 157064.91 | Q122: 634-5816 | R122: 634-5818
B123: 118 | C123: 아파트 | D123: 분양 | E123: 선비마을4단지 | F123: 대전광역시 대덕구 계족산로 135(송촌동) | G123: 대전광역시 대덕구 송촌동 462 | H123: 17 | I123: 19 | J123: 1428 | K123: 1428 | M123: 의무 | N123: 위탁관리 | O123: 1999-10-26 | P123: 141307.3 | Q123: 633-8693 | R123: 633-8694
B124: 119 | C124: 아파트 | D124: 분양 | E124: 선비마을아파트(1단지) | F124: 대전광역시 대덕구 계족로690번길 21(법동) | G124: 대전광역시 대덕구 법동 440-4 | H124: 11 | I124: 18~20 | J124: 1140 | K124: 1140 | M124: 의무 | N124: 위탁관리 | O124: 1999-11-03 | P124: 99913.23 | Q124: 635-8521 | R124: 635-8522
B125: 120 | C125: 아파트 | D125: 분양 | E125: 선비마을3단지 | F125: 대전광역시 대덕구 동춘당로114번길 60(송촌동) | G125: 대전광역시 대덕구 송촌동 461-1 | H125: 16 | I125: 17~20 | J125: 1872 | K125: 1872 | M125: 의무 | N125: 위탁관리 | O125: 1999-12-18 | P125: 190942.86 | Q125: 672-7910 | R125: 672-7911
B126: 121 | C126: 아파트 | D126: 분양 | E126: 덕암마을아파트 | F126: 대전광역시 대덕구 덕암로234번길 15(덕암동) | G126: 대전광역시 대덕구 덕암동 45-2 | H126: 4 | I126: 18~25 | J126: 292 | K126: 292 | M126: 의무 | N126: 위탁관리 | O126: 2000-10-30 | P126: 30055.08 | Q126: 933-0098 | R126: 331-0098
B127: 122 | C127: 아파트 | D127: 분양 | E127: 두레아파트 | F127: 대전광역시 대덕구 대화1길 77(대화동) | G127: 대전광역시 대덕구 대화동 31-36 | H127: 1 | I127: 14 | J127: 423 | K127: 423 | M127: 의무 | N127: 자치관리 | O127: 2001-07-11 | P127: 20955.63 | Q127: 628-0791 | R127: 628-0791
B128: 123 | C128: 아파트 | D128: 분양 | E128: 미래아파트 | F128: 대전광역시 대덕구 우암동로18번길 30(비래동) | G128: 대전광역시 대덕구 비래동 135-5 | H128: 1 | I128: 15 | J128: 172 | K128: 172 | M128: 의무 | N128: 자치관리 | O128: 2001-07-30 | P128: 13864.94 | Q128: 635-2226 | R128: 635-6229
B129: 124 | C129: 주상복합 | D129: 분양 | E129: 골든리버 | F129: 대전광역시 대덕구 신탄진로810번길 20(신탄진동) | G129: 대전광역시 대덕구 신탄진동 141-28 | H129: 1 | I129: 4~15 | J129: 191 | K129: 191 | M129: 의무 | N129: 자치관리 | O129: 2004-05-25 | P129: 19110.3 | Q129: 933-8220 | R129: 933-8224
B130: 125 | C130: 아파트 | D130: 분양 | E130: 리치빌아파트 | F130: 대전광역시 대덕구 비래동로32번길 45(비래동) | G130: 대전광역시 대덕구 비래동 145-11 | H130: 1 | I130: 9 | J130: 53 | K130: 53 | M130: 비의무 | O130: 2005-04-22 | P130: 6987.62
B131: 126 | C131: 아파트 | D131: 분양 | E131: 유앤미 아파트 | F131: 대전광역시 대덕구 우암동로15번길 30(비래동) | G131: 대전광역시 대덕구 비래동 116-2 | H131: 1 | I131: 5 | J131: 58 | K131: 58 | M131: 비의무 | O131: 2005-04-22 | P131: 7464.21
B132: 127 | C132: 아파트 | D132: 분양 | E132: 아이조움아파트 | F132: 대전광역시 대덕구 비래서로61번길 71(비래동) | G132: 대전광역시 대덕구 비래동 136-3 | H132: 2 | I132: 8~11 | J132: 82 | K132: 82 | M132: 비의무 | O132: 2005-06-02 | P132: 11166.13
B133: 128 | C133: 아파트 | D133: 분양 | E133: 비래휴플러스 | F133: 대전광역시 대덕구 비래서로10번길 21(비래동) | G133: 대전광역시 대덕구 비래동 509-1 | H133: 5 | I133: 14~25 | J133: 646 | K133: 646 | M133: 의무 | N133: 위탁관리 | O133: 2006-06-14 | P133: 71486.25 | Q133: 627-9340 | R133: 623-9339
B134: 129 | C134: 아파트 | D134: 분양 | E134: 해맞이아파트 | F134: 대전광역시 대덕구 신탄진로232번길 10(와동) | G134: 대전광역시 대덕구 와동 371 | H134: 1 | I134: 13 | J134: 34 | K134: 34 | M134: 비의무 | O134: 2006-09-15 | P134: 4228.59
B135: 130 | C135: 아파트 | D135: 분양 | E135: 평화로운아파트 | F135: 대전광역시 대덕구 한밭대로1003번길 25(오정동) | G135: 대전광역시 대덕구 오정동 587-1 | H135: 2 | I135: 15 | J135: 201 | K135: 201 | M135: 의무 | N135: 위탁관리 | O135: 2007-11-19 | P135: 18570.22 | Q135: 638-5222 | R135: 638-5223
B136: 131 | C136: 아파트 | D136: 분양 | E136: 리치빌아파트 | F136: 대전광역시 대덕구 덕암로234번길 23(덕암동) | G136: 대전광역시 대덕구 덕암동 46-2 | H136: 1 | I136: 14 | J136: 118 | K136: 118 | M136: 비의무 | O136: 2009-03-24 | P136: 12417.57
B137: 132 | C137: 아파트 | D137: 분양 | E137: 행복한 마을 아파트 | F137: 대전광역시 대덕구 덕암로 200(평촌동) | G137: 대전광역시 대덕구 평촌동 540-1 | H137: 9 | I137: 15~20 | J137: 589 | K137: 589 | M137: 의무 | N137: 위탁관리 | O137: 2011-04-29 | P137: 67346.56 | Q137: 931-4300 | R137: 933-4302
B138: 133 | C138: 아파트 | D138: 분양 | E138: 평화로운아파트 | F138: 대전광역시 대덕구 대덕대로1520번길 77(목상동) | G138: 대전광역시 대덕구 목상동 207-25 | H138: 3 | I138: 12~15 | J138: 199 | K138: 199 | M138: 의무 | N138: 자치관리 | O138: 2011-07-29 | P138: 22705.27 | Q138: 934-7227 | R138: 934-7227
B139: 134 | C139: 아파트 | D139: 분양 | E139: 금강엑슬루타워 | F139: 대전광역시 대덕구 대덕대로 1555(석봉동) | G139: 대전광역시 대덕구 석봉동 770 | H139: 12 | I139: 36~50 | J139: 2312 | K139: 2312 | M139: 의무 | N139: 위탁관리 | O139: 2012-01-12 | P139: 308085.24 | Q139: 934-0570 | R139: 934-0456
B140: 135 | C140: 다세대주택 | D140: 분양 | E140: 행복한집 | F140: 대전광역시 대덕구 비래동로39번길 43(비래동) | G140: 대전광역시 대덕구 비래동 119-3 | H140: 4 | I140: 5 | J140: =K140+L140 -> 28 | K140: 28 | M140: 비의무 | O140: 2012-12-31 | P140: 2059.12
B141: 136 | C141: 연립주택 | D141: 분양 | E141: 모아빌 A동 | F141: 대전광역시 대덕구 덕암로 145(덕암동) | G141: 대전광역시 대덕구 덕암동 79-5 | H141: 1 | I141: 5 | J141: 20 | K141: 20 | M141: 비의무 | O141: 2013-08-07 | P141: 1273.56
B142: 137 | C142: 다세대주택 | D142: 분양 | E142: 시그마빌 | F142: 대전광역시 대덕구 송촌로 34(송촌동) | G142: 대전광역시 대덕구 송촌동 223-4 | H142: 3 | I142: 4~5 | J142: 20 | K142: 20 | M142: 비의무 | O142: 2013-09-11 | P142: 1370.88
B143: 138 | C143: 다세대주택 | D143: 분양 | E143: 송촌대호하이츠 | F143: 대전광역시 대덕구 송촌로37번길 13(송촌동) | G143: 대전광역시 대덕구 송촌동 226-11 | H143: 3 | I143: 5 | J143: 24 | K143: 24 | M143: 비의무 | O143: 2013-09-13 | P143: 1783.15
B144: 139 | C144: 연립주택 | D144: 분양 | E144: 세종빌라 | F144: 대전광역시 대덕구 우암로492번길 64(비래동) | G144: 대전광역시 대덕구 비래동 115-6 | H144: 1 | I144: 5 | J144: 20 | K144: 20 | M144: 비의무 | O144: 2013-10-21 | P144: 1372.29
B145: 140 | C145: 아파트 | D145: 분양 | E145: 두레마을아파트 201동 | F145: 대전광역시 대덕구 대덕대로1486번길 65(목상동) | G145: 대전광역시 대덕구 목상동 204 | H145: 1 | I145: 9 | J145: 49 | K145: 49 | M145: 비의무 | O145: 2014-04-22 | P145: 5246.19
B146: 141 | C146: 아파트 | D146: 분양 | E146: 두레마을아파트 | F146: 대전광역시 대덕구 대덕대로1520번길 55(목상동) | G146: 대전광역시 대덕구 목상동 207-45 | H146: 1 | I146: 9 | J146: 49 | K146: 49 | M146: 비의무 | O146: 2014-06-05 | P146: 5652.51
B147: 142 | C147: 아파트 | D147: 분양 | E147: 평원아파트 | F147: 대전광역시 대덕구 동춘당로15번길 54(송촌동) | G147: 대전광역시 대덕구 송촌동 560-6 | H147: 1 | I147: 9 | J147: 52 | K147: 52 | M147: 비의무 | O147: 2014-10-14 | P147: 4616.42 | S147: 도시형생활주택
B148: 143 | C148: 연립주택 | D148: 분양 | E148: 브리스빌 | F148: 대전광역시 대덕구 동서대로1778번길 20(비래동) | G148: 대전광역시 대덕구 비래동 556-36 | H148: 1 | I148: 5 | J148: 22 | K148: 22 | M148: 비의무 | O148: 2016-03-25 | P148: 1700.38
B149: 144 | C149: 아파트 | D149: 분양 | E149: 세진시티빌 | F149: 대전광역시 대덕구 덕암북로10번길 20(덕암동) | G149: 대전광역시 대덕구 덕암동 1-5 | H149: 1 | I149: 5 | J149: 29 | K149: 29 | M149: 비의무 | O149: 2016-04-11 | P149: 2786.95 | S149: 도시형생활주택
B150: 145 | C150: 아파트 | D150: 분양 | E150: 드림팰리스아파트(4차) | F150: 대전광역시 대덕구 비래서로10번길 86(비래동) | G150: 대전광역시 대덕구 비래동 561-3 | H150: 1 | I150: 8 | J150: 28 | K150: 28 | M150: 비의무 | O150: 2017-02-17 | P150: 2719.5
B151: 146 | C151: 아파트 | D151: 분양 | E151: 금강로하스 엘크루아파트 | F151: 대전광역시 대덕구 대덕대로 1587(석봉동) | G151: 대전광역시 대덕구 석봉동 771 | H151: 10 | I151: 16~25 | J151: 765 | K151: 765 | M151: 의무 | N151: 위탁관리 | O151: 2017-10-26 | P151: 78646.96 | Q151: 931-1500 | R151: 931-1700
B152: 147 | C152: 아파트 | D152: 분양 | E152: 브리스빌 | F152: 대전광역시 대덕구 신탄진동로 68(신탄진동) | G152: 대전광역시 대덕구 신탄진동 150-11 | H152: 2 | I152: 4 | J152: 24 | K152: 24 | M152: 비의무 | O152: 2017-12-14 | P152: 2044.88 | S152: 도시형생활주택
B153: 148 | C153: 아파트 | D153: 분양 | E153: 나이스팰리스아파트 | F153: 대전광역시 대덕구 대전로1032번길 13-13(오정동) | G153: 대전광역시 대덕구 오정동 472-6 | H153: 1 | I153: 15 | J153: 98 | K153: 98 | M153: 비의무 | O153: 2017-12-22 | P153: 7471.34 | S153: 도시형생활주택
B154: 149 | C154: 아파트 | D154: 분양 | E154: 트윈스아파트 | F154: 대전광역시 대덕구 신탄진로796번길 51(신탄진동) | G154: 대전광역시 대덕구 신탄진동 138-9 | H154: 1 | I154: 10 | J154: 30 | K154: 30 | M154: 비의무 | O154: 2018-07-31 | P154: 3432.25
B155: 150 | C155: 아파트 | D155: 분양 | E155: 에코빌 | F155: 대전광역시 대덕구 덕암로221번길 24(덕암동) | G155: 대전광역시 대덕구 덕암동 42-7 | H155: 1 | I155: 7 | J155: 29 | K155: 29 | M155: 비의무 | O155: 2018-12-18 | P155: 1808.77 | S155: 도시형생활주택
B156: 151 | C156: 아파트 | D156: 분양 | E156: 대호해맑음오피스텔 | F156: 대전광역시 대덕구 신탄진로834번길 15(신탄진동) | G156: 대전광역시 대덕구 신탄진동 117-30 | H156: 1 | I156: 9 | J156: 28 | K156: 28 | M156: 비의무 | O156: 2019-01-17 | P156: 3511.13
B157: 152 | C157: 아파트 | D157: 분양 | E157: 담소루 | F157: 대전광역시 대덕구 신탄진로810번길 60(신탄진동) | G157: 대전광역시 대덕구 신탄진동 139-3 | H157: 1 | I157: 7 | J157: 21 | K157: 21 | M157: 비의무 | O157: 2019-09-02 | P157: 1494.95
B158: 153 | C158: 아파트 | D158: 분양 | E158: 이노센스뷰 | F158: 대전광역시 대덕구 석봉로 31(석봉동) | G158: 대전광역시 대덕구 석봉동 189-18 | H158: 1 | I158: 8 | J158: 28 | K158: 28 | M158: 비의무 | O158: 2019-09-17 | P158: 3699.65
B159: 154 | C159: 아파트 | D159: 분양 | E159: 그레이스K | F159: 대전광역시 대덕구 한밭대로 1140(중리동) | G159: 대전광역시 대덕구 중리동 236-4 | H159: 2 | I159: 8~11 | J159: 66 | K159: 66 | M159: 비의무 | O159: 2020-08-14 | P159: 4148.18
B160: 155 | C160: 아파트 | D160: 분양 | E160: 금강센트럴파크 서희스타힐스 | F160: 대전광역시 대덕구 대덕대로1585번길 44(석봉동) | G160: 대전광역시 대덕구 석봉동 787 | H160: 12 | I160: 15~33 | J160: 835 | K160: 835 | M160: 의무 | N160: 위탁관리 | O160: 2020-08-31 | P160: 798074.42 | Q160: 933-2300 | R160: 933-2400
B161: 156 | C161: 아파트 | D161: 분양 | E161: e편한세상 대전법동 | F161: 대전광역시 대덕구 중리북로 46(법동) | G161: 대전광역시 대덕구 법동 448 | H161: 12 | I161: 21~29 | J161: 1503 | K161: 1503 | M161: 의무 | N161: 위탁관리 | O161: 2020-09-18 | P161: 151106.77 | Q161: 639-8841 | R161: 639-8842
B162: 157 | C162: 아파트 | D162: 임대 | E162: 대전상서 LH 행복주택 | F162: 대전광역시 대덕구 새말3길 41(상서동) | G162: 대전광역시 대덕구 상서동 843 | H162: 2 | I162: 17~18 | J162: 296 | L162: 296 | M162: 비의무 | O162: 2020-11-17 | P162: 12977.56 | Q162: 936-5777 | R162: 936-5776
B163: 158 | C163: 아파트 | D163: 분양 | E163: 대전 동일스위트 리버스카이 1단지 | F163: 대전광역시 대덕구 대청로 43(신탄진동) | G163: 대전광역시 대덕구 신탄진동 771 | H163: 12 | I163: 31~43 | J163: 1757 | K163: 1757 | M163: 의무 | N163: 위탁관리 | O163: 2021-11-29 | P163: 176074.15 | Q163: 932-9777 | R163: 932-9778
B164: 159 | C164: 아파트 | D164: 분양 | E164: 세울더레스트 | F164: 대전광역시 대덕구 대덕대로1605번길 26-20(석봉동) | G164: 대전광역시 대덕구 석봉동 200-3 | H164: 1 | I164: 12 | J164: 28 | K164: 28 | M164: 비의무 | O164: 2021-12-04 | P164: 1812.9 | S164: 도시형생활주택
B165: 160 | C165: 아파트 | D165: 분양 | E165: 세울더레스트2차아파트 | F165: 대전광역시 대덕구 석봉북로12번길 19(석봉동) | G165: 대전광역시 대덕구 석봉동 353-33 | H165: 1 | I165: 14 | J165: 61 | K165: 61 | M165: 비의무 | O165: 2022-09-23 | P165: 5631.22
B166: 161 | C166: 아파트 | D166: 분양 | E166: 트윈스 아파트 12차 | F166: 대전광역시 대덕구 신탄진로796번길 32(신탄진동) | G166: 대전광역시 대덕구 신탄진동 153-11 | H166: 1 | I166: 10 | J166: 24 | K166: 24 | M166: 비의무 | O166: 2023-01-13 | P166: 3028.85
B167: 162 | C167: 아파트 | D167: 분양 | E167: 그레이스K8 | F167: 대전광역시 대덕구 덕암북로60번길 21(덕암동) | G167: 대전광역시 대덕구 덕암동 11-1 | H167: 1 | I167: 9 | J167: 40 | K167: 40 | M167: 비의무 | O167: 2023-06-29 | P167: 2199.1 | S167: 도시형생활주택
B168: 163 | C168: 아파트 | D168: 임대 | E168: 대전 동일스위트 리버스카이 2단지 | F168: 대전광역시 대덕구 대청로 53(신탄진동) | G168: 대전광역시 대덕구 신탄진동 882 | H168: 6 | I168: 25~38 | J168: 655 | L168: 655 | M168: 비의무 | O168: 2024-02-14 | P168: 109521.79 | Q168: 713-9399
B169: 164 | C169: 아파트 | D169: 분양 | E169: 대덕브라운스톤 | F169: 대전광역시 대덕구 신탄진로210번길 91(와동) | G169: 대전광역시 대덕구 와동 39 | H169: 7 | I169: 29 | J169: 910 | K169: 910 | M169: 의무 | O169: 2024-04-09 | P169: 128155.8956 | Q169: 625-5121 | R169: 625-5122

Sheet 공동주택 노후현황
B3: 《 노후공동주택 현황 》
B4: 구 분 | C4: 총 계 | F4: 20년 미만 | I4: 20년이상
C5: 단지수 | D5: 동 수 | E5: 세대수 | F5: 단지수 | G5: 동 수 | H5: 세대수 | I5: 단지수 | J5: 동 수 | K5: 세대수
B6: 계 | C6: =SUM(C7:C11) -> 1098 | D6: =SUM(D7:D11) -> 5100 | E6: 392525 | F6: 499 | G6: 2106 | H6: 165027 | I6: 599 | J6: 2994 | K6: 227498
B7: 동구 | C7: 224 | D7: 923 | E7: 56575 | F7: 87 | G7: 412 | H7: 30547 | I7: 137 | J7: 511 | K7: 26028
B8: 중구 | C8: 173 | D8: 714 | E8: 54869 | F8: 72 | G8: 224 | H8: 19021 | I8: 101 | J8: 490 | K8: 35848
B9: 서구 | C9: =F9+I9 -> 284 | D9: 1439 | E9: 127074 | F9: 113 | G9: 389 | H9: 31472 | I9: 171 | J9: 1050 | K9: 95602
B10: 유성구 | C10: 253 | D10: 1418 | E10: 108695 | F10: 187 | G10: 951 | H10: 72156 | I10: 66 | J10: 467 | K10: 36539
B11: 대덕구 | C11: 164 | D11: 606 | E11: 45312 | F11: 40 | G11: 130 | H11: 11831 | I11: 124 | J11: 476 | K11: 33481
B15: 《노후공동주택 구별 현황 》 | E15: (단위: 동, %) | I15: (단위: 세대수, %)
B16: 순위 | C16: 공동주택 동수 기준 | F16: 순위 | G16: 공동주택 세대수 기준
C17: 구청명 | D17: 노후주택 수(동) | E17: 노후주택 비율(%) (각 구별: 노후동수/총동수) | G17: 구청명 | H17: 노후주택 세대(수) | I17: 노후주택 비율(%) (각 구별: 노후세대수/총세대수)
B19: 1 | C19: 대덕구 | D19: 476 | E19: =D19/D11 -> 0.7854785479 | F19: 2 | G19: 대덕구 | H19: 33481 | I19: =H19/E11 -> 0.7388991879
B20: 2 | C20: 서구 | D20: =J9 -> 1050 | E20: =D20/D9 -> 0.7296733843 | F20: 1 | G20: 서구 | H20: =K9 -> 95602 | I20: =H20/E9 -> 0.7523332861
B21: 3 | C21: 중구 | D21: 490 | E21: =D21/D8 -> 0.6862745098 | F21: 3 | G21: 중구 | H21: 35848 | I21: =H21/E8 -> 0.6533379504
B22: 4 | C22: 동구 | D22: 511 | E22: 0.5167930661 | F22: 4 | G22: 동구 | H22: 26028 | I22: 0.6138400354
B23: 5 | C23: 유성구 | D23: 467 | E23: =D23/D10 -> 0.3293370945 | F23: 5 | G23: 유성구 | H23: 36539 | I23: =H23/E10 -> 0.336160817
B24: 총 계 | C24: 대전광역시 | D24: =SUM(D19:D23) -> 2994 | E24: =J6/D6 -> 0.5870588235 | F24: 총 계 | G24: 대전광역시 | H24: =SUM(H19:H23) -> 227498 | I24: =K6/E6 -> 0.5795758232

Sheet 기본정보 (hidden)
B1: 종로구 | C1: 아파트 | K1: 의무관리
B2: 중구 | C2: 주상복합 | K2: 임의관리
B3: 용산구 | C3: 연립
B4: 성동구 | C4: 다세대
B5: 광진구
B6: 동대문구
B7: 중랑구
B8: 성북구
B9: 강북구
B10: 도봉구
B11: 노원구
B12: 은평구
B13: 서대문구
B14: 마포구
B15: 양천구
B16: 강서구
B17: 구로구
B18: 금천구
B19: 영등포구
B20: 동작구
B21: 관악구
B22: 서초구
B23: 강남구
B24: 송파구
B25: 강동구

Sheet Sheet1 (hidden)
A1: 준공연도 | D1: 1971-01-01 | F1: 1981-01-01 | H1: 1991-01-01 | J1: 2001-01-01 | L1: 2011-01-01 | N1: 비고
B2: 단지 | C2: 동수 | D2: 단지 | E2: 동수 | F2: 단지 | G2: 동수 | H2: 단지 | I2: 동수 | J2: 단지 | K2: 동수 | L2: 단지 | M2: 동수
A3: 계 | B3: =SUM(B4:B28) ->  | C3: =SUM(C4:C28) -> 
A4: 종로구 | B4: =COUNTIFS(#REF!,Sheet1!$A4,#REF!,"<>임대",#REF!,">=30",#REF!,"<"&Sheet1!D$1) ->  | C4: =SUMIFS(#REF!,#REF!,Sheet1!$A4,#REF!,"<>임대",#REF!,">=30",#REF!,"<"&D$1) ->  | D4: =COUNTIFS(#REF!,Sheet1!$A4,#REF!,"<>임대",#REF!,">=30",#REF!,">="&Sheet1!D$1,#REF!,"<"&Sheet1!F$1) ->  | E4: =SUMIFS(#REF!,#REF!,Sheet1!$A4,#REF!,"<>임대",#REF!,">=30",#REF!,">="&D$1,#REF!,"<"&F$1) ->  | F4: =COUNTIFS(#REF!,Sheet1!$A4,#REF!,"<>임대",#REF!,">=30",#REF!,">="&Sheet1!F$1,#REF!,"<"&Sheet1!H$1) ->  | G4: =SUMIFS(#REF!,#REF!,Sheet1!$A4,#REF!,"<>임대",#REF!,">=30",#REF!,">="&F$1,#REF!,"<"&H$1) ->  | H4: =COUNTIFS(#REF!,Sheet1!$A4,#REF!,"<>임대",#REF!,">=30",#REF!,">="&Sheet1!H$1,#REF!,"<"&Sheet1!J$1) ->  | I4: =SUMIFS(#REF!,#REF!,Sheet1!$A4,#REF!,"<>임대",#REF!,">=30",#REF!,">="&H$1,#REF!,"<"&J$1) ->  | J4: =COUNTIFS(#REF!,Sheet1!$A4,#REF!,"<>임대",#REF!,">=30",#REF!,">="&Sheet1!J$1,#REF!,"<"&Sheet1!L$1) ->  | K4: =SUMIFS(#REF!,#REF!,Sheet1!$A4,#REF!,"<>임대",#REF!,">=30",#REF!,">="&J$1,#REF!,"<"&L$1) ->  | L4: =COUNTIFS(#REF!,Sheet1!$A4,#REF!,"<>임대",#REF!,">=30",#REF!,">="&Sheet1!L$1) ->  | M4: =SUMIFS(#REF!,#REF!,Sheet1!$A4,#REF!,"<>임대",#REF!,">=30",#REF!,">="&L$1) -> 
A5: 중구 | B5: =COUNTIFS(#REF!,Sheet1!$A5,#REF!,"<>임대",#REF!,">=30",#REF!,"<"&Sheet1!D$1) ->  | C5: =SUMIFS(#REF!,#REF!,Sheet1!$A5,#REF!,"<>임대",#REF!,">=30",#REF!,"<"&D$1) ->  | D5: =COUNTIFS(#REF!,Sheet1!$A5,#REF!,"<>임대",#REF!,">=30",#REF!,">="&Sheet1!D$1,#REF!,"<"&Sheet1!F$1) ->  | E5: =SUMIFS(#REF!,#REF!,Sheet1!$A5,#REF!,"<>임대",#REF!,">=30",#REF!,">="&D$1,#REF!,"<"&F$1) ->  | F5: =COUNTIFS(#REF!,Sheet1!$A5,#REF!,"<>임대",#REF!,">=30",#REF!,">="&Sheet1!F$1,#REF!,"<"&Sheet1!H$1) ->  | G5: =SUMIFS(#REF!,#REF!,Sheet1!$A5,#REF!,"<>임대",#REF!,">=30",#REF!,">="&F$1,#REF!,"<"&H$1) ->  | H5: =COUNTIFS(#REF!,Sheet1!$A5,#REF!,"<>임대",#REF!,">=30",#REF!,">="&Sheet1!H$1,#REF!,"<"&Sheet1!J$1) ->  | I5: =SUMIFS(#REF!,#REF!,Sheet1!$A5,#REF!,"<>임대",#REF!,">=30",#REF!,">="&H$1,#REF!,"<"&J$1) ->  | J5: =COUNTIFS(#REF!,Sheet1!$A5,#REF!,"<>임대",#REF!,">=30",#REF!,">="&Sheet1!J$1,#REF!,"<"&Sheet1!L$1) ->  | K5: =SUMIFS(#REF!,#REF!,Sheet1!$A5,#REF!,"<>임대",#REF!,">=30",#REF!,">="&J$1,#REF!,"<"&L$1) ->  | L5: =COUNTIFS(#REF!,Sheet1!$A5,#REF!,"<>임대",#REF!,">=30",#REF!,">="&Sheet1!L$1) ->  | M5: =SUMIFS(#REF!,#REF!,Sheet1!$A5,#REF!,"<>임대",#REF!,">=30",#REF!,">="&L$1) -> 
A6: 용산구 | B6: =COUNTIFS(#REF!,Sheet1!$A6,#REF!,"<>임대",#REF!,">=30",#REF!,"<"&Sheet1!D$1) ->  | C6: =SUMIFS(#REF!,#REF!,Sheet1!$A6,#REF!,"<>임대",#REF!,">=30",#REF!,"<"&D$1) ->  | D6: =COUNTIFS(#REF!,Sheet1!$A6,#REF!,"<>임대",#REF!,">=30",#REF!,">="&Sheet1!D$1,#REF!,"<"&Sheet1!F$1) ->  | E6: =SUMIFS(#REF!,#REF!,Sheet1!$A6,#REF!,"<>임대",#REF!,">=30",#REF!,">="&D$1,#REF!,"<"&F$1) ->  | F6: =COUNTIFS(#REF!,Sheet1!$A6,#REF!,"<>임대",#REF!,">=30",#REF!,">="&Sheet1!F$1,#REF!,"<"&Sheet1!H$1) ->  | G6: =SUMIFS(#REF!,#REF!,Sheet1!$A6,#REF!,"<>임대",#REF!,">=30",#REF!,">="&F$1,#REF!,"<"&H$1) ->  | H6: =COUNTIFS(#REF!,Sheet1!$A6,#REF!,"<>임대",#REF!,">=30",#REF!,">="&Sheet1!H$1,#REF!,"<"&Sheet1!J$1) ->  | I6: =SUMIFS(#REF!,#REF!,Sheet1!$A6,#REF!,"<>임대",#REF!,">=30",#REF!,">="&H$1,#REF!,"<"&J$1) ->  | J6: =COUNTIFS(#REF!,Sheet1!$A6,#REF!,"<>임대",#REF!,">=30",#REF!,">="&Sheet1!J$1,#REF!,"<"&Sheet1!L$1) ->  | K6: =SUMIFS(#REF!,#REF!,Sheet1!$A6,#REF!,"<>임대",#REF!,">=30",#REF!,">="&J$1,#REF!,"<"&L$1) ->  | L6: =COUNTIFS(#REF!,Sheet1!$A6,#REF!,"<>임대",#REF!,">=30",#REF!,">="&Sheet1!L$1) ->  | M6: =SUMIFS(#REF!,#REF!,Sheet1!$A6,#REF!,"<>임대",#REF!,">=30",#REF!,">="&L$1) -> 
A7: 성동구 | B7: =COUNTIFS(#REF!,Sheet1!$A7,#REF!,"<>임대",#REF!,">=30",#REF!,"<"&Sheet1!D$1) ->  | C7: =SUMIFS(#REF!,#REF!,Sheet1!$A7,#REF!,"<>임대",#REF!,">=30",#REF!,"<"&D$1) ->  | D7: =COUNTIFS(#REF!,Sheet1!$A7,#REF!,"<>임대",#REF!,">=30",#REF!,">="&Sheet1!D$1,#REF!,"<"&Sheet1!F$1) ->  | E7: =SUMIFS(#REF!,#REF!,Sheet1!$A7,#REF!,"<>임대",#REF!,">=30",#REF!,">="&D$1,#REF!,"<"&F$1) ->  | F7: =COUNTIFS(#REF!,Sheet1!$A7,#REF!,"<>임대",#REF!,">=30",#REF!,">="&Sheet1!F$1,#REF!,"<"&Sheet1!H$1) ->  | G7: =SUMIFS(#REF!,#REF!,Sheet1!$A7,#REF!,"<>임대",#REF!,">=30",#REF!,">="&F$1,#REF!,"<"&H$1) ->  | H7: =COUNTIFS(#REF!,Sheet1!$A7,#REF!,"<>임대",#REF!,">=30",#REF!,">="&Sheet1!H$1,#REF!,"<"&Sheet1!J$1) ->  | I7: =SUMIFS(#REF!,#REF!,Sheet1!$A7,#REF!,"<>임대",#REF!,">=30",#REF!,">="&H$1,#REF!,"<"&J$1) ->  | J7: =COUNTIFS(#REF!,Sheet1!$A7,#REF!,"<>임대",#REF!,">=30",#REF!,">="&Sheet1!J$1,#REF!,"<"&Sheet1!L$1) ->  | K7: =SUMIFS(#REF!,#REF!,Sheet1!$A7,#REF!,"<>임대",#REF!,">=30",#REF!,">="&J$1,#REF!,"<"&L$1) ->  | L7: =COUNTIFS(#REF!,Sheet1!$A7,#REF!,"<>임대",#REF!,">=30",#REF!,">="&Sheet1!L$1) ->  | M7: =SUMIFS(#REF!,#REF!,Sheet1!$A7,#REF!,"<>임대",#REF!,">=30",#REF!,">="&L$1) -> 
A8: 광진구 | B8: =COUNTIFS(#REF!,Sheet1!$A8,#REF!,"<>임대",#REF!,">=30",#REF!,"<"&Sheet1!D$1) ->  | C8: =SUMIFS(#REF!,#REF!,Sheet1!$A8,#REF!,"<>임대",#REF!,">=30",#REF!,"<"&D$1) ->  | D8: =COUNTIFS(#REF!,Sheet1!$A8,#REF!,"<>임대",#REF!,">=30",#REF!,">="&Sheet1!D$1,#REF!,"<"&Sheet1!F$1) ->  | E8: =SUMIFS(#REF!,#REF!,Sheet1!$A8,#REF!,"<>임대",#REF!,">=30",#REF!,">="&D$1,#REF!,"<"&F$1) ->  | F8: =COUNTIFS(#REF!,Sheet1!$A8,#REF!,"<>임대",#REF!,">=30",#REF!,">="&Sheet1!F$1,#REF!,"<"&Sheet1!H$1) ->  | G8: =SUMIFS(#REF!,#REF!,Sheet1!$A8,#REF!,"<>임대",#REF!,">=30",#REF!,">="&F$1,#REF!,"<"&H$1) ->  | H8: =COUNTIFS(#REF!,Sheet1!$A8,#REF!,"<>임대",#REF!,">=30",#REF!,">="&Sheet1!H$1,#REF!,"<"&Sheet1!J$1) ->  | I8: =SUMIFS(#REF!,#REF!,Sheet1!$A8,#REF!,"<>임대",#REF!,">=30",#REF!,">="&H$1,#REF!,"<"&J$1) ->  | J8: =COUNTIFS(#REF!,Sheet1!$A8,#REF!,"<>임대",#REF!,">=30",#REF!,">="&Sheet1!J$1,#REF!,"<"&Sheet1!L$1) ->  | K8: =SUMIFS(#REF!,#REF!,Sheet1!$A8,#REF!,"<>임대",#REF!,">=30",#REF!,">="&J$1,#REF!,"<"&L$1) ->  | L8: =COUNTIFS(#REF!,Sheet1!$A8,#REF!,"<>임대",#REF!,">=30",#REF!,">="&Sheet1!L$1) ->  | M8: =SUMIFS(#REF!,#REF!,Sheet1!$A8,#REF!,"<>임대",#REF!,">=30",#REF!,">="&L$1) -> 
A9: 동대문구 | B9: =COUNTIFS(#REF!,Sheet1!$A9,#REF!,"<>임대",#REF!,">=30",#REF!,"<"&Sheet1!D$1) ->  | C9: =SUMIFS(#REF!,#REF!,Sheet1!$A9,#REF!,"<>임대",#REF!,">=30",#REF!,"<"&D$1) ->  | D9: =COUNTIFS(#REF!,Sheet1!$A9,#REF!,"<>임대",#REF!,">=30",#REF!,">="&Sheet1!D$1,#REF!,"<"&Sheet1!F$1) ->  | E9: =SUMIFS(#REF!,#REF!,Sheet1!$A9,#REF!,"<>임대",#REF!,">=30",#REF!,">="&D$1,#REF!,"<"&F$1) ->  | F9: =COUNTIFS(#REF!,Sheet1!$A9,#REF!,"<>임대",#REF!,">=30",#REF!,">="&Sheet1!F$1,#REF!,"<"&Sheet1!H$1) ->  | G9: =SUMIFS(#REF!,#REF!,Sheet1!$A9,#REF!,"<>임대",#REF!,">=30",#REF!,">="&F$1,#REF!,"<"&H$1) ->  | H9: =COUNTIFS(#REF!,Sheet1!$A9,#REF!,"<>임대",#REF!,">=30",#REF!,">="&Sheet1!H$1,#REF!,"<"&Sheet1!J$1) ->  | I9: =SUMIFS(#REF!,#REF!,Sheet1!$A9,#REF!,"<>임대",#REF!,">=30",#REF!,">="&H$1,#REF!,"<"&J$1) ->  | J9: =COUNTIFS(#REF!,Sheet1!$A9,#REF!,"<>임대",#REF!,">=30",#REF!,">="&Sheet1!J$1,#REF!,"<"&Sheet1!L$1) ->  | K9: =SUMIFS(#REF!,#REF!,Sheet1!$A9,#REF!,"<>임대",#REF!,">=30",#REF!,">="&J$1,#REF!,"<"&L$1) ->  | L9: =COUNTIFS(#REF!,Sheet1!$A9,#REF!,"<>임대",#REF!,">=30",#REF!,">="&Sheet1!L$1) ->  | M9: =SUMIFS(#REF!,#REF!,Sheet1!$A9,#REF!,"<>임대",#REF!,">=30",#REF!,">="&L$1) -> 
A10: 중랑구 | B10: =COUNTIFS(#REF!,Sheet1!$A10,#REF!,"<>임대",#REF!,">=30",#REF!,"<"&Sheet1!D$1) ->  | C10: =SUMIFS(#REF!,#REF!,Sheet1!$A10,#REF!,"<>임대",#REF!,">=30",#REF!,"<"&D$1) ->  | D10: =COUNTIFS(#REF!,Sheet1!$A10,#REF!,"<>임대",#REF!,">=30",#REF!,">="&Sheet1!D$1,#REF!,"<"&Sheet1!F$1) ->  | E10: =SUMIFS(#REF!,#REF!,Sheet1!$A10,#REF!,"<>임대",#REF!,">=30",#REF!,">="&D$1,#REF!,"<"&F$1) ->  | F10: =COUNTIFS(#REF!,Sheet1!$A10,#REF!,"<>임대",#REF!,">=30",#REF!,">="&Sheet1!F$1,#REF!,"<"&Sheet1!H$1) ->  | G10: =SUMIFS(#REF!,#REF!,Sheet1!$A10,#REF!,"<>임대",#REF!,">=30",#REF!,">="&F$1,#REF!,"<"&H$1) ->  | H10: =COUNTIFS(#REF!,Sheet1!$A10,#REF!,"<>임대",#REF!,">=30",#REF!,">="&Sheet1!H$1,#REF!,"<"&Sheet1!J$1) ->  | I10: =SUMIFS(#REF!,#REF!,Sheet1!$A10,#REF!,"<>임대",#REF!,">=30",#REF!,">="&H$1,#REF!,"<"&J$1) ->  | J10: =COUNTIFS(#REF!,Sheet1!$A10,#REF!,"<>임대",#REF!,">=30",#REF!,">="&Sheet1!J$1,#REF!,"<"&Sheet1!L$1) ->  | K10: =SUMIFS(#REF!,#REF!,Sheet1!$A10,#REF!,"<>임대",#REF!,">=30",#REF!,">="&J$1,#REF!,"<"&L$1) ->  | L10: =COUNTIFS(#REF!,Sheet1!$A10,#REF!,"<>임대",#REF!,">=30",#REF!,">="&Sheet1!L$1) ->  | M10: =SUMIFS(#REF!,#REF!,Sheet1!$A10,#REF!,"<>임대",#REF!,">=30",#REF!,">="&L$1) -> 
A11: 성북구 | B11: =COUNTIFS(#REF!,Sheet1!$A11,#REF!,"<>임대",#REF!,">=30",#REF!,"<"&Sheet1!D$1) ->  | C11: =SUMIFS(#REF!,#REF!,Sheet1!$A11,#REF!,"<>임대",#REF!,">=30",#REF!,"<"&D$1) ->  | D11: =COUNTIFS(#REF!,Sheet1!$A11,#REF!,"<>임대",#REF!,">=30",#REF!,">="&Sheet1!D$1,#REF!,"<"&Sheet1!F$1) ->  | E11: =SUMIFS(#REF!,#REF!,Sheet1!$A11,#REF!,"<>임대",#REF!,">=30",#REF!,">="&D$1,#REF!,"<"&F$1) ->  | F11: =COUNTIFS(#REF!,Sheet1!$A11,#REF!,"<>임대",#REF!,">=30",#REF!,">="&Sheet1!F$1,#REF!,"<"&Sheet1!H$1) ->  | G11: =SUMIFS(#REF!,#REF!,Sheet1!$A11,#REF!,"<>임대",#REF!,">=30",#REF!,">="&F$1,#REF!,"<"&H$1) ->  | H11: =COUNTIFS(#REF!,Sheet1!$A11,#REF!,"<>임대",#REF!,">=30",#REF!,">="&Sheet1!H$1,#REF!,"<"&Sheet1!J$1) ->  | I11: =SUMIFS(#REF!,#REF!,Sheet1!$A11,#REF!,"<>임대",#REF!,">=30",#REF!,">="&H$1,#REF!,"<"&J$1) ->  | J11: =COUNTIFS(#REF!,Sheet1!$A11,#REF!,"<>임대",#REF!,">=30",#REF!,">="&Sheet1!J$1,#REF!,"<"&Sheet1!L$1) ->  | K11: =SUMIFS(#REF!,#REF!,Sheet1!$A11,#REF!,"<>임대",#REF!,">=30",#REF!,">="&J$1,#REF!,"<"&L$1) ->  | L11: =COUNTIFS(#REF!,Sheet1!$A11,#REF!,"<>임대",#REF!,">=30",#REF!,">="&Sheet1!L$1) ->  | M11: =SUMIFS(#REF!,#REF!,Sheet1!$A11,#REF!,"<>임대",#REF!,">=30",#REF!,">="&L$1) -> 
A12: 강북구 | B12: =COUNTIFS(#REF!,Sheet1!$A12,#REF!,"<>임대",#REF!,">=30",#REF!,"<"&Sheet1!D$1) ->  | C12: =SUMIFS(#REF!,#REF!,Sheet1!$A12,#REF!,"<>임대",#REF!,">=30",#REF!,"<"&D$1) ->  | D12: =COUNTIFS(#REF!,Sheet1!$A12,#REF!,"<>임대",#REF!,">=30",#REF!,">="&Sheet1!D$1,#REF!,"<"&Sheet1!F$1) ->  | E12: =SUMIFS(#REF!,#REF!,Sheet1!$A12,#REF!,"<>임대",#REF!,">=30",#REF!,">="&D$1,#REF!,"<"&F$1) ->  | F12: =COUNTIFS(#REF!,Sheet1!$A12,#REF!,"<>임대",#REF!,">=30",#REF!,">="&Sheet1!F$1,#REF!,"<"&Sheet1!H$1) ->  | G12: =SUMIFS(#REF!,#REF!,Sheet1!$A12,#REF!,"<>임대",#REF!,">=30",#REF!,">="&F$1,#REF!,"<"&H$1) ->  | H12: =COUNTIFS(#REF!,Sheet1!$A12,#REF!,"<>임대",#REF!,">=30",#REF!,">="&Sheet1!H$1,#REF!,"<"&Sheet1!J$1) ->  | I12: =SUMIFS(#REF!,#REF!,Sheet1!$A12,#REF!,"<>임대",#REF!,">=30",#REF!,">="&H$1,#REF!,"<"&J$1) ->  | J12: =COUNTIFS(#REF!,Sheet1!$A12,#REF!,"<>임대",#REF!,">=30",#REF!,">="&Sheet1!J$1,#REF!,"<"&Sheet1!L$1) ->  | K12: =SUMIFS(#REF!,#REF!,Sheet1!$A12,#REF!,"<>임대",#REF!,">=30",#REF!,">="&J$1,#REF!,"<"&L$1) ->  | L12: =COUNTIFS(#REF!,Sheet1!$A12,#REF!,"<>임대",#REF!,">=30",#REF!,">="&Sheet1!L$1) ->  | M12: =SUMIFS(#REF!,#REF!,Sheet1!$A12,#REF!,"<>임대",#REF!,">=30",#REF!,">="&L$1) -> 
A13: 도봉구 | B13: =COUNTIFS(#REF!,Sheet1!$A13,#REF!,"<>임대",#REF!,">=30",#REF!,"<"&Sheet1!D$1) ->  | C13: =SUMIFS(#REF!,#REF!,Sheet1!$A13,#REF!,"<>임대",#REF!,">=30",#REF!,"<"&D$1) ->  | D13: =COUNTIFS(#REF!,Sheet1!$A13,#REF!,"<>임대",#REF!,">=30",#REF!,">="&Sheet1!D$1,#REF!,"<"&Sheet1!F$1) ->  | E13: =SUMIFS(#REF!,#REF!,Sheet1!$A13,#REF!,"<>임대",#REF!,">=30",#REF!,">="&D$1,#REF!,"<"&F$1) ->  | F13: =COUNTIFS(#REF!,Sheet1!$A13,#REF!,"<>임대",#REF!,">=30",#REF!,">="&Sheet1!F$1,#REF!,"<"&Sheet1!H$1) ->  | G13: =SUMIFS(#REF!,#REF!,Sheet1!$A13,#REF!,"<>임대",#REF!,">=30",#REF!,">="&F$1,#REF!,"<"&H$1) ->  | H13: =COUNTIFS(#REF!,Sheet1!$A13,#REF!,"<>임대",#REF!,">=30",#REF!,">="&Sheet1!H$1,#REF!,"<"&Sheet1!J$1) ->  | I13: =SUMIFS(#REF!,#REF!,Sheet1!$A13,#REF!,"<>임대",#REF!,">=30",#REF!,">="&H$1,#REF!,"<"&J$1) ->  | J13: =COUNTIFS(#REF!,Sheet1!$A13,#REF!,"<>임대",#REF!,">=30",#REF!,">="&Sheet1!J$1,#REF!,"<"&Sheet1!L$1) ->  | K13: =SUMIFS(#REF!,#REF!,Sheet1!$A13,#REF!,"<>임대",#REF!,">=30",#REF!,">="&J$1,#REF!,"<"&L$1) ->  | L13: =COUNTIFS(#REF!,Sheet1!$A13,#REF!,"<>임대",#REF!,">=30",#REF!,">="&Sheet1!L$1) ->  | M13: =SUMIFS(#REF!,#REF!,Sheet1!$A13,#REF!,"<>임대",#REF!,">=30",#REF!,">="&L$1) -> 
A14: 노원구 | B14: =COUNTIFS(#REF!,Sheet1!$A14,#REF!,"<>임대",#REF!,">=30",#REF!,"<"&Sheet1!D$1) ->  | C14: =SUMIFS(#REF!,#REF!,Sheet1!$A14,#REF!,"<>임대",#REF!,">=30",#REF!,"<"&D$1) ->  | D14: =COUNTIFS(#REF!,Sheet1!$A14,#REF!,"<>임대",#REF!,">=30",#REF!,">="&Sheet1!D$1,#REF!,"<"&Sheet1!F$1) ->  | E14: =SUMIFS(#REF!,#REF!,Sheet1!$A14,#REF!,"<>임대",#REF!,">=30",#REF!,">="&D$1,#REF!,"<"&F$1) ->  | F14: =COUNTIFS(#REF!,Sheet1!$A14,#REF!,"<>임대",#REF!,">=30",#REF!,">="&Sheet1!F$1,#REF!,"<"&Sheet1!H$1) ->  | G14: =SUMIFS(#REF!,#REF!,Sheet1!$A14,#REF!,"<>임대",#REF!,">=30",#REF!,">="&F$1,#REF!,"<"&H$1) ->  | H14: =COUNTIFS(#REF!,Sheet1!$A14,#REF!,"<>임대",#REF!,">=30",#REF!,">="&Sheet1!H$1,#REF!,"<"&Sheet1!J$1) ->  | I14: =SUMIFS(#REF!,#REF!,Sheet1!$A14,#REF!,"<>임대",#REF!,">=30",#REF!,">="&H$1,#REF!,"<"&J$1) ->  | J14: =COUNTIFS(#REF!,Sheet1!$A14,#REF!,"<>임대",#REF!,">=30",#REF!,">="&Sheet1!J$1,#REF!,"<"&Sheet1!L$1) ->  | K14: =SUMIFS(#REF!,#REF!,Sheet1!$A14,#REF!,"<>임대",#REF!,">=30",#REF!,">="&J$1,#REF!,"<"&L$1) ->  | L14: =COUNTIFS(#REF!,Sheet1!$A14,#REF!,"<>임대",#REF!,">=30",#REF!,">="&Sheet1!L$1) ->  | M14: =SUMIFS(#REF!,#REF!,Sheet1!$A14,#REF!,"<>임대",#REF!,">=30",#REF!,">="&L$1) -> 
A15: 은평구 | B15: =COUNTIFS(#REF!,Sheet1!$A15,#REF!,"<>임대",#REF!,">=30",#REF!,"<"&Sheet1!D$1) ->  | C15: =SUMIFS(#REF!,#REF!,Sheet1!$A15,#REF!,"<>임대",#REF!,">=30",#REF!,"<"&D$1) ->  | D15: =COUNTIFS(#REF!,Sheet1!$A15,#REF!,"<>임대",#REF!,">=30",#REF!,">="&Sheet1!D$1,#REF!,"<"&Sheet1!F$1) ->  | E15: =SUMIFS(#REF!,#REF!,Sheet1!$A15,#REF!,"<>임대",#REF!,">=30",#REF!,">="&D$1,#REF!,"<"&F$1) ->  | F15: =COUNTIFS(#REF!,Sheet1!$A15,#REF!,"<>임대",#REF!,">=30",#REF!,">="&Sheet1!F$1,#REF!,"<"&Sheet1!H$1) ->  | G15: =SUMIFS(#REF!,#REF!,Sheet1!$A15,#REF!,"<>임대",#REF!,">=30",#REF!,">="&F$1,#REF!,"<"&H$1) ->  | H15: =COUNTIFS(#REF!,Sheet1!$A15,#REF!,"<>임대",#REF!,">=30",#REF!,">="&Sheet1!H$1,#REF!,"<"&Sheet1!J$1) ->  | I15: =SUMIFS(#REF!,#REF!,Sheet1!$A15,#REF!,"<>임대",#REF!,">=30",#REF!,">="&H$1,#REF!,"<"&J$1) ->  | J15: =COUNTIFS(#REF!,Sheet1!$A15,#REF!,"<>임대",#REF!,">=30",#REF!,">="&Sheet1!J$1,#REF!,"<"&Sheet1!L$1) ->  | K15: =SUMIFS(#REF!,#REF!,Sheet1!$A15,#REF!,"<>임대",#REF!,">=30",#REF!,">="&J$1,#REF!,"<"&L$1) ->  | L15: =COUNTIFS(#REF!,Sheet1!$A15,#REF!,"<>임대",#REF!,">=30",#REF!,">="&Sheet1!L$1) ->  | M15: =SUMIFS(#REF!,#REF!,Sheet1!$A15,#REF!,"<>임대",#REF!,">=30",#REF!,">="&L$1) -> 
A16: 서대문구 | B16: =COUNTIFS(#REF!,Sheet1!$A16,#REF!,"<>임대",#REF!,">=30",#REF!,"<"&Sheet1!D$1) ->  | C16: =SUMIFS(#REF!,#REF!,Sheet1!$A16,#REF!,"<>임대",#REF!,">=30",#REF!,"<"&D$1) ->  | D16: =COUNTIFS(#REF!,Sheet1!$A16,#REF!,"<>임대",#REF!,">=30",#REF!,">="&Sheet1!D$1,#REF!,"<"&Sheet1!F$1) ->  | E16: =SUMIFS(#REF!,#REF!,Sheet1!$A16,#REF!,"<>임대",#REF!,">=30",#REF!,">="&D$1,#REF!,"<"&F$1) ->  | F16: =COUNTIFS(#REF!,Sheet1!$A16,#REF!,"<>임대",#REF!,">=30",#REF!,">="&Sheet1!F$1,#REF!,"<"&Sheet1!H$1) ->  | G16: =SUMIFS(#REF!,#REF!,Sheet1!$A16,#REF!,"<>임대",#REF!,">=30",#REF!,">="&F$1,#REF!,"<"&H$1) ->  | H16: =COUNTIFS(#REF!,Sheet1!$A16,#REF!,"<>임대",#REF!,">=30",#REF!,">="&Sheet1!H$1,#REF!,"<"&Sheet1!J$1) ->  | I16: =SUMIFS(#REF!,#REF!,Sheet1!$A16,#REF!,"<>임대",#REF!,">=30",#REF!,">="&H$1,#REF!,"<"&J$1) ->  | J16: =COUNTIFS(#REF!,Sheet1!$A16,#REF!,"<>임대",#REF!,">=30",#REF!,">="&Sheet1!J$1,#REF!,"<"&Sheet1!L$1) ->  | K16: =SUMIFS(#REF!,#REF!,Sheet1!$A16,#REF!,"<>임대",#REF!,">=30",#REF!,">="&J$1,#REF!,"<"&L$1) ->  | L16: =COUNTIFS(#REF!,Sheet1!$A16,#REF!,"<>임대",#REF!,">=30",#REF!,">="&Sheet1!L$1) ->  | M16: =SUMIFS(#REF!,#REF!,Sheet1!$A16,#REF!,"<>임대",#REF!,">=30",#REF!,">="&L$1) -> 
A17: 마포구 | B17: =COUNTIFS(#REF!,Sheet1!$A17,#REF!,"<>임대",#REF!,">=30",#REF!,"<"&Sheet1!D$1) ->  | C17: =SUMIFS(#REF!,#REF!,Sheet1!$A17,#REF!,"<>임대",#REF!,">=30",#REF!,"<"&D$1) ->  | D17: =COUNTIFS(#REF!,Sheet1!$A17,#REF!,"<>임대",#REF!,">=30",#REF!,">="&Sheet1!D$1,#REF!,"<"&Sheet1!F$1) ->  | E17: =SUMIFS(#REF!,#REF!,Sheet1!$A17,#REF!,"<>임대",#REF!,">=30",#REF!,">="&D$1,#REF!,"<"&F$1) ->  | F17: =COUNTIFS(#REF!,Sheet1!$A17,#REF!,"<>임대",#REF!,">=30",#REF!,">="&Sheet1!F$1,#REF!,"<"&Sheet1!H$1) ->  | G17: =SUMIFS(#REF!,#REF!,Sheet1!$A17,#REF!,"<>임대",#REF!,">=30",#REF!,">="&F$1,#REF!,"<"&H$1) ->  | H17: =COUNTIFS(#REF!,Sheet1!$A17,#REF!,"<>임대",#REF!,">=30",#REF!,">="&Sheet1!H$1,#REF!,"<"&Sheet1!J$1) ->  | I17: =SUMIFS(#REF!,#REF!,Sheet1!$A17,#REF!,"<>임대",#REF!,">=30",#REF!,">="&H$1,#REF!,"<"&J$1) ->  | J17: =COUNTIFS(#REF!,Sheet1!$A17,#REF!,"<>임대",#REF!,">=30",#REF!,">="&Sheet1!J$1,#REF!,"<"&Sheet1!L$1) ->  | K17: =SUMIFS(#REF!,#REF!,Sheet1!$A17,#REF!,"<>임대",#REF!,">=30",#REF!,">="&J$1,#REF!,"<"&L$1) ->  | L17: =COUNTIFS(#REF!,Sheet1!$A17,#REF!,"<>임대",#REF!,">=30",#REF!,">="&Sheet1!L$1) ->  | M17: =SUMIFS(#REF!,#REF!,Sheet1!$A17,#REF!,"<>임대",#REF!,">=30",#REF!,">="&L$1) -> 
A18: 양천구 | B18: =COUNTIFS(#REF!,Sheet1!$A18,#REF!,"<>임대",#REF!,">=30",#REF!,"<"&Sheet1!D$1) ->  | C18: =SUMIFS(#REF!,#REF!,Sheet1!$A18,#REF!,"<>임대",#REF!,">=30",#REF!,"<"&D$1) ->  | D18: =COUNTIFS(#REF!,Sheet1!$A18,#REF!,"<>임대",#REF!,">=30",#REF!,">="&Sheet1!D$1,#REF!,"<"&Sheet1!F$1) ->  | E18: =SUMIFS(#REF!,#REF!,Sheet1!$A18,#REF!,"<>임대",#REF!,">=30",#REF!,">="&D$1,#REF!,"<"&F$1) ->  | F18: =COUNTIFS(#REF!,Sheet1!$A18,#REF!,"<>임대",#REF!,">=30",#REF!,">="&Sheet1!F$1,#REF!,"<"&Sheet1!H$1) ->  | G18: =SUMIFS(#REF!,#REF!,Sheet1!$A18,#REF!,"<>임대",#REF!,">=30",#REF!,">="&F$1,#REF!,"<"&H$1) ->  | H18: =COUNTIFS(#REF!,Sheet1!$A18,#REF!,"<>임대",#REF!,">=30",#REF!,">="&Sheet1!H$1,#REF!,"<"&Sheet1!J$1) ->  | I18: =SUMIFS(#REF!,#REF!,Sheet1!$A18,#REF!,"<>임대",#REF!,">=30",#REF!,">="&H$1,#REF!,"<"&J$1) ->  | J18: =COUNTIFS(#REF!,Sheet1!$A18,#REF!,"<>임대",#REF!,">=30",#REF!,">="&Sheet1!J$1,#REF!,"<"&Sheet1!L$1) ->  | K18: =SUMIFS(#REF!,#REF!,Sheet1!$A18,#REF!,"<>임대",#REF!,">=30",#REF!,">="&J$1,#REF!,"<"&L$1) ->  | L18: =COUNTIFS(#REF!,Sheet1!$A18,#REF!,"<>임대",#REF!,">=30",#REF!,">="&Sheet1!L$1) ->  | M18: =SUMIFS(#REF!,#REF!,Sheet1!$A18,#REF!,"<>임대",#REF!,">=30",#REF!,">="&L$1) -> 
A19: 강서구 | B19: =COUNTIFS(#REF!,Sheet1!$A19,#REF!,"<>임대",#REF!,">=30",#REF!,"<"&Sheet1!D$1) ->  | C19: =SUMIFS(#REF!,#REF!,Sheet1!$A19,#REF!,"<>임대",#REF!,">=30",#REF!,"<"&D$1) ->  | D19: =COUNTIFS(#REF!,Sheet1!$A19,#REF!,"<>임대",#REF!,">=30",#REF!,">="&Sheet1!D$1,#REF!,"<"&Sheet1!F$1) ->  | E19: =SUMIFS(#REF!,#REF!,Sheet1!$A19,#REF!,"<>임대",#REF!,">=30",#REF!,">="&D$1,#REF!,"<"&F$1) ->  | F19: =COUNTIFS(#REF!,Sheet1!$A19,#REF!,"<>임대",#REF!,">=30",#REF!,">="&Sheet1!F$1,#REF!,"<"&Sheet1!H$1) ->  | G19: =SUMIFS(#REF!,#REF!,Sheet1!$A19,#REF!,"<>임대",#REF!,">=30",#REF!,">="&F$1,#REF!,"<"&H$1) ->  | H19: =COUNTIFS(#REF!,Sheet1!$A19,#REF!,"<>임대",#REF!,">=30",#REF!,">="&Sheet1!H$1,#REF!,"<"&Sheet1!J$1) ->  | I19: =SUMIFS(#REF!,#REF!,Sheet1!$A19,#REF!,"<>임대",#REF!,">=30",#REF!,">="&H$1,#REF!,"<"&J$1) ->  | J19: =COUNTIFS(#REF!,Sheet1!$A19,#REF!,"<>임대",#REF!,">=30",#REF!,">="&Sheet1!J$1,#REF!,"<"&Sheet1!L$1) ->  | K19: =SUMIFS(#REF!,#REF!,Sheet1!$A19,#REF!,"<>임대",#REF!,">=30",#REF!,">="&J$1,#REF!,"<"&L$1) ->  | L19: =COUNTIFS(#REF!,Sheet1!$A19,#REF!,"<>임대",#REF!,">=30",#REF!,">="&Sheet1!L$1) ->  | M19: =SUMIFS(#REF!,#REF!,Sheet1!$A19,#REF!,"<>임대",#REF!,">=30",#REF!,">="&L$1) -> 
A20: 구로구 | B20: =COUNTIFS(#REF!,Sheet1!$A20,#REF!,"<>임대",#REF!,">=30",#REF!,"<"&Sheet1!D$1) ->  | C20: =SUMIFS(#REF!,#REF!,Sheet1!$A20,#REF!,"<>임대",#REF!,">=30",#REF!,"<"&D$1) ->  | D20: =COUNTIFS(#REF!,Sheet1!$A20,#REF!,"<>임대",#REF!,">=30",#REF!,">="&Sheet1!D$1,#REF!,"<"&Sheet1!F$1) ->  | E20: =SUMIFS(#REF!,#REF!,Sheet1!$A20,#REF!,"<>임대",#REF!,">=30",#REF!,">="&D$1,#REF!,"<"&F$1) ->  | F20: =COUNTIFS(#REF!,Sheet1!$A20,#REF!,"<>임대",#REF!,">=30",#REF!,">="&Sheet1!F$1,#REF!,"<"&Sheet1!H$1) ->  | G20: =SUMIFS(#REF!,#REF!,Sheet1!$A20,#REF!,"<>임대",#REF!,">=30",#REF!,">="&F$1,#REF!,"<"&H$1) ->  | H20: =COUNTIFS(#REF!,Sheet1!$A20,#REF!,"<>임대",#REF!,">=30",#REF!,">="&Sheet1!H$1,#REF!,"<"&Sheet1!J$1) ->  | I20: =SUMIFS(#REF!,#REF!,Sheet1!$A20,#REF!,"<>임대",#REF!,">=30",#REF!,">="&H$1,#REF!,"<"&J$1) ->  | J20: =COUNTIFS(#REF!,Sheet1!$A20,#REF!,"<>임대",#REF!,">=30",#REF!,">="&Sheet1!J$1,#REF!,"<"&Sheet1!L$1) ->  | K20: =SUMIFS(#REF!,#REF!,Sheet1!$A20,#REF!,"<>임대",#REF!,">=30",#REF!,">="&J$1,#REF!,"<"&L$1) ->  | L20: =COUNTIFS(#REF!,Sheet1!$A20,#REF!,"<>임대",#REF!,">=30",#REF!,">="&Sheet1!L$1) ->  | M20: =SUMIFS(#REF!,#REF!,Sheet1!$A20,#REF!,"<>임대",#REF!,">=30",#REF!,">="&L$1) -> 
A21: 금천구 | B21: =COUNTIFS(#REF!,Sheet1!$A21,#REF!,"<>임대",#REF!,">=30",#REF!,"<"&Sheet1!D$1) ->  | C21: =SUMIFS(#REF!,#REF!,Sheet1!$A21,#REF!,"<>임대",#REF!,">=30",#REF!,"<"&D$1) ->  | D21: =COUNTIFS(#REF!,Sheet1!$A21,#REF!,"<>임대",#REF!,">=30",#REF!,">="&Sheet1!D$1,#REF!,"<"&Sheet1!F$1) ->  | E21: =SUMIFS(#REF!,#REF!,Sheet1!$A21,#REF!,"<>임대",#REF!,">=30",#REF!,">="&D$1,#REF!,"<"&F$1) ->  | F21: =COUNTIFS(#REF!,Sheet1!$A21,#REF!,"<>임대",#REF!,">=30",#REF!,">="&Sheet1!F$1,#REF!,"<"&Sheet1!H$1) ->  | G21: =SUMIFS(#REF!,#REF!,Sheet1!$A21,#REF!,"<>임대",#REF!,">=30",#REF!,">="&F$1,#REF!,"<"&H$1) ->  | H21: =COUNTIFS(#REF!,Sheet1!$A21,#REF!,"<>임대",#REF!,">=30",#REF!,">="&Sheet1!H$1,#REF!,"<"&Sheet1!J$1) ->  | I21: =SUMIFS(#REF!,#REF!,Sheet1!$A21,#REF!,"<>임대",#REF!,">=30",#REF!,">="&H$1,#REF!,"<"&J$1) ->  | J21: =COUNTIFS(#REF!,Sheet1!$A21,#REF!,"<>임대",#REF!,">=30",#REF!,">="&Sheet1!J$1,#REF!,"<"&Sheet1!L$1) ->  | K21: =SUMIFS(#REF!,#REF!,Sheet1!$A21,#REF!,"<>임대",#REF!,">=30",#REF!,">="&J$1,#REF!,"<"&L$1) ->  | L21: =COUNTIFS(#REF!,Sheet1!$A21,#REF!,"<>임대",#REF!,">=30",#REF!,">="&Sheet1!L$1) ->  | M21: =SUMIFS(#REF!,#REF!,Sheet1!$A21,#REF!,"<>임대",#REF!,">=30",#REF!,">="&L$1) -> 
A22: 영등포구 | B22: =COUNTIFS(#REF!,Sheet1!$A22,#REF!,"<>임대",#REF!,">=30",#REF!,"<"&Sheet1!D$1) ->  | C22: =SUMIFS(#REF!,#REF!,Sheet1!$A22,#REF!,"<>임대",#REF!,">=30",#REF!,"<"&D$1) ->  | D22: =COUNTIFS(#REF!,Sheet1!$A22,#REF!,"<>임대",#REF!,">=30",#REF!,">="&Sheet1!D$1,#REF!,"<"&Sheet1!F$1) ->  | E22: =SUMIFS(#REF!,#REF!,Sheet1!$A22,#REF!,"<>임대",#REF!,">=30",#REF!,">="&D$1,#REF!,"<"&F$1) ->  | F22: =COUNTIFS(#REF!,Sheet1!$A22,#REF!,"<>임대",#REF!,">=30",#REF!,">="&Sheet1!F$1,#REF!,"<"&Sheet1!H$1) ->  | G22: =SUMIFS(#REF!,#REF!,Sheet1!$A22,#REF!,"<>임대",#REF!,">=30",#REF!,">="&F$1,#REF!,"<"&H$1) ->  | H22: =COUNTIFS(#REF!,Sheet1!$A22,#REF!,"<>임대",#REF!,">=30",#REF!,">="&Sheet1!H$1,#REF!,"<"&Sheet1!J$1) ->  | I22: =SUMIFS(#REF!,#REF!,Sheet1!$A22,#REF!,"<>임대",#REF!,">=30",#REF!,">="&H$1,#REF!,"<"&J$1) ->  | J22: =COUNTIFS(#REF!,Sheet1!$A22,#REF!,"<>임대",#REF!,">=30",#REF!,">="&Sheet1!J$1,#REF!,"<"&Sheet1!L$1) ->  | K22: =SUMIFS(#REF!,#REF!,Sheet1!$A22,#REF!,"<>임대",#REF!,">=30",#REF!,">="&J$1,#REF!,"<"&L$1) ->  | L22: =COUNTIFS(#REF!,Sheet1!$A22,#REF!,"<>임대",#REF!,">=30",#REF!,">="&Sheet1!L$1) ->  | M22: =SUMIFS(#REF!,#REF!,Sheet1!$A22,#REF!,"<>임대",#REF!,">=30",#REF!,">="&L$1) -> 
A23: 동작구 | B23: =COUNTIFS(#REF!,Sheet1!$A23,#REF!,"<>임대",#REF!,">=30",#REF!,"<"&Sheet1!D$1) ->  | C23: =SUMIFS(#REF!,#REF!,Sheet1!$A23,#REF!,"<>임대",#REF!,">=30",#REF!,"<"&D$1) ->  | D23: =COUNTIFS(#REF!,Sheet1!$A23,#REF!,"<>임대",#REF!,">=30",#REF!,">="&Sheet1!D$1,#REF!,"<"&Sheet1!F$1) ->  | E23: =SUMIFS(#REF!,#REF!,Sheet1!$A23,#REF!,"<>임대",#REF!,">=30",#REF!,">="&D$1,#REF!,"<"&F$1) ->  | F23: =COUNTIFS(#REF!,Sheet1!$A23,#REF!,"<>임대",#REF!,">=30",#REF!,">="&Sheet1!F$1,#REF!,"<"&Sheet1!H$1) ->  | G23: =SUMIFS(#REF!,#REF!,Sheet1!$A23,#REF!,"<>임대",#REF!,">=30",#REF!,">="&F$1,#REF!,"<"&H$1) ->  | H23: =COUNTIFS(#REF!,Sheet1!$A23,#REF!,"<>임대",#REF!,">=30",#REF!,">="&Sheet1!H$1,#REF!,"<"&Sheet1!J$1) ->  | I23: =SUMIFS(#REF!,#REF!,Sheet1!$A23,#REF!,"<>임대",#REF!,">=30",#REF!,">="&H$1,#REF!,"<"&J$1) ->  | J23: =COUNTIFS(#REF!,Sheet1!$A23,#REF!,"<>임대",#REF!,">=30",#REF!,">="&Sheet1!J$1,#REF!,"<"&Sheet1!L$1) ->  | K23: =SUMIFS(#REF!,#REF!,Sheet1!$A23,#REF!,"<>임대",#REF!,">=30",#REF!,">="&J$1,#REF!,"<"&L$1) ->  | L23: =COUNTIFS(#REF!,Sheet1!$A23,#REF!,"<>임대",#REF!,">=30",#REF!,">="&Sheet1!L$1) ->  | M23: =SUMIFS(#REF!,#REF!,Sheet1!$A23,#REF!,"<>임대",#REF!,">=30",#REF!,">="&L$1) -> 
A24: 관악구 | B24: =COUNTIFS(#REF!,Sheet1!$A24,#REF!,"<>임대",#REF!,">=30",#REF!,"<"&Sheet1!D$1) ->  | C24: =SUMIFS(#REF!,#REF!,Sheet1!$A24,#REF!,"<>임대",#REF!,">=30",#REF!,"<"&D$1) ->  | D24: =COUNTIFS(#REF!,Sheet1!$A24,#REF!,"<>임대",#REF!,">=30",#REF!,">="&Sheet1!D$1,#REF!,"<"&Sheet1!F$1) ->  | E24: =SUMIFS(#REF!,#REF!,Sheet1!$A24,#REF!,"<>임대",#REF!,">=30",#REF!,">="&D$1,#REF!,"<"&F$1) ->  | F24: =COUNTIFS(#REF!,Sheet1!$A24,#REF!,"<>임대",#REF!,">=30",#REF!,">="&Sheet1!F$1,#REF!,"<"&Sheet1!H$1) ->  | G24: =SUMIFS(#REF!,#REF!,Sheet1!$A24,#REF!,"<>임대",#REF!,">=30",#REF!,">="&F$1,#REF!,"<"&H$1) ->  | H24: =COUNTIFS(#REF!,Sheet1!$A24,#REF!,"<>임대",#REF!,">=30",#REF!,">="&Sheet1!H$1,#REF!,"<"&Sheet1!J$1) ->  | I24: =SUMIFS(#REF!,#REF!,Sheet1!$A24,#REF!,"<>임대",#REF!,">=30",#REF!,">="&H$1,#REF!,"<"&J$1) ->  | J24: =COUNTIFS(#REF!,Sheet1!$A24,#REF!,"<>임대",#REF!,">=30",#REF!,">="&Sheet1!J$1,#REF!,"<"&Sheet1!L$1) ->  | K24: =SUMIFS(#REF!,#REF!,Sheet1!$A24,#REF!,"<>임대",#REF!,">=30",#REF!,">="&J$1,#REF!,"<"&L$1) ->  | L24: =COUNTIFS(#REF!,Sheet1!$A24,#REF!,"<>임대",#REF!,">=30",#REF!,">="&Sheet1!L$1) ->  | M24: =SUMIFS(#REF!,#REF!,Sheet1!$A24,#REF!,"<>임대",#REF!,">=30",#REF!,">="&L$1) -> 
A25: 서초구 | B25: =COUNTIFS(#REF!,Sheet1!$A25,#REF!,"<>임대",#REF!,">=30",#REF!,"<"&Sheet1!D$1) ->  | C25: =SUMIFS(#REF!,#REF!,Sheet1!$A25,#REF!,"<>임대",#REF!,">=30",#REF!,"<"&D$1) ->  | D25: =COUNTIFS(#REF!,Sheet1!$A25,#REF!,"<>임대",#REF!,">=30",#REF!,">="&Sheet1!D$1,#REF!,"<"&Sheet1!F$1) ->  | E25: =SUMIFS(#REF!,#REF!,Sheet1!$A25,#REF!,"<>임대",#REF!,">=30",#REF!,">="&D$1,#REF!,"<"&F$1) ->  | F25: =COUNTIFS(#REF!,Sheet1!$A25,#REF!,"<>임대",#REF!,">=30",#REF!,">="&Sheet1!F$1,#REF!,"<"&Sheet1!H$1) ->  | G25: =SUMIFS(#REF!,#REF!,Sheet1!$A25,#REF!,"<>임대",#REF!,">=30",#REF!,">="&F$1,#REF!,"<"&H$1) ->  | H25: =COUNTIFS(#REF!,Sheet1!$A25,#REF!,"<>임대",#REF!,">=30",#REF!,">="&Sheet1!H$1,#REF!,"<"&Sheet1!J$1) ->  | I25: =SUMIFS(#REF!,#REF!,Sheet1!$A25,#REF!,"<>임대",#REF!,">=30",#REF!,">="&H$1,#REF!,"<"&J$1) ->  | J25: =COUNTIFS(#REF!,Sheet1!$A25,#REF!,"<>임대",#REF!,">=30",#REF!,">="&Sheet1!J$1,#REF!,"<"&Sheet1!L$1) ->  | K25: =SUMIFS(#REF!,#REF!,Sheet1!$A25,#REF!,"<>임대",#REF!,">=30",#REF!,">="&J$1,#REF!,"<"&L$1) ->  | L25: =COUNTIFS(#REF!,Sheet1!$A25,#REF!,"<>임대",#REF!,">=30",#REF!,">="&Sheet1!L$1) ->  | M25: =SUMIFS(#REF!,#REF!,Sheet1!$A25,#REF!,"<>임대",#REF!,">=30",#REF!,">="&L$1) -> 
A26: 강남구 | B26: =COUNTIFS(#REF!,Sheet1!$A26,#REF!,"<>임대",#REF!,">=30",#REF!,"<"&Sheet1!D$1) ->  | C26: =SUMIFS(#REF!,#REF!,Sheet1!$A26,#REF!,"<>임대",#REF!,">=30",#REF!,"<"&D$1) ->  | D26: =COUNTIFS(#REF!,Sheet1!$A26,#REF!,"<>임대",#REF!,">=30",#REF!,">="&Sheet1!D$1,#REF!,"<"&Sheet1!F$1) ->  | E26: =SUMIFS(#REF!,#REF!,Sheet1!$A26,#REF!,"<>임대",#REF!,">=30",#REF!,">="&D$1,#REF!,"<"&F$1) ->  | F26: =COUNTIFS(#REF!,Sheet1!$A26,#REF!,"<>임대",#REF!,">=30",#REF!,">="&Sheet1!F$1,#REF!,"<"&Sheet1!H$1) ->  | G26: =SUMIFS(#REF!,#REF!,Sheet1!$A26,#REF!,"<>임대",#REF!,">=30",#REF!,">="&F$1,#REF!,"<"&H$1) ->  | H26: =COUNTIFS(#REF!,Sheet1!$A26,#REF!,"<>임대",#REF!,">=30",#REF!,">="&Sheet1!H$1,#REF!,"<"&Sheet1!J$1) ->  | I26: =SUMIFS(#REF!,#REF!,Sheet1!$A26,#REF!,"<>임대",#REF!,">=30",#REF!,">="&H$1,#REF!,"<"&J$1) ->  | J26: =COUNTIFS(#REF!,Sheet1!$A26,#REF!,"<>임대",#REF!,">=30",#REF!,">="&Sheet1!J$1,#REF!,"<"&Sheet1!L$1) ->  | K26: =SUMIFS(#REF!,#REF!,Sheet1!$A26,#REF!,"<>임대",#REF!,">=30",#REF!,">="&J$1,#REF!,"<"&L$1) ->  | L26: =COUNTIFS(#REF!,Sheet1!$A26,#REF!,"<>임대",#REF!,">=30",#REF!,">="&Sheet1!L$1) ->  | M26: =SUMIFS(#REF!,#REF!,Sheet1!$A26,#REF!,"<>임대",#REF!,">=30",#REF!,">="&L$1) -> 
A27: 송파구 | B27: =COUNTIFS(#REF!,Sheet1!$A27,#REF!,"<>임대",#REF!,">=30",#REF!,"<"&Sheet1!D$1) ->  | C27: =SUMIFS(#REF!,#REF!,Sheet1!$A27,#REF!,"<>임대",#REF!,">=30",#REF!,"<"&D$1) ->  | D27: =COUNTIFS(#REF!,Sheet1!$A27,#REF!,"<>임대",#REF!,">=30",#REF!,">="&Sheet1!D$1,#REF!,"<"&Sheet1!F$1) ->  | E27: =SUMIFS(#REF!,#REF!,Sheet1!$A27,#REF!,"<>임대",#REF!,">=30",#REF!,">="&D$1,#REF!,"<"&F$1) ->  | F27: =COUNTIFS(#REF!,Sheet1!$A27,#REF!,"<>임대",#REF!,">=30",#REF!,">="&Sheet1!F$1,#REF!,"<"&Sheet1!H$1) ->  | G27: =SUMIFS(#REF!,#REF!,Sheet1!$A27,#REF!,"<>임대",#REF!,">=30",#REF!,">="&F$1,#REF!,"<"&H$1) ->  | H27: =COUNTIFS(#REF!,Sheet1!$A27,#REF!,"<>임대",#REF!,">=30",#REF!,">="&Sheet1!H$1,#REF!,"<"&Sheet1!J$1) ->  | I27: =SUMIFS(#REF!,#REF!,Sheet1!$A27,#REF!,"<>임대",#REF!,">=30",#REF!,">="&H$1,#REF!,"<"&J$1) ->  | J27: =COUNTIFS(#REF!,Sheet1!$A27,#REF!,"<>임대",#REF!,">=30",#REF!,">="&Sheet1!J$1,#REF!,"<"&Sheet1!L$1) ->  | K27: =SUMIFS(#REF!,#REF!,Sheet1!$A27,#REF!,"<>임대",#REF!,">=30",#REF!,">="&J$1,#REF!,"<"&L$1) ->  | L27: =COUNTIFS(#REF!,Sheet1!$A27,#REF!,"<>임대",#REF!,">=30",#REF!,">="&Sheet1!L$1) ->  | M27: =SUMIFS(#REF!,#REF!,Sheet1!$A27,#REF!,"<>임대",#REF!,">=30",#REF!,">="&L$1) -> 
A28: 강동구 | B28: =COUNTIFS(#REF!,Sheet1!$A28,#REF!,"<>임대",#REF!,">=30",#REF!,"<"&Sheet1!D$1) ->  | C28: =SUMIFS(#REF!,#REF!,Sheet1!$A28,#REF!,"<>임대",#REF!,">=30",#REF!,"<"&D$1) ->  | D28: =COUNTIFS(#REF!,Sheet1!$A28,#REF!,"<>임대",#REF!,">=30",#REF!,">="&Sheet1!D$1,#REF!,"<"&Sheet1!F$1) ->  | E28: =SUMIFS(#REF!,#REF!,Sheet1!$A28,#REF!,"<>임대",#REF!,">=30",#REF!,">="&D$1,#REF!,"<"&F$1) ->  | F28: =COUNTIFS(#REF!,Sheet1!$A28,#REF!,"<>임대",#REF!,">=30",#REF!,">="&Sheet1!F$1,#REF!,"<"&Sheet1!H$1) ->  | G28: =SUMIFS(#REF!,#REF!,Sheet1!$A28,#REF!,"<>임대",#REF!,">=30",#REF!,">="&F$1,#REF!,"<"&H$1) ->  | H28: =COUNTIFS(#REF!,Sheet1!$A28,#REF!,"<>임대",#REF!,">=30",#REF!,">="&Sheet1!H$1,#REF!,"<"&Sheet1!J$1) ->  | I28: =SUMIFS(#REF!,#REF!,Sheet1!$A28,#REF!,"<>임대",#REF!,">=30",#REF!,">="&H$1,#REF!,"<"&J$1) ->  | J28: =COUNTIFS(#REF!,Sheet1!$A28,#REF!,"<>임대",#REF!,">=30",#REF!,">="&Sheet1!J$1,#REF!,"<"&Sheet1!L$1) ->  | K28: =SUMIFS(#REF!,#REF!,Sheet1!$A28,#REF!,"<>임대",#REF!,">=30",#REF!,">="&J$1,#REF!,"<"&L$1) ->  | L28: =COUNTIFS(#REF!,Sheet1!$A28,#REF!,"<>임대",#REF!,">=30",#REF!,">="&Sheet1!L$1) ->  | M28: =SUMIFS(#REF!,#REF!,Sheet1!$A28,#REF!,"<>임대",#REF!,">=30",#REF!,">="&L$1) -> 
L33: 4075 | M33: 19142
L34: 31 | M34: 64
B42: 31 | C42: 64 | D42: 139 | E42: 812 | F42: 674 | G42: 4121 | H42: 1177 | I42: 4672 | J42: 1705 | K42: 7009 | L42: 380 | M42: 2528
B43: 7 | C43: 14 | D43: 4 | E43: 15 | F43: 15 | G43: 88 | H43: 17 | I43: 66 | J43: 13 | K43: 55 | L43: 5 | M43: 31
B44: 7 | C44: 8 | D44: 7 | E44: 7 | F44: 3 | G44: 3 | H44: 5 | I44: 42 | J44: 17 | K44: 80 | L44: 11 | M44: 56
B45: 10 | C45: 31 | D45: 25 | E45: 79 | F45: 5 | G45: 31 | H45: 14 | I45: 96 | J45: 48 | K45: 136 | L45: 12 | M45: 67
B46: 0 | C46: 0 | D46: 0 | E46: 0 | F46: 24 | G46: 103 | H46: 37 | I46: 190 | J46: 45 | K46: 248 | L46: 19 | M46: 170
B47: 0 | C47: 0 | D47: 4 | E47: 24 | F47: 23 | G47: 100 | H47: 38 | I47: 128 | J47: 45 | K47: 101 | L47: 9 | M47: 17
B48: 0 | C48: 0 | D48: 7 | E48: 21 | F48: 17 | G48: 54 | H48: 28 | I48: 159 | J48: 67 | K48: 298 | L48: 22 | M48: 93
B49: 0 | C49: 0 | D49: 3 | E49: 7 | F49: 24 | G49: 92 | H49: 62 | I49: 247 | J49: 50 | K49: 164 | L49: 17 | M49: 83
B50: 2 | C50: 3 | D50: 8 | E50: 28 | F50: 14 | G50: 73 | H50: 30 | I50: 154 | J50: 71 | K50: 638 | L50: 16 | M50: 74
B51: 0 | C51: 0 | D51: 1 | E51: 1 | F51: 25 | G51: 91 | H51: 23 | I51: 84 | J51: 22 | K51: 201 | L51: 6 | M51: 40
B52: 0 | C52: 0 | D52: 0 | E52: 0 | F52: 39 | G52: 243 | H52: 53 | I52: 284 | J52: 48 | K52: 210 | L52: 10 | M52: 27
B53: 0 | C53: 0 | D53: 1 | E53: 4 | F53: 49 | G53: 548 | H53: 121 | I53: 618 | J53: 61 | K53: 220 | L53: 6 | M53: 31
B54: 1 | C54: 1 | D54: 2 | E54: 5 | F54: 19 | G54: 64 | H54: 31 | I54: 60 | J54: 95 | K54: 484 | L54: 14 | M54: 136
B55: 2 | C55: 2 | D55: 7 | E55: 15 | F55: 22 | G55: 88 | H55: 35 | I55: 185 | J55: 38 | K55: 135 | L55: 8 | M55: 148
B56: 1 | C56: 3 | D56: 2 | E56: 4 | F56: 10 | G56: 54 | H56: 48 | I56: 177 | J56: 101 | K56: 401 | L56: 28 | M56: 171
B57: 0 | C57: 0 | D57: 0 | E57: 0 | F57: 36 | G57: 467 | H57: 62 | I57: 161 | J57: 129 | K57: 286 | L57: 15 | M57: 127
B58: 0 | C58: 0 | D58: 1 | E58: 3 | F58: 31 | G58: 103 | H58: 94 | I58: 382 | J58: 158 | K58: 537 | L58: 38 | M58: 219
B59: 0 | C59: 0 | D59: 5 | E59: 29 | F59: 60 | G59: 320 | H59: 66 | I59: 265 | J59: 70 | K59: 354 | L59: 16 | M59: 109
B60: 0 | C60: 0 | D60: 5 | E60: 18 | F60: 29 | G60: 118 | H60: 32 | I60: 99 | J60: 28 | K60: 88 | L60: 12 | M60: 41
B61: 0 | C61: 0 | D61: 21 | E61: 115 | F61: 33 | G61: 103 | H61: 62 | I61: 197 | J61: 46 | K61: 224 | L61: 15 | M61: 69
B62: 1 | C62: 2 | D62: 7 | E62: 20 | F62: 15 | G62: 73 | H62: 48 | I62: 170 | J62: 61 | K62: 286 | L62: 16 | M62: 130
B63: 0 | C63: 0 | D63: 7 | E63: 43 | F63: 24 | G63: 75 | H63: 47 | I63: 202 | J63: 54 | K63: 257 | L63: 1 | M63: 7
B64: 0 | C64: 0 | D64: 13 | E64: 184 | F64: 29 | G64: 150 | H64: 45 | I64: 121 | J64: 126 | K64: 392 | L64: 21 | M64: 194
B65: 0 | C65: 0 | D65: 6 | E65: 113 | F65: 48 | G65: 470 | H65: 65 | I65: 272 | J65: 121 | K65: 356 | L65: 36 | M65: 282
B66: 0 | C66: 0 | D66: 3 | E66: 77 | F66: 40 | G66: 421 | H66: 61 | I66: 181 | J66: 73 | K66: 516 | L66: 20 | M66: 136
B67: 0 | C67: 0 | D67: 0 | E67: 0 | F67: 40 | G67: 189 | H67: 53 | I67: 132 | J67: 118 | K67: 342 | L67: 7 | M67: 70

Sheet 169-0. 공동주택 건립 (hidden)
A1: 169-0. 공동주택 건립 Newly Constructed Apartment Houses
A3: 단위 : 개수 | C3: 2017-01-01
C4: 동 | D4: 세대 | E4: 전용면적별 세대수 | K4: 층별 동수 및 세대수
E5: 40㎡ 미만 | F5: 40~60㎡ 이하 | G5: 60~85㎡ 이하 | H5: 85~102㎡ 이하 | I5: 102~135㎡ 이하 | J5: 135㎡ 초과 | K5: 5층 이하 | M5: 6-10층 이하 | O5: 11-15층 이하 | Q5: 16-20층 이하 | S5: 21층 이상
K6: 동수 | L6: 세대수 | M6: 동수 | N6: 세대수 | O6: 동수 | P6: 세대수 | Q6: 동수 | R6: 세대수 | S6: 동수 | T6: 세대수 | V6: 규모별 세대수 | W6: 층수별 동수 | X6: 층수별 세대수
A8: 2014 | C8: 541 | D8: 36817 | E8: 1901 | F8: 8243 | G8: 13140 | H8: 4483 | I8: 7297 | J8: 1753 | K8: 26 | L8: 980 | M8: 78 | N8: 3641 | O8: 222 | P8: 13297 | Q8: 111 | R8: 8354 | S8: 104 | T8: 10545 | V8: =D8-SUM(E8:J8) -> 0 | W8: =C8-SUM(K8,M8,O8,Q8,S8) -> 0 | X8: 0
A9: 2015 | C9: 332 | D9: 22444 | E9: 1946 | F9: 3665 | G9: 9194 | H9: 3546 | I9: 3258 | J9: 835 | K9: 11 | L9: 144 | M9: 60 | N9: 2276 | O9: 59 | P9: 3332 | Q9: 122 | R9: 8955 | S9: 80 | T9: 7737 | V9: =D9-SUM(E9:J9) -> 0 | W9: 0 | X9: 0
A10: 2016 | C10: 281 | D10: 22426 | E10: 933 | F10: 5308 | G10: 8549 | H10: 1628 | I10: 3651 | J10: 2357 | K10: 19 | L10: 592 | M10: 20 | N10: 1119 | O10: 50 | P10: 2665 | Q10: 80 | R10: 6535 | S10: 112 | T10: 11515 | V10: =D10-SUM(E10:J10) -> 0 | W10: =C10-SUM(K10,M10,O10,Q10,S10) -> 0 | X10: =D10-SUM(L10,N10,P10,R10,T10) -> 0
A11: 2017 | C11: =SUMIFS(#REF!,#REF!,">=30",#REF!,">="&'169-0. 공동주택 건립'!$C$3) ->  | D11: 17334 | E11: 709 | F11: 3662 | G11: 6703 | H11: 1569 | I11: 2275 | J11: 2416 | K11: 17 | L11: 377 | M11: 40 | N11: 1552 | O11: 60 | P11: 3965 | Q11: 71 | R11: 6310 | S11: 49 | T11: 5130 | V11: =D11-SUM(E11:J11) -> 0 | X11: 0
A12: 종 로 Jongno-gu | B12: 종로구 | C12: =SUMIFS(#REF!,#REF!,$B12,#REF!,">=30",#REF!,">="&'169-0. 공동주택 건립'!$C$3) ->  | D12: 2071 | E12: 259 | F12: 415 | G12: 1167 | H12: 130 | I12: 79 | J12: 21 | K12: 0 | L12: 0 | M12: 4 | N12: 124 | O12: 6 | P12: 398 | Q12: 6 | R12: 551 | S12: 10 | T12: 998 | V12: =D12-SUM(E12:J12) -> 0 | X12: 0
A13: 중 구 Jung-gu | B13: 중구 | C13: =SUMIFS(#REF!,#REF!,$B13,#REF!,">=30",#REF!,">="&'169-0. 공동주택 건립'!$C$3) ->  | D13: 1113 | E13: 0 | F13: 413 | G13: 681 | H13: 19 | I13: 0 | J13: 0 | K13: 0 | L13: 0 | M13: 0 | N13: 0 | O13: 0 | P13: 0 | Q13: 0 | R13: 0 | S13: 13 | T13: 1113 | V13: 0 | X13: 0
A14: 용 산 Yongsan-gu | B14: 용산구 | C14: =SUMIFS(#REF!,#REF!,$B14,#REF!,">=30",#REF!,">="&'169-0. 공동주택 건립'!$C$3) ->  | D14: 346 | E14: 0 | F14: 0 | G14: 0 | H14: 0 | I14: 346 | J14: 0 | K14: 0 | L14: 0 | M14: 0 | N14: 0 | O14: 0 | P14: 0 | Q14: 1 | R14: 195 | S14: 1 | T14: 151 | V14: 0 | X14: 0
A15: 성 동 Seongdong-gu | B15: 성동구 | C15: =SUMIFS(#REF!,#REF!,$B15,#REF!,">=30",#REF!,">="&'169-0. 공동주택 건립'!$C$3) ->  | D15: 1335 | E15: 0 | F15: 588 | G15: 537 | H15: 0 | I15: 0 | J15: 210 | K15: 0 | L15: 0 | M15: 0 | N15: 0 | O15: 2 | P15: 60 | Q15: 6 | R15: 587 | S15: 4 | T15: 688 | V15: 0 | W15: =C15-SUM(K15,M15,O15,Q15,S15) ->  | X15: =D15-SUM(L15,N15,P15,R15,T15) -> 0
A16: 광 진 Gwangjin-gu | B16: 광진구 | C16: =SUMIFS(#REF!,#REF!,$B16,#REF!,">=30",#REF!,">="&'169-0. 공동주택 건립'!$C$3) ->  | D16: 461 | E16: 0 | F16: 0 | G16: 0 | H16: 15 | I16: 397 | J16: 49 | K16: 0 | L16: 0 | M16: 0 | N16: 0 | O16: 0 | P16: 0 | Q16: 0 | R16: 0 | S16: 4 | T16: 461 | V16: 0 | X16: 0
A17: 동대문 Dongdaemun-gu | B17: 동대문구 | C17: =SUMIFS(#REF!,#REF!,$B17,#REF!,">=30",#REF!,">="&'169-0. 공동주택 건립'!$C$3) ->  | D17: 110 | E17: 110 | F17: 0 | G17: 0 | H17: 0 | I17: 0 | J17: 0 | K17: 0 | L17: 0 | M17: 0 | N17: 0 | O17: 0 | P17: 0 | Q17: 1 | R17: 110 | S17: 0 | T17: 0 | V17: 0 | X17: 0
A18: 중 랑 Jungnang-gu | B18: 중랑구 | C18: =SUMIFS(#REF!,#REF!,$B18,#REF!,">=30",#REF!,">="&'169-0. 공동주택 건립'!$C$3) ->  | D18: 719 | E18: 0 | F18: 0 | G18: 0 | H18: 719 | I18: 0 | J18: 0 | K18: 0 | L18: 0 | M18: 0 | N18: 0 | O18: 3 | P18: 224 | Q18: 8 | R18: 284 | S18: 1 | T18: 211 | V18: 0 | X18: 0
A19: 성 북 Seongbuk-gu | B19: 성북구 | C19: =SUMIFS(#REF!,#REF!,$B19,#REF!,">=30",#REF!,">="&'169-0. 공동주택 건립'!$C$3) ->  | D19: 978 | E19: 0 | F19: 817 | G19: 161 | H19: 0 | I19: 0 | J19: 0 | K19: 0 | L19: 0 | M19: 1 | N19: 44 | O19: 5 | P19: 296 | Q19: 9 | R19: 638 | S19: 0 | T19: 0 | V19: 0 | X19: 0
A20: 강 북 Gangbuk-gu | B20: 강북구 | C20: =SUMIFS(#REF!,#REF!,$B20,#REF!,">=30",#REF!,">="&'169-0. 공동주택 건립'!$C$3) ->  | D20: 615 | E20: 52 | F20: 153 | G20: 386 | H20: 0 | I20: 24 | J20: 0 | K20: 0 | L20: 0 | M20: 0 | N20: 0 | O20: 12 | P20: 615 | Q20: 0 | R20: 0 | S20: 0 | T20: 0 | V20: 0 | X20: 0
A21: 도 봉 Dobong-gu | B21: 도봉구 | C21: =SUMIFS(#REF!,#REF!,$B21,#REF!,">=30",#REF!,">="&'169-0. 공동주택 건립'!$C$3) ->  | D21: 0 | E21: 0 | F21: 0 | G21: 0 | H21: 0 | I21: 0 | J21: 0 | K21: 0 | L21: 0 | M21: 0 | N21: 0 | O21: 0 | P21: 0 | Q21: 0 | R21: 0 | S21: 0 | T21: 0 | V21: 0 | X21: 0
A22: 노 원 Nowon-gu | B22: 노원구 | C22: =SUMIFS(#REF!,#REF!,$B22,#REF!,">=30",#REF!,">="&'169-0. 공동주택 건립'!$C$3) ->  | D22: 443 | E22: 36 | F22: 148 | G22: 245 | H22: 0 | I22: 14 | J22: 0 | K22: 4 | L22: 13 | M22: 13 | N22: 430 | O22: 0 | P22: 0 | Q22: 0 | R22: 0 | S22: 0 | T22: 0 | V22: 0 | X22: 0
A23: 은 평 Eunpyeong-gu | B23: 은평구 | C23: =SUMIFS(#REF!,#REF!,$B23,#REF!,">=30",#REF!,">="&'169-0. 공동주택 건립'!$C$3) ->  | D23: 1183 | E23: 0 | F23: 397 | G23: 786 | H23: 0 | I23: 0 | J23: 0 | K23: 12 | L23: 220 | M23: 0 | N23: 0 | O23: 1 | P23: 58 | Q23: 12 | R23: 905 | S23: 0 | T23: 0 | V23: 0 | X23: 0
A24: 서대문 Seodaemun-gu | B24: 서대문구 | C24: =SUMIFS(#REF!,#REF!,$B24,#REF!,">=30",#REF!,">="&'169-0. 공동주택 건립'!$C$3) ->  | D24: 0 | E24: 0 | F24: 0 | G24: 0 | H24: 0 | I24: 0 | J24: 0 | K24: 0 | L24: 0 | M24: 0 | N24: 0 | O24: 0 | P24: 0 | Q24: 0 | R24: 0 | S24: 0 | T24: 0 | V24: 0 | X24: 0
A25: 마 포 Mapo-gu | B25: 마포구 | C25: =SUMIFS(#REF!,#REF!,$B25,#REF!,">=30",#REF!,">="&'169-0. 공동주택 건립'!$C$3) ->  | D25: 715 | E25: 0 | F25: 0 | G25: 339 | H25: 0 | I25: 290 | J25: 86 | K25: 0 | L25: 0 | M25: 13 | N25: 218 | O25: 2 | P25: 165 | Q25: 2 | R25: 165 | S25: 2 | T25: 167 | V25: 0 | W25: =C25-SUM(K25,M25,O25,Q25,S25) ->  | X25: 0
A26: 양 천 Yangcheon-gu | B26: 양천구 | C26: =SUMIFS(#REF!,#REF!,$B26,#REF!,">=30",#REF!,">="&'169-0. 공동주택 건립'!$C$3) ->  | D26: 0 | E26: 0 | F26: 0 | G26: 0 | H26: 0 | I26: 0 | J26: 0 | K26: 0 | L26: 0 | M26: 0 | N26: 0 | O26: 0 | P26: 0 | Q26: 0 | R26: 0 | S26: 0 | T26: 0 | V26: 0 | X26: 0
A27: 강 서 Gangseo-gu | B27: 강서구 | C27: =SUMIFS(#REF!,#REF!,$B27,#REF!,">=30",#REF!,">="&'169-0. 공동주택 건립'!$C$3) ->  | D27: 1382 | E27: 0 | F27: 0 | G27: 1382 | H27: 0 | I27: 0 | J27: 0 | K27: 0 | L27: 0 | M27: 3 | N27: 188 | O27: 22 | P27: 1194 | Q27: 0 | R27: 0 | S27: 0 | T27: 0 | V27: 0 | X27: 0
A28: 구 로 Guro-gu | B28: 구로구 | C28: =SUMIFS(#REF!,#REF!,$B28,#REF!,">=30",#REF!,">="&'169-0. 공동주택 건립'!$C$3) ->  | D28: 0 | E28: 0 | F28: 0 | G28: 0 | H28: 0 | I28: 0 | J28: 0 | K28: 0 | L28: 0 | M28: 0 | N28: 0 | O28: 0 | P28: 0 | Q28: 0 | R28: 0 | S28: 0 | T28: 0 | V28: 0 | X28: 0
A29: 금 천 Geumcheon-gu | B29: 금천구 | C29: =SUMIFS(#REF!,#REF!,$B29,#REF!,">=30",#REF!,">="&'169-0. 공동주택 건립'!$C$3) ->  | D29: 730 | E29: 0 | F29: 0 | G29: 292 | H29: 438 | I29: 0 | J29: 0 | K29: 0 | L29: 0 | M29: 0 | N29: 0 | O29: 5 | P29: 730 | Q29: 0 | R29: 0 | S29: 0 | T29: 0 | V29: 0 | X29: 0
A30: 영등포 Yeongdeungpo-gu | B30: 영등포구 | C30: =SUMIFS(#REF!,#REF!,$B30,#REF!,">=30",#REF!,">="&'169-0. 공동주택 건립'!$C$3) ->  | D30: 3363 | E30: 0 | F30: 348 | G30: 50 | H30: 89 | I30: 826 | J30: 2050 | K30: 0 | L30: 0 | M30: 5 | N30: 368 | O30: 0 | P30: 0 | Q30: 17 | R30: 1898 | S30: 10 | T30: 1097 | V30: 0 | X30: 0
A31: 동 작 Dongjak-gu | B31: 동작구 | C31: =SUMIFS(#REF!,#REF!,$B31,#REF!,">=30",#REF!,">="&'169-0. 공동주택 건립'!$C$3) ->  | D31: 0 | E31: 0 | F31: 0 | G31: 0 | H31: 0 | I31: 0 | J31: 0 | K31: 0 | L31: 0 | M31: 0 | N31: 0 | O31: 0 | P31: 0 | Q31: 0 | R31: 0 | S31: 0 | T31: 0 | V31: 0 | X31: 0
A32: 관 악 Gwanak-gu | B32: 관악구 | C32: =SUMIFS(#REF!,#REF!,$B32,#REF!,">=30",#REF!,">="&'169-0. 공동주택 건립'!$C$3) ->  | D32: 0 | E32: 0 | F32: 0 | G32: 0 | H32: 0 | I32: 0 | J32: 0 | K32: 0 | L32: 0 | M32: 0 | N32: 0 | O32: 0 | P32: 0 | Q32: 0 | R32: 0 | S32: 0 | T32: 0 | V32: 0 | X32: 0
A33: 서 초 Seocho-gu | B33: 서초구 | C33: =SUMIFS(#REF!,#REF!,$B33,#REF!,">=30",#REF!,">="&'169-0. 공동주택 건립'!$C$3) ->  | D33: 907 | E33: 0 | F33: 192 | G33: 388 | H33: 70 | I33: 257 | J33: 0 | K33: 1 | L33: 144 | M33: 1 | N33: 180 | O33: 1 | P33: 176 | Q33: 0 | R33: 163 | S33: 4 | T33: 244 | V33: 0 | X33: 0
A34: 강 남 Gangnam-gu | B34: 강남구 | C34: =SUMIFS(#REF!,#REF!,$B34,#REF!,">=30",#REF!,">="&'169-0. 공동주택 건립'!$C$3) ->  | D34: 239 | E34: 0 | F34: 4 | G34: 104 | H34: 89 | I34: 42 | J34: 0 | K34: 0 | L34: 0 | M34: 0 | N34: 0 | O34: 0 | P34: 0 | Q34: 4 | R34: 239 | S34: 0 | T34: 0 | V34: =D34-SUM(E34:J34) -> 0 | X34: 0
A35: 송 파 Songpa-gu | B35: 송파구 | C35: =SUMIFS(#REF!,#REF!,$B35,#REF!,">=30",#REF!,">="&'169-0. 공동주택 건립'!$C$3) ->  | D35: 624 | E35: 252 | F35: 187 | G35: 185 | H35: 0 | I35: 0 | J35: 0 | K35: 0 | L35: 0 | M35: 0 | N35: 0 | O35: 1 | P35: 49 | Q35: 5 | R35: 575 | S35: 0 | T35: 0 | U35: 0 | V35: 0 | X35: 0
A36: 강 동 Gangdong-gu | B36: 강동구 | C36: =SUMIFS(#REF!,#REF!,$B36,#REF!,">=30",#REF!,">="&'169-0. 공동주택 건립'!$C$3) ->  | D36: 0 | E36: 0 | F36: 0 | G36: 0 | H36: 0 | I36: 0 | J36: 0 | K36: 0 | L36: 0 | M36: 0 | N36: 0 | O36: 0 | P36: 0 | Q36: 0 | R36: 0 | S36: 0 | T36: 0 | U36: 0 | V36: 0 | X36: 0
A38: 자료 : 공동주택과
A39: 주 : 1) 당해년도(1월1일~12월31일) 사업승인(검사)기준 2) 분양가구수가 30가구 이상인 아파트 기준이며, 사용승인(검사)를 받은 아파트의 미분양 가구수도 포함됨
C41: =C11-SUM(C12:C36) ->  | D41: =D11-SUM(D12:D36) -> 0 | E41: 0 | F41: 0 | G41: 0 | H41: 0 | I41: 0 | J41: 0 | K41: 0 | L41: 0 | M41: 0 | N41: 0 | O41: 0 | P41: 0 | Q41: 0 | R41: 0 | S41: 0 | T41: 0

Sheet 169-1. 세대수별 (hidden)
A1: 169-1. 공동주택 현황(세대수별) Apartment Houses by The Number of Households
A3: 단위 : 개수
C4: 소 계 | F4: 3,000세대 이상 | G4: 2,000세대이상 3,000세대미만 | H4: 1,000세대이상 2,000세대미만 | I4: 500세대이상 1,000세대미만 | J4: 300세대이상 500세대미만 | K4: 150세대이상 300세대미만 | L4: 100세대이상 150세대미만 | M4: 50세대이상 100세대미만 | N4: 30세대이상 50세대미만
C5: 단지수 | D5: 동수 | E5: 세대수 | P5: 단지수
A7: 2017 | C7: =SUM(C$8:C$32) ->  | P7: =C7-SUM(F7:N7) -> 
A8: 종 로 Jongno-gu | B8: 종로구 | C8: =SUM(F8:N8) ->  | D8: =SUMIFS(#REF!,#REF!,$B8,#REF!,">=30") ->  | E8: =SUMIFS(#REF!,#REF!,$B8,#REF!,">=30") ->  | F8: =COUNTIFS(#REF!,$B8,#REF!,">=3000") ->  | G8: =COUNTIFS(#REF!,$B8,#REF!,">=2000",#REF!,"<3000") ->  | H8: =COUNTIFS(#REF!,$B8,#REF!,">=1000",#REF!,"<2000") ->  | I8: =COUNTIFS(#REF!,$B8,#REF!,">=500",#REF!,"<1000") ->  | J8: =COUNTIFS(#REF!,$B8,#REF!,">=300",#REF!,"<500") ->  | K8: =COUNTIFS(#REF!,$B8,#REF!,">=150",#REF!,"<300") ->  | L8: =COUNTIFS(#REF!,$B8,#REF!,">=100",#REF!,"<150") ->  | M8: =COUNTIFS(#REF!,$B8,#REF!,">=50",#REF!,"<100") ->  | N8: =COUNTIFS(#REF!,$B8,#REF!,">=30",#REF!,"<50") ->  | P8: =C8-SUM(F8:N8) -> 
A9: 중 구 Jung-gu | B9: 중구 | C9: =SUM(F9:N9) ->  | D9: =SUMIFS(#REF!,#REF!,$B9,#REF!,">=30") ->  | E9: =SUMIFS(#REF!,#REF!,$B9,#REF!,">=30") ->  | F9: =COUNTIFS(#REF!,$B9,#REF!,">=3000") ->  | G9: =COUNTIFS(#REF!,$B9,#REF!,">=2000",#REF!,"<3000") ->  | H9: =COUNTIFS(#REF!,$B9,#REF!,">=1000",#REF!,"<2000") ->  | I9: =COUNTIFS(#REF!,$B9,#REF!,">=500",#REF!,"<1000") ->  | J9: =COUNTIFS(#REF!,$B9,#REF!,">=300",#REF!,"<500") ->  | K9: =COUNTIFS(#REF!,$B9,#REF!,">=150",#REF!,"<300") ->  | L9: =COUNTIFS(#REF!,$B9,#REF!,">=100",#REF!,"<150") ->  | M9: =COUNTIFS(#REF!,$B9,#REF!,">=50",#REF!,"<100") ->  | N9: =COUNTIFS(#REF!,$B9,#REF!,">=30",#REF!,"<50") -> 
A10: 용 산 Yongsan-gu | B10: 용산구 | D10: =SUMIFS(#REF!,#REF!,$B10,#REF!,">=30") ->  | E10: =SUMIFS(#REF!,#REF!,$B10,#REF!,">=30") ->  | F10: =COUNTIFS(#REF!,$B10,#REF!,">=3000") ->  | G10: =COUNTIFS(#REF!,$B10,#REF!,">=2000",#REF!,"<3000") ->  | H10: =COUNTIFS(#REF!,$B10,#REF!,">=1000",#REF!,"<2000") ->  | I10: =COUNTIFS(#REF!,$B10,#REF!,">=500",#REF!,"<1000") ->  | J10: =COUNTIFS(#REF!,$B10,#REF!,">=300",#REF!,"<500") ->  | K10: =COUNTIFS(#REF!,$B10,#REF!,">=150",#REF!,"<300") ->  | L10: =COUNTIFS(#REF!,$B10,#REF!,">=100",#REF!,"<150") ->  | M10: =COUNTIFS(#REF!,$B10,#REF!,">=50",#REF!,"<100") ->  | N10: =COUNTIFS(#REF!,$B10,#REF!,">=30",#REF!,"<50") -> 
A11: 성 동 Seongdong-gu | B11: 성동구 | D11: =SUMIFS(#REF!,#REF!,$B11,#REF!,">=30") ->  | E11: =SUMIFS(#REF!,#REF!,$B11,#REF!,">=30") ->  | F11: =COUNTIFS(#REF!,$B11,#REF!,">=3000") ->  | G11: =COUNTIFS(#REF!,$B11,#REF!,">=2000",#REF!,"<3000") ->  | H11: =COUNTIFS(#REF!,$B11,#REF!,">=1000",#REF!,"<2000") ->  | I11: =COUNTIFS(#REF!,$B11,#REF!,">=500",#REF!,"<1000") ->  | J11: =COUNTIFS(#REF!,$B11,#REF!,">=300",#REF!,"<500") ->  | K11: =COUNTIFS(#REF!,$B11,#REF!,">=150",#REF!,"<300") ->  | L11: =COUNTIFS(#REF!,$B11,#REF!,">=100",#REF!,"<150") ->  | M11: =COUNTIFS(#REF!,$B11,#REF!,">=50",#REF!,"<100") ->  | N11: =COUNTIFS(#REF!,$B11,#REF!,">=30",#REF!,"<50") -> 
A12: 광 진 Gwangjin-gu | B12: 광진구 | D12: =SUMIFS(#REF!,#REF!,$B12,#REF!,">=30") ->  | E12: =SUMIFS(#REF!,#REF!,$B12,#REF!,">=30") ->  | F12: =COUNTIFS(#REF!,$B12,#REF!,">=3000") ->  | G12: =COUNTIFS(#REF!,$B12,#REF!,">=2000",#REF!,"<3000") ->  | H12: =COUNTIFS(#REF!,$B12,#REF!,">=1000",#REF!,"<2000") ->  | I12: =COUNTIFS(#REF!,$B12,#REF!,">=500",#REF!,"<1000") ->  | J12: =COUNTIFS(#REF!,$B12,#REF!,">=300",#REF!,"<500") ->  | K12: =COUNTIFS(#REF!,$B12,#REF!,">=150",#REF!,"<300") ->  | L12: =COUNTIFS(#REF!,$B12,#REF!,">=100",#REF!,"<150") ->  | M12: =COUNTIFS(#REF!,$B12,#REF!,">=50",#REF!,"<100") ->  | N12: =COUNTIFS(#REF!,$B12,#REF!,">=30",#REF!,"<50") -> 
A13: 동대문 Dongdaemun-gu | B13: 동대문구 | D13: =SUMIFS(#REF!,#REF!,$B13,#REF!,">=30") ->  | E13: =SUMIFS(#REF!,#REF!,$B13,#REF!,">=30") ->  | F13: =COUNTIFS(#REF!,$B13,#REF!,">=3000") ->  | G13: =COUNTIFS(#REF!,$B13,#REF!,">=2000",#REF!,"<3000") ->  | H13: =COUNTIFS(#REF!,$B13,#REF!,">=1000",#REF!,"<2000") ->  | I13: =COUNTIFS(#REF!,$B13,#REF!,">=500",#REF!,"<1000") ->  | J13: =COUNTIFS(#REF!,$B13,#REF!,">=300",#REF!,"<500") ->  | K13: =COUNTIFS(#REF!,$B13,#REF!,">=150",#REF!,"<300") ->  | L13: =COUNTIFS(#REF!,$B13,#REF!,">=100",#REF!,"<150") ->  | M13: =COUNTIFS(#REF!,$B13,#REF!,">=50",#REF!,"<100") ->  | N13: =COUNTIFS(#REF!,$B13,#REF!,">=30",#REF!,"<50") -> 
A14: 중 랑 Jungnang-gu | B14: 중랑구 | D14: =SUMIFS(#REF!,#REF!,$B14,#REF!,">=30") ->  | E14: =SUMIFS(#REF!,#REF!,$B14,#REF!,">=30") ->  | F14: =COUNTIFS(#REF!,$B14,#REF!,">=3000") ->  | G14: =COUNTIFS(#REF!,$B14,#REF!,">=2000",#REF!,"<3000") ->  | H14: =COUNTIFS(#REF!,$B14,#REF!,">=1000",#REF!,"<2000") ->  | I14: =COUNTIFS(#REF!,$B14,#REF!,">=500",#REF!,"<1000") ->  | J14: =COUNTIFS(#REF!,$B14,#REF!,">=300",#REF!,"<500") ->  | K14: =COUNTIFS(#REF!,$B14,#REF!,">=150",#REF!,"<300") ->  | L14: =COUNTIFS(#REF!,$B14,#REF!,">=100",#REF!,"<150") ->  | M14: =COUNTIFS(#REF!,$B14,#REF!,">=50",#REF!,"<100") ->  | N14: =COUNTIFS(#REF!,$B14,#REF!,">=30",#REF!,"<50") -> 
A15: 성 북 Seongbuk-gu | B15: 성북구 | D15: =SUMIFS(#REF!,#REF!,$B15,#REF!,">=30") ->  | E15: =SUMIFS(#REF!,#REF!,$B15,#REF!,">=30") ->  | F15: =COUNTIFS(#REF!,$B15,#REF!,">=3000") ->  | G15: =COUNTIFS(#REF!,$B15,#REF!,">=2000",#REF!,"<3000") ->  | H15: =COUNTIFS(#REF!,$B15,#REF!,">=1000",#REF!,"<2000") ->  | I15: =COUNTIFS(#REF!,$B15,#REF!,">=500",#REF!,"<1000") ->  | J15: =COUNTIFS(#REF!,$B15,#REF!,">=300",#REF!,"<500") ->  | K15: =COUNTIFS(#REF!,$B15,#REF!,">=150",#REF!,"<300") ->  | L15: =COUNTIFS(#REF!,$B15,#REF!,">=100",#REF!,"<150") ->  | M15: =COUNTIFS(#REF!,$B15,#REF!,">=50",#REF!,"<100") ->  | N15: =COUNTIFS(#REF!,$B15,#REF!,">=30",#REF!,"<50") -> 
A16: 강 북 Gangbuk-gu | B16: 강북구 | D16: =SUMIFS(#REF!,#REF!,$B16,#REF!,">=30") ->  | E16: =SUMIFS(#REF!,#REF!,$B16,#REF!,">=30") ->  | F16: =COUNTIFS(#REF!,$B16,#REF!,">=3000") ->  | G16: =COUNTIFS(#REF!,$B16,#REF!,">=2000",#REF!,"<3000") ->  | H16: =COUNTIFS(#REF!,$B16,#REF!,">=1000",#REF!,"<2000") ->  | I16: =COUNTIFS(#REF!,$B16,#REF!,">=500",#REF!,"<1000") ->  | J16: =COUNTIFS(#REF!,$B16,#REF!,">=300",#REF!,"<500") ->  | K16: =COUNTIFS(#REF!,$B16,#REF!,">=150",#REF!,"<300") ->  | L16: =COUNTIFS(#REF!,$B16,#REF!,">=100",#REF!,"<150") ->  | M16: =COUNTIFS(#REF!,$B16,#REF!,">=50",#REF!,"<100") ->  | N16: =COUNTIFS(#REF!,$B16,#REF!,">=30",#REF!,"<50") -> 
A17: 도 봉 Dobong-gu | B17: 도봉구 | D17: =SUMIFS(#REF!,#REF!,$B17,#REF!,">=30") ->  | E17: =SUMIFS(#REF!,#REF!,$B17,#REF!,">=30") ->  | F17: =COUNTIFS(#REF!,$B17,#REF!,">=3000") ->  | G17: =COUNTIFS(#REF!,$B17,#REF!,">=2000",#REF!,"<3000") ->  | H17: =COUNTIFS(#REF!,$B17,#REF!,">=1000",#REF!,"<2000") ->  | I17: =COUNTIFS(#REF!,$B17,#REF!,">=500",#REF!,"<1000") ->  | J17: =COUNTIFS(#REF!,$B17,#REF!,">=300",#REF!,"<500") ->  | K17: =COUNTIFS(#REF!,$B17,#REF!,">=150",#REF!,"<300") ->  | L17: =COUNTIFS(#REF!,$B17,#REF!,">=100",#REF!,"<150") ->  | M17: =COUNTIFS(#REF!,$B17,#REF!,">=50",#REF!,"<100") ->  | N17: =COUNTIFS(#REF!,$B17,#REF!,">=30",#REF!,"<50") -> 
A18: 노 원 Nowon-gu | B18: 노원구 | D18: =SUMIFS(#REF!,#REF!,$B18,#REF!,">=30") ->  | E18: =SUMIFS(#REF!,#REF!,$B18,#REF!,">=30") ->  | F18: =COUNTIFS(#REF!,$B18,#REF!,">=3000") ->  | G18: =COUNTIFS(#REF!,$B18,#REF!,">=2000",#REF!,"<3000") ->  | H18: =COUNTIFS(#REF!,$B18,#REF!,">=1000",#REF!,"<2000") ->  | I18: =COUNTIFS(#REF!,$B18,#REF!,">=500",#REF!,"<1000") ->  | J18: =COUNTIFS(#REF!,$B18,#REF!,">=300",#REF!,"<500") ->  | K18: =COUNTIFS(#REF!,$B18,#REF!,">=150",#REF!,"<300") ->  | L18: =COUNTIFS(#REF!,$B18,#REF!,">=100",#REF!,"<150") ->  | M18: =COUNTIFS(#REF!,$B18,#REF!,">=50",#REF!,"<100") ->  | N18: =COUNTIFS(#REF!,$B18,#REF!,">=30",#REF!,"<50") -> 
A19: 은 평 Eunpyeong-gu | B19: 은평구 | D19: =SUMIFS(#REF!,#REF!,$B19,#REF!,">=30") ->  | E19: =SUMIFS(#REF!,#REF!,$B19,#REF!,">=30") ->  | F19: =COUNTIFS(#REF!,$B19,#REF!,">=3000") ->  | G19: =COUNTIFS(#REF!,$B19,#REF!,">=2000",#REF!,"<3000") ->  | H19: =COUNTIFS(#REF!,$B19,#REF!,">=1000",#REF!,"<2000") ->  | I19: =COUNTIFS(#REF!,$B19,#REF!,">=500",#REF!,"<1000") ->  | J19: =COUNTIFS(#REF!,$B19,#REF!,">=300",#REF!,"<500") ->  | K19: =COUNTIFS(#REF!,$B19,#REF!,">=150",#REF!,"<300") ->  | L19: =COUNTIFS(#REF!,$B19,#REF!,">=100",#REF!,"<150") ->  | M19: =COUNTIFS(#REF!,$B19,#REF!,">=50",#REF!,"<100") ->  | N19: =COUNTIFS(#REF!,$B19,#REF!,">=30",#REF!,"<50") -> 
A20: 서대문 Seodaemun-gu | B20: 서대문구 | D20: =SUMIFS(#REF!,#REF!,$B20,#REF!,">=30") ->  | E20: =SUMIFS(#REF!,#REF!,$B20,#REF!,">=30") ->  | F20: =COUNTIFS(#REF!,$B20,#REF!,">=3000") ->  | G20: =COUNTIFS(#REF!,$B20,#REF!,">=2000",#REF!,"<3000") ->  | H20: =COUNTIFS(#REF!,$B20,#REF!,">=1000",#REF!,"<2000") ->  | I20: =COUNTIFS(#REF!,$B20,#REF!,">=500",#REF!,"<1000") ->  | J20: =COUNTIFS(#REF!,$B20,#REF!,">=300",#REF!,"<500") ->  | K20: =COUNTIFS(#REF!,$B20,#REF!,">=150",#REF!,"<300") ->  | L20: =COUNTIFS(#REF!,$B20,#REF!,">=100",#REF!,"<150") ->  | M20: =COUNTIFS(#REF!,$B20,#REF!,">=50",#REF!,"<100") ->  | N20: =COUNTIFS(#REF!,$B20,#REF!,">=30",#REF!,"<50") -> 
A21: 마 포 Mapo-gu | B21: 마포구 | D21: =SUMIFS(#REF!,#REF!,$B21,#REF!,">=30") ->  | E21: =SUMIFS(#REF!,#REF!,$B21,#REF!,">=30") ->  | F21: =COUNTIFS(#REF!,$B21,#REF!,">=3000") ->  | G21: =COUNTIFS(#REF!,$B21,#REF!,">=2000",#REF!,"<3000") ->  | H21: =COUNTIFS(#REF!,$B21,#REF!,">=1000",#REF!,"<2000") ->  | I21: =COUNTIFS(#REF!,$B21,#REF!,">=500",#REF!,"<1000") ->  | J21: =COUNTIFS(#REF!,$B21,#REF!,">=300",#REF!,"<500") ->  | K21: =COUNTIFS(#REF!,$B21,#REF!,">=150",#REF!,"<300") ->  | L21: =COUNTIFS(#REF!,$B21,#REF!,">=100",#REF!,"<150") ->  | M21: =COUNTIFS(#REF!,$B21,#REF!,">=50",#REF!,"<100") ->  | N21: =COUNTIFS(#REF!,$B21,#REF!,">=30",#REF!,"<50") -> 
A22: 양 천 Yangcheon-gu | B22: 양천구 | D22: =SUMIFS(#REF!,#REF!,$B22,#REF!,">=30") ->  | E22: =SUMIFS(#REF!,#REF!,$B22,#REF!,">=30") ->  | F22: =COUNTIFS(#REF!,$B22,#REF!,">=3000") ->  | G22: =COUNTIFS(#REF!,$B22,#REF!,">=2000",#REF!,"<3000") ->  | H22: =COUNTIFS(#REF!,$B22,#REF!,">=1000",#REF!,"<2000") ->  | I22: =COUNTIFS(#REF!,$B22,#REF!,">=500",#REF!,"<1000") ->  | J22: =COUNTIFS(#REF!,$B22,#REF!,">=300",#REF!,"<500") ->  | K22: =COUNTIFS(#REF!,$B22,#REF!,">=150",#REF!,"<300") ->  | L22: =COUNTIFS(#REF!,$B22,#REF!,">=100",#REF!,"<150") ->  | M22: =COUNTIFS(#REF!,$B22,#REF!,">=50",#REF!,"<100") ->  | N22: =COUNTIFS(#REF!,$B22,#REF!,">=30",#REF!,"<50") -> 
A23: 강 서 Gangseo-gu | B23: 강서구 | D23: =SUMIFS(#REF!,#REF!,$B23,#REF!,">=30") ->  | E23: =SUMIFS(#REF!,#REF!,$B23,#REF!,">=30") ->  | F23: =COUNTIFS(#REF!,$B23,#REF!,">=3000") ->  | G23: =COUNTIFS(#REF!,$B23,#REF!,">=2000",#REF!,"<3000") ->  | H23: =COUNTIFS(#REF!,$B23,#REF!,">=1000",#REF!,"<2000") ->  | I23: =COUNTIFS(#REF!,$B23,#REF!,">=500",#REF!,"<1000") ->  | J23: =COUNTIFS(#REF!,$B23,#REF!,">=300",#REF!,"<500") ->  | K23: =COUNTIFS(#REF!,$B23,#REF!,">=150",#REF!,"<300") ->  | L23: =COUNTIFS(#REF!,$B23,#REF!,">=100",#REF!,"<150") ->  | M23: =COUNTIFS(#REF!,$B23,#REF!,">=50",#REF!,"<100") ->  | N23: =COUNTIFS(#REF!,$B23,#REF!,">=30",#REF!,"<50") -> 
A24: 구 로 Guro-gu | B24: 구로구 | D24: =SUMIFS(#REF!,#REF!,$B24,#REF!,">=30") ->  | E24: =SUMIFS(#REF!,#REF!,$B24,#REF!,">=30") ->  | F24: =COUNTIFS(#REF!,$B24,#REF!,">=3000") ->  | G24: =COUNTIFS(#REF!,$B24,#REF!,">=2000",#REF!,"<3000") ->  | H24: =COUNTIFS(#REF!,$B24,#REF!,">=1000",#REF!,"<2000") ->  | I24: =COUNTIFS(#REF!,$B24,#REF!,">=500",#REF!,"<1000") ->  | J24: =COUNTIFS(#REF!,$B24,#REF!,">=300",#REF!,"<500") ->  | K24: =COUNTIFS(#REF!,$B24,#REF!,">=150",#REF!,"<300") ->  | L24: =COUNTIFS(#REF!,$B24,#REF!,">=100",#REF!,"<150") ->  | M24: =COUNTIFS(#REF!,$B24,#REF!,">=50",#REF!,"<100") ->  | N24: =COUNTIFS(#REF!,$B24,#REF!,">=30",#REF!,"<50") -> 
A25: 금 천 Geumcheon-gu | B25: 금천구 | D25: =SUMIFS(#REF!,#REF!,$B25,#REF!,">=30") ->  | E25: =SUMIFS(#REF!,#REF!,$B25,#REF!,">=30") ->  | F25: =COUNTIFS(#REF!,$B25,#REF!,">=3000") ->  | G25: =COUNTIFS(#REF!,$B25,#REF!,">=2000",#REF!,"<3000") ->  | H25: =COUNTIFS(#REF!,$B25,#REF!,">=1000",#REF!,"<2000") ->  | I25: =COUNTIFS(#REF!,$B25,#REF!,">=500",#REF!,"<1000") ->  | J25: =COUNTIFS(#REF!,$B25,#REF!,">=300",#REF!,"<500") ->  | K25: =COUNTIFS(#REF!,$B25,#REF!,">=150",#REF!,"<300") ->  | L25: =COUNTIFS(#REF!,$B25,#REF!,">=100",#REF!,"<150") ->  | M25: =COUNTIFS(#REF!,$B25,#REF!,">=50",#REF!,"<100") ->  | N25: =COUNTIFS(#REF!,$B25,#REF!,">=30",#REF!,"<50") -> 
A26: 영등포 Yeongdeungpo-gu | B26: 영등포구 | D26: =SUMIFS(#REF!,#REF!,$B26,#REF!,">=30") ->  | E26: =SUMIFS(#REF!,#REF!,$B26,#REF!,">=30") ->  | F26: =COUNTIFS(#REF!,$B26,#REF!,">=3000") ->  | G26: =COUNTIFS(#REF!,$B26,#REF!,">=2000",#REF!,"<3000") ->  | H26: =COUNTIFS(#REF!,$B26,#REF!,">=1000",#REF!,"<2000") ->  | I26: =COUNTIFS(#REF!,$B26,#REF!,">=500",#REF!,"<1000") ->  | J26: =COUNTIFS(#REF!,$B26,#REF!,">=300",#REF!,"<500") ->  | K26: =COUNTIFS(#REF!,$B26,#REF!,">=150",#REF!,"<300") ->  | L26: =COUNTIFS(#REF!,$B26,#REF!,">=100",#REF!,"<150") ->  | M26: =COUNTIFS(#REF!,$B26,#REF!,">=50",#REF!,"<100") ->  | N26: =COUNTIFS(#REF!,$B26,#REF!,">=30",#REF!,"<50") -> 
A27: 동 작 Dongjak-gu | B27: 동작구 | D27: =SUMIFS(#REF!,#REF!,$B27,#REF!,">=30") ->  | E27: =SUMIFS(#REF!,#REF!,$B27,#REF!,">=30") ->  | F27: =COUNTIFS(#REF!,$B27,#REF!,">=3000") ->  | G27: =COUNTIFS(#REF!,$B27,#REF!,">=2000",#REF!,"<3000") ->  | H27: =COUNTIFS(#REF!,$B27,#REF!,">=1000",#REF!,"<2000") ->  | I27: =COUNTIFS(#REF!,$B27,#REF!,">=500",#REF!,"<1000") ->  | J27: =COUNTIFS(#REF!,$B27,#REF!,">=300",#REF!,"<500") ->  | K27: =COUNTIFS(#REF!,$B27,#REF!,">=150",#REF!,"<300") ->  | L27: =COUNTIFS(#REF!,$B27,#REF!,">=100",#REF!,"<150") ->  | M27: =COUNTIFS(#REF!,$B27,#REF!,">=50",#REF!,"<100") ->  | N27: =COUNTIFS(#REF!,$B27,#REF!,">=30",#REF!,"<50") -> 
A28: 관 악 Gwanak-gu | B28: 관악구 | D28: =SUMIFS(#REF!,#REF!,$B28,#REF!,">=30") ->  | E28: =SUMIFS(#REF!,#REF!,$B28,#REF!,">=30") ->  | F28: =COUNTIFS(#REF!,$B28,#REF!,">=3000") ->  | G28: =COUNTIFS(#REF!,$B28,#REF!,">=2000",#REF!,"<3000") ->  | H28: =COUNTIFS(#REF!,$B28,#REF!,">=1000",#REF!,"<2000") ->  | I28: =COUNTIFS(#REF!,$B28,#REF!,">=500",#REF!,"<1000") ->  | J28: =COUNTIFS(#REF!,$B28,#REF!,">=300",#REF!,"<500") ->  | K28: =COUNTIFS(#REF!,$B28,#REF!,">=150",#REF!,"<300") ->  | L28: =COUNTIFS(#REF!,$B28,#REF!,">=100",#REF!,"<150") ->  | M28: =COUNTIFS(#REF!,$B28,#REF!,">=50",#REF!,"<100") ->  | N28: =COUNTIFS(#REF!,$B28,#REF!,">=30",#REF!,"<50") -> 
A29: 서 초 Seocho-gu | B29: 서초구 | D29: =SUMIFS(#REF!,#REF!,$B29,#REF!,">=30") ->  | E29: =SUMIFS(#REF!,#REF!,$B29,#REF!,">=30") ->  | F29: =COUNTIFS(#REF!,$B29,#REF!,">=3000") ->  | G29: =COUNTIFS(#REF!,$B29,#REF!,">=2000",#REF!,"<3000") ->  | H29: =COUNTIFS(#REF!,$B29,#REF!,">=1000",#REF!,"<2000") ->  | I29: =COUNTIFS(#REF!,$B29,#REF!,">=500",#REF!,"<1000") ->  | J29: =COUNTIFS(#REF!,$B29,#REF!,">=300",#REF!,"<500") ->  | K29: =COUNTIFS(#REF!,$B29,#REF!,">=150",#REF!,"<300") ->  | L29: =COUNTIFS(#REF!,$B29,#REF!,">=100",#REF!,"<150") ->  | M29: =COUNTIFS(#REF!,$B29,#REF!,">=50",#REF!,"<100") ->  | N29: =COUNTIFS(#REF!,$B29,#REF!,">=30",#REF!,"<50") -> 
A30: 강 남 Gangnam-gu | B30: 강남구 | D30: =SUMIFS(#REF!,#REF!,$B30,#REF!,">=30") ->  | E30: =SUMIFS(#REF!,#REF!,$B30,#REF!,">=30") ->  | F30: =COUNTIFS(#REF!,$B30,#REF!,">=3000") ->  | G30: =COUNTIFS(#REF!,$B30,#REF!,">=2000",#REF!,"<3000") ->  | H30: =COUNTIFS(#REF!,$B30,#REF!,">=1000",#REF!,"<2000") ->  | I30: =COUNTIFS(#REF!,$B30,#REF!,">=500",#REF!,"<1000") ->  | J30: =COUNTIFS(#REF!,$B30,#REF!,">=300",#REF!,"<500") ->  | K30: =COUNTIFS(#REF!,$B30,#REF!,">=150",#REF!,"<300") ->  | L30: =COUNTIFS(#REF!,$B30,#REF!,">=100",#REF!,"<150") ->  | M30: =COUNTIFS(#REF!,$B30,#REF!,">=50",#REF!,"<100") ->  | N30: =COUNTIFS(#REF!,$B30,#REF!,">=30",#REF!,"<50") -> 
A31: 송 파 Songpa-gu | B31: 송파구 | D31: =SUMIFS(#REF!,#REF!,$B31,#REF!,">=30") ->  | E31: =SUMIFS(#REF!,#REF!,$B31,#REF!,">=30") ->  | F31: =COUNTIFS(#REF!,$B31,#REF!,">=3000") ->  | G31: =COUNTIFS(#REF!,$B31,#REF!,">=2000",#REF!,"<3000") ->  | H31: =COUNTIFS(#REF!,$B31,#REF!,">=1000",#REF!,"<2000") ->  | I31: =COUNTIFS(#REF!,$B31,#REF!,">=500",#REF!,"<1000") ->  | J31: =COUNTIFS(#REF!,$B31,#REF!,">=300",#REF!,"<500") ->  | K31: =COUNTIFS(#REF!,$B31,#REF!,">=150",#REF!,"<300") ->  | L31: =COUNTIFS(#REF!,$B31,#REF!,">=100",#REF!,"<150") ->  | M31: =COUNTIFS(#REF!,$B31,#REF!,">=50",#REF!,"<100") ->  | N31: =COUNTIFS(#REF!,$B31,#REF!,">=30",#REF!,"<50") ->  | O31: 0
A32: 강 동 Gangdong-gu | B32: 강동구 | D32: =SUMIFS(#REF!,#REF!,$B32,#REF!,">=30") ->  | E32: =SUMIFS(#REF!,#REF!,$B32,#REF!,">=30") ->  | F32: =COUNTIFS(#REF!,$B32,#REF!,">=3000") ->  | G32: =COUNTIFS(#REF!,$B32,#REF!,">=2000",#REF!,"<3000") ->  | H32: =COUNTIFS(#REF!,$B32,#REF!,">=1000",#REF!,"<2000") ->  | I32: =COUNTIFS(#REF!,$B32,#REF!,">=500",#REF!,"<1000") ->  | J32: =COUNTIFS(#REF!,$B32,#REF!,">=300",#REF!,"<500") ->  | K32: =COUNTIFS(#REF!,$B32,#REF!,">=150",#REF!,"<300") ->  | L32: =COUNTIFS(#REF!,$B32,#REF!,">=100",#REF!,"<150") ->  | M32: =COUNTIFS(#REF!,$B32,#REF!,">=50",#REF!,"<100") ->  | N32: =COUNTIFS(#REF!,$B32,#REF!,">=30",#REF!,"<50") ->  | O32: 0
A34: 자료 : 공동주택과
A35: 주 : 1) 분양가구수가 30가구 이상인 아파트,주상복합,연립,다세대 기준.
C37: =C7-SUM(C8:C32) -> 

Sheet 169-2. 유형별 (hidden)
A1: 169-2. 공동주택 현황(유형별) Apartment Houses by Types
A3: 단위 : 개수
C4: 총계 | F4: 아파트 | I4: 주상복합 | L4: 연립 | O4: 다세대
C5: 단지수 | D5: 동수 | E5: 세대수 | F5: 단지수 | G5: 동수 | H5: 세대수 | I5: 단지수 | J5: 동수 | K5: 세대수 | L5: 단지수 | M5: 동수 | N5: 세대수 | O5: 단지수 | P5: 동수 | Q5: 세대수 | S5: 단지수 | T5: 동수 | U5: 세대수
A7: 2017 | C7: =SUM(C$8:C$32) ->  | S7: =C7-SUM(F7,I7,L7,O7) ->  | T7: =D7-SUM(G7,J7,M7,P7) ->  | U7: =E7-SUM(H7,K7,N7,Q7) -> 
A8: 종 로 Jongno-gu | B8: 종로구 | C8: =SUM(F8,I8,L8,O8) ->  | D8: =SUM(G8,J8,M8,P8) ->  | E8: =SUM(H8,K8,N8,Q8) ->  | F8: =COUNTIFS(#REF!,$B8,#REF!,F$4,#REF!,">=30") ->  | G8: =SUMIFS(#REF!,#REF!,$B8,#REF!,F$4,#REF!,">=30") ->  | H8: =SUMIFS(#REF!,#REF!,$B8,#REF!,F$4,#REF!,">=30") ->  | I8: =COUNTIFS(#REF!,$B8,#REF!,I$4,#REF!,">=30") ->  | J8: =SUMIFS(#REF!,#REF!,$B8,#REF!,I$4,#REF!,">=30") ->  | K8: =SUMIFS(#REF!,#REF!,$B8,#REF!,I$4,#REF!,">=30") ->  | L8: =COUNTIFS(#REF!,$B8,#REF!,L$4,#REF!,">=30") ->  | M8: =SUMIFS(#REF!,#REF!,$B8,#REF!,L$4,#REF!,">=30") ->  | N8: =SUMIFS(#REF!,#REF!,$B8,#REF!,L$4,#REF!,">=30") ->  | O8: =COUNTIFS(#REF!,$B8,#REF!,O$4,#REF!,">=30") ->  | P8: =SUMIFS(#REF!,#REF!,$B8,#REF!,O$4,#REF!,">=30") ->  | Q8: =SUMIFS(#REF!,#REF!,$B8,#REF!,O$4,#REF!,">=30") ->  | S8: =C8-SUM(F8,I8,L8,O8) ->  | T8: =D8-SUM(G8,J8,M8,P8) ->  | U8: =E8-SUM(H8,K8,N8,Q8) -> 
A9: 중 구 Jung-gu | B9: 중구 | C9: =SUM(F9,I9,L9,O9) ->  | D9: =SUM(G9,J9,M9,P9) ->  | E9: =SUM(H9,K9,N9,Q9) ->  | F9: =COUNTIFS(#REF!,$B9,#REF!,F$4,#REF!,">=30") ->  | G9: =SUMIFS(#REF!,#REF!,$B9,#REF!,F$4,#REF!,">=30") ->  | H9: =SUMIFS(#REF!,#REF!,$B9,#REF!,F$4,#REF!,">=30") ->  | I9: =COUNTIFS(#REF!,$B9,#REF!,I$4,#REF!,">=30") ->  | J9: =SUMIFS(#REF!,#REF!,$B9,#REF!,I$4,#REF!,">=30") ->  | K9: =SUMIFS(#REF!,#REF!,$B9,#REF!,I$4,#REF!,">=30") ->  | L9: =COUNTIFS(#REF!,$B9,#REF!,L$4,#REF!,">=30") ->  | M9: =SUMIFS(#REF!,#REF!,$B9,#REF!,L$4,#REF!,">=30") ->  | N9: =SUMIFS(#REF!,#REF!,$B9,#REF!,L$4,#REF!,">=30") ->  | O9: =COUNTIFS(#REF!,$B9,#REF!,O$4,#REF!,">=30") ->  | P9: =SUMIFS(#REF!,#REF!,$B9,#REF!,O$4,#REF!,">=30") ->  | Q9: =SUMIFS(#REF!,#REF!,$B9,#REF!,O$4,#REF!,">=30") -> 
A10: 용 산 Yongsan-gu | B10: 용산구 | F10: =COUNTIFS(#REF!,$B10,#REF!,F$4,#REF!,">=30") ->  | G10: =SUMIFS(#REF!,#REF!,$B10,#REF!,F$4,#REF!,">=30") ->  | H10: =SUMIFS(#REF!,#REF!,$B10,#REF!,F$4,#REF!,">=30") ->  | I10: =COUNTIFS(#REF!,$B10,#REF!,I$4,#REF!,">=30") ->  | J10: =SUMIFS(#REF!,#REF!,$B10,#REF!,I$4,#REF!,">=30") ->  | K10: =SUMIFS(#REF!,#REF!,$B10,#REF!,I$4,#REF!,">=30") ->  | L10: =COUNTIFS(#REF!,$B10,#REF!,L$4,#REF!,">=30") ->  | M10: =SUMIFS(#REF!,#REF!,$B10,#REF!,L$4,#REF!,">=30") ->  | N10: =SUMIFS(#REF!,#REF!,$B10,#REF!,L$4,#REF!,">=30") ->  | O10: =COUNTIFS(#REF!,$B10,#REF!,O$4,#REF!,">=30") ->  | P10: =SUMIFS(#REF!,#REF!,$B10,#REF!,O$4,#REF!,">=30") ->  | Q10: =SUMIFS(#REF!,#REF!,$B10,#REF!,O$4,#REF!,">=30") -> 
A11: 성 동 Seongdong-gu | B11: 성동구 | F11: =COUNTIFS(#REF!,$B11,#REF!,F$4,#REF!,">=30") ->  | G11: =SUMIFS(#REF!,#REF!,$B11,#REF!,F$4,#REF!,">=30") ->  | H11: =SUMIFS(#REF!,#REF!,$B11,#REF!,F$4,#REF!,">=30") ->  | I11: =COUNTIFS(#REF!,$B11,#REF!,I$4,#REF!,">=30") ->  | J11: =SUMIFS(#REF!,#REF!,$B11,#REF!,I$4,#REF!,">=30") ->  | K11: =SUMIFS(#REF!,#REF!,$B11,#REF!,I$4,#REF!,">=30") ->  | L11: =COUNTIFS(#REF!,$B11,#REF!,L$4,#REF!,">=30") ->  | M11: =SUMIFS(#REF!,#REF!,$B11,#REF!,L$4,#REF!,">=30") ->  | N11: =SUMIFS(#REF!,#REF!,$B11,#REF!,L$4,#REF!,">=30") ->  | O11: =COUNTIFS(#REF!,$B11,#REF!,O$4,#REF!,">=30") ->  | P11: =SUMIFS(#REF!,#REF!,$B11,#REF!,O$4,#REF!,">=30") ->  | Q11: =SUMIFS(#REF!,#REF!,$B11,#REF!,O$4,#REF!,">=30") -> 
A12: 광 진 Gwangjin-gu | B12: 광진구 | F12: =COUNTIFS(#REF!,$B12,#REF!,F$4,#REF!,">=30") ->  | G12: =SUMIFS(#REF!,#REF!,$B12,#REF!,F$4,#REF!,">=30") ->  | H12: =SUMIFS(#REF!,#REF!,$B12,#REF!,F$4,#REF!,">=30") ->  | I12: =COUNTIFS(#REF!,$B12,#REF!,I$4,#REF!,">=30") ->  | J12: =SUMIFS(#REF!,#REF!,$B12,#REF!,I$4,#REF!,">=30") ->  | K12: =SUMIFS(#REF!,#REF!,$B12,#REF!,I$4,#REF!,">=30") ->  | L12: =COUNTIFS(#REF!,$B12,#REF!,L$4,#REF!,">=30") ->  | M12: =SUMIFS(#REF!,#REF!,$B12,#REF!,L$4,#REF!,">=30") ->  | N12: =SUMIFS(#REF!,#REF!,$B12,#REF!,L$4,#REF!,">=30") ->  | O12: =COUNTIFS(#REF!,$B12,#REF!,O$4,#REF!,">=30") ->  | P12: =SUMIFS(#REF!,#REF!,$B12,#REF!,O$4,#REF!,">=30") ->  | Q12: =SUMIFS(#REF!,#REF!,$B12,#REF!,O$4,#REF!,">=30") -> 
A13: 동대문 Dongdaemun-gu | B13: 동대문구 | F13: =COUNTIFS(#REF!,$B13,#REF!,F$4,#REF!,">=30") ->  | G13: =SUMIFS(#REF!,#REF!,$B13,#REF!,F$4,#REF!,">=30") ->  | H13: =SUMIFS(#REF!,#REF!,$B13,#REF!,F$4,#REF!,">=30") ->  | I13: =COUNTIFS(#REF!,$B13,#REF!,I$4,#REF!,">=30") ->  | J13: =SUMIFS(#REF!,#REF!,$B13,#REF!,I$4,#REF!,">=30") ->  | K13: =SUMIFS(#REF!,#REF!,$B13,#REF!,I$4,#REF!,">=30") ->  | L13: =COUNTIFS(#REF!,$B13,#REF!,L$4,#REF!,">=30") ->  | M13: =SUMIFS(#REF!,#REF!,$B13,#REF!,L$4,#REF!,">=30") ->  | N13: =SUMIFS(#REF!,#REF!,$B13,#REF!,L$4,#REF!,">=30") ->  | O13: =COUNTIFS(#REF!,$B13,#REF!,O$4,#REF!,">=30") ->  | P13: =SUMIFS(#REF!,#REF!,$B13,#REF!,O$4,#REF!,">=30") ->  | Q13: =SUMIFS(#REF!,#REF!,$B13,#REF!,O$4,#REF!,">=30") -> 
A14: 중 랑 Jungnang-gu | B14: 중랑구 | F14: =COUNTIFS(#REF!,$B14,#REF!,F$4,#REF!,">=30") ->  | G14: =SUMIFS(#REF!,#REF!,$B14,#REF!,F$4,#REF!,">=30") ->  | H14: =SUMIFS(#REF!,#REF!,$B14,#REF!,F$4,#REF!,">=30") ->  | I14: =COUNTIFS(#REF!,$B14,#REF!,I$4,#REF!,">=30") ->  | J14: =SUMIFS(#REF!,#REF!,$B14,#REF!,I$4,#REF!,">=30") ->  | K14: =SUMIFS(#REF!,#REF!,$B14,#REF!,I$4,#REF!,">=30") ->  | L14: =COUNTIFS(#REF!,$B14,#REF!,L$4,#REF!,">=30") ->  | M14: =SUMIFS(#REF!,#REF!,$B14,#REF!,L$4,#REF!,">=30") ->  | N14: =SUMIFS(#REF!,#REF!,$B14,#REF!,L$4,#REF!,">=30") ->  | O14: =COUNTIFS(#REF!,$B14,#REF!,O$4,#REF!,">=30") ->  | P14: =SUMIFS(#REF!,#REF!,$B14,#REF!,O$4,#REF!,">=30") ->  | Q14: =SUMIFS(#REF!,#REF!,$B14,#REF!,O$4,#REF!,">=30") -> 
A15: 성 북 Seongbuk-gu | B15: 성북구 | F15: =COUNTIFS(#REF!,$B15,#REF!,F$4,#REF!,">=30") ->  | G15: =SUMIFS(#REF!,#REF!,$B15,#REF!,F$4,#REF!,">=30") ->  | H15: =SUMIFS(#REF!,#REF!,$B15,#REF!,F$4,#REF!,">=30") ->  | I15: =COUNTIFS(#REF!,$B15,#REF!,I$4,#REF!,">=30") ->  | J15: =SUMIFS(#REF!,#REF!,$B15,#REF!,I$4,#REF!,">=30") ->  | K15: =SUMIFS(#REF!,#REF!,$B15,#REF!,I$4,#REF!,">=30") ->  | L15: =COUNTIFS(#REF!,$B15,#REF!,L$4,#REF!,">=30") ->  | M15: =SUMIFS(#REF!,#REF!,$B15,#REF!,L$4,#REF!,">=30") ->  | N15: =SUMIFS(#REF!,#REF!,$B15,#REF!,L$4,#REF!,">=30") ->  | O15: =COUNTIFS(#REF!,$B15,#REF!,O$4,#REF!,">=30") ->  | P15: =SUMIFS(#REF!,#REF!,$B15,#REF!,O$4,#REF!,">=30") ->  | Q15: =SUMIFS(#REF!,#REF!,$B15,#REF!,O$4,#REF!,">=30") -> 
A16: 강 북 Gangbuk-gu | B16: 강북구 | F16: =COUNTIFS(#REF!,$B16,#REF!,F$4,#REF!,">=30") ->  | G16: =SUMIFS(#REF!,#REF!,$B16,#REF!,F$4,#REF!,">=30") ->  | H16: =SUMIFS(#REF!,#REF!,$B16,#REF!,F$4,#REF!,">=30") ->  | I16: =COUNTIFS(#REF!,$B16,#REF!,I$4,#REF!,">=30") ->  | J16: =SUMIFS(#REF!,#REF!,$B16,#REF!,I$4,#REF!,">=30") ->  | K16: =SUMIFS(#REF!,#REF!,$B16,#REF!,I$4,#REF!,">=30") ->  | L16: =COUNTIFS(#REF!,$B16,#REF!,L$4,#REF!,">=30") ->  | M16: =SUMIFS(#REF!,#REF!,$B16,#REF!,L$4,#REF!,">=30") ->  | N16: =SUMIFS(#REF!,#REF!,$B16,#REF!,L$4,#REF!,">=30") ->  | O16: =COUNTIFS(#REF!,$B16,#REF!,O$4,#REF!,">=30") ->  | P16: =SUMIFS(#REF!,#REF!,$B16,#REF!,O$4,#REF!,">=30") ->  | Q16: =SUMIFS(#REF!,#REF!,$B16,#REF!,O$4,#REF!,">=30") -> 
A17: 도 봉 Dobong-gu | B17: 도봉구 | F17: =COUNTIFS(#REF!,$B17,#REF!,F$4,#REF!,">=30") ->  | G17: =SUMIFS(#REF!,#REF!,$B17,#REF!,F$4,#REF!,">=30") ->  | H17: =SUMIFS(#REF!,#REF!,$B17,#REF!,F$4,#REF!,">=30") ->  | I17: =COUNTIFS(#REF!,$B17,#REF!,I$4,#REF!,">=30") ->  | J17: =SUMIFS(#REF!,#REF!,$B17,#REF!,I$4,#REF!,">=30") ->  | K17: =SUMIFS(#REF!,#REF!,$B17,#REF!,I$4,#REF!,">=30") ->  | L17: =COUNTIFS(#REF!,$B17,#REF!,L$4,#REF!,">=30") ->  | M17: =SUMIFS(#REF!,#REF!,$B17,#REF!,L$4,#REF!,">=30") ->  | N17: =SUMIFS(#REF!,#REF!,$B17,#REF!,L$4,#REF!,">=30") ->  | O17: =COUNTIFS(#REF!,$B17,#REF!,O$4,#REF!,">=30") ->  | P17: =SUMIFS(#REF!,#REF!,$B17,#REF!,O$4,#REF!,">=30") ->  | Q17: =SUMIFS(#REF!,#REF!,$B17,#REF!,O$4,#REF!,">=30") -> 
A18: 노 원 Nowon-gu | B18: 노원구 | F18: =COUNTIFS(#REF!,$B18,#REF!,F$4,#REF!,">=30") ->  | G18: =SUMIFS(#REF!,#REF!,$B18,#REF!,F$4,#REF!,">=30") ->  | H18: =SUMIFS(#REF!,#REF!,$B18,#REF!,F$4,#REF!,">=30") ->  | I18: =COUNTIFS(#REF!,$B18,#REF!,I$4,#REF!,">=30") ->  | J18: =SUMIFS(#REF!,#REF!,$B18,#REF!,I$4,#REF!,">=30") ->  | K18: =SUMIFS(#REF!,#REF!,$B18,#REF!,I$4,#REF!,">=30") ->  | L18: =COUNTIFS(#REF!,$B18,#REF!,L$4,#REF!,">=30") ->  | M18: =SUMIFS(#REF!,#REF!,$B18,#REF!,L$4,#REF!,">=30") ->  | N18: =SUMIFS(#REF!,#REF!,$B18,#REF!,L$4,#REF!,">=30") ->  | O18: =COUNTIFS(#REF!,$B18,#REF!,O$4,#REF!,">=30") ->  | P18: =SUMIFS(#REF!,#REF!,$B18,#REF!,O$4,#REF!,">=30") ->  | Q18: =SUMIFS(#REF!,#REF!,$B18,#REF!,O$4,#REF!,">=30") -> 
A19: 은 평 Eunpyeong-gu | B19: 은평구 | F19: =COUNTIFS(#REF!,$B19,#REF!,F$4,#REF!,">=30") ->  | G19: =SUMIFS(#REF!,#REF!,$B19,#REF!,F$4,#REF!,">=30") ->  | H19: =SUMIFS(#REF!,#REF!,$B19,#REF!,F$4,#REF!,">=30") ->  | I19: =COUNTIFS(#REF!,$B19,#REF!,I$4,#REF!,">=30") ->  | J19: =SUMIFS(#REF!,#REF!,$B19,#REF!,I$4,#REF!,">=30") ->  | K19: =SUMIFS(#REF!,#REF!,$B19,#REF!,I$4,#REF!,">=30") ->  | L19: =COUNTIFS(#REF!,$B19,#REF!,L$4,#REF!,">=30") ->  | M19: =SUMIFS(#REF!,#REF!,$B19,#REF!,L$4,#REF!,">=30") ->  | N19: =SUMIFS(#REF!,#REF!,$B19,#REF!,L$4,#REF!,">=30") ->  | O19: =COUNTIFS(#REF!,$B19,#REF!,O$4,#REF!,">=30") ->  | P19: =SUMIFS(#REF!,#REF!,$B19,#REF!,O$4,#REF!,">=30") ->  | Q19: =SUMIFS(#REF!,#REF!,$B19,#REF!,O$4,#REF!,">=30") -> 
A20: 서대문 Seodaemun-gu | B20: 서대문구 | F20: =COUNTIFS(#REF!,$B20,#REF!,F$4,#REF!,">=30") ->  | G20: =SUMIFS(#REF!,#REF!,$B20,#REF!,F$4,#REF!,">=30") ->  | H20: =SUMIFS(#REF!,#REF!,$B20,#REF!,F$4,#REF!,">=30") ->  | I20: =COUNTIFS(#REF!,$B20,#REF!,I$4,#REF!,">=30") ->  | J20: =SUMIFS(#REF!,#REF!,$B20,#REF!,I$4,#REF!,">=30") ->  | K20: =SUMIFS(#REF!,#REF!,$B20,#REF!,I$4,#REF!,">=30") ->  | L20: =COUNTIFS(#REF!,$B20,#REF!,L$4,#REF!,">=30") ->  | M20: =SUMIFS(#REF!,#REF!,$B20,#REF!,L$4,#REF!,">=30") ->  | N20: =SUMIFS(#REF!,#REF!,$B20,#REF!,L$4,#REF!,">=30") ->  | O20: =COUNTIFS(#REF!,$B20,#REF!,O$4,#REF!,">=30") ->  | P20: =SUMIFS(#REF!,#REF!,$B20,#REF!,O$4,#REF!,">=30") ->  | Q20: =SUMIFS(#REF!,#REF!,$B20,#REF!,O$4,#REF!,">=30") -> 
A21: 마 포 Mapo-gu | B21: 마포구 | F21: =COUNTIFS(#REF!,$B21,#REF!,F$4,#REF!,">=30") ->  | G21: =SUMIFS(#REF!,#REF!,$B21,#REF!,F$4,#REF!,">=30") ->  | H21: =SUMIFS(#REF!,#REF!,$B21,#REF!,F$4,#REF!,">=30") ->  | I21: =COUNTIFS(#REF!,$B21,#REF!,I$4,#REF!,">=30") ->  | J21: =SUMIFS(#REF!,#REF!,$B21,#REF!,I$4,#REF!,">=30") ->  | K21: =SUMIFS(#REF!,#REF!,$B21,#REF!,I$4,#REF!,">=30") ->  | L21: =COUNTIFS(#REF!,$B21,#REF!,L$4,#REF!,">=30") ->  | M21: =SUMIFS(#REF!,#REF!,$B21,#REF!,L$4,#REF!,">=30") ->  | N21: =SUMIFS(#REF!,#REF!,$B21,#REF!,L$4,#REF!,">=30") ->  | O21: =COUNTIFS(#REF!,$B21,#REF!,O$4,#REF!,">=30") ->  | P21: =SUMIFS(#REF!,#REF!,$B21,#REF!,O$4,#REF!,">=30") ->  | Q21: =SUMIFS(#REF!,#REF!,$B21,#REF!,O$4,#REF!,">=30") -> 
A22: 양 천 Yangcheon-gu | B22: 양천구 | F22: =COUNTIFS(#REF!,$B22,#REF!,F$4,#REF!,">=30") ->  | G22: =SUMIFS(#REF!,#REF!,$B22,#REF!,F$4,#REF!,">=30") ->  | H22: =SUMIFS(#REF!,#REF!,$B22,#REF!,F$4,#REF!,">=30") ->  | I22: =COUNTIFS(#REF!,$B22,#REF!,I$4,#REF!,">=30") ->  | J22: =SUMIFS(#REF!,#REF!,$B22,#REF!,I$4,#REF!,">=30") ->  | K22: =SUMIFS(#REF!,#REF!,$B22,#REF!,I$4,#REF!,">=30") ->  | L22: =COUNTIFS(#REF!,$B22,#REF!,L$4,#REF!,">=30") ->  | M22: =SUMIFS(#REF!,#REF!,$B22,#REF!,L$4,#REF!,">=30") ->  | N22: =SUMIFS(#REF!,#REF!,$B22,#REF!,L$4,#REF!,">=30") ->  | O22: =COUNTIFS(#REF!,$B22,#REF!,O$4,#REF!,">=30") ->  | P22: =SUMIFS(#REF!,#REF!,$B22,#REF!,O$4,#REF!,">=30") ->  | Q22: =SUMIFS(#REF!,#REF!,$B22,#REF!,O$4,#REF!,">=30") -> 
A23: 강 서 Gangseo-gu | B23: 강서구 | F23: =COUNTIFS(#REF!,$B23,#REF!,F$4,#REF!,">=30") ->  | G23: =SUMIFS(#REF!,#REF!,$B23,#REF!,F$4,#REF!,">=30") ->  | H23: =SUMIFS(#REF!,#REF!,$B23,#REF!,F$4,#REF!,">=30") ->  | I23: =COUNTIFS(#REF!,$B23,#REF!,I$4,#REF!,">=30") ->  | J23: =SUMIFS(#REF!,#REF!,$B23,#REF!,I$4,#REF!,">=30") ->  | K23: =SUMIFS(#REF!,#REF!,$B23,#REF!,I$4,#REF!,">=30") ->  | L23: =COUNTIFS(#REF!,$B23,#REF!,L$4,#REF!,">=30") ->  | M23: =SUMIFS(#REF!,#REF!,$B23,#REF!,L$4,#REF!,">=30") ->  | N23: =SUMIFS(#REF!,#REF!,$B23,#REF!,L$4,#REF!,">=30") ->  | O23: =COUNTIFS(#REF!,$B23,#REF!,O$4,#REF!,">=30") ->  | P23: =SUMIFS(#REF!,#REF!,$B23,#REF!,O$4,#REF!,">=30") ->  | Q23: =SUMIFS(#REF!,#REF!,$B23,#REF!,O$4,#REF!,">=30") -> 
A24: 구 로 Guro-gu | B24: 구로구 | F24: =COUNTIFS(#REF!,$B24,#REF!,F$4,#REF!,">=30") ->  | G24: =SUMIFS(#REF!,#REF!,$B24,#REF!,F$4,#REF!,">=30") ->  | H24: =SUMIFS(#REF!,#REF!,$B24,#REF!,F$4,#REF!,">=30") ->  | I24: =COUNTIFS(#REF!,$B24,#REF!,I$4,#REF!,">=30") ->  | J24: =SUMIFS(#REF!,#REF!,$B24,#REF!,I$4,#REF!,">=30") ->  | K24: =SUMIFS(#REF!,#REF!,$B24,#REF!,I$4,#REF!,">=30") ->  | L24: =COUNTIFS(#REF!,$B24,#REF!,L$4,#REF!,">=30") ->  | M24: =SUMIFS(#REF!,#REF!,$B24,#REF!,L$4,#REF!,">=30") ->  | N24: =SUMIFS(#REF!,#REF!,$B24,#REF!,L$4,#REF!,">=30") ->  | O24: =COUNTIFS(#REF!,$B24,#REF!,O$4,#REF!,">=30") ->  | P24: =SUMIFS(#REF!,#REF!,$B24,#REF!,O$4,#REF!,">=30") ->  | Q24: =SUMIFS(#REF!,#REF!,$B24,#REF!,O$4,#REF!,">=30") -> 
A25: 금 천 Geumcheon-gu | B25: 금천구 | F25: =COUNTIFS(#REF!,$B25,#REF!,F$4,#REF!,">=30") ->  | G25: =SUMIFS(#REF!,#REF!,$B25,#REF!,F$4,#REF!,">=30") ->  | H25: =SUMIFS(#REF!,#REF!,$B25,#REF!,F$4,#REF!,">=30") ->  | I25: =COUNTIFS(#REF!,$B25,#REF!,I$4,#REF!,">=30") ->  | J25: =SUMIFS(#REF!,#REF!,$B25,#REF!,I$4,#REF!,">=30") ->  | K25: =SUMIFS(#REF!,#REF!,$B25,#REF!,I$4,#REF!,">=30") ->  | L25: =COUNTIFS(#REF!,$B25,#REF!,L$4,#REF!,">=30") ->  | M25: =SUMIFS(#REF!,#REF!,$B25,#REF!,L$4,#REF!,">=30") ->  | N25: =SUMIFS(#REF!,#REF!,$B25,#REF!,L$4,#REF!,">=30") ->  | O25: =COUNTIFS(#REF!,$B25,#REF!,O$4,#REF!,">=30") ->  | P25: =SUMIFS(#REF!,#REF!,$B25,#REF!,O$4,#REF!,">=30") ->  | Q25: =SUMIFS(#REF!,#REF!,$B25,#REF!,O$4,#REF!,">=30") -> 
A26: 영등포 Yeongdeungpo-gu | B26: 영등포구 | F26: =COUNTIFS(#REF!,$B26,#REF!,F$4,#REF!,">=30") ->  | G26: =SUMIFS(#REF!,#REF!,$B26,#REF!,F$4,#REF!,">=30") ->  | H26: =SUMIFS(#REF!,#REF!,$B26,#REF!,F$4,#REF!,">=30") ->  | I26: =COUNTIFS(#REF!,$B26,#REF!,I$4,#REF!,">=30") ->  | J26: =SUMIFS(#REF!,#REF!,$B26,#REF!,I$4,#REF!,">=30") ->  | K26: =SUMIFS(#REF!,#REF!,$B26,#REF!,I$4,#REF!,">=30") ->  | L26: =COUNTIFS(#REF!,$B26,#REF!,L$4,#REF!,">=30") ->  | M26: =SUMIFS(#REF!,#REF!,$B26,#REF!,L$4,#REF!,">=30") ->  | N26: =SUMIFS(#REF!,#REF!,$B26,#REF!,L$4,#REF!,">=30") ->  | O26: =COUNTIFS(#REF!,$B26,#REF!,O$4,#REF!,">=30") ->  | P26: =SUMIFS(#REF!,#REF!,$B26,#REF!,O$4,#REF!,">=30") ->  | Q26: =SUMIFS(#REF!,#REF!,$B26,#REF!,O$4,#REF!,">=30") -> 
A27: 동 작 Dongjak-gu | B27: 동작구 | F27: =COUNTIFS(#REF!,$B27,#REF!,F$4,#REF!,">=30") ->  | G27: =SUMIFS(#REF!,#REF!,$B27,#REF!,F$4,#REF!,">=30") ->  | H27: =SUMIFS(#REF!,#REF!,$B27,#REF!,F$4,#REF!,">=30") ->  | I27: =COUNTIFS(#REF!,$B27,#REF!,I$4,#REF!,">=30") ->  | J27: =SUMIFS(#REF!,#REF!,$B27,#REF!,I$4,#REF!,">=30") ->  | K27: =SUMIFS(#REF!,#REF!,$B27,#REF!,I$4,#REF!,">=30") ->  | L27: =COUNTIFS(#REF!,$B27,#REF!,L$4,#REF!,">=30") ->  | M27: =SUMIFS(#REF!,#REF!,$B27,#REF!,L$4,#REF!,">=30") ->  | N27: =SUMIFS(#REF!,#REF!,$B27,#REF!,L$4,#REF!,">=30") ->  | O27: =COUNTIFS(#REF!,$B27,#REF!,O$4,#REF!,">=30") ->  | P27: =SUMIFS(#REF!,#REF!,$B27,#REF!,O$4,#REF!,">=30") ->  | Q27: =SUMIFS(#REF!,#REF!,$B27,#REF!,O$4,#REF!,">=30") -> 
A28: 관 악 Gwanak-gu | B28: 관악구 | F28: =COUNTIFS(#REF!,$B28,#REF!,F$4,#REF!,">=30") ->  | G28: =SUMIFS(#REF!,#REF!,$B28,#REF!,F$4,#REF!,">=30") ->  | H28: =SUMIFS(#REF!,#REF!,$B28,#REF!,F$4,#REF!,">=30") ->  | I28: =COUNTIFS(#REF!,$B28,#REF!,I$4,#REF!,">=30") ->  | J28: =SUMIFS(#REF!,#REF!,$B28,#REF!,I$4,#REF!,">=30") ->  | K28: =SUMIFS(#REF!,#REF!,$B28,#REF!,I$4,#REF!,">=30") ->  | L28: =COUNTIFS(#REF!,$B28,#REF!,L$4,#REF!,">=30") ->  | M28: =SUMIFS(#REF!,#REF!,$B28,#REF!,L$4,#REF!,">=30") ->  | N28: =SUMIFS(#REF!,#REF!,$B28,#REF!,L$4,#REF!,">=30") ->  | O28: =COUNTIFS(#REF!,$B28,#REF!,O$4,#REF!,">=30") ->  | P28: =SUMIFS(#REF!,#REF!,$B28,#REF!,O$4,#REF!,">=30") ->  | Q28: =SUMIFS(#REF!,#REF!,$B28,#REF!,O$4,#REF!,">=30") -> 
A29: 서 초 Seocho-gu | B29: 서초구 | F29: =COUNTIFS(#REF!,$B29,#REF!,F$4,#REF!,">=30") ->  | G29: =SUMIFS(#REF!,#REF!,$B29,#REF!,F$4,#REF!,">=30") ->  | H29: =SUMIFS(#REF!,#REF!,$B29,#REF!,F$4,#REF!,">=30") ->  | I29: =COUNTIFS(#REF!,$B29,#REF!,I$4,#REF!,">=30") ->  | J29: =SUMIFS(#REF!,#REF!,$B29,#REF!,I$4,#REF!,">=30") ->  | K29: =SUMIFS(#REF!,#REF!,$B29,#REF!,I$4,#REF!,">=30") ->  | L29: =COUNTIFS(#REF!,$B29,#REF!,L$4,#REF!,">=30") ->  | M29: =SUMIFS(#REF!,#REF!,$B29,#REF!,L$4,#REF!,">=30") ->  | N29: =SUMIFS(#REF!,#REF!,$B29,#REF!,L$4,#REF!,">=30") ->  | O29: =COUNTIFS(#REF!,$B29,#REF!,O$4,#REF!,">=30") ->  | P29: =SUMIFS(#REF!,#REF!,$B29,#REF!,O$4,#REF!,">=30") ->  | Q29: =SUMIFS(#REF!,#REF!,$B29,#REF!,O$4,#REF!,">=30") -> 
A30: 강 남 Gangnam-gu | B30: 강남구 | F30: =COUNTIFS(#REF!,$B30,#REF!,F$4,#REF!,">=30") ->  | G30: =SUMIFS(#REF!,#REF!,$B30,#REF!,F$4,#REF!,">=30") ->  | H30: =SUMIFS(#REF!,#REF!,$B30,#REF!,F$4,#REF!,">=30") ->  | I30: =COUNTIFS(#REF!,$B30,#REF!,I$4,#REF!,">=30") ->  | J30: =SUMIFS(#REF!,#REF!,$B30,#REF!,I$4,#REF!,">=30") ->  | K30: =SUMIFS(#REF!,#REF!,$B30,#REF!,I$4,#REF!,">=30") ->  | L30: =COUNTIFS(#REF!,$B30,#REF!,L$4,#REF!,">=30") ->  | M30: =SUMIFS(#REF!,#REF!,$B30,#REF!,L$4,#REF!,">=30") ->  | N30: =SUMIFS(#REF!,#REF!,$B30,#REF!,L$4,#REF!,">=30") ->  | O30: =COUNTIFS(#REF!,$B30,#REF!,O$4,#REF!,">=30") ->  | P30: =SUMIFS(#REF!,#REF!,$B30,#REF!,O$4,#REF!,">=30") ->  | Q30: =SUMIFS(#REF!,#REF!,$B30,#REF!,O$4,#REF!,">=30") -> 
A31: 송 파 Songpa-gu | B31: 송파구 | F31: =COUNTIFS(#REF!,$B31,#REF!,F$4,#REF!,">=30") ->  | G31: =SUMIFS(#REF!,#REF!,$B31,#REF!,F$4,#REF!,">=30") ->  | H31: =SUMIFS(#REF!,#REF!,$B31,#REF!,F$4,#REF!,">=30") ->  | I31: =COUNTIFS(#REF!,$B31,#REF!,I$4,#REF!,">=30") ->  | J31: =SUMIFS(#REF!,#REF!,$B31,#REF!,I$4,#REF!,">=30") ->  | K31: =SUMIFS(#REF!,#REF!,$B31,#REF!,I$4,#REF!,">=30") ->  | L31: =COUNTIFS(#REF!,$B31,#REF!,L$4,#REF!,">=30") ->  | M31: =SUMIFS(#REF!,#REF!,$B31,#REF!,L$4,#REF!,">=30") ->  | N31: =SUMIFS(#REF!,#REF!,$B31,#REF!,L$4,#REF!,">=30") ->  | O31: =COUNTIFS(#REF!,$B31,#REF!,O$4,#REF!,">=30") ->  | P31: =SUMIFS(#REF!,#REF!,$B31,#REF!,O$4,#REF!,">=30") ->  | Q31: =SUMIFS(#REF!,#REF!,$B31,#REF!,O$4,#REF!,">=30") ->  | R31: 0
A32: 강 동 Gangdong-gu | B32: 강동구 | F32: =COUNTIFS(#REF!,$B32,#REF!,F$4,#REF!,">=30") ->  | G32: =SUMIFS(#REF!,#REF!,$B32,#REF!,F$4,#REF!,">=30") ->  | H32: =SUMIFS(#REF!,#REF!,$B32,#REF!,F$4,#REF!,">=30") ->  | I32: =COUNTIFS(#REF!,$B32,#REF!,I$4,#REF!,">=30") ->  | J32: =SUMIFS(#REF!,#REF!,$B32,#REF!,I$4,#REF!,">=30") ->  | K32: =SUMIFS(#REF!,#REF!,$B32,#REF!,I$4,#REF!,">=30") ->  | L32: =COUNTIFS(#REF!,$B32,#REF!,L$4,#REF!,">=30") ->  | M32: =SUMIFS(#REF!,#REF!,$B32,#REF!,L$4,#REF!,">=30") ->  | N32: =SUMIFS(#REF!,#REF!,$B32,#REF!,L$4,#REF!,">=30") ->  | O32: =COUNTIFS(#REF!,$B32,#REF!,O$4,#REF!,">=30") ->  | P32: =SUMIFS(#REF!,#REF!,$B32,#REF!,O$4,#REF!,">=30") ->  | Q32: =SUMIFS(#REF!,#REF!,$B32,#REF!,O$4,#REF!,">=30") ->  | R32: 0
A34: 자료 : 공동주택과
A35: 주 : 1) 분양가구수가 30가구 이상인 아파트,주상복합,연립,다세대 기준.
C37: =C7-SUM(C8:C32) ->  | D37: =D7-SUM(D8:D32) -> 

Sheet 169-3. 사용년수별 (hidden)
A1: 169-3. 공동주택 현황(사용년수별) Apartment Houses by Years
A3: 단위 : 개수 | E3: =TODAY() -> 2024-12-24 | H3: 2013-01-01 | K3: =DATE(YEAR(H3)-5,1,1) -> 2008-01-01 | N3: =DATE(YEAR(K3)-5,1,1) -> 2003-01-01 | Q3: =DATE(YEAR(N3)-5,1,1) -> 1998-01-01 | T3: =DATE(YEAR(Q3)-10,1,1) -> 1988-01-01 | W3: =DATE(YEAR(T3)-10,1,1) -> 1978-01-01 | Z3: =DATE(YEAR(W3)-10,1,1) -> 1968-01-01 | AC3: 1900-01-01
C4: 총계 | F4: 5년 미만 | I4: 5년 이상 10년 미만 | L4: 10년 이상 15년 미만 | O4: 15년 이상 20년 미만 | R4: 20년 이상 30년 미만 | U4: 30년 이상 40년 미만 | X4: 40년 이상 50년 미만 | AA4: 50년 이상
C5: 단지수 | D5: 동수 | E5: 세대수 | F5: 단지수 | G5: 동수 | H5: 세대수 | I5: 단지수 | J5: 동수 | K5: 세대수 | L5: 단지수 | M5: 동수 | N5: 세대수 | O5: 단지수 | P5: 동수 | Q5: 세대수 | R5: 단지수 | S5: 동수 | T5: 세대수 | U5: 단지수 | V5: 동수 | W5: 세대수 | X5: 단지수 | Y5: 동수 | Z5: 세대수 | AA5: 단지수 | AB5: 동수 | AC5: 세대수 | AE5: 단지수 | AF5: 동수 | AG5: 세대수
A7: 2017 | C7: =SUM(C$8:C$32) ->  | D7: =SUM(D$8:D$32) ->  | AE7: =C7-SUM(F7,I7,L7,O7,R7,U7,X7,AA7) ->  | AF7: =D7-SUM(G7,J7,M7,P7,S7,V7,Y7,AB7) ->  | AG7: =E7-SUM(H7,K7,N7,Q7,T7,W7,Z7,AC7) -> 
A8: 종 로 Jongno-gu | B8: 종로구 | C8: =SUM(F8,I8,L8,O8,R8,U8,X8,AA8) ->  | D8: =SUM(G8,J8,M8,P8,S8,V8,Y8,AB8) ->  | E8: =SUM(H8,K8,N8,Q8,T8,W8,Z8,AC8) ->  | F8: =COUNTIFS(#REF!,$B8,#REF!,">=30",#REF!,">"&H$3,#REF!,"<="&E$3) ->  | G8: =SUMIFS(#REF!,#REF!,$B8,#REF!,">=30",#REF!,">"&H$3,#REF!,"<="&E$3) ->  | H8: =SUMIFS(#REF!,#REF!,$B8,#REF!,">=30",#REF!,">"&H$3,#REF!,"<="&E$3) ->  | I8: =COUNTIFS(#REF!,$B8,#REF!,">=30",#REF!,">"&K$3,#REF!,"<="&H$3) ->  | J8: =SUMIFS(#REF!,#REF!,$B8,#REF!,">=30",#REF!,">"&K$3,#REF!,"<="&H$3) ->  | K8: =SUMIFS(#REF!,#REF!,$B8,#REF!,">=30",#REF!,">"&K$3,#REF!,"<="&H$3) ->  | L8: =COUNTIFS(#REF!,$B8,#REF!,">=30",#REF!,">"&N$3,#REF!,"<="&K$3) ->  | M8: =SUMIFS(#REF!,#REF!,$B8,#REF!,">=30",#REF!,">"&N$3,#REF!,"<="&K$3) ->  | N8: =SUMIFS(#REF!,#REF!,$B8,#REF!,">=30",#REF!,">"&N$3,#REF!,"<="&K$3) ->  | O8: =COUNTIFS(#REF!,$B8,#REF!,">=30",#REF!,">"&Q$3,#REF!,"<="&N$3) ->  | P8: =SUMIFS(#REF!,#REF!,$B8,#REF!,">=30",#REF!,">"&Q$3,#REF!,"<="&N$3) ->  | Q8: =SUMIFS(#REF!,#REF!,$B8,#REF!,">=30",#REF!,">"&Q$3,#REF!,"<="&N$3) ->  | R8: =COUNTIFS(#REF!,$B8,#REF!,">=30",#REF!,">"&T$3,#REF!,"<="&Q$3) ->  | S8: =SUMIFS(#REF!,#REF!,$B8,#REF!,">=30",#REF!,">"&T$3,#REF!,"<="&Q$3) ->  | T8: =SUMIFS(#REF!,#REF!,$B8,#REF!,">=30",#REF!,">"&T$3,#REF!,"<="&Q$3) ->  | U8: =COUNTIFS(#REF!,$B8,#REF!,">=30",#REF!,">"&W$3,#REF!,"<="&T$3) ->  | V8: =SUMIFS(#REF!,#REF!,$B8,#REF!,">=30",#REF!,">"&W$3,#REF!,"<="&T$3) ->  | W8: =SUMIFS(#REF!,#REF!,$B8,#REF!,">=30",#REF!,">"&W$3,#REF!,"<="&T$3) ->  | X8: =COUNTIFS(#REF!,$B8,#REF!,">=30",#REF!,">"&Z$3,#REF!,"<="&W$3) ->  | Y8: =SUMIFS(#REF!,#REF!,$B8,#REF!,">=30",#REF!,">"&Z$3,#REF!,"<="&W$3) ->  | Z8: =SUMIFS(#REF!,#REF!,$B8,#REF!,">=30",#REF!,">"&Z$3,#REF!,"<="&W$3) ->  | AA8: =COUNTIFS(#REF!,$B8,#REF!,">=30",#REF!,">"&AC$3,#REF!,"<="&Z$3) ->  | AB8: =SUMIFS(#REF!,#REF!,$B8,#REF!,">=30",#REF!,">"&AC$3,#REF!,"<="&Z$3) ->  | AC8: =SUMIFS(#REF!,#REF!,$B8,#REF!,">=30",#REF!,">"&AC$3,#REF!,"<="&Z$3) ->  | AE8: =C8-SUM(F8,I8,L8,O8,R8,U8,X8,AA8) ->  | AF8: =D8-SUM(G8,J8,M8,P8,S8,V8,Y8,AB8) ->  | AG8: =E8-SUM(H8,K8,N8,Q8,T8,W8,Z8,AC8) -> 
A9: 중 구 Jung-gu | B9: 중구 | C9: =SUM(F9,I9,L9,O9,R9,U9,X9,AA9) ->  | D9: =SUM(G9,J9,M9,P9,S9,V9,Y9,AB9) ->  | E9: =SUM(H9,K9,N9,Q9,T9,W9,Z9,AC9) ->  | F9: =COUNTIFS(#REF!,$B9,#REF!,">=30",#REF!,">"&H$3,#REF!,"<="&E$3) ->  | G9: =SUMIFS(#REF!,#REF!,$B9,#REF!,">=30",#REF!,">"&H$3,#REF!,"<="&E$3) ->  | H9: =SUMIFS(#REF!,#REF!,$B9,#REF!,">=30",#REF!,">"&H$3,#REF!,"<="&E$3) ->  | I9: =COUNTIFS(#REF!,$B9,#REF!,">=30",#REF!,">"&K$3,#REF!,"<="&H$3) ->  | J9: =SUMIFS(#REF!,#REF!,$B9,#REF!,">=30",#REF!,">"&K$3,#REF!,"<="&H$3) ->  | K9: =SUMIFS(#REF!,#REF!,$B9,#REF!,">=30",#REF!,">"&K$3,#REF!,"<="&H$3) ->  | L9: =COUNTIFS(#REF!,$B9,#REF!,">=30",#REF!,">"&N$3,#REF!,"<="&K$3) ->  | M9: =SUMIFS(#REF!,#REF!,$B9,#REF!,">=30",#REF!,">"&N$3,#REF!,"<="&K$3) ->  | N9: =SUMIFS(#REF!,#REF!,$B9,#REF!,">=30",#REF!,">"&N$3,#REF!,"<="&K$3) ->  | O9: =COUNTIFS(#REF!,$B9,#REF!,">=30",#REF!,">"&Q$3,#REF!,"<="&N$3) ->  | P9: =SUMIFS(#REF!,#REF!,$B9,#REF!,">=30",#REF!,">"&Q$3,#REF!,"<="&N$3) ->  | Q9: =SUMIFS(#REF!,#REF!,$B9,#REF!,">=30",#REF!,">"&Q$3,#REF!,"<="&N$3) ->  | R9: =COUNTIFS(#REF!,$B9,#REF!,">=30",#REF!,">"&T$3,#REF!,"<="&Q$3) ->  | S9: =SUMIFS(#REF!,#REF!,$B9,#REF!,">=30",#REF!,">"&T$3,#REF!,"<="&Q$3) ->  | T9: =SUMIFS(#REF!,#REF!,$B9,#REF!,">=30",#REF!,">"&T$3,#REF!,"<="&Q$3) ->  | U9: =COUNTIFS(#REF!,$B9,#REF!,">=30",#REF!,">"&W$3,#REF!,"<="&T$3) ->  | V9: =SUMIFS(#REF!,#REF!,$B9,#REF!,">=30",#REF!,">"&W$3,#REF!,"<="&T$3) ->  | W9: =SUMIFS(#REF!,#REF!,$B9,#REF!,">=30",#REF!,">"&W$3,#REF!,"<="&T$3) ->  | X9: =COUNTIFS(#REF!,$B9,#REF!,">=30",#REF!,">"&Z$3,#REF!,"<="&W$3) ->  | Y9: =SUMIFS(#REF!,#REF!,$B9,#REF!,">=30",#REF!,">"&Z$3,#REF!,"<="&W$3) ->  | Z9: =SUMIFS(#REF!,#REF!,$B9,#REF!,">=30",#REF!,">"&Z$3,#REF!,"<="&W$3) ->  | AA9: =COUNTIFS(#REF!,$B9,#REF!,">=30",#REF!,">"&AC$3,#REF!,"<="&Z$3) ->  | AB9: =SUMIFS(#REF!,#REF!,$B9,#REF!,">=30",#REF!,">"&AC$3,#REF!,"<="&Z$3) ->  | AC9: =SUMIFS(#REF!,#REF!,$B9,#REF!,">=30",#REF!,">"&AC$3,#REF!,"<="&Z$3) -> 
A10: 용 산 Yongsan-gu | B10: 용산구 | F10: =COUNTIFS(#REF!,$B10,#REF!,">=30",#REF!,">"&H$3,#REF!,"<="&E$3) ->  | G10: =SUMIFS(#REF!,#REF!,$B10,#REF!,">=30",#REF!,">"&H$3,#REF!,"<="&E$3) ->  | H10: =SUMIFS(#REF!,#REF!,$B10,#REF!,">=30",#REF!,">"&H$3,#REF!,"<="&E$3) ->  | I10: =COUNTIFS(#REF!,$B10,#REF!,">=30",#REF!,">"&K$3,#REF!,"<="&H$3) ->  | J10: =SUMIFS(#REF!,#REF!,$B10,#REF!,">=30",#REF!,">"&K$3,#REF!,"<="&H$3) ->  | K10: =SUMIFS(#REF!,#REF!,$B10,#REF!,">=30",#REF!,">"&K$3,#REF!,"<="&H$3) ->  | L10: =COUNTIFS(#REF!,$B10,#REF!,">=30",#REF!,">"&N$3,#REF!,"<="&K$3) ->  | M10: =SUMIFS(#REF!,#REF!,$B10,#REF!,">=30",#REF!,">"&N$3,#REF!,"<="&K$3) ->  | N10: =SUMIFS(#REF!,#REF!,$B10,#REF!,">=30",#REF!,">"&N$3,#REF!,"<="&K$3) ->  | O10: =COUNTIFS(#REF!,$B10,#REF!,">=30",#REF!,">"&Q$3,#REF!,"<="&N$3) ->  | P10: =SUMIFS(#REF!,#REF!,$B10,#REF!,">=30",#REF!,">"&Q$3,#REF!,"<="&N$3) ->  | Q10: =SUMIFS(#REF!,#REF!,$B10,#REF!,">=30",#REF!,">"&Q$3,#REF!,"<="&N$3) ->  | R10: =COUNTIFS(#REF!,$B10,#REF!,">=30",#REF!,">"&T$3,#REF!,"<="&Q$3) ->  | S10: =SUMIFS(#REF!,#REF!,$B10,#REF!,">=30",#REF!,">"&T$3,#REF!,"<="&Q$3) ->  | T10: =SUMIFS(#REF!,#REF!,$B10,#REF!,">=30",#REF!,">"&T$3,#REF!,"<="&Q$3) ->  | U10: =COUNTIFS(#REF!,$B10,#REF!,">=30",#REF!,">"&W$3,#REF!,"<="&T$3) ->  | V10: =SUMIFS(#REF!,#REF!,$B10,#REF!,">=30",#REF!,">"&W$3,#REF!,"<="&T$3) ->  | W10: =SUMIFS(#REF!,#REF!,$B10,#REF!,">=30",#REF!,">"&W$3,#REF!,"<="&T$3) ->  | X10: =COUNTIFS(#REF!,$B10,#REF!,">=30",#REF!,">"&Z$3,#REF!,"<="&W$3) ->  | Y10: =SUMIFS(#REF!,#REF!,$B10,#REF!,">=30",#REF!,">"&Z$3,#REF!,"<="&W$3) ->  | Z10: =SUMIFS(#REF!,#REF!,$B10,#REF!,">=30",#REF!,">"&Z$3,#REF!,"<="&W$3) ->  | AA10: =COUNTIFS(#REF!,$B10,#REF!,">=30",#REF!,">"&AC$3,#REF!,"<="&Z$3) ->  | AB10: =SUMIFS(#REF!,#REF!,$B10,#REF!,">=30",#REF!,">"&AC$3,#REF!,"<="&Z$3) ->  | AC10: =SUMIFS(#REF!,#REF!,$B10,#REF!,">=30",#REF!,">"&AC$3,#REF!,"<="&Z$3) -> 
A11: 성 동 Seongdong-gu | B11: 성동구 | F11: =COUNTIFS(#REF!,$B11,#REF!,">=30",#REF!,">"&H$3,#REF!,"<="&E$3) ->  | G11: =SUMIFS(#REF!,#REF!,$B11,#REF!,">=30",#REF!,">"&H$3,#REF!,"<="&E$3) ->  | H11: =SUMIFS(#REF!,#REF!,$B11,#REF!,">=30",#REF!,">"&H$3,#REF!,"<="&E$3) ->  | I11: =COUNTIFS(#REF!,$B11,#REF!,">=30",#REF!,">"&K$3,#REF!,"<="&H$3) ->  | J11: =SUMIFS(#REF!,#REF!,$B11,#REF!,">=30",#REF!,">"&K$3,#REF!,"<="&H$3) ->  | K11: =SUMIFS(#REF!,#REF!,$B11,#REF!,">=30",#REF!,">"&K$3,#REF!,"<="&H$3) ->  | L11: =COUNTIFS(#REF!,$B11,#REF!,">=30",#REF!,">"&N$3,#REF!,"<="&K$3) ->  | M11: =SUMIFS(#REF!,#REF!,$B11,#REF!,">=30",#REF!,">"&N$3,#REF!,"<="&K$3) ->  | N11: =SUMIFS(#REF!,#REF!,$B11,#REF!,">=30",#REF!,">"&N$3,#REF!,"<="&K$3) ->  | O11: =COUNTIFS(#REF!,$B11,#REF!,">=30",#REF!,">"&Q$3,#REF!,"<="&N$3) ->  | P11: =SUMIFS(#REF!,#REF!,$B11,#REF!,">=30",#REF!,">"&Q$3,#REF!,"<="&N$3) ->  | Q11: =SUMIFS(#REF!,#REF!,$B11,#REF!,">=30",#REF!,">"&Q$3,#REF!,"<="&N$3) ->  | R11: =COUNTIFS(#REF!,$B11,#REF!,">=30",#REF!,">"&T$3,#REF!,"<="&Q$3) ->  | S11: =SUMIFS(#REF!,#REF!,$B11,#REF!,">=30",#REF!,">"&T$3,#REF!,"<="&Q$3) ->  | T11: =SUMIFS(#REF!,#REF!,$B11,#REF!,">=30",#REF!,">"&T$3,#REF!,"<="&Q$3) ->  | U11: =COUNTIFS(#REF!,$B11,#REF!,">=30",#REF!,">"&W$3,#REF!,"<="&T$3) ->  | V11: =SUMIFS(#REF!,#REF!,$B11,#REF!,">=30",#REF!,">"&W$3,#REF!,"<="&T$3) ->  | W11: =SUMIFS(#REF!,#REF!,$B11,#REF!,">=30",#REF!,">"&W$3,#REF!,"<="&T$3) ->  | X11: =COUNTIFS(#REF!,$B11,#REF!,">=30",#REF!,">"&Z$3,#REF!,"<="&W$3) ->  | Y11: =SUMIFS(#REF!,#REF!,$B11,#REF!,">=30",#REF!,">"&Z$3,#REF!,"<="&W$3) ->  | Z11: =SUMIFS(#REF!,#REF!,$B11,#REF!,">=30",#REF!,">"&Z$3,#REF!,"<="&W$3) ->  | AA11: =COUNTIFS(#REF!,$B11,#REF!,">=30",#REF!,">"&AC$3,#REF!,"<="&Z$3) ->  | AB11: =SUMIFS(#REF!,#REF!,$B11,#REF!,">=30",#REF!,">"&AC$3,#REF!,"<="&Z$3) ->  | AC11: =SUMIFS(#REF!,#REF!,$B11,#REF!,">=30",#REF!,">"&AC$3,#REF!,"<="&Z$3) -> 
A12: 광 진 Gwangjin-gu | B12: 광진구 | F12: =COUNTIFS(#REF!,$B12,#REF!,">=30",#REF!,">"&H$3,#REF!,"<="&E$3) ->  | G12: =SUMIFS(#REF!,#REF!,$B12,#REF!,">=30",#REF!,">"&H$3,#REF!,"<="&E$3) ->  | H12: =SUMIFS(#REF!,#REF!,$B12,#REF!,">=30",#REF!,">"&H$3,#REF!,"<="&E$3) ->  | I12: =COUNTIFS(#REF!,$B12,#REF!,">=30",#REF!,">"&K$3,#REF!,"<="&H$3) ->  | J12: =SUMIFS(#REF!,#REF!,$B12,#REF!,">=30",#REF!,">"&K$3,#REF!,"<="&H$3) ->  | K12: =SUMIFS(#REF!,#REF!,$B12,#REF!,">=30",#REF!,">"&K$3,#REF!,"<="&H$3) ->  | L12: =COUNTIFS(#REF!,$B12,#REF!,">=30",#REF!,">"&N$3,#REF!,"<="&K$3) ->  | M12: =SUMIFS(#REF!,#REF!,$B12,#REF!,">=30",#REF!,">"&N$3,#REF!,"<="&K$3) ->  | N12: =SUMIFS(#REF!,#REF!,$B12,#REF!,">=30",#REF!,">"&N$3,#REF!,"<="&K$3) ->  | O12: =COUNTIFS(#REF!,$B12,#REF!,">=30",#REF!,">"&Q$3,#REF!,"<="&N$3) ->  | P12: =SUMIFS(#REF!,#REF!,$B12,#REF!,">=30",#REF!,">"&Q$3,#REF!,"<="&N$3) ->  | Q12: =SUMIFS(#REF!,#REF!,$B12,#REF!,">=30",#REF!,">"&Q$3,#REF!,"<="&N$3) ->  | R12: =COUNTIFS(#REF!,$B12,#REF!,">=30",#REF!,">"&T$3,#REF!,"<="&Q$3) ->  | S12: =SUMIFS(#REF!,#REF!,$B12,#REF!,">=30",#REF!,">"&T$3,#REF!,"<="&Q$3) ->  | T12: =SUMIFS(#REF!,#REF!,$B12,#REF!,">=30",#REF!,">"&T$3,#REF!,"<="&Q$3) ->  | U12: =COUNTIFS(#REF!,$B12,#REF!,">=30",#REF!,">"&W$3,#REF!,"<="&T$3) ->  | V12: =SUMIFS(#REF!,#REF!,$B12,#REF!,">=30",#REF!,">"&W$3,#REF!,"<="&T$3) ->  | W12: =SUMIFS(#REF!,#REF!,$B12,#REF!,">=30",#REF!,">"&W$3,#REF!,"<="&T$3) ->  | X12: =COUNTIFS(#REF!,$B12,#REF!,">=30",#REF!,">"&Z$3,#REF!,"<="&W$3) ->  | Y12: =SUMIFS(#REF!,#REF!,$B12,#REF!,">=30",#REF!,">"&Z$3,#REF!,"<="&W$3) ->  | Z12: =SUMIFS(#REF!,#REF!,$B12,#REF!,">=30",#REF!,">"&Z$3,#REF!,"<="&W$3) ->  | AA12: =COUNTIFS(#REF!,$B12,#REF!,">=30",#REF!,">"&AC$3,#REF!,"<="&Z$3) ->  | AB12: =SUMIFS(#REF!,#REF!,$B12,#REF!,">=30",#REF!,">"&AC$3,#REF!,"<="&Z$3) ->  | AC12: =SUMIFS(#REF!,#REF!,$B12,#REF!,">=30",#REF!,">"&AC$3,#REF!,"<="&Z$3) -> 
A13: 동대문 Dongdaemun-gu | B13: 동대문구 | F13: =COUNTIFS(#REF!,$B13,#REF!,">=30",#REF!,">"&H$3,#REF!,"<="&E$3) ->  | G13: =SUMIFS(#REF!,#REF!,$B13,#REF!,">=30",#REF!,">"&H$3,#REF!,"<="&E$3) ->  | H13: =SUMIFS(#REF!,#REF!,$B13,#REF!,">=30",#REF!,">"&H$3,#REF!,"<="&E$3) ->  | I13: =COUNTIFS(#REF!,$B13,#REF!,">=30",#REF!,">"&K$3,#REF!,"<="&H$3) ->  | J13: =SUMIFS(#REF!,#REF!,$B13,#REF!,">=30",#REF!,">"&K$3,#REF!,"<="&H$3) ->  | K13: =SUMIFS(#REF!,#REF!,$B13,#REF!,">=30",#REF!,">"&K$3,#REF!,"<="&H$3) ->  | L13: =COUNTIFS(#REF!,$B13,#REF!,">=30",#REF!,">"&N$3,#REF!,"<="&K$3) ->  | M13: =SUMIFS(#REF!,#REF!,$B13,#REF!,">=30",#REF!,">"&N$3,#REF!,"<="&K$3) ->  | N13: =SUMIFS(#REF!,#REF!,$B13,#REF!,">=30",#REF!,">"&N$3,#REF!,"<="&K$3) ->  | O13: =COUNTIFS(#REF!,$B13,#REF!,">=30",#REF!,">"&Q$3,#REF!,"<="&N$3) ->  | P13: =SUMIFS(#REF!,#REF!,$B13,#REF!,">=30",#REF!,">"&Q$3,#REF!,"<="&N$3) ->  | Q13: =SUMIFS(#REF!,#REF!,$B13,#REF!,">=30",#REF!,">"&Q$3,#REF!,"<="&N$3) ->  | R13: =COUNTIFS(#REF!,$B13,#REF!,">=30",#REF!,">"&T$3,#REF!,"<="&Q$3) ->  | S13: =SUMIFS(#REF!,#REF!,$B13,#REF!,">=30",#REF!,">"&T$3,#REF!,"<="&Q$3) ->  | T13: =SUMIFS(#REF!,#REF!,$B13,#REF!,">=30",#REF!,">"&T$3,#REF!,"<="&Q$3) ->  | U13: =COUNTIFS(#REF!,$B13,#REF!,">=30",#REF!,">"&W$3,#REF!,"<="&T$3) ->  | V13: =SUMIFS(#REF!,#REF!,$B13,#REF!,">=30",#REF!,">"&W$3,#REF!,"<="&T$3) ->  | W13: =SUMIFS(#REF!,#REF!,$B13,#REF!,">=30",#REF!,">"&W$3,#REF!,"<="&T$3) ->  | X13: =COUNTIFS(#REF!,$B13,#REF!,">=30",#REF!,">"&Z$3,#REF!,"<="&W$3) ->  | Y13: =SUMIFS(#REF!,#REF!,$B13,#REF!,">=30",#REF!,">"&Z$3,#REF!,"<="&W$3) ->  | Z13: =SUMIFS(#REF!,#REF!,$B13,#REF!,">=30",#REF!,">"&Z$3,#REF!,"<="&W$3) ->  | AA13: =COUNTIFS(#REF!,$B13,#REF!,">=30",#REF!,">"&AC$3,#REF!,"<="&Z$3) ->  | AB13: =SUMIFS(#REF!,#REF!,$B13,#REF!,">=30",#REF!,">"&AC$3,#REF!,"<="&Z$3) ->  | AC13: =SUMIFS(#REF!,#REF!,$B13,#REF!,">=30",#REF!,">"&AC$3,#REF!,"<="&Z$3) -> 
A14: 중 랑 Jungnang-gu | B14: 중랑구 | F14: =COUNTIFS(#REF!,$B14,#REF!,">=30",#REF!,">"&H$3,#REF!,"<="&E$3) ->  | G14: =SUMIFS(#REF!,#REF!,$B14,#REF!,">=30",#REF!,">"&H$3,#REF!,"<="&E$3) ->  | H14: =SUMIFS(#REF!,#REF!,$B14,#REF!,">=30",#REF!,">"&H$3,#REF!,"<="&E$3) ->  | I14: =COUNTIFS(#REF!,$B14,#REF!,">=30",#REF!,">"&K$3,#REF!,"<="&H$3) ->  | J14: =SUMIFS(#REF!,#REF!,$B14,#REF!,">=30",#REF!,">"&K$3,#REF!,"<="&H$3) ->  | K14: =SUMIFS(#REF!,#REF!,$B14,#REF!,">=30",#REF!,">"&K$3,#REF!,"<="&H$3) ->  | L14: =COUNTIFS(#REF!,$B14,#REF!,">=30",#REF!,">"&N$3,#REF!,"<="&K$3) ->  | M14: =SUMIFS(#REF!,#REF!,$B14,#REF!,">=30",#REF!,">"&N$3,#REF!,"<="&K$3) ->  | N14: =SUMIFS(#REF!,#REF!,$B14,#REF!,">=30",#REF!,">"&N$3,#REF!,"<="&K$3) ->  | O14: =COUNTIFS(#REF!,$B14,#REF!,">=30",#REF!,">"&Q$3,#REF!,"<="&N$3) ->  | P14: =SUMIFS(#REF!,#REF!,$B14,#REF!,">=30",#REF!,">"&Q$3,#REF!,"<="&N$3) ->  | Q14: =SUMIFS(#REF!,#REF!,$B14,#REF!,">=30",#REF!,">"&Q$3,#REF!,"<="&N$3) ->  | R14: =COUNTIFS(#REF!,$B14,#REF!,">=30",#REF!,">"&T$3,#REF!,"<="&Q$3) ->  | S14: =SUMIFS(#REF!,#REF!,$B14,#REF!,">=30",#REF!,">"&T$3,#REF!,"<="&Q$3) ->  | T14: =SUMIFS(#REF!,#REF!,$B14,#REF!,">=30",#REF!,">"&T$3,#REF!,"<="&Q$3) ->  | U14: =COUNTIFS(#REF!,$B14,#REF!,">=30",#REF!,">"&W$3,#REF!,"<="&T$3) ->  | V14: =SUMIFS(#REF!,#REF!,$B14,#REF!,">=30",#REF!,">"&W$3,#REF!,"<="&T$3) ->  | W14: =SUMIFS(#REF!,#REF!,$B14,#REF!,">=30",#REF!,">"&W$3,#REF!,"<="&T$3) ->  | X14: =COUNTIFS(#REF!,$B14,#REF!,">=30",#REF!,">"&Z$3,#REF!,"<="&W$3) ->  | Y14: =SUMIFS(#REF!,#REF!,$B14,#REF!,">=30",#REF!,">"&Z$3,#REF!,"<="&W$3) ->  | Z14: =SUMIFS(#REF!,#REF!,$B14,#REF!,">=30",#REF!,">"&Z$3,#REF!,"<="&W$3) ->  | AA14: =COUNTIFS(#REF!,$B14,#REF!,">=30",#REF!,">"&AC$3,#REF!,"<="&Z$3) ->  | AB14: =SUMIFS(#REF!,#REF!,$B14,#REF!,">=30",#REF!,">"&AC$3,#REF!,"<="&Z$3) ->  | AC14: =SUMIFS(#REF!,#REF!,$B14,#REF!,">=30",#REF!,">"&AC$3,#REF!,"<="&Z$3) -> 
A15: 성 북 Seongbuk-gu | B15: 성북구 | F15: =COUNTIFS(#REF!,$B15,#REF!,">=30",#REF!,">"&H$3,#REF!,"<="&E$3) ->  | G15: =SUMIFS(#REF!,#REF!,$B15,#REF!,">=30",#REF!,">"&H$3,#REF!,"<="&E$3) ->  | H15: =SUMIFS(#REF!,#REF!,$B15,#REF!,">=30",#REF!,">"&H$3,#REF!,"<="&E$3) ->  | I15: =COUNTIFS(#REF!,$B15,#REF!,">=30",#REF!,">"&K$3,#REF!,"<="&H$3) ->  | J15: =SUMIFS(#REF!,#REF!,$B15,#REF!,">=30",#REF!,">"&K$3,#REF!,"<="&H$3) ->  | K15: =SUMIFS(#REF!,#REF!,$B15,#REF!,">=30",#REF!,">"&K$3,#REF!,"<="&H$3) ->  | L15: =COUNTIFS(#REF!,$B15,#REF!,">=30",#REF!,">"&N$3,#REF!,"<="&K$3) ->  | M15: =SUMIFS(#REF!,#REF!,$B15,#REF!,">=30",#REF!,">"&N$3,#REF!,"<="&K$3) ->  | N15: =SUMIFS(#REF!,#REF!,$B15,#REF!,">=30",#REF!,">"&N$3,#REF!,"<="&K$3) ->  | O15: =COUNTIFS(#REF!,$B15,#REF!,">=30",#REF!,">"&Q$3,#REF!,"<="&N$3) ->  | P15: =SUMIFS(#REF!,#REF!,$B15,#REF!,">=30",#REF!,">"&Q$3,#REF!,"<="&N$3) ->  | Q15: =SUMIFS(#REF!,#REF!,$B15,#REF!,">=30",#REF!,">"&Q$3,#REF!,"<="&N$3) ->  | R15: =COUNTIFS(#REF!,$B15,#REF!,">=30",#REF!,">"&T$3,#REF!,"<="&Q$3) ->  | S15: =SUMIFS(#REF!,#REF!,$B15,#REF!,">=30",#REF!,">"&T$3,#REF!,"<="&Q$3) ->  | T15: =SUMIFS(#REF!,#REF!,$B15,#REF!,">=30",#REF!,">"&T$3,#REF!,"<="&Q$3) ->  | U15: =COUNTIFS(#REF!,$B15,#REF!,">=30",#REF!,">"&W$3,#REF!,"<="&T$3) ->  | V15: =SUMIFS(#REF!,#REF!,$B15,#REF!,">=30",#REF!,">"&W$3,#REF!,"<="&T$3) ->  | W15: =SUMIFS(#REF!,#REF!,$B15,#REF!,">=30",#REF!,">"&W$3,#REF!,"<="&T$3) ->  | X15: =COUNTIFS(#REF!,$B15,#REF!,">=30",#REF!,">"&Z$3,#REF!,"<="&W$3) ->  | Y15: =SUMIFS(#REF!,#REF!,$B15,#REF!,">=30",#REF!,">"&Z$3,#REF!,"<="&W$3) ->  | Z15: =SUMIFS(#REF!,#REF!,$B15,#REF!,">=30",#REF!,">"&Z$3,#REF!,"<="&W$3) ->  | AA15: =COUNTIFS(#REF!,$B15,#REF!,">=30",#REF!,">"&AC$3,#REF!,"<="&Z$3) ->  | AB15: =SUMIFS(#REF!,#REF!,$B15,#REF!,">=30",#REF!,">"&AC$3,#REF!,"<="&Z$3) ->  | AC15: =SUMIFS(#REF!,#REF!,$B15,#REF!,">=30",#REF!,">"&AC$3,#REF!,"<="&Z$3) -> 
A16: 강 북 Gangbuk-gu | B16: 강북구 | F16: =COUNTIFS(#REF!,$B16,#REF!,">=30",#REF!,">"&H$3,#REF!,"<="&E$3) ->  | G16: =SUMIFS(#REF!,#REF!,$B16,#REF!,">=30",#REF!,">"&H$3,#REF!,"<="&E$3) ->  | H16: =SUMIFS(#REF!,#REF!,$B16,#REF!,">=30",#REF!,">"&H$3,#REF!,"<="&E$3) ->  | I16: =COUNTIFS(#REF!,$B16,#REF!,">=30",#REF!,">"&K$3,#REF!,"<="&H$3) ->  | J16: =SUMIFS(#REF!,#REF!,$B16,#REF!,">=30",#REF!,">"&K$3,#REF!,"<="&H$3) ->  | K16: =SUMIFS(#REF!,#REF!,$B16,#REF!,">=30",#REF!,">"&K$3,#REF!,"<="&H$3) ->  | L16: =COUNTIFS(#REF!,$B16,#REF!,">=30",#REF!,">"&N$3,#REF!,"<="&K$3) ->  | M16: =SUMIFS(#REF!,#REF!,$B16,#REF!,">=30",#REF!,">"&N$3,#REF!,"<="&K$3) ->  | N16: =SUMIFS(#REF!,#REF!,$B16,#REF!,">=30",#REF!,">"&N$3,#REF!,"<="&K$3) ->  | O16: =COUNTIFS(#REF!,$B16,#REF!,">=30",#REF!,">"&Q$3,#REF!,"<="&N$3) ->  | P16: =SUMIFS(#REF!,#REF!,$B16,#REF!,">=30",#REF!,">"&Q$3,#REF!,"<="&N$3) ->  | Q16: =SUMIFS(#REF!,#REF!,$B16,#REF!,">=30",#REF!,">"&Q$3,#REF!,"<="&N$3) ->  | R16: =COUNTIFS(#REF!,$B16,#REF!,">=30",#REF!,">"&T$3,#REF!,"<="&Q$3) ->  | S16: =SUMIFS(#REF!,#REF!,$B16,#REF!,">=30",#REF!,">"&T$3,#REF!,"<="&Q$3) ->  | T16: =SUMIFS(#REF!,#REF!,$B16,#REF!,">=30",#REF!,">"&T$3,#REF!,"<="&Q$3) ->  | U16: =COUNTIFS(#REF!,$B16,#REF!,">=30",#REF!,">"&W$3,#REF!,"<="&T$3) ->  | V16: =SUMIFS(#REF!,#REF!,$B16,#REF!,">=30",#REF!,">"&W$3,#REF!,"<="&T$3) ->  | W16: =SUMIFS(#REF!,#REF!,$B16,#REF!,">=30",#REF!,">"&W$3,#REF!,"<="&T$3) ->  | X16: =COUNTIFS(#REF!,$B16,#REF!,">=30",#REF!,">"&Z$3,#REF!,"<="&W$3) ->  | Y16: =SUMIFS(#REF!,#REF!,$B16,#REF!,">=30",#REF!,">"&Z$3,#REF!,"<="&W$3) ->  | Z16: =SUMIFS(#REF!,#REF!,$B16,#REF!,">=30",#REF!,">"&Z$3,#REF!,"<="&W$3) ->  | AA16: =COUNTIFS(#REF!,$B16,#REF!,">=30",#REF!,">"&AC$3,#REF!,"<="&Z$3) ->  | AB16: =SUMIFS(#REF!,#REF!,$B16,#REF!,">=30",#REF!,">"&AC$3,#REF!,"<="&Z$3) ->  | AC16: =SUMIFS(#REF!,#REF!,$B16,#REF!,">=30",#REF!,">"&AC$3,#REF!,"<="&Z$3) -> 
A17: 도 봉 Dobong-gu | B17: 도봉구 | F17: =COUNTIFS(#REF!,$B17,#REF!,">=30",#REF!,">"&H$3,#REF!,"<="&E$3) ->  | G17: =SUMIFS(#REF!,#REF!,$B17,#REF!,">=30",#REF!,">"&H$3,#REF!,"<="&E$3) ->  | H17: =SUMIFS(#REF!,#REF!,$B17,#REF!,">=30",#REF!,">"&H$3,#REF!,"<="&E$3) ->  | I17: =COUNTIFS(#REF!,$B17,#REF!,">=30",#REF!,">"&K$3,#REF!,"<="&H$3) ->  | J17: =SUMIFS(#REF!,#REF!,$B17,#REF!,">=30",#REF!,">"&K$3,#REF!,"<="&H$3) ->  | K17: =SUMIFS(#REF!,#REF!,$B17,#REF!,">=30",#REF!,">"&K$3,#REF!,"<="&H$3) ->  | L17: =COUNTIFS(#REF!,$B17,#REF!,">=30",#REF!,">"&N$3,#REF!,"<="&K$3) ->  | M17: =SUMIFS(#REF!,#REF!,$B17,#REF!,">=30",#REF!,">"&N$3,#REF!,"<="&K$3) ->  | N17: =SUMIFS(#REF!,#REF!,$B17,#REF!,">=30",#REF!,">"&N$3,#REF!,"<="&K$3) ->  | O17: =COUNTIFS(#REF!,$B17,#REF!,">=30",#REF!,">"&Q$3,#REF!,"<="&N$3) ->  | P17: =SUMIFS(#REF!,#REF!,$B17,#REF!,">=30",#REF!,">"&Q$3,#REF!,"<="&N$3) ->  | Q17: =SUMIFS(#REF!,#REF!,$B17,#REF!,">=30",#REF!,">"&Q$3,#REF!,"<="&N$3) ->  | R17: =COUNTIFS(#REF!,$B17,#REF!,">=30",#REF!,">"&T$3,#REF!,"<="&Q$3) ->  | S17: =SUMIFS(#REF!,#REF!,$B17,#REF!,">=30",#REF!,">"&T$3,#REF!,"<="&Q$3) ->  | T17: =SUMIFS(#REF!,#REF!,$B17,#REF!,">=30",#REF!,">"&T$3,#REF!,"<="&Q$3) ->  | U17: =COUNTIFS(#REF!,$B17,#REF!,">=30",#REF!,">"&W$3,#REF!,"<="&T$3) ->  | V17: =SUMIFS(#REF!,#REF!,$B17,#REF!,">=30",#REF!,">"&W$3,#REF!,"<="&T$3) ->  | W17: =SUMIFS(#REF!,#REF!,$B17,#REF!,">=30",#REF!,">"&W$3,#REF!,"<="&T$3) ->  | X17: =COUNTIFS(#REF!,$B17,#REF!,">=30",#REF!,">"&Z$3,#REF!,"<="&W$3) ->  | Y17: =SUMIFS(#REF!,#REF!,$B17,#REF!,">=30",#REF!,">"&Z$3,#REF!,"<="&W$3) ->  | Z17: =SUMIFS(#REF!,#REF!,$B17,#REF!,">=30",#REF!,">"&Z$3,#REF!,"<="&W$3) ->  | AA17: =COUNTIFS(#REF!,$B17,#REF!,">=30",#REF!,">"&AC$3,#REF!,"<="&Z$3) ->  | AB17: =SUMIFS(#REF!,#REF!,$B17,#REF!,">=30",#REF!,">"&AC$3,#REF!,"<="&Z$3) ->  | AC17: =SUMIFS(#REF!,#REF!,$B17,#REF!,">=30",#REF!,">"&AC$3,#REF!,"<="&Z$3) -> 
A18: 노 원 Nowon-gu | B18: 노원구 | F18: =COUNTIFS(#REF!,$B18,#REF!,">=30",#REF!,">"&H$3,#REF!,"<="&E$3) ->  | G18: =SUMIFS(#REF!,#REF!,$B18,#REF!,">=30",#REF!,">"&H$3,#REF!,"<="&E$3) ->  | H18: =SUMIFS(#REF!,#REF!,$B18,#REF!,">=30",#REF!,">"&H$3,#REF!,"<="&E$3) ->  | I18: =COUNTIFS(#REF!,$B18,#REF!,">=30",#REF!,">"&K$3,#REF!,"<="&H$3) ->  | J18: =SUMIFS(#REF!,#REF!,$B18,#REF!,">=30",#REF!,">"&K$3,#REF!,"<="&H$3) ->  | K18: =SUMIFS(#REF!,#REF!,$B18,#REF!,">=30",#REF!,">"&K$3,#REF!,"<="&H$3) ->  | L18: =COUNTIFS(#REF!,$B18,#REF!,">=30",#REF!,">"&N$3,#REF!,"<="&K$3) ->  | M18: =SUMIFS(#REF!,#REF!,$B18,#REF!,">=30",#REF!,">"&N$3,#REF!,"<="&K$3) ->  | N18: =SUMIFS(#REF!,#REF!,$B18,#REF!,">=30",#REF!,">"&N$3,#REF!,"<="&K$3) ->  | O18: =COUNTIFS(#REF!,$B18,#REF!,">=30",#REF!,">"&Q$3,#REF!,"<="&N$3) ->  | P18: =SUMIFS(#REF!,#REF!,$B18,#REF!,">=30",#REF!,">"&Q$3,#REF!,"<="&N$3) ->  | Q18: =SUMIFS(#REF!,#REF!,$B18,#REF!,">=30",#REF!,">"&Q$3,#REF!,"<="&N$3) ->  | R18: =COUNTIFS(#REF!,$B18,#REF!,">=30",#REF!,">"&T$3,#REF!,"<="&Q$3) ->  | S18: =SUMIFS(#REF!,#REF!,$B18,#REF!,">=30",#REF!,">"&T$3,#REF!,"<="&Q$3) ->  | T18: =SUMIFS(#REF!,#REF!,$B18,#REF!,">=30",#REF!,">"&T$3,#REF!,"<="&Q$3) ->  | U18: =COUNTIFS(#REF!,$B18,#REF!,">=30",#REF!,">"&W$3,#REF!,"<="&T$3) ->  | V18: =SUMIFS(#REF!,#REF!,$B18,#REF!,">=30",#REF!,">"&W$3,#REF!,"<="&T$3) ->  | W18: =SUMIFS(#REF!,#REF!,$B18,#REF!,">=30",#REF!,">"&W$3,#REF!,"<="&T$3) ->  | X18: =COUNTIFS(#REF!,$B18,#REF!,">=30",#REF!,">"&Z$3,#REF!,"<="&W$3) ->  | Y18: =SUMIFS(#REF!,#REF!,$B18,#REF!,">=30",#REF!,">"&Z$3,#REF!,"<="&W$3) ->  | Z18: =SUMIFS(#REF!,#REF!,$B18,#REF!,">=30",#REF!,">"&Z$3,#REF!,"<="&W$3) ->  | AA18: =COUNTIFS(#REF!,$B18,#REF!,">=30",#REF!,">"&AC$3,#REF!,"<="&Z$3) ->  | AB18: =SUMIFS(#REF!,#REF!,$B18,#REF!,">=30",#REF!,">"&AC$3,#REF!,"<="&Z$3) ->  | AC18: =SUMIFS(#REF!,#REF!,$B18,#REF!,">=30",#REF!,">"&AC$3,#REF!,"<="&Z$3) -> 
A19: 은 평 Eunpyeong-gu | B19: 은평구 | F19: =COUNTIFS(#REF!,$B19,#REF!,">=30",#REF!,">"&H$3,#REF!,"<="&E$3) ->  | G19: =SUMIFS(#REF!,#REF!,$B19,#REF!,">=30",#REF!,">"&H$3,#REF!,"<="&E$3) ->  | H19: =SUMIFS(#REF!,#REF!,$B19,#REF!,">=30",#REF!,">"&H$3,#REF!,"<="&E$3) ->  | I19: =COUNTIFS(#REF!,$B19,#REF!,">=30",#REF!,">"&K$3,#REF!,"<="&H$3) ->  | J19: =SUMIFS(#REF!,#REF!,$B19,#REF!,">=30",#REF!,">"&K$3,#REF!,"<="&H$3) ->  | K19: =SUMIFS(#REF!,#REF!,$B19,#REF!,">=30",#REF!,">"&K$3,#REF!,"<="&H$3) ->  | L19: =COUNTIFS(#REF!,$B19,#REF!,">=30",#REF!,">"&N$3,#REF!,"<="&K$3) ->  | M19: =SUMIFS(#REF!,#REF!,$B19,#REF!,">=30",#REF!,">"&N$3,#REF!,"<="&K$3) ->  | N19: =SUMIFS(#REF!,#REF!,$B19,#REF!,">=30",#REF!,">"&N$3,#REF!,"<="&K$3) ->  | O19: =COUNTIFS(#REF!,$B19,#REF!,">=30",#REF!,">"&Q$3,#REF!,"<="&N$3) ->  | P19: =SUMIFS(#REF!,#REF!,$B19,#REF!,">=30",#REF!,">"&Q$3,#REF!,"<="&N$3) ->  | Q19: =SUMIFS(#REF!,#REF!,$B19,#REF!,">=30",#REF!,">"&Q$3,#REF!,"<="&N$3) ->  | R19: =COUNTIFS(#REF!,$B19,#REF!,">=30",#REF!,">"&T$3,#REF!,"<="&Q$3) ->  | S19: =SUMIFS(#REF!,#REF!,$B19,#REF!,">=30",#REF!,">"&T$3,#REF!,"<="&Q$3) ->  | T19: =SUMIFS(#REF!,#REF!,$B19,#REF!,">=30",#REF!,">"&T$3,#REF!,"<="&Q$3) ->  | U19: =COUNTIFS(#REF!,$B19,#REF!,">=30",#REF!,">"&W$3,#REF!,"<="&T$3) ->  | V19: =SUMIFS(#REF!,#REF!,$B19,#REF!,">=30",#REF!,">"&W$3,#REF!,"<="&T$3) ->  | W19: =SUMIFS(#REF!,#REF!,$B19,#REF!,">=30",#REF!,">"&W$3,#REF!,"<="&T$3) ->  | X19: =COUNTIFS(#REF!,$B19,#REF!,">=30",#REF!,">"&Z$3,#REF!,"<="&W$3) ->  | Y19: =SUMIFS(#REF!,#REF!,$B19,#REF!,">=30",#REF!,">"&Z$3,#REF!,"<="&W$3) ->  | Z19: =SUMIFS(#REF!,#REF!,$B19,#REF!,">=30",#REF!,">"&Z$3,#REF!,"<="&W$3) ->  | AA19: =COUNTIFS(#REF!,$B19,#REF!,">=30",#REF!,">"&AC$3,#REF!,"<="&Z$3) ->  | AB19: =SUMIFS(#REF!,#REF!,$B19,#REF!,">=30",#REF!,">"&AC$3,#REF!,"<="&Z$3) ->  | AC19: =SUMIFS(#REF!,#REF!,$B19,#REF!,">=30",#REF!,">"&AC$3,#REF!,"<="&Z$3) -> 
A20: 서대문 Seodaemun-gu | B20: 서대문구 | F20: =COUNTIFS(#REF!,$B20,#REF!,">=30",#REF!,">"&H$3,#REF!,"<="&E$3) ->  | G20: =SUMIFS(#REF!,#REF!,$B20,#REF!,">=30",#REF!,">"&H$3,#REF!,"<="&E$3) ->  | H20: =SUMIFS(#REF!,#REF!,$B20,#REF!,">=30",#REF!,">"&H$3,#REF!,"<="&E$3) ->  | I20: =COUNTIFS(#REF!,$B20,#REF!,">=30",#REF!,">"&K$3,#REF!,"<="&H$3) ->  | J20: =SUMIFS(#REF!,#REF!,$B20,#REF!,">=30",#REF!,">"&K$3,#REF!,"<="&H$3) ->  | K20: =SUMIFS(#REF!,#REF!,$B20,#REF!,">=30",#REF!,">"&K$3,#REF!,"<="&H$3) ->  | L20: =COUNTIFS(#REF!,$B20,#REF!,">=30",#REF!,">"&N$3,#REF!,"<="&K$3) ->  | M20: =SUMIFS(#REF!,#REF!,$B20,#REF!,">=30",#REF!,">"&N$3,#REF!,"<="&K$3) ->  | N20: =SUMIFS(#REF!,#REF!,$B20,#REF!,">=30",#REF!,">"&N$3,#REF!,"<="&K$3) ->  | O20: =COUNTIFS(#REF!,$B20,#REF!,">=30",#REF!,">"&Q$3,#REF!,"<="&N$3) ->  | P20: =SUMIFS(#REF!,#REF!,$B20,#REF!,">=30",#REF!,">"&Q$3,#REF!,"<="&N$3) ->  | Q20: =SUMIFS(#REF!,#REF!,$B20,#REF!,">=30",#REF!,">"&Q$3,#REF!,"<="&N$3) ->  | R20: =COUNTIFS(#REF!,$B20,#REF!,">=30",#REF!,">"&T$3,#REF!,"<="&Q$3) ->  | S20: =SUMIFS(#REF!,#REF!,$B20,#REF!,">=30",#REF!,">"&T$3,#REF!,"<="&Q$3) ->  | T20: =SUMIFS(#REF!,#REF!,$B20,#REF!,">=30",#REF!,">"&T$3,#REF!,"<="&Q$3) ->  | U20: =COUNTIFS(#REF!,$B20,#REF!,">=30",#REF!,">"&W$3,#REF!,"<="&T$3) ->  | V20: =SUMIFS(#REF!,#REF!,$B20,#REF!,">=30",#REF!,">"&W$3,#REF!,"<="&T$3) ->  | W20: =SUMIFS(#REF!,#REF!,$B20,#REF!,">=30",#REF!,">"&W$3,#REF!,"<="&T$3) ->  | X20: =COUNTIFS(#REF!,$B20,#REF!,">=30",#REF!,">"&Z$3,#REF!,"<="&W$3) ->  | Y20: =SUMIFS(#REF!,#REF!,$B20,#REF!,">=30",#REF!,">"&Z$3,#REF!,"<="&W$3) ->  | Z20: =SUMIFS(#REF!,#REF!,$B20,#REF!,">=30",#REF!,">"&Z$3,#REF!,"<="&W$3) ->  | AA20: =COUNTIFS(#REF!,$B20,#REF!,">=30",#REF!,">"&AC$3,#REF!,"<="&Z$3) ->  | AB20: =SUMIFS(#REF!,#REF!,$B20,#REF!,">=30",#REF!,">"&AC$3,#REF!,"<="&Z$3) ->  | AC20: =SUMIFS(#REF!,#REF!,$B20,#REF!,">=30",#REF!,">"&AC$3,#REF!,"<="&Z$3) -> 
A21: 마 포 Mapo-gu | B21: 마포구 | F21: =COUNTIFS(#REF!,$B21,#REF!,">=30",#REF!,">"&H$3,#REF!,"<="&E$3) ->  | G21: =SUMIFS(#REF!,#REF!,$B21,#REF!,">=30",#REF!,">"&H$3,#REF!,"<="&E$3) ->  | H21: =SUMIFS(#REF!,#REF!,$B21,#REF!,">=30",#REF!,">"&H$3,#REF!,"<="&E$3) ->  | I21: =COUNTIFS(#REF!,$B21,#REF!,">=30",#REF!,">"&K$3,#REF!,"<="&H$3) ->  | J21: =SUMIFS(#REF!,#REF!,$B21,#REF!,">=30",#REF!,">"&K$3,#REF!,"<="&H$3) ->  | K21: =SUMIFS(#REF!,#REF!,$B21,#REF!,">=30",#REF!,">"&K$3,#REF!,"<="&H$3) ->  | L21: =COUNTIFS(#REF!,$B21,#REF!,">=30",#REF!,">"&N$3,#REF!,"<="&K$3) ->  | M21: =SUMIFS(#REF!,#REF!,$B21,#REF!,">=30",#REF!,">"&N$3,#REF!,"<="&K$3) ->  | N21: =SUMIFS(#REF!,#REF!,$B21,#REF!,">=30",#REF!,">"&N$3,#REF!,"<="&K$3) ->  | O21: =COUNTIFS(#REF!,$B21,#REF!,">=30",#REF!,">"&Q$3,#REF!,"<="&N$3) ->  | P21: =SUMIFS(#REF!,#REF!,$B21,#REF!,">=30",#REF!,">"&Q$3,#REF!,"<="&N$3) ->  | Q21: =SUMIFS(#REF!,#REF!,$B21,#REF!,">=30",#REF!,">"&Q$3,#REF!,"<="&N$3) ->  | R21: =COUNTIFS(#REF!,$B21,#REF!,">=30",#REF!,">"&T$3,#REF!,"<="&Q$3) ->  | S21: =SUMIFS(#REF!,#REF!,$B21,#REF!,">=30",#REF!,">"&T$3,#REF!,"<="&Q$3) ->  | T21: =SUMIFS(#REF!,#REF!,$B21,#REF!,">=30",#REF!,">"&T$3,#REF!,"<="&Q$3) ->  | U21: =COUNTIFS(#REF!,$B21,#REF!,">=30",#REF!,">"&W$3,#REF!,"<="&T$3) ->  | V21: =SUMIFS(#REF!,#REF!,$B21,#REF!,">=30",#REF!,">"&W$3,#REF!,"<="&T$3) ->  | W21: =SUMIFS(#REF!,#REF!,$B21,#REF!,">=30",#REF!,">"&W$3,#REF!,"<="&T$3) ->  | X21: =COUNTIFS(#REF!,$B21,#REF!,">=30",#REF!,">"&Z$3,#REF!,"<="&W$3) ->  | Y21: =SUMIFS(#REF!,#REF!,$B21,#REF!,">=30",#REF!,">"&Z$3,#REF!,"<="&W$3) ->  | Z21: =SUMIFS(#REF!,#REF!,$B21,#REF!,">=30",#REF!,">"&Z$3,#REF!,"<="&W$3) ->  | AA21: =COUNTIFS(#REF!,$B21,#REF!,">=30",#REF!,">"&AC$3,#REF!,"<="&Z$3) ->  | AB21: =SUMIFS(#REF!,#REF!,$B21,#REF!,">=30",#REF!,">"&AC$3,#REF!,"<="&Z$3) ->  | AC21: =SUMIFS(#REF!,#REF!,$B21,#REF!,">=30",#REF!,">"&AC$3,#REF!,"<="&Z$3) -> 
A22: 양 천 Yangcheon-gu | B22: 양천구 | F22: =COUNTIFS(#REF!,$B22,#REF!,">=30",#REF!,">"&H$3,#REF!,"<="&E$3) ->  | G22: =SUMIFS(#REF!,#REF!,$B22,#REF!,">=30",#REF!,">"&H$3,#REF!,"<="&E$3) ->  | H22: =SUMIFS(#REF!,#REF!,$B22,#REF!,">=30",#REF!,">"&H$3,#REF!,"<="&E$3) ->  | I22: =COUNTIFS(#REF!,$B22,#REF!,">=30",#REF!,">"&K$3,#REF!,"<="&H$3) ->  | J22: =SUMIFS(#REF!,#REF!,$B22,#REF!,">=30",#REF!,">"&K$3,#REF!,"<="&H$3) ->  | K22: =SUMIFS(#REF!,#REF!,$B22,#REF!,">=30",#REF!,">"&K$3,#REF!,"<="&H$3) ->  | L22: =COUNTIFS(#REF!,$B22,#REF!,">=30",#REF!,">"&N$3,#REF!,"<="&K$3) ->  | M22: =SUMIFS(#REF!,#REF!,$B22,#REF!,">=30",#REF!,">"&N$3,#REF!,"<="&K$3) ->  | N22: =SUMIFS(#REF!,#REF!,$B22,#REF!,">=30",#REF!,">"&N$3,#REF!,"<="&K$3) ->  | O22: =COUNTIFS(#REF!,$B22,#REF!,">=30",#REF!,">"&Q$3,#REF!,"<="&N$3) ->  | P22: =SUMIFS(#REF!,#REF!,$B22,#REF!,">=30",#REF!,">"&Q$3,#REF!,"<="&N$3) ->  | Q22: =SUMIFS(#REF!,#REF!,$B22,#REF!,">=30",#REF!,">"&Q$3,#REF!,"<="&N$3) ->  | R22: =COUNTIFS(#REF!,$B22,#REF!,">=30",#REF!,">"&T$3,#REF!,"<="&Q$3) ->  | S22: =SUMIFS(#REF!,#REF!,$B22,#REF!,">=30",#REF!,">"&T$3,#REF!,"<="&Q$3) ->  | T22: =SUMIFS(#REF!,#REF!,$B22,#REF!,">=30",#REF!,">"&T$3,#REF!,"<="&Q$3) ->  | U22: =COUNTIFS(#REF!,$B22,#REF!,">=30",#REF!,">"&W$3,#REF!,"<="&T$3) ->  | V22: =SUMIFS(#REF!,#REF!,$B22,#REF!,">=30",#REF!,">"&W$3,#REF!,"<="&T$3) ->  | W22: =SUMIFS(#REF!,#REF!,$B22,#REF!,">=30",#REF!,">"&W$3,#REF!,"<="&T$3) ->  | X22: =COUNTIFS(#REF!,$B22,#REF!,">=30",#REF!,">"&Z$3,#REF!,"<="&W$3) ->  | Y22: =SUMIFS(#REF!,#REF!,$B22,#REF!,">=30",#REF!,">"&Z$3,#REF!,"<="&W$3) ->  | Z22: =SUMIFS(#REF!,#REF!,$B22,#REF!,">=30",#REF!,">"&Z$3,#REF!,"<="&W$3) ->  | AA22: =COUNTIFS(#REF!,$B22,#REF!,">=30",#REF!,">"&AC$3,#REF!,"<="&Z$3) ->  | AB22: =SUMIFS(#REF!,#REF!,$B22,#REF!,">=30",#REF!,">"&AC$3,#REF!,"<="&Z$3) ->  | AC22: =SUMIFS(#REF!,#REF!,$B22,#REF!,">=30",#REF!,">"&AC$3,#REF!,"<="&Z$3) -> 
A23: 강 서 Gangseo-gu | B23: 강서구 | F23: =COUNTIFS(#REF!,$B23,#REF!,">=30",#REF!,">"&H$3,#REF!,"<="&E$3) ->  | G23: =SUMIFS(#REF!,#REF!,$B23,#REF!,">=30",#REF!,">"&H$3,#REF!,"<="&E$3) ->  | H23: =SUMIFS(#REF!,#REF!,$B23,#REF!,">=30",#REF!,">"&H$3,#REF!,"<="&E$3) ->  | I23: =COUNTIFS(#REF!,$B23,#REF!,">=30",#REF!,">"&K$3,#REF!,"<="&H$3) ->  | J23: =SUMIFS(#REF!,#REF!,$B23,#REF!,">=30",#REF!,">"&K$3,#REF!,"<="&H$3) ->  | K23: =SUMIFS(#REF!,#REF!,$B23,#REF!,">=30",#REF!,">"&K$3,#REF!,"<="&H$3) ->  | L23: =COUNTIFS(#REF!,$B23,#REF!,">=30",#REF!,">"&N$3,#REF!,"<="&K$3) ->  | M23: =SUMIFS(#REF!,#REF!,$B23,#REF!,">=30",#REF!,">"&N$3,#REF!,"<="&K$3) ->  | N23: =SUMIFS(#REF!,#REF!,$B23,#REF!,">=30",#REF!,">"&N$3,#REF!,"<="&K$3) ->  | O23: =COUNTIFS(#REF!,$B23,#REF!,">=30",#REF!,">"&Q$3,#REF!,"<="&N$3) ->  | P23: =SUMIFS(#REF!,#REF!,$B23,#REF!,">=30",#REF!,">"&Q$3,#REF!,"<="&N$3) ->  | Q23: =SUMIFS(#REF!,#REF!,$B23,#REF!,">=30",#REF!,">"&Q$3,#REF!,"<="&N$3) ->  | R23: =COUNTIFS(#REF!,$B23,#REF!,">=30",#REF!,">"&T$3,#REF!,"<="&Q$3) ->  | S23: =SUMIFS(#REF!,#REF!,$B23,#REF!,">=30",#REF!,">"&T$3,#REF!,"<="&Q$3) ->  | T23: =SUMIFS(#REF!,#REF!,$B23,#REF!,">=30",#REF!,">"&T$3,#REF!,"<="&Q$3) ->  | U23: =COUNTIFS(#REF!,$B23,#REF!,">=30",#REF!,">"&W$3,#REF!,"<="&T$3) ->  | V23: =SUMIFS(#REF!,#REF!,$B23,#REF!,">=30",#REF!,">"&W$3,#REF!,"<="&T$3) ->  | W23: =SUMIFS(#REF!,#REF!,$B23,#REF!,">=30",#REF!,">"&W$3,#REF!,"<="&T$3) ->  | X23: =COUNTIFS(#REF!,$B23,#REF!,">=30",#REF!,">"&Z$3,#REF!,"<="&W$3) ->  | Y23: =SUMIFS(#REF!,#REF!,$B23,#REF!,">=30",#REF!,">"&Z$3,#REF!,"<="&W$3) ->  | Z23: =SUMIFS(#REF!,#REF!,$B23,#REF!,">=30",#REF!,">"&Z$3,#REF!,"<="&W$3) ->  | AA23: =COUNTIFS(#REF!,$B23,#REF!,">=30",#REF!,">"&AC$3,#REF!,"<="&Z$3) ->  | AB23: =SUMIFS(#REF!,#REF!,$B23,#REF!,">=30",#REF!,">"&AC$3,#REF!,"<="&Z$3) ->  | AC23: =SUMIFS(#REF!,#REF!,$B23,#REF!,">=30",#REF!,">"&AC$3,#REF!,"<="&Z$3) -> 
A24: 구 로 Guro-gu | B24: 구로구 | F24: =COUNTIFS(#REF!,$B24,#REF!,">=30",#REF!,">"&H$3,#REF!,"<="&E$3) ->  | G24: =SUMIFS(#REF!,#REF!,$B24,#REF!,">=30",#REF!,">"&H$3,#REF!,"<="&E$3) ->  | H24: =SUMIFS(#REF!,#REF!,$B24,#REF!,">=30",#REF!,">"&H$3,#REF!,"<="&E$3) ->  | I24: =COUNTIFS(#REF!,$B24,#REF!,">=30",#REF!,">"&K$3,#REF!,"<="&H$3) ->  | J24: =SUMIFS(#REF!,#REF!,$B24,#REF!,">=30",#REF!,">"&K$3,#REF!,"<="&H$3) ->  | K24: =SUMIFS(#REF!,#REF!,$B24,#REF!,">=30",#REF!,">"&K$3,#REF!,"<="&H$3) ->  | L24: =COUNTIFS(#REF!,$B24,#REF!,">=30",#REF!,">"&N$3,#REF!,"<="&K$3) ->  | M24: =SUMIFS(#REF!,#REF!,$B24,#REF!,">=30",#REF!,">"&N$3,#REF!,"<="&K$3) ->  | N24: =SUMIFS(#REF!,#REF!,$B24,#REF!,">=30",#REF!,">"&N$3,#REF!,"<="&K$3) ->  | O24: =COUNTIFS(#REF!,$B24,#REF!,">=30",#REF!,">"&Q$3,#REF!,"<="&N$3) ->  | P24: =SUMIFS(#REF!,#REF!,$B24,#REF!,">=30",#REF!,">"&Q$3,#REF!,"<="&N$3) ->  | Q24: =SUMIFS(#REF!,#REF!,$B24,#REF!,">=30",#REF!,">"&Q$3,#REF!,"<="&N$3) ->  | R24: =COUNTIFS(#REF!,$B24,#REF!,">=30",#REF!,">"&T$3,#REF!,"<="&Q$3) ->  | S24: =SUMIFS(#REF!,#REF!,$B24,#REF!,">=30",#REF!,">"&T$3,#REF!,"<="&Q$3) ->  | T24: =SUMIFS(#REF!,#REF!,$B24,#REF!,">=30",#REF!,">"&T$3,#REF!,"<="&Q$3) ->  | U24: =COUNTIFS(#REF!,$B24,#REF!,">=30",#REF!,">"&W$3,#REF!,"<="&T$3) ->  | V24: =SUMIFS(#REF!,#REF!,$B24,#REF!,">=30",#REF!,">"&W$3,#REF!,"<="&T$3) ->  | W24: =SUMIFS(#REF!,#REF!,$B24,#REF!,">=30",#REF!,">"&W$3,#REF!,"<="&T$3) ->  | X24: =COUNTIFS(#REF!,$B24,#REF!,">=30",#REF!,">"&Z$3,#REF!,"<="&W$3) ->  | Y24: =SUMIFS(#REF!,#REF!,$B24,#REF!,">=30",#REF!,">"&Z$3,#REF!,"<="&W$3) ->  | Z24: =SUMIFS(#REF!,#REF!,$B24,#REF!,">=30",#REF!,">"&Z$3,#REF!,"<="&W$3) ->  | AA24: =COUNTIFS(#REF!,$B24,#REF!,">=30",#REF!,">"&AC$3,#REF!,"<="&Z$3) ->  | AB24: =SUMIFS(#REF!,#REF!,$B24,#REF!,">=30",#REF!,">"&AC$3,#REF!,"<="&Z$3) ->  | AC24: =SUMIFS(#REF!,#REF!,$B24,#REF!,">=30",#REF!,">"&AC$3,#REF!,"<="&Z$3) -> 
A25: 금 천 Geumcheon-gu | B25: 금천구 | F25: =COUNTIFS(#REF!,$B25,#REF!,">=30",#REF!,">"&H$3,#REF!,"<="&E$3) ->  | G25: =SUMIFS(#REF!,#REF!,$B25,#REF!,">=30",#REF!,">"&H$3,#REF!,"<="&E$3) ->  | H25: =SUMIFS(#REF!,#REF!,$B25,#REF!,">=30",#REF!,">"&H$3,#REF!,"<="&E$3) ->  | I25: =COUNTIFS(#REF!,$B25,#REF!,">=30",#REF!,">"&K$3,#REF!,"<="&H$3) ->  | J25: =SUMIFS(#REF!,#REF!,$B25,#REF!,">=30",#REF!,">"&K$3,#REF!,"<="&H$3) ->  | K25: =SUMIFS(#REF!,#REF!,$B25,#REF!,">=30",#REF!,">"&K$3,#REF!,"<="&H$3) ->  | L25: =COUNTIFS(#REF!,$B25,#REF!,">=30",#REF!,">"&N$3,#REF!,"<="&K$3) ->  | M25: =SUMIFS(#REF!,#REF!,$B25,#REF!,">=30",#REF!,">"&N$3,#REF!,"<="&K$3) ->  | N25: =SUMIFS(#REF!,#REF!,$B25,#REF!,">=30",#REF!,">"&N$3,#REF!,"<="&K$3) ->  | O25: =COUNTIFS(#REF!,$B25,#REF!,">=30",#REF!,">"&Q$3,#REF!,"<="&N$3) ->  | P25: =SUMIFS(#REF!,#REF!,$B25,#REF!,">=30",#REF!,">"&Q$3,#REF!,"<="&N$3) ->  | Q25: =SUMIFS(#REF!,#REF!,$B25,#REF!,">=30",#REF!,">"&Q$3,#REF!,"<="&N$3) ->  | R25: =COUNTIFS(#REF!,$B25,#REF!,">=30",#REF!,">"&T$3,#REF!,"<="&Q$3) ->  | S25: =SUMIFS(#REF!,#REF!,$B25,#REF!,">=30",#REF!,">"&T$3,#REF!,"<="&Q$3) ->  | T25: =SUMIFS(#REF!,#REF!,$B25,#REF!,">=30",#REF!,">"&T$3,#REF!,"<="&Q$3) ->  | U25: =COUNTIFS(#REF!,$B25,#REF!,">=30",#REF!,">"&W$3,#REF!,"<="&T$3) ->  | V25: =SUMIFS(#REF!,#REF!,$B25,#REF!,">=30",#REF!,">"&W$3,#REF!,"<="&T$3) ->  | W25: =SUMIFS(#REF!,#REF!,$B25,#REF!,">=30",#REF!,">"&W$3,#REF!,"<="&T$3) ->  | X25: =COUNTIFS(#REF!,$B25,#REF!,">=30",#REF!,">"&Z$3,#REF!,"<="&W$3) ->  | Y25: =SUMIFS(#REF!,#REF!,$B25,#REF!,">=30",#REF!,">"&Z$3,#REF!,"<="&W$3) ->  | Z25: =SUMIFS(#REF!,#REF!,$B25,#REF!,">=30",#REF!,">"&Z$3,#REF!,"<="&W$3) ->  | AA25: =COUNTIFS(#REF!,$B25,#REF!,">=30",#REF!,">"&AC$3,#REF!,"<="&Z$3) ->  | AB25: =SUMIFS(#REF!,#REF!,$B25,#REF!,">=30",#REF!,">"&AC$3,#REF!,"<="&Z$3) ->  | AC25: =SUMIFS(#REF!,#REF!,$B25,#REF!,">=30",#REF!,">"&AC$3,#REF!,"<="&Z$3) -> 
A26: 영등포 Yeongdeungpo-gu | B26: 영등포구 | F26: =COUNTIFS(#REF!,$B26,#REF!,">=30",#REF!,">"&H$3,#REF!,"<="&E$3) ->  | G26: =SUMIFS(#REF!,#REF!,$B26,#REF!,">=30",#REF!,">"&H$3,#REF!,"<="&E$3) ->  | H26: =SUMIFS(#REF!,#REF!,$B26,#REF!,">=30",#REF!,">"&H$3,#REF!,"<="&E$3) ->  | I26: =COUNTIFS(#REF!,$B26,#REF!,">=30",#REF!,">"&K$3,#REF!,"<="&H$3) ->  | J26: =SUMIFS(#REF!,#REF!,$B26,#REF!,">=30",#REF!,">"&K$3,#REF!,"<="&H$3) ->  | K26: =SUMIFS(#REF!,#REF!,$B26,#REF!,">=30",#REF!,">"&K$3,#REF!,"<="&H$3) ->  | L26: =COUNTIFS(#REF!,$B26,#REF!,">=30",#REF!,">"&N$3,#REF!,"<="&K$3) ->  | M26: =SUMIFS(#REF!,#REF!,$B26,#REF!,">=30",#REF!,">"&N$3,#REF!,"<="&K$3) ->  | N26: =SUMIFS(#REF!,#REF!,$B26,#REF!,">=30",#REF!,">"&N$3,#REF!,"<="&K$3) ->  | O26: =COUNTIFS(#REF!,$B26,#REF!,">=30",#REF!,">"&Q$3,#REF!,"<="&N$3) ->  | P26: =SUMIFS(#REF!,#REF!,$B26,#REF!,">=30",#REF!,">"&Q$3,#REF!,"<="&N$3) ->  | Q26: =SUMIFS(#REF!,#REF!,$B26,#REF!,">=30",#REF!,">"&Q$3,#REF!,"<="&N$3) ->  | R26: =COUNTIFS(#REF!,$B26,#REF!,">=30",#REF!,">"&T$3,#REF!,"<="&Q$3) ->  | S26: =SUMIFS(#REF!,#REF!,$B26,#REF!,">=30",#REF!,">"&T$3,#REF!,"<="&Q$3) ->  | T26: =SUMIFS(#REF!,#REF!,$B26,#REF!,">=30",#REF!,">"&T$3,#REF!,"<="&Q$3) ->  | U26: =COUNTIFS(#REF!,$B26,#REF!,">=30",#REF!,">"&W$3,#REF!,"<="&T$3) ->  | V26: =SUMIFS(#REF!,#REF!,$B26,#REF!,">=30",#REF!,">"&W$3,#REF!,"<="&T$3) ->  | W26: =SUMIFS(#REF!,#REF!,$B26,#REF!,">=30",#REF!,">"&W$3,#REF!,"<="&T$3) ->  | X26: =COUNTIFS(#REF!,$B26,#REF!,">=30",#REF!,">"&Z$3,#REF!,"<="&W$3) ->  | Y26: =SUMIFS(#REF!,#REF!,$B26,#REF!,">=30",#REF!,">"&Z$3,#REF!,"<="&W$3) ->  | Z26: =SUMIFS(#REF!,#REF!,$B26,#REF!,">=30",#REF!,">"&Z$3,#REF!,"<="&W$3) ->  | AA26: =COUNTIFS(#REF!,$B26,#REF!,">=30",#REF!,">"&AC$3,#REF!,"<="&Z$3) ->  | AB26: =SUMIFS(#REF!,#REF!,$B26,#REF!,">=30",#REF!,">"&AC$3,#REF!,"<="&Z$3) ->  | AC26: =SUMIFS(#REF!,#REF!,$B26,#REF!,">=30",#REF!,">"&AC$3,#REF!,"<="&Z$3) -> 
A27: 동 작 Dongjak-gu | B27: 동작구 | F27: =COUNTIFS(#REF!,$B27,#REF!,">=30",#REF!,">"&H$3,#REF!,"<="&E$3) ->  | G27: =SUMIFS(#REF!,#REF!,$B27,#REF!,">=30",#REF!,">"&H$3,#REF!,"<="&E$3) ->  | H27: =SUMIFS(#REF!,#REF!,$B27,#REF!,">=30",#REF!,">"&H$3,#REF!,"<="&E$3) ->  | I27: =COUNTIFS(#REF!,$B27,#REF!,">=30",#REF!,">"&K$3,#REF!,"<="&H$3) ->  | J27: =SUMIFS(#REF!,#REF!,$B27,#REF!,">=30",#REF!,">"&K$3,#REF!,"<="&H$3) ->  | K27: =SUMIFS(#REF!,#REF!,$B27,#REF!,">=30",#REF!,">"&K$3,#REF!,"<="&H$3) ->  | L27: =COUNTIFS(#REF!,$B27,#REF!,">=30",#REF!,">"&N$3,#REF!,"<="&K$3) ->  | M27: =SUMIFS(#REF!,#REF!,$B27,#REF!,">=30",#REF!,">"&N$3,#REF!,"<="&K$3) ->  | N27: =SUMIFS(#REF!,#REF!,$B27,#REF!,">=30",#REF!,">"&N$3,#REF!,"<="&K$3) ->  | O27: =COUNTIFS(#REF!,$B27,#REF!,">=30",#REF!,">"&Q$3,#REF!,"<="&N$3) ->  | P27: =SUMIFS(#REF!,#REF!,$B27,#REF!,">=30",#REF!,">"&Q$3,#REF!,"<="&N$3) ->  | Q27: =SUMIFS(#REF!,#REF!,$B27,#REF!,">=30",#REF!,">"&Q$3,#REF!,"<="&N$3) ->  | R27: =COUNTIFS(#REF!,$B27,#REF!,">=30",#REF!,">"&T$3,#REF!,"<="&Q$3) ->  | S27: =SUMIFS(#REF!,#REF!,$B27,#REF!,">=30",#REF!,">"&T$3,#REF!,"<="&Q$3) ->  | T27: =SUMIFS(#REF!,#REF!,$B27,#REF!,">=30",#REF!,">"&T$3,#REF!,"<="&Q$3) ->  | U27: =COUNTIFS(#REF!,$B27,#REF!,">=30",#REF!,">"&W$3,#REF!,"<="&T$3) ->  | V27: =SUMIFS(#REF!,#REF!,$B27,#REF!,">=30",#REF!,">"&W$3,#REF!,"<="&T$3) ->  | W27: =SUMIFS(#REF!,#REF!,$B27,#REF!,">=30",#REF!,">"&W$3,#REF!,"<="&T$3) ->  | X27: =COUNTIFS(#REF!,$B27,#REF!,">=30",#REF!,">"&Z$3,#REF!,"<="&W$3) ->  | Y27: =SUMIFS(#REF!,#REF!,$B27,#REF!,">=30",#REF!,">"&Z$3,#REF!,"<="&W$3) ->  | Z27: =SUMIFS(#REF!,#REF!,$B27,#REF!,">=30",#REF!,">"&Z$3,#REF!,"<="&W$3) ->  | AA27: =COUNTIFS(#REF!,$B27,#REF!,">=30",#REF!,">"&AC$3,#REF!,"<="&Z$3) ->  | AB27: =SUMIFS(#REF!,#REF!,$B27,#REF!,">=30",#REF!,">"&AC$3,#REF!,"<="&Z$3) ->  | AC27: =SUMIFS(#REF!,#REF!,$B27,#REF!,">=30",#REF!,">"&AC$3,#REF!,"<="&Z$3) -> 
A28: 관 악 Gwanak-gu | B28: 관악구 | F28: =COUNTIFS(#REF!,$B28,#REF!,">=30",#REF!,">"&H$3,#REF!,"<="&E$3) ->  | G28: =SUMIFS(#REF!,#REF!,$B28,#REF!,">=30",#REF!,">"&H$3,#REF!,"<="&E$3) ->  | H28: =SUMIFS(#REF!,#REF!,$B28,#REF!,">=30",#REF!,">"&H$3,#REF!,"<="&E$3) ->  | I28: =COUNTIFS(#REF!,$B28,#REF!,">=30",#REF!,">"&K$3,#REF!,"<="&H$3) ->  | J28: =SUMIFS(#REF!,#REF!,$B28,#REF!,">=30",#REF!,">"&K$3,#REF!,"<="&H$3) ->  | K28: =SUMIFS(#REF!,#REF!,$B28,#REF!,">=30",#REF!,">"&K$3,#REF!,"<="&H$3) ->  | L28: =COUNTIFS(#REF!,$B28,#REF!,">=30",#REF!,">"&N$3,#REF!,"<="&K$3) ->  | M28: =SUMIFS(#REF!,#REF!,$B28,#REF!,">=30",#REF!,">"&N$3,#REF!,"<="&K$3) ->  | N28: =SUMIFS(#REF!,#REF!,$B28,#REF!,">=30",#REF!,">"&N$3,#REF!,"<="&K$3) ->  | O28: =COUNTIFS(#REF!,$B28,#REF!,">=30",#REF!,">"&Q$3,#REF!,"<="&N$3) ->  | P28: =SUMIFS(#REF!,#REF!,$B28,#REF!,">=30",#REF!,">"&Q$3,#REF!,"<="&N$3) ->  | Q28: =SUMIFS(#REF!,#REF!,$B28,#REF!,">=30",#REF!,">"&Q$3,#REF!,"<="&N$3) ->  | R28: =COUNTIFS(#REF!,$B28,#REF!,">=30",#REF!,">"&T$3,#REF!,"<="&Q$3) ->  | S28: =SUMIFS(#REF!,#REF!,$B28,#REF!,">=30",#REF!,">"&T$3,#REF!,"<="&Q$3) ->  | T28: =SUMIFS(#REF!,#REF!,$B28,#REF!,">=30",#REF!,">"&T$3,#REF!,"<="&Q$3) ->  | U28: =COUNTIFS(#REF!,$B28,#REF!,">=30",#REF!,">"&W$3,#REF!,"<="&T$3) ->  | V28: =SUMIFS(#REF!,#REF!,$B28,#REF!,">=30",#REF!,">"&W$3,#REF!,"<="&T$3) ->  | W28: =SUMIFS(#REF!,#REF!,$B28,#REF!,">=30",#REF!,">"&W$3,#REF!,"<="&T$3) ->  | X28: =COUNTIFS(#REF!,$B28,#REF!,">=30",#REF!,">"&Z$3,#REF!,"<="&W$3) ->  | Y28: =SUMIFS(#REF!,#REF!,$B28,#REF!,">=30",#REF!,">"&Z$3,#REF!,"<="&W$3) ->  | Z28: =SUMIFS(#REF!,#REF!,$B28,#REF!,">=30",#REF!,">"&Z$3,#REF!,"<="&W$3) ->  | AA28: =COUNTIFS(#REF!,$B28,#REF!,">=30",#REF!,">"&AC$3,#REF!,"<="&Z$3) ->  | AB28: =SUMIFS(#REF!,#REF!,$B28,#REF!,">=30",#REF!,">"&AC$3,#REF!,"<="&Z$3) ->  | AC28: =SUMIFS(#REF!,#REF!,$B28,#REF!,">=30",#REF!,">"&AC$3,#REF!,"<="&Z$3) -> 
A29: 서 초 Seocho-gu | B29: 서초구 | F29: =COUNTIFS(#REF!,$B29,#REF!,">=30",#REF!,">"&H$3,#REF!,"<="&E$3) ->  | G29: =SUMIFS(#REF!,#REF!,$B29,#REF!,">=30",#REF!,">"&H$3,#REF!,"<="&E$3) ->  | H29: =SUMIFS(#REF!,#REF!,$B29,#REF!,">=30",#REF!,">"&H$3,#REF!,"<="&E$3) ->  | I29: =COUNTIFS(#REF!,$B29,#REF!,">=30",#REF!,">"&K$3,#REF!,"<="&H$3) ->  | J29: =SUMIFS(#REF!,#REF!,$B29,#REF!,">=30",#REF!,">"&K$3,#REF!,"<="&H$3) ->  | K29: =SUMIFS(#REF!,#REF!,$B29,#REF!,">=30",#REF!,">"&K$3,#REF!,"<="&H$3) ->  | L29: =COUNTIFS(#REF!,$B29,#REF!,">=30",#REF!,">"&N$3,#REF!,"<="&K$3) ->  | M29: =SUMIFS(#REF!,#REF!,$B29,#REF!,">=30",#REF!,">"&N$3,#REF!,"<="&K$3) ->  | N29: =SUMIFS(#REF!,#REF!,$B29,#REF!,">=30",#REF!,">"&N$3,#REF!,"<="&K$3) ->  | O29: =COUNTIFS(#REF!,$B29,#REF!,">=30",#REF!,">"&Q$3,#REF!,"<="&N$3) ->  | P29: =SUMIFS(#REF!,#REF!,$B29,#REF!,">=30",#REF!,">"&Q$3,#REF!,"<="&N$3) ->  | Q29: =SUMIFS(#REF!,#REF!,$B29,#REF!,">=30",#REF!,">"&Q$3,#REF!,"<="&N$3) ->  | R29: =COUNTIFS(#REF!,$B29,#REF!,">=30",#REF!,">"&T$3,#REF!,"<="&Q$3) ->  | S29: =SUMIFS(#REF!,#REF!,$B29,#REF!,">=30",#REF!,">"&T$3,#REF!,"<="&Q$3) ->  | T29: =SUMIFS(#REF!,#REF!,$B29,#REF!,">=30",#REF!,">"&T$3,#REF!,"<="&Q$3) ->  | U29: =COUNTIFS(#REF!,$B29,#REF!,">=30",#REF!,">"&W$3,#REF!,"<="&T$3) ->  | V29: =SUMIFS(#REF!,#REF!,$B29,#REF!,">=30",#REF!,">"&W$3,#REF!,"<="&T$3) ->  | W29: =SUMIFS(#REF!,#REF!,$B29,#REF!,">=30",#REF!,">"&W$3,#REF!,"<="&T$3) ->  | X29: =COUNTIFS(#REF!,$B29,#REF!,">=30",#REF!,">"&Z$3,#REF!,"<="&W$3) ->  | Y29: =SUMIFS(#REF!,#REF!,$B29,#REF!,">=30",#REF!,">"&Z$3,#REF!,"<="&W$3) ->  | Z29: =SUMIFS(#REF!,#REF!,$B29,#REF!,">=30",#REF!,">"&Z$3,#REF!,"<="&W$3) ->  | AA29: =COUNTIFS(#REF!,$B29,#REF!,">=30",#REF!,">"&AC$3,#REF!,"<="&Z$3) ->  | AB29: =SUMIFS(#REF!,#REF!,$B29,#REF!,">=30",#REF!,">"&AC$3,#REF!,"<="&Z$3) ->  | AC29: =SUMIFS(#REF!,#REF!,$B29,#REF!,">=30",#REF!,">"&AC$3,#REF!,"<="&Z$3) -> 
A30: 강 남 Gangnam-gu | B30: 강남구 | F30: =COUNTIFS(#REF!,$B30,#REF!,">=30",#REF!,">"&H$3,#REF!,"<="&E$3) ->  | G30: =SUMIFS(#REF!,#REF!,$B30,#REF!,">=30",#REF!,">"&H$3,#REF!,"<="&E$3) ->  | H30: =SUMIFS(#REF!,#REF!,$B30,#REF!,">=30",#REF!,">"&H$3,#REF!,"<="&E$3) ->  | I30: =COUNTIFS(#REF!,$B30,#REF!,">=30",#REF!,">"&K$3,#REF!,"<="&H$3) ->  | J30: =SUMIFS(#REF!,#REF!,$B30,#REF!,">=30",#REF!,">"&K$3,#REF!,"<="&H$3) ->  | K30: =SUMIFS(#REF!,#REF!,$B30,#REF!,">=30",#REF!,">"&K$3,#REF!,"<="&H$3) ->  | L30: =COUNTIFS(#REF!,$B30,#REF!,">=30",#REF!,">"&N$3,#REF!,"<="&K$3) ->  | M30: =SUMIFS(#REF!,#REF!,$B30,#REF!,">=30",#REF!,">"&N$3,#REF!,"<="&K$3) ->  | N30: =SUMIFS(#REF!,#REF!,$B30,#REF!,">=30",#REF!,">"&N$3,#REF!,"<="&K$3) ->  | O30: =COUNTIFS(#REF!,$B30,#REF!,">=30",#REF!,">"&Q$3,#REF!,"<="&N$3) ->  | P30: =SUMIFS(#REF!,#REF!,$B30,#REF!,">=30",#REF!,">"&Q$3,#REF!,"<="&N$3) ->  | Q30: =SUMIFS(#REF!,#REF!,$B30,#REF!,">=30",#REF!,">"&Q$3,#REF!,"<="&N$3) ->  | R30: =COUNTIFS(#REF!,$B30,#REF!,">=30",#REF!,">"&T$3,#REF!,"<="&Q$3) ->  | S30: =SUMIFS(#REF!,#REF!,$B30,#REF!,">=30",#REF!,">"&T$3,#REF!,"<="&Q$3) ->  | T30: =SUMIFS(#REF!,#REF!,$B30,#REF!,">=30",#REF!,">"&T$3,#REF!,"<="&Q$3) ->  | U30: =COUNTIFS(#REF!,$B30,#REF!,">=30",#REF!,">"&W$3,#REF!,"<="&T$3) ->  | V30: =SUMIFS(#REF!,#REF!,$B30,#REF!,">=30",#REF!,">"&W$3,#REF!,"<="&T$3) ->  | W30: =SUMIFS(#REF!,#REF!,$B30,#REF!,">=30",#REF!,">"&W$3,#REF!,"<="&T$3) ->  | X30: =COUNTIFS(#REF!,$B30,#REF!,">=30",#REF!,">"&Z$3,#REF!,"<="&W$3) ->  | Y30: =SUMIFS(#REF!,#REF!,$B30,#REF!,">=30",#REF!,">"&Z$3,#REF!,"<="&W$3) ->  | Z30: =SUMIFS(#REF!,#REF!,$B30,#REF!,">=30",#REF!,">"&Z$3,#REF!,"<="&W$3) ->  | AA30: =COUNTIFS(#REF!,$B30,#REF!,">=30",#REF!,">"&AC$3,#REF!,"<="&Z$3) ->  | AB30: =SUMIFS(#REF!,#REF!,$B30,#REF!,">=30",#REF!,">"&AC$3,#REF!,"<="&Z$3) ->  | AC30: =SUMIFS(#REF!,#REF!,$B30,#REF!,">=30",#REF!,">"&AC$3,#REF!,"<="&Z$3) -> 
A31: 송 파 Songpa-gu | B31: 송파구 | F31: =COUNTIFS(#REF!,$B31,#REF!,">=30",#REF!,">"&H$3,#REF!,"<="&E$3) ->  | G31: =SUMIFS(#REF!,#REF!,$B31,#REF!,">=30",#REF!,">"&H$3,#REF!,"<="&E$3) ->  | H31: =SUMIFS(#REF!,#REF!,$B31,#REF!,">=30",#REF!,">"&H$3,#REF!,"<="&E$3) ->  | I31: =COUNTIFS(#REF!,$B31,#REF!,">=30",#REF!,">"&K$3,#REF!,"<="&H$3) ->  | J31: =SUMIFS(#REF!,#REF!,$B31,#REF!,">=30",#REF!,">"&K$3,#REF!,"<="&H$3) ->  | K31: =SUMIFS(#REF!,#REF!,$B31,#REF!,">=30",#REF!,">"&K$3,#REF!,"<="&H$3) ->  | L31: =COUNTIFS(#REF!,$B31,#REF!,">=30",#REF!,">"&N$3,#REF!,"<="&K$3) ->  | M31: =SUMIFS(#REF!,#REF!,$B31,#REF!,">=30",#REF!,">"&N$3,#REF!,"<="&K$3) ->  | N31: =SUMIFS(#REF!,#REF!,$B31,#REF!,">=30",#REF!,">"&N$3,#REF!,"<="&K$3) ->  | O31: =COUNTIFS(#REF!,$B31,#REF!,">=30",#REF!,">"&Q$3,#REF!,"<="&N$3) ->  | P31: =SUMIFS(#REF!,#REF!,$B31,#REF!,">=30",#REF!,">"&Q$3,#REF!,"<="&N$3) ->  | Q31: =SUMIFS(#REF!,#REF!,$B31,#REF!,">=30",#REF!,">"&Q$3,#REF!,"<="&N$3) ->  | R31: =COUNTIFS(#REF!,$B31,#REF!,">=30",#REF!,">"&T$3,#REF!,"<="&Q$3) ->  | S31: =SUMIFS(#REF!,#REF!,$B31,#REF!,">=30",#REF!,">"&T$3,#REF!,"<="&Q$3) ->  | T31: =SUMIFS(#REF!,#REF!,$B31,#REF!,">=30",#REF!,">"&T$3,#REF!,"<="&Q$3) ->  | U31: =COUNTIFS(#REF!,$B31,#REF!,">=30",#REF!,">"&W$3,#REF!,"<="&T$3) ->  | V31: =SUMIFS(#REF!,#REF!,$B31,#REF!,">=30",#REF!,">"&W$3,#REF!,"<="&T$3) ->  | W31: =SUMIFS(#REF!,#REF!,$B31,#REF!,">=30",#REF!,">"&W$3,#REF!,"<="&T$3) ->  | X31: =COUNTIFS(#REF!,$B31,#REF!,">=30",#REF!,">"&Z$3,#REF!,"<="&W$3) ->  | Y31: =SUMIFS(#REF!,#REF!,$B31,#REF!,">=30",#REF!,">"&Z$3,#REF!,"<="&W$3) ->  | Z31: =SUMIFS(#REF!,#REF!,$B31,#REF!,">=30",#REF!,">"&Z$3,#REF!,"<="&W$3) ->  | AA31: =COUNTIFS(#REF!,$B31,#REF!,">=30",#REF!,">"&AC$3,#REF!,"<="&Z$3) ->  | AB31: =SUMIFS(#REF!,#REF!,$B31,#REF!,">=30",#REF!,">"&AC$3,#REF!,"<="&Z$3) ->  | AC31: =SUMIFS(#REF!,#REF!,$B31,#REF!,">=30",#REF!,">"&AC$3,#REF!,"<="&Z$3) ->  | AD31: 0
A32: 강 동 Gangdong-gu | B32: 강동구 | F32: =COUNTIFS(#REF!,$B32,#REF!,">=30",#REF!,">"&H$3,#REF!,"<="&E$3) ->  | G32: =SUMIFS(#REF!,#REF!,$B32,#REF!,">=30",#REF!,">"&H$3,#REF!,"<="&E$3) ->  | H32: =SUMIFS(#REF!,#REF!,$B32,#REF!,">=30",#REF!,">"&H$3,#REF!,"<="&E$3) ->  | I32: =COUNTIFS(#REF!,$B32,#REF!,">=30",#REF!,">"&K$3,#REF!,"<="&H$3) ->  | J32: =SUMIFS(#REF!,#REF!,$B32,#REF!,">=30",#REF!,">"&K$3,#REF!,"<="&H$3) ->  | K32: =SUMIFS(#REF!,#REF!,$B32,#REF!,">=30",#REF!,">"&K$3,#REF!,"<="&H$3) ->  | L32: =COUNTIFS(#REF!,$B32,#REF!,">=30",#REF!,">"&N$3,#REF!,"<="&K$3) ->  | M32: =SUMIFS(#REF!,#REF!,$B32,#REF!,">=30",#REF!,">"&N$3,#REF!,"<="&K$3) ->  | N32: =SUMIFS(#REF!,#REF!,$B32,#REF!,">=30",#REF!,">"&N$3,#REF!,"<="&K$3) ->  | O32: =COUNTIFS(#REF!,$B32,#REF!,">=30",#REF!,">"&Q$3,#REF!,"<="&N$3) ->  | P32: =SUMIFS(#REF!,#REF!,$B32,#REF!,">=30",#REF!,">"&Q$3,#REF!,"<="&N$3) ->  | Q32: =SUMIFS(#REF!,#REF!,$B32,#REF!,">=30",#REF!,">"&Q$3,#REF!,"<="&N$3) ->  | R32: =COUNTIFS(#REF!,$B32,#REF!,">=30",#REF!,">"&T$3,#REF!,"<="&Q$3) ->  | S32: =SUMIFS(#REF!,#REF!,$B32,#REF!,">=30",#REF!,">"&T$3,#REF!,"<="&Q$3) ->  | T32: =SUMIFS(#REF!,#REF!,$B32,#REF!,">=30",#REF!,">"&T$3,#REF!,"<="&Q$3) ->  | U32: =COUNTIFS(#REF!,$B32,#REF!,">=30",#REF!,">"&W$3,#REF!,"<="&T$3) ->  | V32: =SUMIFS(#REF!,#REF!,$B32,#REF!,">=30",#REF!,">"&W$3,#REF!,"<="&T$3) ->  | W32: =SUMIFS(#REF!,#REF!,$B32,#REF!,">=30",#REF!,">"&W$3,#REF!,"<="&T$3) ->  | X32: =COUNTIFS(#REF!,$B32,#REF!,">=30",#REF!,">"&Z$3,#REF!,"<="&W$3) ->  | Y32: =SUMIFS(#REF!,#REF!,$B32,#REF!,">=30",#REF!,">"&Z$3,#REF!,"<="&W$3) ->  | Z32: =SUMIFS(#REF!,#REF!,$B32,#REF!,">=30",#REF!,">"&Z$3,#REF!,"<="&W$3) ->  | AA32: =COUNTIFS(#REF!,$B32,#REF!,">=30",#REF!,">"&AC$3,#REF!,"<="&Z$3) ->  | AB32: =SUMIFS(#REF!,#REF!,$B32,#REF!,">=30",#REF!,">"&AC$3,#REF!,"<="&Z$3) ->  | AC32: =SUMIFS(#REF!,#REF!,$B32,#REF!,">=30",#REF!,">"&AC$3,#REF!,"<="&Z$3) ->  | AD32: 0
A34: 자료 : 공동주택과
A35: 주 : 1) 해당연도 12월 31일 기준 산정 2) 분양가구수가 30가구 이상인 아파트,주상복합,연립,다세대 기준.
C37: =C7-SUM(C8:C32) ->  | D37: =D7-SUM(D8:D32) -> 
